Workbook

Sheet 単振動
A1: 振動の運動方程式
A2: mx''+cx'+kx=-sign(x')μ'mg+fsinΩt | D2: 運動方程式 | F2: 単振動 | J2: マクロで計算➡ | L2: =exe("振動シミュレーション","ForcedOscillation",C8:C19,J8:L8) -> 振動シミュレーション
A3: x''=-(c/m)x'-(k/m)x-sign(x')(μ'g)+(f/m)sinΩt | D3: 微分方程式 | J3: マクロは標準モジュール-Module6 の中。
A4: ダンパ ＋バネ ＋ 動摩擦 ＋ 外力 | F4: 解析解 | K4: 数値積分 | O4: 理論値との差
E5: 時間 | F5: 加速度 | G5: 速度 | H5: 変位 | J5: 加速度 | K5: 速度 | L5: 変位 | N5: 加速度 | O5: 速度 | P5: 変位
E6: t | F6: 理論値x'' | G6: 理論値x' | H6: 理論値x | J6: x'' | K6: x' | L6: x | N6: x'' | O6: x' | P6: x
B7: 赤太字は単振動からの変更データ | E7: [s] | F7: [m/s^2] | G7: [m/s] | H7: [m] | J7: [m/s^2] | K7: [m/s] | L7: [m] | N7: [m/s^2] | O7: [m/s] | P7: [m]
A8: 時間間隔 | B8: Δt | C8: =C9/500 -> 0.012 | D8: [s] | E8: 0 | F8: =-($C$25^2)*H8 -> -40 | G8: =-$C$29*$C$25*SIN($C$25*E8+$C$30) -> 10 | H8: =$C$29*COS($C$25*E8+$C$30) -> 1 | J8: -40 | K8: 10 | L8: 1 | N8: =J8-F8 -> 0 | O8: =K8-G8 -> 0 | P8: 0
A9: 終了時間 | B9: TL | C9: 6 | D9: [s] | E9: =E8+$C$8 -> 0.012 | F9: -44.68024861 | G9: 9.491674489 | H9: 1.117006215 | J9: -44.6802473 | K9: 9.491674624 | L9: 1.117006182 | N9: =J9-F9 -> 1.316306275e-06 | O9: =K9-G9 -> 1.353461379e-07 | P9: =L9-H9 -> -3.29076566e-08
A10: 重力加速度 | B10: g | C10: 9.8 | D10: [m/s^2] | E10: 0.024 | F10: -49.1032625 | G10: 8.92870317 | H10: 1.227581563 | J10: -49.10326001 | K10: 8.928703471 | L10: 1.2275815 | N10: 2.495226681e-06 | O10: 3.01474083e-07 | P10: -6.238066685e-08
A11: 質量 | B11: m | C11: 10 | D11: [kg] | E11: 0.036 | F11: -53.24357733 | G11: 8.314327202 | H11: 1.331089433 | J11: -53.24357382 | K11: 8.314327698 | L11: 1.331089345 | N11: 3.515212832e-06 | O11: 4.957803483e-07 | P11: -8.788032058e-08
A12: 粘性減衰係数 | B12: c | C12: 0 | D12: [Ns/m] | E12: 0.048 | F12: -57.07735634 | G12: 7.652083693 | H12: 1.426933908 | J12: -57.07735198 | K12: 7.652084408 | L12: 1.4269338 | N12: 4.356463634e-06 | O12: 7.153270003e-07 | P12: -1.089115906e-07
A13: バネ定数 | B13: k | C13: 400 | D13: [N/m] | E13: 0.06 | F13: -60.58252755 | G13: 6.945785334 | H13: 1.514563189 | J13: -60.58252255 | K13: 6.94578629 | L13: 1.514563064 | N13: =J13-F13 -> 5.001119575e-06 | O13: =K13-G13 -> 9.568690391e-07 | P13: =L13-H13 -> -1.250279891e-07
A14: 静止摩擦係数 | B14: μ | C14: 0 | D14: [ND] | E14: 0.072 | F14: -63.73891087 | G14: 6.199498451 | H14: 1.593472772 | J14: -63.73890543 | K14: 6.199499668 | L14: 1.593472636 | N14: =J14-F14 -> 5.433440393e-06 | O14: =K14-G14 -> 1.21688449e-06 | P14: =L14-H14 -> -1.358360096e-07
A15: 動摩擦係数 | B15: μ' | C15: 0 | D15: [ND] | E15: 0.084 | F15: -66.52833425 | G15: 5.417519594 | H15: 1.663208356 | J15: -66.52832861 | K15: 5.417521086 | L15: 1.663208215 | N15: 5.639964968e-06 | O15: 1.491606952e-06 | P15: -1.409991239e-07
A16: 強制力 | B16: f | C16: 0 | D16: [N] | E16: 0.096 | F16: -68.93473833 | G16: 4.6043508 | H16: 1.723368458 | J16: -68.93473272 | K16: 4.604352578 | L16: 1.723368318 | N16: 5.609652064e-06 | O16: 1.777060344e-06 | P16: -1.402413015e-07
A17: 強制力角振動数 | B17: Ω | C17: 0 | D17: [rad/s] | E17: 0.108 | F17: -70.94426887 | G17: 3.764673674 | H17: 1.773606722 | J17: -70.94426353 | K17: 3.764675743 | L17: 1.773606588 | N17: 5.334000548e-06 | O17: 2.069095587e-06 | P17: -1.333500133e-07
A18: 初期位置 | B18: x0 | C18: 1 | D18: [m] | E18: 0.12 | F18: -72.54535653 | G18: 2.903322433 | H18: 1.813633913 | J18: -72.54535172 | K18: 2.903324796 | L18: 1.813633793 | N18: 4.807148244e-06 | O18: 2.36342891e-06 | P18: -1.201787057e-07
A19: 初期速度 | B19: x'0 | C19: 10 | D19: [m/s] | E19: 0.132 | F19: -73.72878347 | G19: 2.025256081 | H19: 1.843219587 | J19: -73.72877945 | K19: 2.025258736 | L19: 1.843219486 | N19: 4.025948655e-06 | O19: 2.6556815e-06 | P19: -1.006487163e-07
E20: 0.144 | F20: -74.48773643 | G20: 1.135529852 | H20: 1.862193411 | J20: -74.48773344 | K20: 1.135532793 | L20: 1.862193336 | N20: 2.990024669e-06 | O20: 2.941420168e-06 | P20: -7.475061636e-08
B21: c/m | C21: =C12/C11 -> 0 | D21: [1/s] | E21: 0.156 | F21: -74.81784593 | G21: 0.2392661095 | H21: 1.870446148 | J21: -74.81784423 | K21: 0.2392693257 | L21: 1.870446106 | N21: 1.701798666e-06 | O21: 3.216198699e-06 | P21: -4.254496622e-08
B22: k/m | C22: =C13/C11 -> 40 | D22: [1/s^2] | E22: 0.168 | F22: -74.71721145 | G22: -0.6583751439 | H22: 1.867930286 | J22: -74.71721128 | K22: -0.6583716683 | L22: 1.867930282 | N22: 1.664990492e-07 | O22: 3.47559959e-06 | P22: -4.162476142e-09
B23: μ'g | C23: =C15*C10 -> 0 | D23: [s^2/m] | E23: 0.18 | F23: -74.18641237 | G23: -1.552225976 | H23: 1.854660309 | J23: -74.18641398 | K23: -1.552222261 | L23: 1.85466035 | N23: -1.607857172e-06 | O23: 3.715275789e-06 | P23: 4.019642996e-08
B24: f/m | C24: =C16/C11 -> 0 | D24: [N/m] | E24: 0.192 | F24: -73.22850463 | G24: -2.437140278 | H24: 1.830712616 | J24: -73.22850824 | K24: -2.437136347 | L24: 1.830712706 | N24: -3.610506027e-06 | O24: 3.930992176e-06 | P24: 9.026265113e-08
A25: 固有角振動数 | B25: ω＝√(k/m) | C25: =SQRT(C13/C11) -> 6.32455532 | D25: ［rad/s］ | E25: 0.204 | F25: -71.84900313 | G25: -3.308023389 | H25: 1.796225078 | J25: -71.84900896 | K25: -3.30801927 | L25: 1.796225224 | N25: -5.828001491e-06 | O25: 4.11866636e-06 | P25: 1.457000376e-07
A26: 減衰固有角振動数 | B26: ωd＝ω√(1-ζ^2) | C26: =C25*SQRT(1-C27^2) -> 6.32455532 | D26: ［rad/s］ | E26: 0.216 | F26: -70.05584997 | G26: -4.159861429 | H26: 1.751396249 | J26: -70.05585822 | K26: -4.159857154 | L26: 1.751396455 | N26: -8.244304041e-06 | O26: 4.274408547e-06 | P26: 2.061076012e-07
A27: 減衰比 | B27: ζ＝c/{2√(mk)} | C27: =C12/(2*SQRT(C11*C13)) -> 0 | D27: [ND] | E27: 0.228 | F27: -67.85936878 | G27: -4.987750166 | H27: 1.696484219 | J27: -67.85937962 | K27: -4.987745772 | L27: 1.696484491 | N27: -1.084089183e-05 | O27: 4.39456011e-06 | P27: 2.710222962e-07
A28: 減衰率 | B28: γ＝ζω | C28: =C27*C25 -> 0 | D28: [1/s] | E28: 0.24 | F28: -65.2722052 | G28: -5.78692325 | H28: 1.63180513 | J28: -65.2722188 | K28: -5.786918774 | L28: 1.63180547 | N28: -1.359689388e-05 | O28: 4.475730544e-06 | P28: 3.399223474e-07
A29: 振幅 | B29: A | C29: =SQRT(C18^2+(C19/C25)^2) -> 1.870828693 | D29: [m] | E29: 0.252 | F29: -62.30925415 | G29: -6.552779652 | H29: 1.557731354 | J29: -62.30927064 | K29: -6.552775138 | L29: 1.557731766 | N29: -1.648924427e-05 | O29: 4.514832538e-06 | P29: 4.12231107e-07
A30: 初期位相 | B30: β | C30: =ATAN2(C25*C18,-C19) -> -1.006853685 | D30: [rad] | E30: 0.264 | F30: -58.98757404 | G30: -7.280910158 | H30: 1.474689351 | J30: -58.98759353 | K30: -7.280905649 | L30: 1.474689838 | N30: -1.949285647e-05 | O30: 4.509114824e-06 | P30: 4.873214119e-07
E31: 0.276 | F31: -55.32628856 | G31: -7.967122747 | H31: 1.383157214 | J31: -55.32631114 | K31: -7.967118291 | L31: 1.383157778 | N31: -2.258081621e-05 | O31: 4.456192558e-06 | P31: 5.645204053e-07
E32: 0.288 | F32: -51.34647659 | G32: -8.607466732 | H32: 1.283661915 | J32: -51.34650231 | K32: -8.607462378 | L32: 1.283662558 | N32: -2.572459199e-05 | O32: 4.354074973e-06 | P32: 6.431147999e-07
E33: 0.3 | F33: -47.07105085 | G33: -9.198255503 | H33: 1.176776271 | J33: -47.07107974 | K33: -9.198251302 | L33: 1.176776994 | N33: -2.889426109e-05 | O33: 4.201190057e-06 | P33: 7.223565275e-07
E34: 0.312 | F34: -42.52462598 | G34: -9.736087748 | H34: 1.063115649 | J34: -42.52465803 | K34: -9.736083752 | L34: 1.063116451 | N34: -3.205875e-05 | O34: 3.996406043e-06 | P34: 8.014687503e-07
A35: 単振動解析解 | E35: 0.324 | F35: -37.73337681 | G35: -10.21786704 | H35: 0.9433344202 | J35: -37.73341199 | K35: -10.2178633 | L35: 0.9433352998 | N35: -3.518608717e-05 | O35: 3.739049495e-06 | P35: 8.796521793e-07
A36: x''+ω^2x=0 | D36: 運動方程式 | E36: 0.336 | F36: -32.72488769 | G36: -10.64081966 | H36: 0.8181221923 | J36: -32.72492593 | K36: -10.64081624 | L36: 0.8181231484 | N36: -3.824366613e-05 | O36: 3.428919863e-06 | P36: 9.560916533e-07
A37: x＝Acos{ωt＋α} | D37: 変位 | E37: 0.348 | F37: -27.52799368 | G37: -11.00251058 | H37: 0.6881998421 | J37: -27.52803488 | K37: -11.00250752 | L37: 0.688200872 | N37: -4.11985175e-05 | O37: 3.066300318e-06 | P37: 1.029962937e-06
A38: x'＝－Aωsin{ωt＋α} | D38: 速度 | E38: 0.36 | F38: -22.17261453 | G38: -11.30085745 | H38: 0.5543153632 | J38: -22.17265854 | K38: -11.3008548 | L38: 0.5543164636 | N38: -4.401758701e-05 | O38: 2.651964763e-06 | P38: 1.100439675e-06
A39: x''＝－ω^2x | D39: 加速度 | E39: 0.372 | F39: -16.6895824 | G39: -11.53414262 | H39: 0.41723956 | J39: -16.68962907 | K39: -11.53414043 | L39: 0.4172407267 | N39: -4.666801841e-05 | O39: 2.187180961e-06 | P39: 1.16670046e-06
A40: A=√{x0^2+(x0'/ω)^2} | D40: 振幅 | E40: 0.384 | F40: -11.11046442 | G40: -11.70102301 | H40: 0.2777616104 | J40: -11.11051353 | K40: -11.70102134 | L40: 0.2777628383 | N40: -4.911743811e-05 | O40: 1.673709646e-06 | P40: 1.227935953e-06
A41: β=tan^(-1)(-x0'/(ωx0)) | D41: 初期位相 | E41: 0.396 | F41: -5.467380868 | G41: -11.80053785 | H41: 0.1366845217 | J41: -5.467432203 | K41: -11.80053674 | L41: 0.1366858051 | N41: -5.13342403e-05 | O41: 1.113799675e-06 | P41: 1.283356008e-06
E42: 0.408 | F42: 0.2071796802 | G42: -11.83211422 | H42: -0.005179492005 | J42: 0.2071263923 | K42: -11.83211371 | L42: -0.005178159808 | N42: -5.328786963e-05 | O42: 5.101791416e-07 | P42: 1.332196741e-06
E43: 0.42 | F43: 5.880547446 | G43: -11.79557031 | H43: -0.1470136862 | J43: 5.880492497 | K43: -11.79557045 | L43: -0.1470123124 | N43: -5.494909942e-05 | O43: -1.339574727e-07 | P43: 1.373727485e-06
E44: 0.432 | F44: 11.52005951 | G44: -11.69111653 | H44: -0.2880014879 | J44: 11.52000322 | K44: -11.69111735 | L44: -0.2880000806 | N44: -5.629030366e-05 | O44: -8.149660751e-07 | P44: 1.407257592e-06
E45: 0.444 | F45: 17.09324788 | G45: -11.51935423 | H45: -0.4273311971 | J45: 17.0931906 | K45: -11.51935576 | L45: -0.427329765 | N45: -5.728571985e-05 | O45: -1.528773577e-06 | P45: 1.432142996e-06
E46: 0.456 | F46: 22.5680264 | G46: -11.2812723 | H46: -0.5642006599 | J46: 22.56796849 | K46: -11.28127457 | L46: -0.5641992121 | N46: -5.791170136e-05 | O46: -2.270902211e-06 | P46: 1.447792534e-06
E47: 0.468 | F47: 27.91287546 | G47: -10.97824142 | H47: -0.6978218866 | J47: 27.91281732 | K47: -10.97824445 | L47: -0.6978204329 | N47: -5.814695653e-05 | O47: -3.036497429e-06 | P47: 1.453673913e-06
E48: 0.48 | F48: 33.09702352 | G48: -10.61200621 | H48: -0.8274255881 | J48: 33.09696555 | K48: -10.61201003 | L48: -0.8274241388 | N48: -5.797277325e-05 | O48: -3.820359215e-06 | P48: 1.449319331e-06
E49: 0.492 | F49: 38.09062422 | G49: -10.18467519 | H49: -0.9522656054 | J49: 38.09056684 | K49: -10.1846798 | L49: -0.9522641711 | N49: -5.737322653e-05 | O49: -4.616976574e-06 | P49: 1.434330663e-06
E50: 0.504 | F50: 42.86492821 | G50: -9.698708586 | H50: -1.071623205 | J50: 42.86487187 | K50: -9.698714007 | L50: -1.071621797 | N50: -5.633536764e-05 | O50: -5.420565008e-06 | P50: 1.408384191e-06
E51: 0.516 | F51: 47.3924487 | G51: -9.156904234 | H51: -1.184811218 | J51: 47.39239385 | K51: -9.156910459 | L51: -1.184809846 | N51: -5.484939314e-05 | O51: -6.225106716e-06 | P51: 1.371234829e-06
E52: 0.528 | F52: 51.6471197 | G52: -8.562381425 | H52: -1.291177993 | J52: 51.64706679 | K52: -8.562388449 | L52: -1.29117667 | N52: -5.290879219e-05 | O52: -7.024393263e-06 | P52: 1.322719805e-06
E53: 0.54 | F53: 55.60444605 | G53: -7.918562968 | H53: -1.390111151 | J53: 55.60439554 | K53: -7.91857078 | L53: -1.390109889 | N53: -5.05104705e-05 | O53: -7.812070366e-06 | P53: 1.262761762e-06
E54: 0.552 | F54: 59.2416445 | G54: -7.229155477 | H54: -1.481041113 | J54: 59.24159685 | K54: -7.229164059 | L54: -1.481039921 | N54: -4.765485068e-05 | O54: -8.581684612e-06 | P54: 1.191371267e-06
E55: 0.564 | F55: 62.53777484 | G55: -6.498128034 | H55: -1.563444371 | J55: 62.53773049 | K55: -6.498137361 | L55: -1.563443262 | N55: -4.434594661e-05 | O55: -9.326731623e-06 | P55: 1.108648665e-06
E56: 0.576 | F56: 65.47386047 | G56: -5.729689336 | H56: -1.636846512 | J56: 65.47381987 | K56: -5.729699377 | L56: -1.636845497 | N56: -4.059141197e-05 | O56: -1.004070546e-05 | P56: 1.014785299e-06
E57: 0.588 | F57: 68.03299764 | G57: -4.928263466 | H57: -1.700824941 | J57: 68.03296124 | K57: -4.928274184 | L57: -1.700824031 | N57: -3.640256172e-05 | O57: -1.071714883e-05 | P57: 9.100640428e-07
E58: 0.6 | F58: 70.20045281 | G58: -4.098464422 | H58: -1.75501132 | J58: 70.20042102 | K58: -4.098475772 | L58: -1.755010525 | N58: -3.179436631e-05 | O58: -1.134970377e-05 | P58: 7.948591572e-07
E59: 0.612 | F59: 71.96374743 | G59: -3.245069552 | H59: -1.799093686 | J59: 71.96372064 | K59: -3.245081484 | L59: -1.799093016 | N59: -2.678541813e-05 | O59: -1.193216246e-05 | P59: 6.696354531e-07
E60: 0.624 | F60: 73.31272979 | G60: -2.372992051 | H60: -1.832818245 | J60: 73.31270839 | K60: -2.373004509 | L60: -1.83281771 | N60: -2.139787023e-05 | O60: -1.24585177e-05 | P60: 5.349467553e-07
E61: 0.636 | F61: 74.23963348 | G61: -1.487252676 | H61: -1.855990837 | J61: 74.23961782 | K61: -1.487265599 | L61: -1.855990446 | N61: -1.565734715e-05 | O61: -1.292301279e-05 | P61: 3.914336784e-07
E62: 0.648 | F62: 74.7391221 | G62: -0.592950836 | H62: -1.868478052 | J62: 74.73911251 | K62: -0.5929641561 | L62: -1.868477813 | N62: -9.592828519e-06 | O62: -1.33201904e-05 | P62: 2.398207128e-07
E63: 0.66 | F63: 74.80831998 | G63: 0.3047647614 | H63: -1.870207999 | J63: 74.80831674 | K63: 0.3047511164 | L63: -1.870207918 | N63: -3.236505691e-06 | O63: -1.364493992e-05 | P63: 8.09126417e-08
E64: 0.672 | F64: 74.44682872 | G64: 1.200725756 | H64: -1.861170718 | J64: 74.4468321 | K64: 1.200711864 | L64: -1.861170802 | N64: 3.376388108e-06 | O64: -1.389254327e-05 | P64: -8.440970301e-08
E65: 0.684 | F65: 73.65672952 | G65: 2.08977389 | H65: -1.841418238 | J65: 73.65673973 | K65: 2.089759831 | L65: -1.841418493 | N65: 1.02077725e-05 | O65: -1.405871837e-05 | P65: -2.551943128e-07
E66: 0.696 | F66: 72.44257117 | G66: 2.966790702 | H66: -1.811064279 | J66: 72.44258838 | K66: 2.966776563 | L66: -1.81106471 | N66: 1.72169395e-05 | O66: -1.413966024e-05 | P66: -4.304234877e-07
E67: 0.708 | F67: 70.81134385 | G67: 3.826727001 | H67: -1.770283596 | J67: 70.81136821 | K67: 3.826712869 | L67: -1.770284205 | N67: 2.436079566e-05 | O67: -1.413207938e-05 | P67: -6.090198921e-07
E68: 0.72 | F68: 68.77243894 | G68: 4.664631931 | H68: -1.719310974 | J68: 68.77247054 | K68: 4.664617898 | L68: -1.719311763 | N68: 3.159412599e-05 | O68: -1.403323685e-05 | P68: -7.898531498e-07
E69: 0.732 | F69: 66.33759489 | G69: 5.475681475 | H69: -1.658439872 | J69: 66.33763376 | K69: 5.475667634 | L69: -1.658440844 | N69: 3.886987777e-05 | O69: -1.384097617e-05 | P69: -9.717469447e-07
E70: 0.744 | F70: 63.52082966 | G70: 6.25520623 | H70: -1.588020741 | J70: 63.5208758 | K70: 6.255192677 | L70: -1.588021895 | N70: 4.613946269e-05 | O70: -1.355375137e-05 | P70: -1.153486568e-06
E71: 0.756 | F71: 60.33836004 | G71: 6.998718289 | H71: -1.508459001 | J71: 60.3384134 | K71: 6.998705118 | L71: -1.508460335 | N71: 5.335307504e-05 | O71: -1.317065116e-05 | P71: -1.333826876e-06
E72: 0.768 | F72: =-($C$25^2)*H72 -> 56.80850826 | G72: =-$C$29*$C$25*SIN($C$25*E72+$C$30) -> 7.701937076 | H72: =$C$29*COS($C$25*E72+$C$30) -> -1.420212707 | J72: 56.80856872 | K72: 7.701924384 | L72: -1.420214218 | N72: 6.046002421e-05 | O72: -1.269141894e-05 | P72: -1.511500606e-06
E73: =E72+$C$8 -> 0.78 | F73: 52.95159651 | G73: 8.360813996 | H73: -1.323789913 | J73: 52.95166392 | K73: 8.360801879 | L73: -1.323791598 | N73: 6.740907939e-05 | O73: -1.211646852e-05 | P73: -1.685226985e-06
E74: 0.792 | F74: 48.78982994 | G74: 8.971555739 | H74: -1.219745748 | J74: 48.78990408 | K74: 8.971544292 | L74: -1.219747602 | N74: 7.414882386e-05 | O74: -1.144689513e-05 | P74: -1.853720597e-06
E75: 0.804 | F75: 44.34716881 | G75: 9.53064612 | H75: -1.10867922 | J75: 44.34724944 | K75: 9.530635436 | L75: -1.108681236 | N75: 8.062801665e-05 | O75: -1.068448196e-05 | P75: -2.015700416e-06
E76: 0.816 | F76: 39.64919057 | G76: 10.03486633 | H76: -0.9912297643 | J76: 39.64927737 | K76: 10.03485649 | L76: -0.9912319342 | N76: 8.679595927e-05 | O76: -9.831701774e-06 | P76: -2.169898982e-06
E77: 0.828 | F77: 34.7229426 | G77: 10.48131344 | H77: -0.8680735651 | J77: 34.72303521 | K77: 10.48130455 | L77: -0.8680758802 | N77: 9.260286442e-05 | O77: -8.891713712e-06 | P77: -2.315071611e-06
E78: 0.84 | F78: 29.59678647 | G78: 10.86741716 | H78: -0.7399196617 | J78: 29.59688447 | K78: 10.86740929 | L78: -0.7399221117 | N78: =J78-F78 -> 9.800022525e-05 | O78: =K78-G78 -> -7.868355201e-06 | P78: =L78-H78 -> -2.450005631e-06
E79: 0.852 | F79: 24.30023466 | G79: 11.1909546 | H79: -0.6075058664 | J79: 24.3003376 | K79: 11.19094784 | L79: -0.6075084399 | N79: 0.0001029411811 | O79: -6.766128902e-06 | P79: -2.573529528e-06
E80: 0.864 | F80: 18.86378067 | G80: 11.45006308 | H80: -0.4715945166 | J80: 18.86388805 | K80: 11.45005749 | L80: -0.4715972012 | N80: 0.0001073808784 | O80: -5.590184799e-06 | P80: -2.684521961e-06
E81: 0.876 | F81: 13.31872344 | G81: 11.64325084 | H81: -0.332968086 | J81: 13.31883472 | K81: 11.64324649 | L81: -0.332970868 | N81: 0.0001112768231 | O81: -4.346297423e-06 | P81: -2.781920577e-06
E82: 0.888 | F82: 7.696987188 | G82: 11.76940566 | H82: -0.1924246797 | J82: 7.697101777 | K82: 11.76940262 | L82: -0.1924275444 | N82: 0.0001145892229 | O82: -3.040838353e-06 | P82: -2.864730573e-06
E83: 0.9 | F83: 2.030937564 | G83: 11.82780125 | H83: -0.05077343911 | J83: 2.031054846 | K83: 11.82779957 | L83: -0.05077637114 | N83: 0.0001172813166 | O83: -1.680744065e-06 | P83: -2.932032916e-06
E84: 0.912 | F84: -3.646804646 | G84: 11.81810139 | H84: 0.09117011614 | J84: -3.646685326 | K84: 11.81810111 | L84: 0.09116713315 | N84: 0.0001193196872 | O84: -2.734793441e-07 | P84: -2.98299218e-06
E85: 0.924 | F85: -9.303551341 | G85: 11.74036193 | H85: 0.2325887835 | J85: -9.303430667 | K85: 11.74036311 | L85: 0.2325857667 | N85: 0.0001206745576 | O85: 1.173003591e-06 | P85: -3.01686394e-06
E86: 0.936 | F86: -14.9067353 | G86: 11.59503045 | H86: 0.3726683825 | J86: -14.90661398 | K86: 11.5950331 | L86: 0.3726653495 | N86: 0.0001213200659 | O86: 2.650310016e-06 | P86: -3.033001646e-06
E87: 0.948 | F87: -20.42409767 | G87: 11.38294364 | H87: 0.5106024417 | J87: -20.42397643 | K87: 11.38294779 | L87: 0.5105994108 | N87: 0.0001212345182 | O87: 4.149651403e-06 | P87: -3.030862954e-06
E88: 0.96 | F88: -25.82387369 | G88: 11.10532254 | H88: 0.6455968423 | J88: -25.82375329 | K88: 11.1053282 | L88: 0.6455938323 | N88: 0.0001204006173 | O88: 5.661897662e-06 | P88: -3.010015431e-06
E89: 0.972 | F89: -31.07497559 | G89: 10.76376548 | H89: 0.7768743897 | J89: -31.07485678 | K89: 10.76377266 | L89: 0.7768714195 | N89: 0.0001188056643 | O89: 7.177632567e-06 | P89: -2.970141607e-06
E90: 0.984 | F90: -36.14717152 | G90: 10.36023889 | H90: 0.9036792881 | J90: -36.14705508 | K90: 10.36024757 | L90: 0.903676377 | N90: 0.0001164417327 | O90: 8.687212041e-06 | P90: -2.911043317e-06
E91: 0.996 | F91: -41.01125967 | G91: 9.897065954 | H91: 1.025281492 | J91: -41.01114636 | K91: 9.897076135 | L91: 1.025278659 | N91: 0.0001133058124 | O91: 1.0180825e-05 | P91: -2.83264531e-06
E92: 1.008 | F92: -45.63923633 | G92: 9.376913281 | H92: 1.140980908 | J92: -45.63912693 | K92: 9.37692493 | L92: 1.140978173 | N92: 0.000109399923 | O92: 1.164855623e-05 | P92: -2.734998074e-06
E93: 1.02 | F93: -50.00445715 | G93: 8.802775508 | H93: 1.250111429 | J93: -50.00435241 | K93: 8.802788588 | L93: 1.25010881 | N93: 0.000104731194 | O93: 1.308045112e-05 | P93: -2.61827985e-06
E94: 1.032 | F94: -54.08179051 | G94: 8.177958081 | H94: 1.352044763 | J94: -54.0816912 | K94: 8.177972547 | L94: 1.35204228 | N94: 9.931191271e-05 | O94: 1.446658158e-05 | P94: -2.482797817e-06
E95: 1.044 | F95: -57.84776227 | G95: 7.506058221 | H95: 1.446194057 | J95: -57.84766911 | K95: 7.506074018 | L95: 1.446191728 | N95: 9.315953702e-05 | O95: 1.579711287e-05 | P95: -2.328988425e-06
E96: 1.056 | F96: -61.28069082 | G96: 6.790944215 | H96: 1.53201727 | J96: -61.28060452 | K96: 6.790961277 | L96: 1.532015113 | N96: 8.629667443e-05 | O96: 1.7062371e-05 | P96: -2.15741686e-06
E97: 1.068 | F97: -64.36081198 | G97: 6.036733142 | H97: 1.6090203 | J97: -64.36073323 | K97: 6.036751395 | L97: 1.609018331 | N97: 7.87510254e-05 | O97: 1.825290993e-05 | P97: -1.968775635e-06
E98: 1.08 | F98: -67.07039278 | G98: 5.247767173 | H98: 1.67675982 | J98: -67.07032223 | K98: 5.247786533 | L98: 1.676758056 | N98: 7.055529197e-05 | O98: 1.935957844e-05 | P98: -1.763882299e-06
E99: 1.092 | F99: -69.39383352 | G99: 4.428588572 | H99: 1.734845838 | J99: -69.39377177 | K99: 4.428608946 | L99: 1.734844294 | N99: 6.174705123e-05 | O99: 2.037358599e-05 | P99: -1.543676281e-06
E100: 1.104 | F100: -71.3177576 | G100: 3.583913542 | H100: 1.78294394 | J100: -71.31770523 | K100: 3.583934829 | L100: 1.782942631 | N100: 5.236859447e-05 | O100: 2.128656735e-05 | P100: -1.309214861e-06
E101: 1.116 | F101: -72.83108854 | G101: 2.718605078 | H101: 1.820777213 | J101: -72.83104607 | K101: 2.718627168 | L101: 1.820776152 | N101: 4.246673194e-05 | O101: 2.209064521e-05 | P101: -1.061668298e-06
E102: 1.128 | F102: -73.92511373 | G102: 1.837644963 | H102: 1.848127843 | J102: -73.92508164 | K102: 1.837667741 | L102: 1.848127041 | N102: 3.209256489e-05 | O102: 2.277849069e-05 | P102: -8.02314122e-07
E103: 1.14 | F103: -74.59353461 | G103: 0.9461050924 | H103: 1.864838365 | J103: -74.59351331 | K103: 0.9461284358 | L103: 1.864837833 | N103: 2.130122539e-05 | O103: 2.334338105e-05 | P103: -5.325306345e-07
E104: 1.152 | F104: -74.83250294 | G104: 0.04911827207 | H104: 1.870812573 | J104: -74.83249279 | K104: 0.04914205133 | L104: 1.87081232 | N104: 1.015158516e-05 | O104: 2.37792543e-05 | P104: -2.537896284e-07
E105: 1.164 | F105: -74.6406429 | G105: -0.8481513337 | H105: 1.866016073 | J105: -74.64064419 | K105: -0.848127253 | L105: 1.866016105 | N105: -1.294064404e-06 | O105: 2.408076026e-05 | P105: 3.23516105e-08
E106: 1.176 | F106: -74.01905909 | G106: -1.740537932 | H106: 1.850476477 | J106: -74.01907206 | K106: -1.740513689 | L106: 1.850476801 | N106: -1.297036e-05 | O106: 2.424330778e-05 | P106: 3.242590005e-07
E107: 1.188 | F107: -72.9713301 | G107: -2.622903844 | H107: 1.824283253 | J107: -72.97135491 | K107: -2.622879581 | L107: 1.824283873 | N107: -2.480923972e-05 | O107: 2.426310755e-05 | P107: 6.202309932e-07
E108: 1.2 | F108: -71.50348797 | G108: -3.49016908 | H108: 1.787587199 | J108: -71.50352471 | K108: -3.490144942 | L108: 1.787588118 | N108: -3.67403396e-05 | O108: 2.413721032e-05 | P108: 9.185084902e-07
E109: 1.212 | F109: -69.6239834 | G109: -4.337340589 | H109: 1.740599585 | J109: -69.62403209 | K109: -4.337316726 | L109: 1.740600802 | N109: -4.869141149e-05 | O109: 2.386354031e-05 | P109: 1.217285288e-06
E110: 1.224 | F110: -67.34363715 | G110: -5.159541006 | H110: 1.683590929 | J110: -67.34369774 | K110: -5.159517566 | L110: 1.683592443 | N110: -6.058875961e-05 | O110: 2.344092317e-05 | P110: 1.51471899e-06
E111: 1.236 | F111: -64.6755777 | G111: -5.95203673 | H111: 1.616889442 | J111: -64.67565006 | K111: -5.952013861 | L111: 1.616891251 | N111: -7.23576927e-05 | O111: 2.286910866e-05 | P111: 1.808942317e-06
E112: 1.248 | F112: -61.6351657 | G112: -6.710265175 | H112: 1.540879143 | J112: -61.63524963 | K112: -6.710243026 | L112: 1.540881241 | N112: -8.392298999e-05 | O112: 2.214878748e-05 | P112: 2.09807475e-06
E113: 1.26 | F113: -58.23990553 | G113: -7.429861042 | H113: 1.455997638 | J113: -58.24000074 | K113: -7.42983976 | L113: 1.456000018 | N113: -9.520937704e-05 | O113: 2.128160229e-05 | P113: 2.380234426e-06
E114: 1.272 | F114: -54.50934449 | G114: -8.106681447 | H114: 1.362733612 | J114: -54.50945063 | K114: -8.106661177 | L114: 1.362736266 | N114: -0.0001061420093 | O114: 2.027015268e-05 | P114: 2.653550232e-06
E115: 1.284 | F115: -50.46496031 | G115: -8.736829776 | H115: 1.261624008 | J115: -50.46507695 | K115: -8.736810658 | L115: 1.261626924 | N115: -0.0001166469596 | O115: 1.911799396e-05 | P115: 2.916173991e-06
E116: 1.296 | F116: -46.13003745 | G116: -9.316678116 | H116: 1.153250936 | J116: -46.1301641 | K116: -9.316660287 | L116: 1.153254103 | N116: -0.0001266517074 | O116: 1.782962979e-05 | P116: 3.166292686e-06
E117: 1.308 | F117: -41.52953309 | G117: -9.842888145 | H117: 1.038238327 | J117: -41.52966918 | K117: -9.842871734 | L117: 1.038241729 | N117: -0.0001360856251 | O117: 1.641049846e-05 | P117: 3.402140628e-06
E118: 1.32 | F118: -36.68993343 | G118: -10.31243035 | H118: 0.9172483356 | J118: -36.69007831 | K118: -10.31241548 | L118: 0.9172519576 | N118: -0.0001448804602 | O118: 1.486695302e-05 | P118: 3.622011505e-06
E119: 1.332 | F119: -31.63910116 | G119: -10.72260145 | H119: 0.790977529 | J119: -31.63925413 | K119: -10.72258825 | L119: 0.7909813533 | N119: -0.0001529708079 | O119: 1.32062351e-05 | P119: 3.824270197e-06
E120: 1.344 | F120: -26.40611513 | G120: -11.07104002 | H120: 0.6601528783 | J120: -26.40627543 | K120: -11.07102858 | L120: 0.6601568857 | N120: -0.0001602945732 | O120: 1.143644277e-05 | P120: 4.007364331e-06
E121: 1.356 | F121: -21.02110288 | G121: -11.35574 | H121: 0.5255275719 | J121: -21.02126967 | K121: -11.35573043 | L121: 0.5255317417 | N121: -0.0001667934177 | O121: 9.56649229e-06 | P121: 4.169835443e-06
E122: 1.368 | F122: -15.51506717 | G122: -11.5750623 | H122: 0.3878766793 | J122: -15.51523959 | K122: -11.57505469 | L122: 0.3878809897 | N122: -0.0001724131883 | O122: 7.606074133e-06 | P122: 4.310329708e-06
E123: 1.38 | F123: -9.919707573 | G123: -11.72774424 | H123: 0.2479926893 | J123: -9.919884677 | K123: -11.72773868 | L123: 0.2479971169 | N123: -0.0001771043255 | O123: 5.56560336e-06 | P123: 4.427608136e-06
E124: 1.392 | F124: -4.267237877 | G124: -11.8129068 | H124: 0.1066809469 | J124: -4.267418699 | K124: -11.81290334 | L124: 0.1066854675 | N124: -0.0001808222476 | O124: 3.456164681e-06 | P124: 4.52055619e-06
E125: 1.404 | F125: 1.409799314 | G125: -11.83005966 | H125: -0.03524498284 | J125: 1.409615786 | K125: -11.83005837 | L125: -0.03524039465 | N125: -0.000183527709 | O125: 1.289452467e-06 | P125: 4.588192726e-06
E126: 1.416 | F126: 7.078719957 | G126: -11.77910409 | H126: -0.1769679989 | J126: 7.07853477 | K126: -11.77910501 | L126: -0.1769633693 | N126: -0.0001851871285 | O126: -9.222939994e-07 | P126: 4.629678211e-06
E127: 1.428 | F127: 12.70688674 | G127: -11.66033343 | H127: -0.3176721685 | J127: 12.70670097 | K127: -11.6603366 | L127: -0.3176675242 | N127: -0.0001857728862 | O127: -3.166359631e-06 | P127: 4.644322155e-06
E128: 1.44 | F128: 18.26189698 | G128: -11.47443149 | H128: -0.4565474246 | J128: 18.26171172 | K128: -11.47443692 | L128: -0.456542793 | N128: -0.0001852635865 | O128: -5.429626619e-06 | P128: 4.631589662e-06
E129: 1.452 | F129: 23.71176918 | G129: -11.22246854 | H129: -0.5927942295 | J129: 23.71158553 | K129: -11.22247624 | L129: -0.5927896383 | N129: -0.0001836442856 | O129: -7.698651121e-06 | P129: 4.591107141e-06
E130: 1.464 | F130: 29.02512713 | G130: -10.90589519 | H130: -0.7256281782 | J130: 29.02494622 | K130: -10.90590515 | L130: -0.7256236556 | N130: -0.0001809066801 | O130: -9.959743034e-06 | P130: 4.522667001e-06
E131: 1.476 | F131: 34.17138058 | G131: -10.52653403 | H131: -0.8542845145 | J131: 34.17120353 | K131: -10.52654623 | L131: -0.8542800883 | N131: -0.0001770492558 | O131: -1.219904841e-05 | P131: 4.426231396e-06
E132: 1.488 | F132: 39.12090134 | G132: -10.08656914 | H132: -0.9780225335 | J132: 39.12072926 | K132: -10.08658354 | L132: -0.9780182316 | N132: -0.0001720773969 | O132: -1.440263404e-05 | P132: 4.301934923e-06
E133: 1.5 | F133: 43.84519385 | G133: -9.588533486 | H133: -1.096129846 | J133: 43.84502784 | K133: -9.588550043 | L133: -1.096125696 | N133: -0.0001660034509 | O133: -1.655657367e-05 | P133: 4.150086273e-06
E134: 1.512 | F134: 48.31705924 | G134: -9.035294387 | H134: -1.207926481 | J134: 48.31690039 | K134: -9.035313034 | L134: -1.20792251 | N134: -0.0001588467517 | O134: -1.864703529e-05 | P134: 3.971168793e-06
E135: 1.524 | F135: 52.51075193 | G135: -8.430036969 | H135: -1.312768798 | J135: 52.5106013 | K135: -8.430057629 | L135: -1.312765032 | N135: -0.0001506335984 | O135: -2.066036905e-05 | P135: 3.765839959e-06
E136: 1.536 | F136: =-($C$25^2)*H136 -> 56.40212784 | G136: =-$C$29*$C$25*SIN($C$25*E136+$C$30) -> -7.77624584 | H136: =$C$29*COS($C$25*E136+$C$30) -> -1.410053196 | J136: 56.40198645 | K136: -7.776268423 | L136: -1.410049661 | N136: -0.0001413971892 | O136: -2.25831951e-05 | P136: 3.53492973e-06
E137: =E136+$C$8 -> 1.548 | F137: 59.96878341 | G137: -7.077685031 | H137: -1.499219585 | J137: 59.96865223 | K137: -7.077709434 | L137: -1.499216306 | N137: -0.0001311775119 | O137: -2.440249092e-05 | P137: 3.279437797e-06
E138: 1.56 | F138: 63.19018456 | G138: -6.338376321 | H138: -1.579754614 | J138: 63.19006454 | K138: -6.338402427 | L138: -1.579751613 | N138: -0.0001200211893 | O138: -2.610567757e-05 | P138: 3.000529732e-06
E139: 1.572 | F139: 66.04778491 | G139: -5.562576085 | H139: -1.651194623 | J139: 66.04767693 | K139: -5.562603765 | L139: -1.651191923 | N139: -0.0001079812813 | O139: -2.768070421e-05 | P139: 2.699532031e-06
E140: 1.584 | F140: 68.5251326 | G140: -4.754750786 | H140: -1.713128315 | J140: 68.52503749 | K140: -4.754779902 | L140: -1.713125937 | N140: -9.51170435e-05 | O140: -2.91161304e-05 | P140: 2.377926087e-06
E141: 1.596 | F141: 70.60796495 | G141: -3.919551266 | H141: -1.765199124 | J141: 70.60788346 | K141: -3.919581668 | L141: -1.765197086 | N141: -8.149364425e-05 | O141: -3.040120561e-05 | P141: 2.037341106e-06
E142: 1.608 | F142: 72.2842906 | G142: -3.061785966 | H142: -1.807107265 | J142: 72.28422342 | K142: -3.061817492 | L142: -1.807105586 | N142: =J142-F142 -> -6.718184036e-05 | O142: =K142-G142 -> -3.152594547e-05 | P142: =L142-H142 -> 1.679546009e-06
E143: 1.62 | F143: 73.54445855 | G143: -2.186393242 | H143: -1.838611464 | J143: 73.54440629 | K143: -2.186425724 | L143: -1.838610157 | N143: -5.225761421e-05 | O143: -3.24812041e-05 | P143: 1.306440355e-06
E144: 1.632 | F144: 74.38121372 | G144: -1.298412937 | H144: -1.859530343 | J144: 74.38117691 | K144: -1.298446196 | L144: -1.859529423 | N144: -3.680177302e-05 | O144: -3.325874215e-05 | P144: 9.200443252e-07
E145: 1.644 | F145: 74.7897387 | G145: -0.402957363 | H145: -1.869743467 | J145: 74.7897178 | K145: -0.4029912143 | L145: -1.869742945 | N145: -2.089951317e-05 | O145: -3.385129005e-05 | P145: 5.224878288e-07
E146: 1.656 | F146: 74.76768153 | G146: 0.494818132 | H146: -1.869192038 | J146: 74.76767689 | K146: 0.4947838794 | L146: -1.869191922 | N146: -4.639951513e-06 | O146: -3.425260584e-05 | P146: 1.159987875e-07
E147: 1.668 | F147: 74.31516918 | G147: 1.389744842 | H147: -1.85787923 | J147: 74.31518107 | K147: 1.389710385 | L147: -1.857879527 | N147: 1.188437371e-05 | O147: -3.445752754e-05 | P147: -2.971093429e-07
E148: 1.68 | F148: 73.4348069 | G148: 2.276670464 | H148: -1.835870172 | J148: 73.43483547 | K148: 2.276636002 | L148: -1.835870887 | N148: 2.857802937e-05 | O148: -3.446201917e-05 | P148: -7.144507348e-07
E149: 1.692 | F149: 72.13166311 | G149: 3.150488757 | H149: -1.803291578 | J149: 72.13170846 | K149: 3.150454494 | L149: -1.803292711 | N149: 4.53432388e-05 | O149: -3.42632105e-05 | P149: -1.13358097e-06
E150: 1.704 | F150: 70.41324034 | G150: 4.006168944 | H150: -1.760331009 | J150: 70.41330242 | K150: 4.006135084 | L150: -1.760332561 | N150: 6.208045407e-05 | O150: -3.385942991e-05 | P150: -1.552011352e-06
E151: 1.716 | F151: 68.28943195 | G151: 4.838784671 | H151: -1.707235799 | J151: 68.28951064 | K151: 4.838751421 | L151: -1.707237766 | N151: 7.86889467e-05 | O151: -3.325023026e-05 | P151: -1.967223668e-06
E152: 1.728 | F152: 65.7724652 | G152: 5.643542375 | H152: -1.64431163 | J152: 65.77256027 | K152: 5.643509939 | L152: -1.644314007 | N152: 9.506741269e-05 | O152: -3.243640739e-05 | P152: -2.376685318e-06
E153: 1.74 | F153: 62.87683086 | G153: 6.415808875 | H153: -1.571920772 | J153: 62.87694198 | K153: 6.415777455 | L153: -1.571923549 | N153: 0.0001111145885 | O153: -3.142001117e-05 | P153: -2.777864712e-06
E154: 1.752 | F154: 59.61919979 | G154: 7.151138051 | H154: -1.490479995 | J154: 59.61932652 | K154: 7.151107846 | L154: -1.490483163 | N154: 0.0001267298741 | O154: -3.020434888e-05 | P154: -3.168246852e-06
E155: 1.764 | F155: 56.01832692 | G155: 7.845296439 | H155: -1.400458173 | J155: 56.01846874 | K155: 7.845267645 | L155: -1.400461718 | N155: 0.0001418139593 | O155: -2.879398076e-05 | P155: -3.545348982e-06
E156: 1.776 | F156: 52.09494335 | G156: 8.494287606 | H156: -1.302373584 | J156: 52.09509962 | K156: 8.494260412 | L156: -1.30237749 | N156: 0.0001562694502 | O156: -2.719470787e-05 | P156: -3.906736254e-06
E157: 1.788 | F157: 47.8716369 | G157: 9.094375158 | H157: -1.196790923 | J157: 47.8718069 | K157: 9.094349744 | L157: -1.196795173 | N157: 0.00017000149 | O157: -2.541355201e-05 | P157: -4.25003725e-06
E158: 1.8 | F158: 43.37272216 | G158: 9.642104247 | H158: -1.084318054 | J158: 43.37290508 | K158: 9.642080788 | L158: -1.084322627 | N158: 0.0001829183726 | O158: -2.345872788e-05 | P158: -4.572959315e-06
E159: 1.812 | F159: 38.62410043 | G159: 10.13432147 | H159: -0.9656025107 | J159: 38.62429536 | K159: 10.13430013 | L159: -0.9656073841 | N159: 0.000194932143 | O159: -2.133960752e-05 | P159: -4.873303576e-06
E160: 1.824 | F160: 33.65311065 | G160: 10.56819301 | H160: -0.8413277662 | J160: 33.65331661 | K160: 10.56817395 | L160: -0.8413329152 | N160: 0.0002059591822 | O160: -1.906667719e-05 | P160: -5.148979556e-06
E161: 1.836 | F161: 28.48837198 | G161: 10.94122098 | H161: -0.7122092995 | J161: 28.4885879 | K161: 10.94120433 | L161: -0.7122146975 | N161: 0.0002159207717 | O161: -1.665148689e-05 | P161: -5.398019293e-06
E162: 1.848 | F162: 23.15961903 | G162: 11.25125776 | H162: -0.5789904758 | J162: 23.15984378 | K162: 11.25124365 | L162: -0.5789960944 | N162: 0.0002247436344 | O162: -1.410659266e-05 | P162: -5.61859086e-06
E163: 1.86 | F163: 17.6975307 | G163: 11.49651839 | H163: -0.4424382676 | J163: 17.69776306 | K163: 11.49650695 | L163: -0.4424440766 | N163: 0.0002323604483 | O163: -1.144549212e-05 | P163: -5.809011207e-06
E164: 1.872 | F164: 12.13355352 | G164: 11.67559086 | H164: -0.3033388379 | J164: 12.13379223 | K164: 11.67558218 | L164: -0.3033448057 | N164: 0.0002387103287 | O164: -8.682553347e-06 | P164: -5.967758217e-06
E165: 1.884 | F165: 6.499720601 | G165: 11.7874442 | H165: -0.162493015 | J165: 6.499964341 | K165: 11.78743837 | L165: -0.1624991085 | N165: 0.0002437392776 | O165: -5.832937667e-06 | P165: -6.09348194e-06
E166: 1.896 | F166: 0.828467263 | G166: 11.83143445 | H166: -0.02071168157 | J166: 0.8287146636 | K166: 11.83143153 | L166: -0.02071786659 | N166: 0.0002474005946 | O166: -2.912516662e-06 | P166: -6.185014865e-06
E167: 1.908 | F167: -4.847555757 | G167: 11.80730833 | H167: 0.1211888939 | J167: -4.847306101 | K167: 11.8073084 | L167: 0.1211826525 | N167: 0.0002496552477 | O167: 6.22161469e-08 | P167: -6.241381193e-06
E168: 1.92 | F168: -10.49567026 | G168: 11.71520476 | H168: 0.2623917564 | J168: -10.49541978 | K168: 11.71520784 | L168: 0.2623854946 | N168: 0.0002504722019 | O168: 3.074238398e-06 | P168: -6.261805046e-06
E169: 1.932 | F169: -16.08335871 | G169: 11.555654 | H169: 0.4020839676 | J169: -16.08310888 | K169: 11.5556601 | L169: 0.4020777219 | N169: 0.0002498287012 | O169: 6.106096304e-06 | P169: -6.245717529e-06
E170: 1.944 | F170: -21.57845147 | G170: 11.32957461 | H170: 0.5394612867 | J170: -21.57820376 | K170: 11.32958375 | L170: 0.539455094 | N170: 0.0002477105041 | O170: 9.140005778e-06 | P170: -6.192762601e-06
E171: 1.956 | F171: -26.949312 | G171: 11.03826819 | H171: 0.6737328 | J171: -26.94906789 | K171: 11.03828034 | L171: 0.6737266972 | N171: 0.0002441120686 | O171: 1.215795672e-05 | P171: -6.102801715e-06
E172: 1.968 | F172: -32.16501899 | G172: 10.68341185 | H172: 0.8041254748 | J172: -32.16477995 | K172: 10.683427 | L172: 0.8041194988 | N172: 0.0002390366865 | O172: 1.514181985e-05 | P172: -5.975917162e-06
E173: 1.98 | F173: -37.19554438 | G173: 10.2670486 | H173: 0.9298886096 | J173: -37.19531189 | K173: 10.26706667 | L173: 0.9298827972 | N173: 0.0002324965641 | O173: 1.807345536e-05 | P173: -5.812414103e-06
E174: 1.992 | F174: -42.01192626 | G174: 9.791575527 | H174: 1.050298156 | J174: -42.01170175 | K174: 9.791596462 | L174: 1.050292544 | N174: 0.0002245128509 | O174: 2.093482297e-05 | P174: -5.612821273e-06
E175: 2.004 | F175: -46.58643557 | G175: 9.259730046 | H175: 1.164660889 | J175: -46.58622046 | K175: 9.259753754 | L175: 1.164655511 | N175: 0.0002151156119 | O175: 2.370809243e-05 | P175: -5.377890298e-06
E176: 2.016 | F176: -50.89273579 | G176: 8.674574116 | H176: 1.272318395 | J176: -50.89253145 | K176: 8.674600491 | L176: 1.272313286 | N176: 0.0002043437469 | O176: 2.637575399e-05 | P176: -5.108593672e-06
E177: 2.028 | F177: -54.90603454 | G177: 8.039476618 | H177: 1.372650863 | J177: -54.90584229 | K177: 8.039505538 | L177: 1.372646057 | N177: 0.0001922448531 | O177: 2.892072811e-05 | P177: -4.806121328e-06
E178: 2.04 | F178: -58.6032263 | G178: 7.358093958 | H178: 1.465080657 | J178: -58.60304742 | K178: 7.358125284 | L178: 1.465076186 | N178: 0.000178875035 | O178: 3.132647366e-05 | P178: -4.471875875e-06
E179: 2.052 | F179: -61.96302547 | G179: 6.634349016 | H179: 1.549075637 | J179: -61.96286117 | K179: 6.634382593 | L179: 1.549071529 | N179: 0.0001642986589 | O179: 3.357709408e-05 | P179: -4.107466473e-06
E180: 2.064 | F180: -64.9660889 | G180: 5.872408563 | H180: 1.624152222 | J180: -64.96594031 | K180: 5.872444221 | L180: 1.624148508 | N180: 0.0001485880548 | O180: 3.565744062e-05 | P180: -3.714701371e-06
E181: 2.076 | F181: -67.59512724 | G181: 5.07665927 | H181: 1.689878181 | J181: -67.59499541 | K181: 5.076696823 | L181: 1.689874885 | N181: 0.0001318231674 | O181: 3.755321224e-05 | P181: -3.295579184e-06
E182: 2.088 | F182: -69.83500449 | G182: 4.251682453 | H182: 1.745875112 | J182: -69.8348904 | K182: 4.251721704 | L182: 1.74587226 | N182: 0.0001140911553 | O182: 3.925105127e-05 | P182: -2.852278882e-06
E183: 2.1 | F183: -71.67282517 | G183: 3.402227697 | H183: 1.791820629 | J183: -71.67272968 | K183: 3.402268436 | L183: 1.791818242 | N183: 9.548594412e-05 | O183: 4.073863442e-05 | P183: -2.387148603e-06
E184: 2.112 | F184: -73.09800849 | G184: 2.533185515 | H184: 1.827450212 | J184: -73.09793239 | K184: 2.53322752 | L184: 1.82744831 | N184: 7.610773201e-05 | O184: 4.200475835e-05 | P184: -1.9026933e-06
E185: 2.124 | F185: -74.10234935 | G185: 1.649559187 | H185: 1.852558734 | J185: -74.10229329 | K185: 1.649602226 | L185: 1.852557332 | N185: 5.606245297e-05 | O185: 4.303941941e-05 | P185: -1.401561324e-06
E186: 2.136 | F186: -74.68006552 | G186: 0.7564359572 | H186: 1.867001638 | J186: -74.68003006 | K186: 0.7564797911 | L186: 1.867000751 | N186: 3.54611992e-05 | O186: 4.383388686e-05 | P186: -8.865299796e-07
E187: 2.148 | F187: -74.82783094 | G187: -0.1410422525 | H187: 1.870695774 | J187: -74.82781652 | K187: -0.1409978717 | L187: 1.870695413 | N187: 1.44196065e-05 | O187: 4.438076904e-05 | P187: -3.604901619e-07
E188: 2.16 | F188: -74.5447949 | G188: -1.037708449 | H188: 1.863619873 | J188: -74.54480185 | K188: -1.037663775 | L188: 1.863620046 | N188: -6.94279457e-06 | O188: 4.467407227e-05 | P188: 1.735698645e-07
E189: 2.172 | F189: -73.83258691 | G189: -1.928400313 | H189: 1.845814673 | J189: -73.83261541 | K189: -1.928355603 | L189: 1.845815385 | N189: -2.85032573e-05 | O189: 4.470925157e-05 | P189: 7.12581433e-07
E190: 2.184 | F190: -72.6953073 | G190: -2.807989921 | H190: 1.817382683 | J190: -72.69535744 | K190: -2.807945438 | L190: 1.817383936 | N190: -5.013652444e-05 | O190: 4.448325342e-05 | P190: 1.253413111e-06
E191: 2.196 | F191: -71.13950368 | G191: -3.67141327 | H191: 1.778487592 | J191: -71.1395754 | K191: -3.671369276 | L191: 1.778489385 | N191: -7.171555553e-05 | O191: 4.399454971e-05 | P191: 1.792888889e-06
E192: 2.208 | F192: -69.17413316 | G192: -4.513699428 | H192: 1.729353329 | J192: -69.17422628 | K192: -4.513656184 | L192: 1.729355657 | N192: -9.311227292e-05 | O192: 4.324316278e-05 | P192: 2.327806823e-06
E193: 2.22 | F193: -66.81051086 | G193: -5.329999153 | H193: 1.670262771 | J193: -66.81062506 | K193: -5.329956923 | L193: 1.670265626 | N193: -0.0001141983211 | O193: 4.223068143e-05 | P193: 2.854958026e-06
E194: 2.232 | F194: -64.06224469 | G194: -6.115612817 | H194: 1.601556117 | J194: -64.06237954 | K194: -6.115571857 | L194: 1.601559488 | N194: -0.0001348458353 | O194: 4.096026745e-05 | P194: 3.371145883e-06
E195: 2.244 | F195: -60.94515708 | G195: -6.866017457 | H195: 1.523628927 | J195: -60.94531201 | K195: -6.86597802 | L195: 1.5236328 | N195: -0.0001549282154 | O195: 3.943665286e-05 | P195: 3.873205386e-06
E196: 2.256 | F196: -57.47719383 | G196: -7.576892815 | H196: 1.436929846 | J196: -57.47736815 | K196: -7.576855149 | L196: 1.436934204 | N196: -0.0001743208987 | O196: 3.766612749e-05 | P196: 4.358022468e-06
E197: 2.268 | F197: -53.67832083 | G197: -8.244146215 | H197: 1.341958021 | J197: -53.67851373 | K197: -8.244110559 | L197: 1.341962843 | N197: -0.0001929021289 | O197: 3.565651704e-05 | P197: 4.822553222e-06
E198: 2.28 | F198: -49.57040908 | G198: -8.863936123 | H198: 1.239260227 | J198: -49.57061964 | K198: -8.863902705 | L198: 1.239265491 | N198: -0.0002105537149 | O198: 3.341715167e-05 | P198: 5.263842872e-06
E199: 2.292 | F199: -45.1771088 | G199: -9.43269426 | H199: 1.12942772 | J199: -45.17733597 | K199: -9.432663301 | L199: 1.129433399 | N199: -0.0002271617763 | O199: 3.09588252e-05 | P199: 5.679044407e-06
E200: 2.304 | F200: =-($C$25^2)*H200 -> -40.52371326 | G200: =-$C$29*$C$25*SIN($C$25*E200+$C$30) -> -9.947146153 | H200: =$C$29*COS($C$25*E200+$C$30) -> 1.013092832 | J200: -40.52395588 | K200: -9.947117859 | L200: 1.013098897 | N200: -0.0002426174693 | O200: 2.829374504e-05 | P200: 6.065436733e-06
... 308 more rows

Sheet 減衰振動
A1: 振動の運動方程式
A2: mx''+cx'+kx=-sign(x')μ'mg+fsinΩt | D2: 運動方程式 | F2: 減衰振動 | J2: マクロで計算➡ | L2: =exe("振動シミュレーション","ForcedOscillation",C8:C19,J8:L8) -> 振動シミュレーション
A3: x''=-(c/m)x'-(k/m)x-sign(x')(μ'g)+(f/m)sinΩt | D3: 微分方程式 | J3: マクロは標準モジュール-Module6 の中。 実行させるには =exe(･･･ と先頭に＝を付加する。
A4: ダンパ ＋バネ ＋ 動摩擦 ＋ 外力 | F4: 解析解 | K4: 数値積分 | O4: 理論値との差
E5: 時間 | F5: 加速度 | G5: 速度 | H5: 変位 | J5: 加速度 | K5: 速度 | L5: 変位 | N5: 加速度 | O5: 速度 | P5: 変位
E6: t | F6: 理論値x'' | G6: 理論値x' | H6: 理論値x | J6: x'' | K6: x' | L6: x | N6: x'' | O6: x' | P6: x
B7: 赤太字は単振動からの変更データ | E7: [s] | F7: [m/s^2] | G7: [m/s] | H7: [m] | J7: [m/s^2] | K7: [m/s] | L7: [m] | N7: [m/s^2] | O7: [m/s] | P7: [m]
A8: 時間間隔 | B8: Δt | C8: =C9/500 -> 0.012 | D8: [s] | E8: 0 | F8: =-2*$C$28*G8-$C$25^2*H8 -> -60 | G8: =-$C$28*H8-$C$29*$C$26*EXP(-$C$28*E8)*SIN($C$26*E8+$C$30) -> 10 | H8: =$C$29*EXP(-$C$28*E8)*COS($C$26*E8+$C$30) -> 1 | J8: -60 | K8: 10 | L8: 1 | N8: =J8-F8 -> 0 | O8: =K8-G8 -> 0 | P8: 0
A9: 終了時間 | B9: TL | C9: 6 | D9: [s] | E9: =E8+$C$8 -> 0.012 | F9: -63.14547066 | G9: 9.260696775 | H9: 1.115601928 | J9: -63.14547078 | K9: 9.260697042 | L9: 1.115601917 | N9: =J9-F9 -> -1.177967945e-07 | O9: 2.671818198e-07 | P9: -1.041417086e-08
A10: 重力加速度 | B10: g | C10: 9.8 | D10: [m/s^2] | E10: 0.024 | F10: -65.85713319 | G10: 8.486244291 | H10: 1.222116115 | J10: -65.85713367 | K10: 8.486244821 | L10: 1.222116101 | N10: -4.82537061e-07 | O10: 5.30046858e-07 | P10: -1.443891606e-08
A11: 質量 | B11: m | C11: 10 | D11: [kg] | E11: 0.036 | F11: -68.1298492 | G11: 7.681881714 | H11: 1.319152144 | J11: -68.12985028 | K11: 7.681882498 | L11: 1.319152132 | N11: -1.081319155e-06 | O11: 7.842257572e-07 | P11: -1.217830858e-08
A12: 粘性減衰係数 | B12: c | C12: 20 | D12: [Ns/m] | E12: 0.048 | F12: -69.96109921 | G12: 6.852894117 | H12: 1.406382774 | J12: -69.96110111 | K12: 6.852895142 | L12: 1.406382771 | N12: -1.898937654e-06 | O12: 1.025569563e-06 | P12: -3.805036286e-09
A13: バネ定数 | B13: k | C13: 400 | D13: [N/m] | E13: 0.06 | F13: -71.35093483 | G13: 6.004581325 | H13: 1.483544304 | J13: -71.35093775 | K13: 6.004582575 | L13: 1.483544315 | N13: =J13-F13 -> -2.918090402e-06 | O13: =K13-G13 -> 1.250183066e-06 | P13: =L13-H13 -> 1.044310682e-08
A14: 静止摩擦係数 | B14: μ | C14: 0 | D14: [ND] | E14: 0.072 | F14: -72.30191754 | G14: 5.142227417 | H14: 1.550436568 | J14: -72.30192166 | K14: 5.142228872 | L14: 1.550436598 | N14: =J14-F14 -> -4.119597705e-06 | O14: 1.454455055e-06 | P14: 3.026719009e-08
A15: 動摩擦係数 | B15: μ' | C15: 0 | D15: [ND] | E15: 0.084 | F15: -72.81904458 | G15: 4.27107104 | H15: 1.606922563 | J15: -72.81905006 | K15: 4.271072675 | L15: 1.606922618 | N15: -5.482632147e-06 | O15: 1.635085376e-06 | P15: 5.531153535e-08
A16: 強制力 | B16: f | C16: 0 | D16: [N] | E16: 0.096 | F16: -72.90966274 | G16: 3.396276683 | H16: 1.652927734 | J16: -72.90966973 | K16: 3.396278473 | L16: 1.65292782 | N16: -6.984956343e-06 | O16: 1.789108638e-06 | P16: 8.516847672e-08
A17: 強制力角振動数 | B17: Ω | C17: 0 | D17: [rad/s] | E17: 0.108 | F17: -72.58337088 | G17: 2.522907061 | H17: 1.688438919 | J17: -72.58337948 | K17: 2.522908974 | L17: 1.688439038 | N17: -8.603166748e-06 | O17: 1.913914454e-06 | P17: 1.193834462e-07
A18: 初期位置 | B18: x0 | C18: 1 | D18: [m] | E18: 0.12 | F18: -71.8519119 | G18: 1.655896721 | H18: 1.713502961 | J18: -71.85192221 | K18: 1.655898728 | L18: 1.713503119 | N18: -1.031294168e-05 | O18: 2.007264177e-06 | P18: 1.574603334e-07
A19: 初期速度 | B19: x'0 | C19: 10 | D19: [m/s] | E19: 0.132 | F19: -70.7290551 | G19: 0.8000270197 | H19: 1.728225026 | J19: -70.72906719 | K19: 0.800029087 | L19: 1.728225225 | N19: -1.208929102e-05 | O19: 2.06730404e-06 | P19: 1.988670741e-07
E20: 0.144 | F20: -69.23046979 | G20: -0.0400974516 | H20: 1.732766617 | J20: -69.2304837 | K20: -0.04009535903 | L20: 1.73276686 | N20: -1.390680596e-05 | O20: 2.092574728e-06 | P20: 2.430414132e-07
B21: c/m | C21: =C12/C11 -> 2 | D21: [1/s] | E21: 0.156 | F21: -67.37359111 | G21: -0.860070865 | H21: 1.727343321 | J21: -67.37360685 | K21: -0.860068783 | L21: 1.72734361 | N21: -1.573990644e-05 | O21: 2.082017349e-06 | P21: 2.893967936e-07
B22: k/m | C22: =C13/C11 -> 40 | D22: [1/s^2] | E22: 0.168 | F22: -65.17747896 | G22: -1.655706507 | H22: 1.712222299 | J22: -65.17749652 | K22: -1.655704472 | L22: 1.712222637 | N22: -1.756308473e-05 | O22: 2.034975883e-06 | P22: 3.373283242e-07
B23: μ'g | C23: =C15*C10 -> 0 | D23: [s^2/m] | E23: 0.18 | F23: -62.66267103 | G23: -2.4230554 | H23: 1.687719546 | J23: -62.66269038 | K23: -2.423053449 | L23: 1.687719932 | N23: -1.935114311e-05 | O23: 1.951196133e-06 | P23: 3.862187714e-07
B24: f/m | C24: =C16/C11 -> 0 | D24: [N/m] | E24: 0.192 | F24: -59.85103096 | G24: -3.158423127 | H24: 1.65419693 | J24: -59.85105204 | K24: -3.158421297 | L24: 1.654197366 | N24: -2.107942384e-05 | O24: 1.830821308e-06 | P24: 4.354445309e-07
A25: 固有角振動数 | B25: ω＝√(k/m) | C25: =SQRT(C13/C11) -> 6.32455532 | D25: ［rad/s］ | E25: 0.204 | F25: -56.76559248 | G25: -3.858384815 | H25: 1.612059053 | J25: -56.7656152 | K25: -3.85838314 | L25: 1.612059537 | N25: -2.272402985e-05 | O25: 1.674384293e-06 | P25: 4.843815318e-07
A26: 減衰固有角振動数 | B26: ωd＝ω√(1-ζ^2) | C26: =C25*SQRT(1-C27^2) -> 6.244997998 | D26: ［rad/s］ | E26: 0.216 | F26: -53.43040065 | G26: -4.51979822 | H26: 1.561749927 | J26: -53.43042491 | K26: -4.519796737 | L26: 1.56175046 | N26: -2.426203459e-05 | O26: 1.482796813e-06 | P26: 5.324110246e-07
A27: 減衰比 | B27: ζ＝c/{2√(mk)} | C27: =C12/(2*SQRT(C11*C13)) -> 0.158113883 | D27: [ND] | E27: 0.228 | F27: -49.87035109 | G27: -5.139814907 | H27: 1.503749523 | J27: -49.87037676 | K27: -5.13981365 | L27: 1.503750102 | N27: -2.567167979e-05 | O27: 1.257335565e-06 | P27: 5.789252169e-07
A28: 減衰率 | B28: γ＝ζω | C28: =C27*C25 -> 1 | D28: [1/s] | E28: 0.24 | F28: -46.1110282 | G28: -5.715889483 | H28: 1.438570179 | J28: -46.11105514 | K28: -5.715888483 | L28: 1.438570803 | N28: -2.693255927e-05 | O28: 9.99625569e-07 | P28: 6.233327035e-07
A29: 振幅 | B29: A | C29: =SQRT((C25*C18)^2+2*C28*C18*C19+C19^2)/C26 -> 2.025478734 | D29: [m] | E29: 0.252 | F29: -42.17854326 | G29: -6.245786887 | H29: 1.366752926 | J29: -42.17857129 | K29: -6.245786176 | L29: 1.366753591 | N29: -2.802578835e-05 | O29: 7.116208698e-07 | P29: 6.650636655e-07
A30: 初期位相 | B30: β | C30: =ATAN2(C26*C18,-(C28*C18+C19)) -> -1.054445009 | D30: [rad] | E30: 0.264 | F30: -38.0993734 | G30: -6.727587754 | H30: 1.288863723 | J30: -38.09940233 | K30: -6.727587358 | L30: 1.288864426 | N30: -2.89341574e-05 | O30: 3.955828261e-07 | P30: 7.03574794e-07
E31: 0.276 | F31: -33.90020231 | G31: -7.159691838 | H31: 1.20548965 | J31: -33.90023196 | K31: -7.159691783 | L31: 1.205490388 | N31: -2.964226859e-05 | O31: 5.405620751e-08 | P31: 7.383539049e-07
E32: 0.288 | F32: -29.60776357 | G32: -7.540819553 | H32: 1.117235067 | J32: -29.6077937 | K32: -7.540819863 | L32: 1.117235836 | N32: -3.01366553e-05 | O32: -3.101566906e-07 | P32: 7.689242172e-07
E33: 0.3 | F33: -25.24868732 | G33: -7.870011647 | H33: 1.024717765 | J33: -25.24871773 | K33: -7.870012341 | L33: 1.02471856 | N33: -3.040588357e-05 | O33: -6.940236332e-07 | P33: 7.948482712e-07
E34: 0.312 | F34: -20.84935131 | G34: -8.146627062 | H34: 0.9285651359 | J34: -20.84938175 | K34: -8.146628157 | L34: 0.9285659517 | N34: -3.044063497e-05 | O34: -1.094311537e-06 | P34: 8.157314514e-07
A35: 減衰振動解析解 | E35: 0.324 | F35: -16.43573676 | G35: -8.370339036 | H35: 0.8294103709 | J35: -16.435767 | K35: -8.370340543 | L35: 0.8294112021 | N35: -3.023377083e-05 | O35: -1.507616734e-06 | P35: 8.312251074e-07
A36: x''+2γx'+ω^2x=0 | D36: 運動方程式 | E36: 0.336 | F36: -12.03329 | G36: -8.541129505 | H36: 0.7278887253 | J36: -12.03331978 | K36: -8.541131435 | L36: 0.7278895663 | N36: -2.97803773e-05 | O36: -1.930396254e-06 | P36: 8.410292454e-07
A37: x＝Ae^(－γt)cos(ωdt＋β) | D37: 変位 | E37: 0.348 | F37: -7.666790386 | G37: -8.65928189 | H37: 0.6246338541 | J37: -7.666819464 | K37: -8.659284249 | L37: 0.624634699 | N37: -2.907779184e-05 | O37: -2.358999732e-06 | P37: 8.448947827e-07
A38: x'＝－γx－Aωde^(－γt)sin(ωdt＋β) | D38: 速度 | E38: 0.36 | F38: -3.36022515 | G38: -8.725372333 | H38: 0.5202742454 | J38: -3.360253276 | K38: -8.725375123 | L38: 0.520275088 | N38: -2.812561056e-05 | O38: -2.789701819e-06 | P38: 8.426253549e-07
A39: x''＝－2γx'－ω^2x | D39: 加速度 | E39: 0.372 | F39: 0.8633282544 | G39: -8.740259477 | H39: 0.4154297675 | J39: 0.8633013287 | K39: -8.740262696 | L39: 0.4154306016 | N39: -2.69256771e-05 | O39: -3.218734717e-06 | P39: 8.340786634e-07
A40: A=√{(ωx0 )^2+2γx0x0'+x0'^2}/ωd | D40: 振幅 | E40: 0.384 | F40: 4.981811874 | G40: -8.705072884 | H40: 0.3107083473 | J40: 4.981786392 | K40: -8.705076526 | L40: 0.3107091665 | N40: -2.548205362e-05 | O40: -3.642320653e-06 | P40: 8.191673733e-07
A41: β=tan^(-1)(-(γx0+x0')/(x0ωd)) | D41: 初期位相 | E41: 0.396 | F41: 8.974288552 | G41: -8.621200182 | H41: 0.2067027953 | J41: 8.974264751 | K41: -8.621204238 | L41: 0.2067035931 | N41: -2.380097389e-05 | O41: -4.056704029e-06 | P41: 7.978595487e-07
E42: 0.408 | F42: 12.82103446 | G42: -8.490273054 | H42: 0.1039877912 | J42: 12.82101257 | K42: -8.490277513 | L42: 0.1039885614 | N42: -2.189077949e-05 | O42: -4.458182966e-06 | P42: 7.701786356e-07
E43: 0.42 | F43: 16.50362252 | G43: -8.314152169 | H43: 0.003117045412 | J43: 16.50360276 | K43: -8.314157012 | L43: 0.003117781615 | N43: -1.976184005e-05 | O43: -4.843140085e-06 | P43: 7.362030054e-07
E44: 0.432 | F44: 20.00499649 | G44: -8.094911162 | H44: -0.09537935419 | J44: 20.00497906 | K44: -8.09491637 | L44: -0.09537865812 | N44: -1.742645792e-05 | O44: -5.208072196e-06 | P44: 6.960650577e-07
E45: 0.444 | F45: 23.30953547 | G45: -7.834819792 | H45: -0.1909973972 | J45: 23.30952057 | K45: -7.834825342 | L45: -0.1909967473 | N45: -1.489875866e-05 | O45: -5.549618805e-06 | P45: 6.499499067e-07
E46: 0.456 | F46: 26.40310874 | G46: -7.536326378 | H46: -0.2832613996 | J46: 26.40309655 | K46: -7.536332243 | L46: -0.2832608015 | N46: -1.219456816e-05 | O46: -5.864589112e-06 | P46: 5.980936597e-07
E47: 0.468 | F47: 29.2731208 | G47: -7.202039637 | H47: -0.3717260381 | J47: 29.27311146 | K47: -7.202045787 | L47: -0.3717254973 | N47: -9.331277774e-06 | O47: -6.149987442e-06 | P47: 5.407813163e-07
E48: 0.48 | F48: 31.9085466 | G48: -6.834710037 | H48: -0.4559781631 | J48: 31.90854027 | K48: -6.83471644 | L48: -0.4559776848 | N48: -6.327698337e-06 | O48: -6.403036825e-06 | P48: 4.783442997e-07
E49: 0.492 | F49: 34.29995705 | G49: -6.437210795 | H49: -0.5356383866 | J49: 34.29995385 | K49: -6.437217416 | L49: -0.5356379754 | N49: -3.203904718e-06 | O49: -6.621200657e-06 | P49: 4.111576507e-07
E50: 0.504 | F50: 36.4395348 | G50: -6.012518615 | H50: -0.6103624392 | J50: 36.43953482 | K50: -6.012525417 | L50: -0.6103620996 | N50: 1.892817636e-08 | O50: -6.802202241e-06 | P50: 3.396369075e-07
E51: 0.516 | F51: 38.32108045 | G51: -5.563694303 | H51: -0.6798422962 | J51: 38.32108377 | K51: -5.563701247 | L51: -0.6798420319 | N51: 3.318696095e-06 | O51: -6.944042175e-06 | P51: 2.642347063e-07
E52: 0.528 | F52: 39.94000952 | G52: -5.093863364 | H52: -0.7438070699 | J52: 39.9400162 | K52: -5.093870409 | L52: -0.7438068845 | N52: 6.672542042e-06 | O52: -7.04501337e-06 | P52: 1.854371174e-07
E53: 0.54 | F53: 41.29334018 | G53: -4.606196679 | H53: -0.8020236704 | J53: 41.29335023 | K53: -4.606203783 | L53: -0.8020235667 | N53: 1.005703686e-05 | O53: -7.103713711e-06 | P53: 1.037597639e-07
E54: 0.552 | F54: 42.3796722 | G54: -4.103891401 | H54: -0.8542972349 | J54: 42.37968565 | K54: -4.10389852 | L54: -0.8542972151 | N54: 1.344836268e-05 | O54: -7.11905628e-06 | P54: 1.974374686e-08
E55: 0.564 | F55: 43.19915746 | G55: -3.590152136 | H55: -0.9004713296 | J55: 43.19917428 | K55: -3.590159226 | L55: -0.9004713956 | N55: 1.682249765e-05 | O55: -7.090277057e-06 | P55: -6.60485886e-08
E56: 0.576 | F56: 43.75346223 | G56: -3.06817254 | H56: -0.9404279287 | J56: 43.75348238 | K56: -3.068179557 | L56: -0.9404280817 | N56: 2.015540085e-05 | O56: -7.0169401e-06 | P56: -1.530380166e-07
E57: 0.588 | F57: 44.04572181 | G57: -2.541117412 | H57: -0.9740871746 | J57: 44.04574523 | K57: -2.541124311 | L57: -0.9740874152 | N57: 2.342319556e-05 | O57: -6.898940234e-06 | P57: -2.406328774e-07
E58: 0.6 | F58: 44.08048784 | G58: -2.012105372 | H58: -1.001406927 | J58: 44.08051444 | K58: -2.012112109 | L58: -1.001407256 | N58: 2.660234995e-05 | O58: -6.736503183e-06 | P58: -3.282335899e-07
E59: 0.612 | F59: 43.86366882 | G59: -1.484192216 | H59: -1.02238211 | J59: 43.86369849 | K59: -1.484198747 | L59: -1.022382525 | N59: 2.966985374e-05 | O59: -6.530183239e-06 | P59: -4.152371818e-07
E60: 0.624 | F60: 43.40246432 | G60: -0.960355025 | H60: -1.037043857 | J60: 43.40249693 | K60: -0.9603613059 | L60: -1.037044358 | N60: 3.260338946e-05 | O60: -6.28085849e-06 | P60: -5.01041812e-07
E61: 0.636 | F61: 42.70529345 | G61: -0.4434770907 | H61: -1.045458482 | J61: 42.70532883 | K61: -0.4434830804 | L61: -1.045459067 | N61: 3.538149733e-05 | O61: -5.989723683e-06 | P61: -5.850512492e-07
E62: 0.648 | F62: 41.78171795 | G62: 0.06366625766 | H62: -1.047726262 | J62: 41.78175593 | K62: 0.06366059938 | L62: -1.047726928 | N62: 3.798373254e-05 | O62: -5.658280791e-06 | P62: -6.66679274e-07
E63: 0.66 | F63: 40.6423608 | G63: 0.5584208833 | H63: -1.043980064 | J63: 40.64240119 | K63: 0.558415595 | L63: -1.043980809 | N63: 4.039081373e-05 | O63: -5.288327366e-06 | P63: -7.453539752e-07
E64: 0.672 | F64: 39.29882056 | G64: 1.038266066 | H64: -1.034383817 | J64: 39.29886315 | K64: 1.038261184 | L64: -1.034384638 | N64: 4.258476206e-05 | O64: -4.881942858e-06 | P64: -8.205219089e-07
E65: 0.684 | F65: 37.7635823 | G65: 1.500825679 | H65: -1.019130841 | J65: 37.76362685 | K65: 1.500821237 | L65: -1.019131733 | N65: 4.454902942e-05 | O65: -4.441472902e-06 | P65: -8.916520906e-07
E66: 0.696 | F66: 36.04992549 | G66: 1.943878274 | H66: -0.9984420511 | J66: 36.04997176 | K66: 1.943874304 | L66: -0.9984430093 | N66: 4.626861557e-05 | O66: -3.969511834e-06 | P66: -9.582397978e-07
E67: 0.708 | F67: 34.17182969 | G67: 2.365366054 | H67: -0.972564045 | J67: 34.17187742 | K67: 2.365362585 | L67: -0.9725650648 | N67: 4.773017309e-05 | O67: -3.468883526e-06 | P67: -1.019810151e-06
E68: 0.72 | F68: 32.14387837 | G68: 2.763402697 | H68: -0.9417670941 | J68: 32.14392729 | K68: 2.763399754 | L68: -0.94176817 | N68: 4.892209962e-05 | O68: -2.942620648e-06 | P68: -1.075921458e-06
E69: 0.732 | F69: 29.98116165 | G69: 3.136280019 | H69: -0.9063430421 | J69: 29.98121148 | K69: 3.136277625 | L69: -0.9063441682 | N69: 4.983461691e-05 | O69: -2.393942629e-06 | P69: -1.126168292e-06
E70: 0.744 | F70: 27.69917843 | G70: 3.482473469 | H70: -0.8666031342 | J70: 27.69922889 | K70: 3.482471643 | L70: -0.8666043044 | N70: 5.045983639e-05 | O70: -1.826232421e-06 | P70: -1.170184289e-06
E71: 0.756 | F71: 25.31373856 | G71: 3.800646446 | H71: -0.8228757862 | J71: 25.31378935 | K71: 3.800645203 | L71: -0.8228769939 | N71: 5.07918104e-05 | O71: -1.243012222e-06 | P71: -1.207644649e-06
E72: 0.768 | F72: =-2*$C$28*G72-$C$25^2*H72 -> 22.84086547 | G72: =-$C$28*H72-$C$29*$C$26*EXP(-$C$28*E72)*SIN($C$26*E72+$C$30) -> 4.089653446 | H72: =$C$29*EXP(-$C$28*E72)*COS($C$26*E72+$C$30) -> -0.7755043092 | J72: 22.8409163 | K72: 4.089652798 | L72: -0.7755055474 | N72: 5.082656981e-05 | O72: -6.479184265e-07 | P72: -1.238268324e-06
E73: =E72+$C$8 -> 0.78 | F73: 20.29670003 | G73: 4.348542045 | H73: -0.724844603 | J73: 20.29675059 | K73: 4.348542 | L73: -0.7248458648 | N73: 5.056214685e-05 | O73: -4.467589854e-08 | P73: -1.261819876e-06
E74: 0.792 | F74: 17.69740586 | G74: 4.576553741 | H74: -0.6712628335 | J74: 17.69745586 | K74: 4.576554304 | L74: -0.6712641116 | N74: 4.999858394e-05 | O74: 5.629281841e-07 | P74: -1.278111008e-06
E75: 0.804 | F75: 15.0590769 | G75: 4.773123668 | H75: -0.6151331059 | J75: 15.05912604 | K75: 4.773124839 | L75: -0.6151343929 | N75: 4.913792831e-05 | O75: 1.171070733e-06 | P75: -1.287001745e-06
E76: 0.816 | F76: 12.3976475 | G76: 4.937879218 | H76: -0.5568351483 | J76: 12.39769548 | K76: 4.937880994 | L76: -0.5568364367 | N76: 4.798421245e-05 | O76: 1.775919267e-06 | P76: -1.288401275e-06
E77: 0.828 | F77: 9.728805526 | G77: 5.070637602 | H77: -0.4967520182 | J77: 9.72885207 | K77: 5.070639975 | L77: -0.4967533005 | N77: 4.654342097e-05 | O77: 2.37365826e-06 | P77: -1.282268437e-06
E78: 0.84 | F78: 7.067909008 | G78: 5.171402387 | H78: -0.4352678446 | J78: 7.067953832 | K78: 5.171405347 | L78: -0.4352691132 | N78: =J78-F78 -> 4.482344414e-05 | O78: 2.960515229e-06 | P78: -1.268611865e-06
E79: 0.852 | F79: 4.429906561 | G79: 5.240359059 | H79: -0.372765617 | J79: 4.429949395 | K79: 5.240362592 | L79: -0.3727668644 | N79: 4.283401831e-05 | O79: 3.532786335e-06 | P79: -1.247489775e-06
E80: 0.864 | F80: 1.829262067 | G80: 5.27786965 | H80: -0.3096250342 | J80: 1.829302654 | K80: 5.277873737 | L80: -0.3096262532 | N80: 4.058665418e-05 | O80: 4.086861335e-06 | P80: -1.219009421e-06
E81: 0.876 | F81: -0.7201161087 | G81: 5.284466497 | H81: -0.2462204221 | J81: -0.7200780142 | K81: 5.284471116 | L81: -0.2462216054 | N81: 3.809455341e-05 | O81: 4.619247706e-06 | P81: -1.183326221e-06
E82: 0.888 | F82: -3.204941067 | G82: 5.260845168 | H82: -0.1829187317 | J82: -3.204905695 | K82: 5.260850294 | L82: -0.1829198723 | N82: 3.537251384e-05 | O82: 5.126593822e-06 | P82: -1.140642537e-06
E83: 0.9 | F83: -5.612608222 | G83: 5.207856641 | H83: -0.1200776265 | J83: -5.612575785 | K83: 5.207862246 | L83: -0.1200787177 | N83: 3.243682491e-05 | O83: 5.605710976e-06 | P83: -1.091206172e-06
E84: 0.912 | F84: -7.931250825 | G84: 5.126498774 | H84: -0.05804366806 | J84: -7.93122152 | K84: 5.126504827 | L84: -0.05804470337 | N84: 2.930515323e-05 | O84: 6.053594166e-06 | P84: -1.035308539e-06
E85: 0.924 | F85: -10.14978997 | G85: 5.017907146 | H85: 0.002849391976 | J85: -10.14976397 | K85: 5.017913613 | L85: 0.002848418694 | N85: 2.599641976e-05 | O85: 6.467441472e-06 | P85: -9.732825675e-07
E86: 0.936 | F86: -12.25797894 | G86: 4.883345331 | H86: 0.06228220698 | J86: -12.25795641 | K86: 4.883352176 | L86: 0.06228130148 | N86: 2.253066948e-05 | O86: 6.844671925e-06 | P86: -9.055003332e-07
E87: 0.948 | F87: -14.24644176 | G87: 4.724194676 | H87: 0.1199513103 | J87: -14.24642283 | K87: 4.724201859 | L87: 0.1199504779 | N87: 1.892893404e-05 | O87: 7.182941763e-06 | P87: -8.323704391e-07
E88: 0.96 | F88: -16.10670589 | G88: 4.541943648 | H88: 0.1755704649 | J88: -16.10669068 | K88: 4.541951128 | L88: 0.1755697106 | N88: 1.521308901e-05 | O88: 7.480158956e-06 | P88: -7.543351732e-07
E89: 0.972 | F89: -17.83122899 | G89: 4.338176826 | H89: 0.2288718833 | J89: -17.83121758 | K89: 4.33818456 | L89: 0.2288712115 | N89: 1.140570647e-05 | O89: 7.734495976e-06 | P89: -6.718674603e-07
E90: 0.984 | F90: -19.41341976 | G90: 4.11456361 | H90: 0.2796073134 | J90: -19.41341223 | K90: 4.114571555 | L90: 0.2796067279 | N90: 7.529903698e-06 | O90: 7.944400651e-06 | P90: -5.85467625e-07
E91: 0.996 | F91: -20.84765291 | G91: 3.872846712 | H91: 0.327548987 | J91: -20.8476493 | K91: 3.872854821 | L91: 0.3275484914 | N91: 3.609189687e-06 | O91: 8.108605153e-06 | P91: -4.956599998e-07
E92: 1.008 | F92: -22.12927823 | G92: 3.614830502 | H92: 0.3724904306 | J92: -22.12927856 | K92: 3.614838729 | L92: 0.3724900276 | N92: -3.326900462e-07 | O92: 8.226132995e-06 | P92: -4.029893986e-07
E93: 1.02 | F93: -23.25462393 | G93: 3.342369284 | H93: 0.414247134 | J93: -23.2546282 | K93: 3.34237758 | L93: 0.4142468259 | N93: -4.27190917e-06 | O93: 8.296304052e-06 | P93: -3.080174733e-07
E94: 1.032 | F94: -24.22099431 | G94: 3.057355559 | H94: 0.4526570798 | J94: -24.22100249 | K94: 3.057363877 | L94: 0.4526568685 | N94: -8.18471538e-06 | O94: 8.318737589e-06 | P94: -2.113189949e-07
E95: 1.044 | F95: -25.02666198 | G95: 2.761708358 | H95: 0.4875811315 | J95: -25.02667402 | K95: 2.761716652 | L95: 0.487581018 | N95: -1.20475839e-05 | O95: 8.293353276e-06 | P95: -1.134780661e-07
E96: 1.056 | F96: -25.67085468 | G96: 2.457361696 | H96: 0.5189032821 | J96: -25.67087051 | K96: 2.457369916 | L96: 0.518903267 | N96: -1.583736816e-05 | O96: 8.220370217e-06 | P96: -1.508430669e-08
E97: 1.068 | F97: -26.15373705 | G97: 2.146253209 | H97: 0.5465307659 | J97: -26.15375659 | K97: 2.14626131 | L97: 0.5465308492 | N97: -1.953144682e-05 | O97: 8.100304043e-06 | P97: 8.327096834e-08
E98: 1.08 | F98: -26.4763875 | G98: 1.830313053 | H98: 0.5703940349 | J98: -26.47641061 | K98: 1.830320987 | L98: 0.5703942159 | N98: -2.310786642e-05 | O98: 7.933962041e-06 | P98: 1.809985585e-07
E99: 1.092 | F99: -26.64077034 | G99: 1.511453094 | H99: 0.5904466038 | J99: -26.64079688 | K99: 1.511460816 | L99: 0.5904468813 | N99: -2.654547847e-05 | O99: 7.722436442e-06 | P99: 2.775151398e-07
E100: 1.104 | F100: -26.64970365 | G100: 1.191556472 | H100: 0.6066647676 | J100: -26.64973347 | K100: 1.191563939 | L100: 0.6066651399 | N100: -2.982407018e-05 | O100: 7.46709591e-06 | P100: 3.722469593e-07
E101: 1.116 | F101: -26.50682299 | G101: 0.8724675658 | H101: 0.6190471964 | J101: -26.50685591 | K101: 0.8724747354 | L101: 0.6190476611 | N101: -3.292448824e-05 | O101: 7.169575251e-06 | P101: 4.646334436e-07
E102: 1.128 | F102: -26.21654132 | G102: 0.555982422 | H102: 0.6276144119 | J102: -26.21657715 | K102: 0.5559892537 | L102: 0.6276149661 | N102: -3.582875455e-05 | O102: 6.831763539e-06 | P102: 5.541306869e-07
E103: 1.14 | F103: -25.78400548 | G103: 0.2438396824 | H103: 0.632408153 | J103: -25.784044 | K103: 0.2438461382 | L103: 0.6324087932 | N103: -3.852017359e-05 | O103: 6.455790624e-06 | P103: 6.402148087e-07
E104: 1.152 | F104: -25.2150495 | G104: -0.06228794397 | H104: 0.6334906346 | J104: -25.21509048 | K104: -0.06228189995 | L104: 0.633491357 | N104: -4.098343061e-05 | O104: 6.044012233e-06 | P104: 7.223851537e-07
E105: 1.164 | F105: -24.51614509 | G105: -0.3608016337 | H105: 0.6309437089 | J105: -24.51618829 | K105: -0.3607960347 | L105: 0.6309445091 | N105: -4.320468007e-05 | O105: 5.598993732e-06 | P105: 8.001673153e-07
E106: 1.176 | F106: -23.69434975 | G106: -0.6501837914 | H106: 0.6248679333 | J106: -23.69439492 | K106: -0.6501786679 | L106: 0.6248688064 | N106: -4.517162396e-05 | O106: 5.123492635e-06 | P106: 8.731159674e-07
E107: 1.188 | F107: -22.75725269 | G107: -0.9290047573 | H107: 0.6153815552 | J107: -22.75729957 | K107: -0.9290001368 | L107: 0.615382496 | N107: -4.68735795e-05 | O107: 4.620440054e-06 | P107: 9.408174848e-07
E108: 1.2 | F108: -21.71291909 | G108: -1.195928854 | H108: 0.6026194198 | J108: -21.71296739 | K108: -1.195924761 | L108: 0.6026204227 | N108: -4.830153595e-05 | O108: 4.09292119e-06 | P108: 1.002892339e-06
E109: 1.212 | F109: -20.56983286 | G109: -1.449719757 | H109: 0.5867318094 | J109: -20.56988231 | K109: -1.449716213 | L109: 0.5867328684 | N109: -4.944820031e-05 | O109: 3.544154969e-06 | P109: 1.05899726e-06
E110: 1.224 | F110: -19.33683854 | G110: -1.68924517 | H110: 0.567883222 | J110: -19.33688885 | K110: -1.689242193 | L110: 0.5678843309 | N110: -5.030803151e-05 | O110: 2.977473021e-06 | P110: 1.108827137e-06
E111: 1.236 | F111: -18.02308237 | G111: -1.913480802 | H111: 0.5462510993 | J111: -18.02313324 | K111: -1.913478406 | L111: 0.5462522514 | N111: -5.087726335e-05 | O111: 2.396298123e-06 | P111: 1.152116678e-06
E112: 1.248 | F112: -16.63795311 | G112: -2.12151363 | H112: 0.5220245092 | J112: -16.63800426 | K112: -2.121511826 | L112: 0.5220256978 | N112: -5.115391575e-05 | O112: 1.80412221e-06 | P112: 1.188641783e-06
E113: 1.26 | F113: -15.19102291 | G113: -2.312544456 | H113: 0.4954027956 | J113: -15.19107405 | K113: -2.312543252 | L113: 0.4954040138 | N113: -5.11377948e-05 | O113: 1.204484178e-06 | P113: 1.218220661e-06
E114: 1.272 | F114: -13.69198849 | G114: -2.485889754 | H114: 0.4665942 | J114: -13.69203932 | K114: -2.485889153 | L114: 0.4665954407 | N114: -5.08304812e-05 | O114: 6.009475495e-07 | P114: 1.240714653e-06
E115: 1.284 | F115: -12.15061301 | G115: -2.640982815 | H115: 0.4358144661 | J115: -12.15066325 | K115: -2.640982817 | L115: 0.4358157221 | N115: -5.023530783e-05 | O115: -2.921804576e-09 | P115: 1.256028786e-06
E116: 1.296 | F116: -10.57666899 | G116: -2.777374199 | H116: 0.4032854347 | J116: -10.57671835 | K116: -2.777374802 | L116: 0.4032866988 | N116: -4.935732635e-05 | O116: -6.035777687e-07 | P116: 1.264112047e-06
E117: 1.308 | F117: -8.979882456 | G117: -2.894731514 | H117: 0.3692336371 | J117: -8.979930659 | K117: -2.894732711 | L117: 0.369234902 | N117: -4.820326314e-05 | O117: -1.197515768e-06 | P117: 1.264957367e-06
E118: 1.32 | F118: -7.369878737 | G118: -2.992838529 | H118: 0.3338888949 | J118: -7.369925518 | K118: -2.992840311 | L118: 0.3338901535 | N118: -4.678146547e-05 | O118: -1.78129408e-06 | P118: 1.258601341e-06
E119: 1.332 | F119: -5.756130097 | G119: -3.071593651 | H119: 0.297482935 | J119: -5.756175199 | K119: -3.071596002 | L119: 0.2974841801 | N119: -4.510183742e-05 | O119: -2.351554598e-06 | P119: 1.245123666e-06
E120: 1.344 | F120: -4.147905473 | G120: -3.131007781 | H120: 0.2602480259 | J120: -4.147948648 | K120: -3.131010686 | L120: 0.2602492505 | N120: -4.317576706e-05 | O120: -2.905042837e-06 | P120: 1.224646318e-06
E121: 1.356 | F121: -2.554222571 | G121: -3.171201589 | H121: 0.2224156437 | J121: -2.554263587 | K121: -3.171205027 | L121: 0.222416841 | N121: -4.101604485e-05 | O121: -3.438627138e-06 | P121: 1.197332478e-06
E122: 1.368 | F122: -0.9838025268 | G122: -3.19240222 | H122: 0.1842151741 | J122: -0.9838411635 | K122: -3.192406169 | L122: 0.1842163375 | N122: -3.863677396e-05 | O122: -3.949316914e-06 | P122: 1.163385195e-06
E123: 1.38 | F123: 0.5549726766 | G123: -3.194939479 | H123: 0.1458726571 | J123: 0.5549366233 | K123: -3.194943914 | L123: 0.1458737801 | N123: -3.605327342e-05 | O123: -4.434279842e-06 | P123: 1.123045828e-06
E124: 1.392 | F124: 2.054099846 | G124: -3.179241523 | H124: 0.10760958 | J124: 2.054066564 | K124: -3.179246414 | L124: 0.1076106566 | N124: -3.328197431e-05 | O124: -4.890857925e-06 | P124: 1.076592254e-06
E125: 1.404 | F125: 3.505991124 | G125: -3.145830086 | H125: 0.06964172621 | J125: 3.505960784 | K125: -3.145835403 | L125: 0.06964275055 | N125: -3.034031023e-05 | O125: -5.316582297e-06 | P125: 1.024336871e-06
E126: 1.416 | F126: 4.903507306 | G126: -3.0953153 | H126: 0.03217808237 | J126: 4.903480059 | K126: -3.095321009 | L126: 0.03217904899 | N126: -2.724660254e-05 | O126: -5.709186722e-06 | P126: 9.666243995e-07
E127: 1.428 | F127: 6.239987809 | G127: -3.028390121 | H127: -0.00458018916 | J127: 6.239963789 | K127: -3.028396188 | L127: -0.00457928533 | N127: -2.40199411e-05 | O127: -6.066619705e-06 | P127: 9.038295127e-07
E128: 1.44 | F128: 7.509277217 | G128: -2.945824428 | H128: -0.04044070905 | J128: 7.509256537 | K128: -2.945830815 | L128: -0.0404398727 | N128: -2.068006161e-05 | O128: -6.387055148e-06 | P128: 8.363542977e-07
E129: 1.452 | F129: 8.705748316 | G129: -2.848458814 | H129: -0.07522076717 | J129: 8.705731068 | K129: -2.848465483 | L129: -0.07522000255 | N129: -1.724721979e-05 | O129: -6.668901522e-06 | P129: 7.646255708e-07
E130: 1.464 | F130: 9.824321575 | G130: -2.737198135 | H130: -0.1087481326 | J130: 9.824307833 | K130: -2.737205045 | L130: -0.1087474436 | N130: -1.374206391e-05 | O130: -6.910809475e-06 | P130: 6.890920716e-07
E131: 1.476 | F131: 10.86048106 | G131: -2.613004828 | H131: -0.1408617851 | J131: 10.86047088 | K131: -2.61301194 | L131: -0.1408611749 | N131: -1.018550603e-05 | O131: -7.111677896e-06 | P131: 6.102215455e-07
E132: 1.488 | F132: 11.81028676 | G132: -2.476892082 | H132: -0.1714125649 | J132: 11.81028016 | K132: -2.476899353 | L132: -0.1714120364 | N132: -6.598592847e-06 | O132: -7.270658366e-06 | P132: 5.284977394e-07
E133: 1.5 | F133: 12.67038334 | G133: -2.329916861 | H133: -0.2002637403 | J133: 12.67038033 | K133: -2.329924249 | L133: -0.2002632959 | N133: -3.002377076e-06 | O133: -7.387158024e-06 | P133: 4.444173281e-07
E134: 1.512 | F134: 13.43800534 | G134: -2.173172859 | H134: -0.2272914905 | J134: 13.43800592 | K134: -2.17318032 | L134: -0.227291132 | N134: 5.822098608e-07 | O134: -7.460840828e-06 | P134: 3.584867948e-07
E135: 1.524 | F135: 14.11097898 | G135: -2.007783405 | H135: -0.2523853041 | J135: 14.11098311 | K135: -2.007790897 | L135: -0.2523850329 | N135: 4.134483305e-06 | O135: -7.491627209e-06 | P135: 2.712192778e-07
E136: 1.536 | F136: =-2*$C$28*G136-$C$25^2*H136 -> 14.68772042 | G136: =-$C$28*H136-$C$29*$C$26*EXP(-$C$28*E136)*SIN($C$26*E136+$C$30) -> -1.834894371 | H136: =$C$29*EXP(-$C$28*E136)*COS($C$26*E136+$C$30) -> -0.2754482919 | J136: 14.68772805 | K136: -1.834901851 | L136: -0.2754481087 | N136: 7.634127821e-06 | O136: -7.479692183e-06 | P136: 1.831314136e-07
E137: =E136+$C$8 -> 1.548 | F137: 15.16723083 | G137: -1.655667116 | H137: -0.296397415 | J137: 15.16724189 | K137: -1.655674542 | L137: -0.2963973203 | N137: 1.106131623e-05 | O137: -7.425461901e-06 | P137: 9.47401893e-08
E138: 1.56 | F138: 15.5490882 | G138: -1.471271519 | H138: -0.3151636291 | J138: 15.5491026 | K138: -1.471278848 | L138: -0.3151636225 | N138: 1.439682442e-05 | O138: -7.329608699e-06 | P138: 6.559824517e-09
E139: 1.572 | F139: 15.83343602 | G139: -1.282879111 | H139: -0.3316919449 | J139: 15.83345364 | K139: -1.282886304 | L139: -0.3316920258 | N139: 1.76221412e-05 | O139: -7.193044721e-06 | P139: -8.0901294e-08
E140: 1.584 | F140: 16.02096909 | G140: -1.091656384 | H140: -0.345941408 | J140: 16.02098981 | K140: -1.091663401 | L140: -0.3459415752 | N140: 2.07195728e-05 | O140: -7.016914089e-06 | P140: -1.671436156e-07
E141: 1.596 | F141: 16.11291649 | G141: -0.8987582646 | H141: -0.3578849989 | J141: 16.11294016 | K141: -0.8987650672 | L141: -0.3578852506 | N141: 2.367234109e-05 | O141: -6.802583799e-06 | P141: -2.516793373e-07
E142: 1.608 | F142: 16.1110219 | G142: -0.7053218223 | H142: -0.3675094563 | J142: 16.11104836 | K142: -0.7053283739 | L142: -0.3675097903 | N142: =J142-F142 -> 2.64646753e-05 | O142: -6.551633319e-06 | P142: -3.340352167e-07
E143: 1.62 | F143: 16.01752149 | G143: -0.5124602248 | H143: -0.374815026 | J143: 16.01755057 | K143: -0.5124664907 | L143: -0.3748154398 | N143: 2.908189659e-05 | O143: -6.265843016e-06 | P143: -4.13755264e-07
E144: 1.632 | F144: 15.83511953 | G144: -0.3212569717 | H144: -0.3798151397 | J144: 15.83515104 | K144: -0.3212629188 | L144: -0.3798156301 | N144: 3.151049502e-05 | O144: -5.947181483e-06 | P144: -4.904033014e-07
E145: 1.644 | F145: 15.56696189 | G145: -0.1327604339 | H145: -0.3825360256 | J145: 15.56699563 | K145: -0.1327660317 | L145: -0.3825365891 | N145: 3.373819866e-05 | O145: -5.597791877e-06 | P145: -5.635653728e-07
E146: 1.656 | F146: 15.21660767 | G146: 0.05202127626 | H146: -0.3830162555 | J146: 15.21664342 | K146: 0.05201605628 | L146: -0.3830168883 | N146: 3.57540344e-05 | O146: -5.219977306e-06 | P146: -6.328519948e-07
E147: 1.668 | F147: 14.78799915 | G147: 0.232125086 | H147: -0.3813062331 | J147: 14.7880367 | K147: 0.2321202698 | L147: -0.381306931 | N147: 3.754838017e-05 | O147: -4.816185446e-06 | P147: -6.979002321e-07
E148: 1.68 | F148: 14.28543032 | G148: 0.4066373721 | H148: -0.3774676266 | J148: 14.28546943 | K148: 0.4066329831 | L148: -0.377468385 | N148: 3.911300847e-05 | O148: -4.388992437e-06 | P148: -7.583755899e-07
E149: 1.692 | F149: 13.71351405 | G149: 0.5746979859 | H149: -0.3715727505 | J149: 13.71355449 | K149: 0.5746940448 | L149: -0.3715735645 | N149: 4.044112089e-05 | O149: -3.941086169e-06 | P149: -8.139737138e-07
E150: 1.704 | F150: 13.07714832 | G150: 0.7355038781 | H150: -0.3637039019 | J150: 13.07718985 | K150: 0.7355004028 | L150: -0.3637047663 | N150: 4.152737373e-05 | O150: -3.475249114e-06 | P150: -8.644218876e-07
E151: 1.716 | F151: 12.3814816 | G151: 0.8883123129 | H151: -0.3539526557 | J151: 12.38152397 | K151: 0.8883093186 | L151: -0.3539535652 | N151: 4.23678944e-05 | O151: -2.994340725e-06 | P151: -9.094803237e-07
E152: 1.728 | F152: 11.63187761 | G152: 1.032443663 | H152: -0.3424191235 | J152: 11.63192057 | K152: 1.032441162 | L152: -0.3424200724 | N152: 4.29602888e-05 | O152: -2.501279619e-06 | P152: -9.489432392e-07
E153: 1.74 | F153: 10.83387971 | G153: 1.167283781 | H153: -0.3292111817 | J153: 10.83392301 | K153: 1.167281782 | L153: -0.3292121643 | N153: 4.330363979e-05 | O153: -1.99902558e-06 | P153: -9.826397159e-07
E154: 1.752 | F154: 9.993175081 | G154: 1.292285935 | H154: -0.3144436738 | J154: 9.99321848 | K154: 1.292284445 | L154: -0.3144446842 | N154: 4.339849662e-05 | O154: -1.490561525e-06 | P154: -1.010434339e-06
E155: 1.764 | F155: 9.115559011 | G155: 1.406972327 | H155: -0.2982375916 | J155: 9.115602258 | K155: 1.406971348 | L155: -0.2982386239 | N155: 4.324685574e-05 | O155: -9.788755404e-07 | P155: -1.032227616e-06
E156: 1.776 | F156: 8.206899318 | G156: 1.510935172 | H156: -0.2807192415 | J156: 8.20694217 | K156: 1.510934705 | L156: -0.2807202895 | N156: 4.28521332e-05 | O156: -4.669430973e-07 | P156: -1.047956175e-06
E157: 1.788 | F157: 7.27310127 | G157: 1.603837357 | H157: -0.2620193996 | J157: 7.273143489 | K157: 1.603837399 | L157: -0.2620204572 | N157: 4.221912864e-05 | O157: 4.229046846e-08 | P157: -1.057592739e-06
E158: 1.8 | F158: 6.320073102 | G158: 1.685412686 | H158: -0.2422724618 | J158: 6.320114456 | K158: 1.685413232 | L158: -0.242273523 | N158: 4.135398152e-05 | O158: 5.459270669e-07 | P158: -1.061145891e-06
E159: 1.812 | F159: 5.35369233 | G159: 1.75546571 | H159: -0.2216155937 | J159: 5.353732594 | K159: 1.755466751 | L159: -0.2216166524 | N159: 4.026411985e-05 | O159: 1.041132493e-06 | P159: -1.058659621e-06
E160: 1.824 | F160: 4.379773052 | G160: 1.813871161 | H160: -0.2001878843 | J160: 4.37981201 | K160: 1.813872686 | L160: -0.2001889346 | N160: 3.895820167e-05 | O160: 1.525152488e-06 | P160: -1.050212666e-06
E161: 1.836 | F161: 3.404034371 | G161: 1.860573002 | H161: -0.1781295094 | J161: 3.404071817 | K161: 1.860574997 | L161: -0.1781305453 | N161: 3.744605005e-05 | O161: 1.995328118e-06 | P161: -1.035917657e-06
E162: 1.848 | F162: 2.432070116 | G162: 1.895583104 | H162: -0.1555809081 | J162: 2.432105854 | K162: 1.895585553 | L162: -0.155581924 | N162: 3.573858159e-05 | O162: 2.44911042e-06 | P162: -1.015920061e-06
E163: 1.86 | F163: 1.46931999 | G163: 1.918979565 | H163: -0.132681978 | J163: 1.469353837 | K163: 1.91898245 | L163: -0.1326829684 | N163: 3.384772953e-05 | O163: 2.884074191e-06 | P163: -9.903969478e-07
E164: 1.872 | F164: 0.5210422812 | G164: 1.930904701 | H164: -0.1095712921 | J164: 0.5210740676 | K164: 1.930907999 | L164: -0.1095722516 | N164: 3.178636154e-05 | O164: 3.297930891e-06 | P164: -9.59555583e-07
E165: 1.884 | F165: -0.4077117467 | G165: 1.931562706 | H165: -0.08638534162 | J165: -0.4076821785 | K165: 1.931566394 | L165: -0.08638626525 | N165: 2.956819295e-05 | O165: 3.688540558e-06 | P165: -9.236318517e-07
E166: 1.896 | F166: -1.312121683 | G166: 1.921217029 | H166: -0.06325780938 | J166: -1.312094475 | K166: 1.921221083 | L166: -0.06325869227 | N166: 2.720769598e-05 | O166: 4.053922699e-06 | P166: -8.828885346e-07
E167: 1.908 | F167: -2.187619915 | G167: 1.900187469 | H167: -0.04031887556 | J167: -2.187595195 | K167: 1.900191861 | L167: -0.04031971317 | N167: 2.472000564e-05 | O167: 4.392266096e-06 | P167: -8.376134458e-07
E168: 1.92 | F168: -3.029911618 | G168: 1.868847016 | H168: -0.01769456035 | J168: -3.029889497 | K168: 1.868851718 | L168: -0.01769534846 | N168: 2.21208226e-05 | O168: 4.701937478e-06 | P168: -7.881174388e-07
E169: 1.932 | F169: -3.834992718 | G169: 1.827618473 | H169: 0.004493894302 | J169: -3.834973292 | K169: 1.827623455 | L169: 0.004493159569 | N169: 1.942631414e-05 | O169: 4.981489031e-06 | P169: -7.347323051e-07
E170: 1.944 | F170: -4.599165775 | G170: 1.776970866 | H170: 0.02613060109 | J170: -4.599149122 | K170: 1.776976095 | L170: 0.02612992328 | N170: 1.665301345e-05 | O170: 5.229664706e-06 | P170: -6.778085715e-07
E171: 1.956 | F171: -5.319053743 | G171: 1.717415679 | H171: 0.04710555962 | J171: -5.319039925 | K171: 1.717421125 | L171: 0.04710494191 | N171: 1.381771792e-05 | O171: 5.445405305e-06 | P171: -6.177132132e-07
E172: 1.968 | F172: -5.991611587 | G172: 1.649502942 | H172: 0.06731514258 | J172: -5.99160065 | K172: 1.64950857 | L172: 0.06731458775 | N172: 1.093738733e-05 | O172: 5.627852345e-06 | P172: -5.548273005e-07
E173: 1.98 | F173: -6.614135728 | G173: 1.573817182 | H173: 0.08666253409 | J173: -6.614127699 | K173: 1.573822959 | L173: 0.08666204454 | N173: 8.029042085e-06 | O173: 5.776350663e-06 | P173: -4.895435853e-07
E174: 1.992 | F174: -7.184271329 | G174: 1.490973286 | H174: 0.1050581189 | J174: -7.184266219 | K174: 1.490979176 | L174: 0.1050576967 | N174: 5.109662609e-06 | O174: 5.890449789e-06 | P174: -4.222640547e-07
E175: 2.004 | F175: -7.700017416 | G175: 1.401612276 | H175: 0.1224198216 | J175: -7.700015219 | K175: 1.401618246 | L175: 0.1224194682 | N175: 2.196090106e-06 | O175: 5.969904087e-06 | P175: -3.53397457e-07
E176: 2.016 | F176: -8.159729874 | G176: 1.30639705 | H176: 0.1386733943 | J176: -8.159730569 | K176: 1.306403065 | L176: 0.138673111 | N176: -6.950704847e-07 | O176: 6.014671684e-06 | P176: -2.83356822e-07
E177: 2.028 | F177: -8.562122336 | G177: 1.206008087 | H177: 0.1537526541 | J177: -8.562125883 | K177: 1.206014112 | L177: 0.1537524415 | N177: -3.547545033e-06 | O177: 6.024912179e-06 | P177: -2.125569831e-07
E178: 2.04 | F178: -8.906265015 | G178: 1.10113916 | H178: 0.1675996674 | J178: -8.906271361 | K178: 1.101145161 | L178: 0.167599526 | N178: -6.345481461e-06 | O178: 6.00098322e-06 | P178: -1.414121244e-07
E179: 2.052 | F179: -9.191581541 | G179: 0.9924930775 | H179: 0.1801648846 | J179: -9.191590614 | K179: 0.9924990209 | L179: 0.1801648143 | N179: -9.073537349e-06 | O179: 5.943435935e-06 | P179: -7.033336299e-08
E180: 2.064 | F180: -9.417843852 | G180: 0.8807774657 | H180: 0.191407223 | J180: -9.417855569 | K180: 0.8807833187 | L180: 0.1914072233 | N180: -1.171696345e-05 | O180: 5.85300927e-06 | P180: 2.736226801e-10
E181: 2.076 | F181: -9.585165242 | G181: 0.7667006331 | H181: 0.2012940994 | J181: -9.585179503 | K181: 0.7667063637 | L181: 0.2012941694 | N181: -1.426168252e-05 | O181: 5.730623303e-06 | P181: 7.001089783e-08
E182: 2.088 | F182: -9.693991609 | G182: 0.650967523 | H182: 0.2098014141 | J182: -9.694008304 | K182: 0.6509731004 | L182: 0.2098015526 | N182: -1.669436323e-05 | O182: 5.577371562e-06 | P182: 1.384905026e-07
E183: 2.1 | F183: -9.745091043 | G183: 0.5342757836 | H183: 0.2169134869 | J183: -9.745110046 | K183: 0.5342811781 | L183: 0.2169136922 | N183: -1.900248862e-05 | O183: 5.394512426e-06 | P183: 2.053365943e-07
E184: 2.112 | F184: -9.739541807 | G184: 0.4173119722 | H184: 0.2226229466 | J184: -9.739562982 | K184: 0.4173171557 | L184: 0.2226232168 | N184: -2.117441893e-05 | O184: 5.183459668e-06 | P184: 2.701874899e-07
E185: 2.124 | F185: -9.678718852 | G185: 0.3007479127 | H185: 0.2269305757 | J185: -9.678742052 | K185: 0.3007528585 | L185: 0.2269309084 | N185: -2.319944834e-05 | O185: 4.945772184e-06 | P185: 3.326975994e-07
E186: 2.136 | F186: -9.564278959 | G186: 0.185237223 | H186: 0.2298451128 | J186: -9.564304027 | K186: 0.1852419061 | L186: 0.2298455054 | N186: -2.506785551e-05 | O186: 4.683143024e-06 | P186: 3.925392366e-07
E187: 2.148 | F187: -9.398144629 | G187: 0.07141202858 | H187: 0.2313830143 | J187: -9.398171399 | K187: 0.07141642596 | L187: 0.2313834637 | N187: -2.677094759e-05 | O187: 4.397387768e-06 | P187: 4.494043014e-07
E188: 2.16 | F188: -9.182486846 | G188: -0.0401201236 | H188: 0.2315681773 | J188: -9.182515148 | K188: -0.04011603317 | L188: 0.2315686803 | N188: -2.830109763e-05 | O188: 4.090432334e-06 | P188: 5.030058242e-07
E189: 2.172 | F189: -8.919706838 | G189: -0.1487791387 | H189: 0.2304316279 | J189: -8.91973649 | K189: -0.1487753744 | L189: 0.230432181 | N189: -2.965177517e-05 | O189: 3.764300295e-06 | P189: 5.530793645e-07
E190: 2.184 | F190: -8.61241695 | G190: -0.2540150227 | H190: 0.2280111749 | J190: -8.612447767 | K190: -0.2540116016 | L190: 0.2280117743 | N190: -3.081756994e-05 | O190: 3.421099806e-06 | P190: 5.993842583e-07
E191: 2.196 | F191: -8.263420781 | G191: -0.3553102976 | H191: 0.2243510344 | J191: -8.263452575 | K191: -0.3553072346 | L191: 0.2243516761 | N191: -3.179420872e-05 | O191: 3.063010181e-06 | P191: 6.417047091e-07
E192: 2.208 | F192: -7.875692701 | G192: -0.4521821738 | H192: 0.2195014262 | J192: -7.87572528 | K192: -0.4521794815 | L192: 0.2195021061 | N192: -3.257856519e-05 | O192: 2.692268259e-06 | P192: 6.798507168e-07
E193: 2.22 | F193: -7.452356877 | G193: -0.5441844743 | H193: 0.2135181456 | J193: -7.452390046 | K193: -0.5441821631 | L193: 0.2135188593 | N193: -3.316866293e-05 | O193: 2.311154606e-06 | P193: 7.136588431e-07
E194: 2.232 | F194: -6.996665952 | G194: -0.6309093042 | H194: 0.206462114 | J194: -6.996699516 | K194: -0.6309073822 | L194: 0.206462857 | N194: -3.356367167e-05 | O194: 1.921979643e-06 | P194: 7.429928097e-07
E195: 2.244 | F195: -6.511979492 | G195: -0.7119884636 | H195: 0.1983989105 | J195: -6.512013256 | K195: -0.7119869365 | L195: 0.1983996782 | N195: -3.376389678e-05 | O195: 1.527069802e-06 | P195: 7.677439293e-07
E196: 2.256 | F196: -6.00174234 | G196: -0.7870946007 | H196: 0.1893982885 | J196: -6.001776111 | K196: -0.787093472 | L196: 0.1893990764 | N196: -3.377076221e-05 | O196: 1.128753755e-06 | P196: 7.878313676e-07
E197: 2.268 | F197: -5.469462999 | G197: -0.8559421054 | H197: 0.1795336802 | J197: -5.469496586 | K197: -0.8559413761 | L197: 0.1795344834 | N197: -3.358678722e-05 | O197: 7.293488411e-07 | P197: 8.032022385e-07
E198: 2.28 | F198: -4.918692159 | G198: -0.9182877439 | H198: 0.1688816912 | J198: -4.918725375 | K198: -0.9182874128 | L198: 0.168882505 | N198: -3.321555685e-05 | O198: 3.311477351e-07 | P198: 8.138315345e-07
E199: 2.292 | F199: -4.353001504 | G199: -0.973931038 | H199: 0.1575215895 | J199: -4.353034165 | K199: -0.9739311015 | L199: 0.1575224092 | N199: -3.266168664e-05 | O199: -6.359455018e-08 | P199: 8.197218934e-07
E200: 2.304 | F200: =-2*$C$28*G200-$C$25^2*H200 -> -3.775962888 | G200: =-$C$28*H200-$C$29*$C$26*EXP(-$C$28*E200)*SIN($C$26*E200+$C$30) -> -1.022714391 | H200: =$C$29*EXP(-$C$28*E200)*COS($C$26*E200+$C$30) -> 0.1455347917 | J200: -3.775994819 | K200: -1.022714844 | L200: 0.1455356126 | N200: -3.193078174e-05 | O200: -4.52673264e-07 | P200: 8.209032067e-07
... 308 more rows

Sheet 臨界減衰
A1: 振動の運動方程式
A2: mx''+cx'+kx=-sign(x')μ'mg+fsinΩt | D2: 運動方程式 | F2: 臨界減衰 | J2: マクロで計算➡ | L2: =exe("振動シミュレーション","ForcedOscillation",C8:C19,J8:L8) -> 振動シミュレーション
A3: x''=-(c/m)x'-(k/m)x-sign(x')(μ'g)+(f/m)sinΩt | D3: 微分方程式 | J3: マクロは標準モジュール-Module6 の中。 実行させるには =exe(･･･ と先頭に＝を付加する。
A4: ダンパ ＋バネ ＋ 動摩擦 ＋ 外力 | F4: 解析解 | K4: 数値積分 | O4: 理論値との差
E5: 時間 | F5: 加速度 | G5: 速度 | H5: 変位 | J5: 加速度 | K5: 速度 | L5: 変位 | N5: 加速度 | O5: 速度 | P5: 変位
E6: t | F6: 理論値x'' | G6: 理論値x' | H6: 理論値x | J6: x'' | K6: x' | L6: x | N6: x'' | O6: x' | P6: x
B7: 赤太字は単振動からの変更データ | E7: [s] | F7: [m/s^2] | G7: [m/s] | H7: [m] | J7: [m/s^2] | K7: [m/s] | L7: [m] | N7: [m/s^2] | O7: [m/s] | P7: [m]
A8: 時間間隔 | B8: Δt | C8: =$C$9/500 -> 0.012 | D8: [s] | E8: 0 | F8: =-$C$25*(2*$C$30-$C$25*($C$29+$C$30*E8))*EXP(-$C$25*E8) -> -166.4911064 | G8: =($C$30-$C$25*($C$29+$C$30*E8))*EXP(-$C$25*E8) -> 10 | H8: =($C$29+$C$30*E8)*EXP(-$C$25*E8) -> 1 | J8: -166.4911064 | K8: 10 | L8: 1 | N8: =J8-F8 -> 0 | O8: =K8-G8 -> 0 | P8: 0
A9: 終了時間 | B9: TL | C9: 6 | D9: [s] | E9: =E8+$C$8 -> 0.012 | F9: -147.0598116 | G9: 8.120741605 | H9: 1.108491314 | J9: -147.0598257 | K9: 8.120743499 | L9: 1.108491068 | N9: =J9-F9 -> -1.411965428e-05 | O9: 1.894255746e-06 | P9: -2.460249056e-07
A10: 重力加速度 | B10: g | C10: 9.8 | D10: [m/s^2] | E10: 0.024 | F10: -129.5795075 | G10: 6.462762903 | H10: 1.195782613 | J10: -129.5795334 | K10: 6.462766367 | L10: 1.195782165 | N10: -2.587441222e-05 | O10: 3.464032439e-06 | P10: -4.485629332e-07
A11: 質量 | B11: m | C11: 10 | D11: [kg] | E11: 0.036 | F11: -113.8688074 | G11: 5.003757152 | H11: 1.264393238 | J11: -113.8688429 | K11: 5.003761902 | L11: 1.264392625 | N11: -3.555653331e-05 | O11: 4.750119866e-06 | P11: -6.132064607e-07
A12: 粘性減衰係数 | B12: c=2√(mk) | C12: =2*SQRT(C11*C13) -> 126.4911064 | D12: [Ns/m] | E12: 0.048 | F12: -99.76241651 | G12: 3.723496249 | H12: 1.316587512 | J12: -99.76245994 | K12: 3.723502037 | L12: 1.316586767 | N12: -4.342658121e-05 | O12: 5.788824492e-06 | P12: -7.449225066e-07
A13: バネ定数 | B13: k | C13: 400 | D13: [N/m] | E13: 0.06 | F13: -87.10974942 | G13: 2.603646051 | H13: 1.354398561 | J13: -87.10979914 | K13: 2.603652663 | L13: 1.354397713 | N13: =J13-F13 -> -4.971661347e-05 | O13: =K13-G13 -> 6.612425513e-06 | P13: =L13-H13 -> -8.481172105e-07
A14: 静止摩擦係数 | B14: μ | C14: 0 | D14: [ND] | E14: 0.072 | F14: -75.77366245 | G14: 1.627597578 | H14: 1.379650015 | J14: -75.77371708 | K14: 1.627604828 | L14: 1.379649088 | N14: =J14-F14 -> -5.463306512e-05 | O14: 7.249586791e-06 | P14: -9.266940071e-07
A15: 動摩擦係数 | B15: μ' | C15: 0 | D15: [ND] | E15: 0.084 | F15: -65.62929333 | G15: 0.7803127751 | H15: 1.393975768 | J15: -65.62935169 | K15: 0.7803205009 | L15: 1.393974783 | N15: -5.835935555e-05 | O15: 7.72572888e-06 | P15: -9.841060955e-07
A16: 強制力 | B16: f | C16: 0 | D16: [N] | E16: 0.096 | F16: -56.56299859 | G16: 0.0481836054 | H16: 1.398837971 | J16: -56.56305965 | K16: 0.04819166876 | L16: 1.398836948 | N16: -6.105824352e-05 | O16: 8.063364778e-06 | P16: -1.023403742e-06
A17: 強制力角振動数 | B17: Ω | C17: 0 | D17: [rad/s] | E17: 0.108 | F17: -48.47138064 | G17: -0.5810966521 | H17: 1.395543412 | J17: -48.47144351 | K17: -0.5810883697 | L17: 1.395542365 | N17: -6.287395432e-05 | O17: 8.282402869e-06 | P17: -1.047276898e-06
A18: 初期位置 | B18: x0 | C18: 1 | D18: [m] | E18: 0.12 | F18: -41.26039709 | G18: -1.11865093 | H18: 1.385258412 | J18: -41.26046103 | K18: -1.11864253 | L18: 1.385257354 | N18: -6.393409971e-05 | O18: 8.400420097e-06 | P18: -1.058093588e-06
A19: 初期速度 | B19: x'0 | C19: 10 | D19: [m/s] | E19: 0.132 | F19: -34.84454566 | G19: -1.574525673 | H19: 1.369022378 | J19: -34.84461001 | K19: -1.57451724 | L19: 1.36902132 | N19: -6.435141061e-05 | O19: 8.432908206e-06 | P19: -1.057934458e-06
E20: 0.144 | F20: -29.14611814 | G20: -1.957788774 | H20: 1.347760124 | J20: -29.14618236 | K20: -1.957780381 | L20: 1.347759075 | N20: -6.422529959e-05 | O20: 8.393495563e-06 | P20: -1.048623861e-06
B21: c/m | C21: =C12/C11 -> 12.64911064 | D21: [1/s] | E21: 0.156 | F21: -24.09451782 | G21: -2.276618953 | H21: 1.322293071 | J21: -24.09458147 | K21: -2.276610658 | L21: 1.322292039 | N21: -6.364326957e-05 | O21: 8.294146912e-06 | P21: -1.031757809e-06
B22: k/m | C22: =C13/C11 -> 40 | D22: [1/s^2] | E22: 0.168 | F22: -19.62563514 | G22: -2.538387284 | H22: 1.293349419 | J22: -19.62569782 | K22: -2.538379139 | L22: 1.29334841 | N22: -6.268218304e-05 | O22: 8.145343134e-06 | P22: -1.008729087e-06
B23: μ'g | C23: =C15*C10 -> 0 | D23: [s^2/m] | E23: 0.18 | F23: -15.68127645 | G23: -2.749731573 | H23: 1.261573384 | J23: -15.68133786 | K23: -2.749723617 | L23: 1.261572403 | N23: -6.140940492e-05 | O23: 7.956242937e-06 | P23: -9.807498069e-07
B24: f/m | C24: =C16/C11 -> 0 | D24: [N/m] | E24: 0.192 | F24: -12.20864179 | G24: -2.91662416 | H24: 1.227533587 | J24: -12.20870167 | K24: -2.916616426 | L24: 1.227532638 | N24: -5.988383133e-05 | O24: 7.734828192e-06 | P24: -9.488716566e-07
A25: 固有角振動数 | B25: ω＝√(k/m) | C25: =SQRT(C13/C11) -> 6.32455532 | D25: ［rad/s］ | E25: 0.204 | F25: -9.159847302 | G25: -3.04443374 | H25: 1.191730663 | J25: -9.159905459 | K25: -3.044426252 | L25: 1.191729749 | N25: -5.815681491e-05 | O25: 7.488034514e-06 | P25: -9.140040536e-07
A26: 減衰固有角振動数 | B26: ωd＝ω√(1-ζ^2) | C26: =C25*SQRT(1-C27^2) -> 0 | D26: ［rad/s］ | E26: 0.216 | F26: -6.491488663 | G26: -3.137981696 | H26: 1.154604158 | J26: -6.491544936 | K26: -3.137974474 | L26: 1.154603281 | N26: -5.627299666e-05 | O26: 7.221868481e-06 | P26: -8.769304196e-07
A27: 減衰比 | B27: ζ＝c/{2√(mk)} | C27: =C12/(2*SQRT(C11*C13)) -> 1 | D27: [ND] | E27: 0.228 | F27: -4.164242082 | G27: -3.201593422 | H27: 1.116538787 | J27: -4.164296353 | K27: -3.20158648 | L27: 1.116537949 | N27: -5.427105333e-05 | O27: 6.941512809e-06 | P27: -8.38322755e-07
A28: 減衰率 | B28: γ＝ζω | C28: =C27*C25 -> 6.32455532 | D28: [1/s] | E28: 0.24 | F28: -2.142499687 | G28: -3.239145072 | H28: 1.077870102 | J28: -2.142551871 | K28: -3.23913842 | L28: 1.077869303 | N28: -5.218436838e-05 | O28: 6.651420643e-06 | P28: -7.987546813e-07
A29: 振幅 | B29: A1 | C29: =C18 -> 1 | D29: [m] | E29: 0.252 | F29: -0.394036411 | G29: -3.25410612 | H29: 1.038889619 | J29: -0.3940864526 | K29: -3.254099765 | L29: 1.03888886 | N29: -5.004163404e-05 | O29: 6.355400036e-06 | P29: -7.587131048e-07
A30: 〝 | B30: A2 | C30: =C25*C18+C19 -> 16.32455532 | E30: 0.264 | F30: 1.110294276 | G30: -3.249578103 | H30: 0.9998494671 | J30: 1.110246409 | K30: -3.249572046 | L30: 0.9998487485 | N30: -4.786739103e-05 | O30: 6.056689566e-06 | P30: -7.186086355e-07
E31: 0.276 | F31: 2.396838233 | G31: -3.228329865 | H31: 0.9609665855 | J31: 2.396792551 | K31: -3.228324107 | L31: 0.9609659067 | N31: -4.568251212e-05 | O31: 5.758025981e-06 | P31: -6.787848897e-07
E32: 0.288 | F32: 3.489394339 | G32: -3.192829628 | H32: 0.9224265222 | J32: 3.489350835 | K32: -3.192824167 | L32: 0.9224258826 | N32: -4.350463498e-05 | O32: 5.461704638e-06 | P32: -6.395267819e-07
E33: 0.3 | F33: 4.409446063 | G33: -3.145274139 | H33: 0.8843868628 | J33: 4.409404714 | K33: -3.145268969 | L33: 0.8843862617 | N33: -4.134854935e-05 | O33: 5.169633488e-06 | P33: -6.010679151e-07
E34: 0.312 | F34: 5.176372786 | G34: -3.087615168 | H34: 0.8469803273 | J34: 5.176333559 | K34: -3.087610285 | L34: 0.8469797637 | N34: -3.922654293e-05 | O34: 4.883381205e-06 | P34: -5.635971557e-07
A35: 臨界減衰解析解 | E35: 0.324 | F35: 5.80764261 | G35: -3.021583588 | H35: 0.8103175627 | J35: 5.807605461 | K35: -3.021578984 | L35: 0.8103170354 | N35: -3.714871028e-05 | O35: 4.604220096e-06 | P35: -5.272644783e-07
A36: x''+2γx'+ω^2x=0 | D36: 運動方程式 | E36: 0.336 | F36: 6.318988212 | G36: -2.948711233 | H36: 0.7744896605 | J36: 6.318953089 | K36: -2.9487069 | L36: 0.7744891683 | N36: -3.512322826e-05 | O36: 4.333164282e-06 | P36: -4.921861544e-07
A37: x=(A1+A2t)e^(-ωt) | D37: 変位 | E37: 0.348 | F37: 6.724567213 | G37: -2.870350747 | H37: 0.7395704242 | J37: 6.724534056 | K37: -2.870346676 | L37: 0.7395699657 | N37: -3.315660142e-05 | O37: 4.071003642e-06 | P37: -4.584493518e-07
A38: x'={A2-ω(A1+A2t)}e^(-ωt) | D38: 速度 | E38: 0.36 | F38: 7.037108364 | G38: -2.787693598 | H38: 0.7056184099 | J38: 7.03707711 | K38: -2.78768978 | L38: 0.7056179838 | N38: -3.125388043e-05 | O38: 3.818333973e-06 | P38: -4.261162113e-07
A39: x''=-ω{2A2-ω(A1+A2t)}e^(-ωt) | D39: 加速度 | E39: 0.372 | F39: 7.268044789 | G39: -2.701786409 | H39: 0.6726787606 | J39: 7.26801537 | K39: -2.701782833 | L39: 0.6726783654 | N39: -2.941885613e-05 | O39: 3.575583705e-06 | P39: -3.952274439e-07
A40: A1=x0 | D40: 振幅１ | E40: 0.384 | F40: 7.427635374 | G40: -2.613545765 | H40: 0.6407848544 | J40: 7.42760772 | K40: -2.613542422 | L40: 0.6407844885 | N40: -2.765423189e-05 | O40: 3.343037596e-06 | P40: -3.658055131e-07
A41: A2=ωx0+x0' | D41: 振幅２ | E41: 0.396 | F41: 7.52507534 | G41: -2.523771634 | H41: 0.6099597823 | J41: 7.525049379 | K41: -2.523768513 | L41: 0.6099594445 | N41: -2.596177636e-05 | O41: 3.120857648e-06 | P41: -3.378574334e-07
E42: 0.408 | F42: 7.56859692 | G42: -2.433159515 | H42: 0.5802176746 | J42: 7.568572578 | K42: -2.433156605 | L42: 0.5802173633 | N42: -2.434245857e-05 | O42: 2.909101594e-06 | P42: -3.11377234e-07
E43: 0.42 | F43: 7.565561005 | G43: -2.342311433 | H43: 0.5515648867 | J43: 7.565538209 | K43: -2.342308725 | L43: 0.5515646004 | N43: -2.279656756e-05 | O43: 2.70773918e-06 | P43: -2.863481228e-07
E44: 0.432 | F44: 7.522540539 | G44: -2.251745894 | H44: 0.5240010602 | J44: 7.522519215 | K44: -2.251743377 | L44: 0.5240007974 | N44: -2.132381769e-05 | O44: 2.516666479e-06 | P44: -2.627443764e-07
E45: 0.444 | F45: 7.445396372 | G45: -2.161906869 | H45: 0.4975200703 | J45: 7.445376449 | K45: -2.161904534 | L45: 0.4975198298 | N45: -1.992344147e-05 | O45: 2.335718471e-06 | P45: -2.405329971e-07
E46: 0.456 | F46: 7.339346243 | G46: -2.073171927 | H46: 0.4721108711 | J46: 7.339327649 | K46: -2.073169763 | L46: 0.4721106514 | N46: -1.859427115e-05 | O46: 2.164680028e-06 | P46: -2.19675151e-07
E47: 0.468 | F47: 7.209027476 | G47: -1.985859564 | H47: 0.4477582468 | J47: 7.209010141 | K47: -1.985857561 | L47: 0.4477580467 | N47: -1.733481017e-05 | O47: 2.003295552e-06 | P47: -2.001274227e-07
E48: 0.48 | F48: 7.058553949 | G48: -1.900235824 | H48: 0.4244434809 | J48: 7.058537806 | K48: -1.900233973 | L48: 0.424443299 | N48: -1.614329579e-05 | O48: 1.851277321e-06 | P48: -1.818428965e-07
E49: 0.492 | F49: 6.89156784 | G49: -1.816520263 | H49: 0.4021449488 | J49: 6.891552822 | K49: -1.816518555 | L49: 0.402144784 | N49: -1.501775356e-05 | O49: 1.708312771e-06 | P49: -1.64772092e-07
E50: 0.504 | F50: 6.711286599 | G50: -1.734891326 | H50: 0.3808386432 | J50: 6.711272643 | K50: -1.734889752 | L50: 0.3808384944 | N50: -1.395604483e-05 | O50: 1.574070783e-06 | P50: -1.488637664e-07
E51: 0.516 | F51: 6.520545577 | G51: -1.655491178 | H51: 0.3604986376 | J51: 6.520532621 | K51: -1.65548973 | L51: 0.3604985035 | N51: -1.295590781e-05 | O51: 1.448207102e-06 | P51: -1.340656015e-07
E52: 0.528 | F52: 6.321836692 | G52: -1.578430062 | H52: 0.3410974951 | J52: 6.321824677 | K52: -1.578428732 | L52: 0.3410973748 | N52: -1.201499314e-05 | O52: 1.33036899e-06 | P52: -1.203247852e-07
E53: 0.54 | F53: 6.117343485 | G53: -1.503790198 | H53: 0.3226066278 | J53: 6.117332354 | K53: -1.503788978 | L53: 0.3226065202 | N53: -1.11308944e-05 | O53: 1.220199199e-06 | P53: -1.075885068e-07
E54: 0.552 | F54: 5.908972885 | G54: -1.431629295 | H54: 0.3049966116 | J54: 5.908962584 | K54: -1.431628178 | L54: 0.3049965158 | N54: -1.03011742e-05 | O54: 1.117339336e-06 | P54: -9.580436705e-08
E55: 0.564 | F55: 5.698383977 | G55: -1.361983693 | H55: 0.2882374611 | J55: 5.698374454 | K55: -1.361982671 | L55: 0.2882373761 | N55: -9.523386456e-06 | O55: 1.021432711e-06 | P55: -8.492072284e-08
E56: 0.576 | F56: 5.487014047 | G56: -1.294871177 | H56: 0.2722988685 | J56: 5.487005252 | K56: -1.294870245 | L56: 0.2722987936 | N56: -8.79509514e-06 | O56: 9.321267118e-07 | P56: -7.488696918e-08
E57: 0.588 | F57: 5.276102136 | G57: -1.2302935 | H57: 0.2571504116 | J57: 5.276094023 | K57: -1.230292651 | L57: 0.257150346 | N57: -8.113890063e-06 | O57: 8.4907477e-07 | P57: -6.565376609e-08
E58: 0.6 | F58: 5.066710347 | G58: -1.168238625 | H58: 0.2427617318 | J58: 5.06670287 | K58: -1.168237853 | L58: 0.2427616746 | N58: -7.477399977e-06 | O58: 7.719379762e-07 | P58: -5.717322224e-08
E59: 0.612 | F59: 4.859743084 | G59: -1.108682735 | H59: 0.2291026874 | J59: 4.859736201 | K59: -1.108682034 | L59: 0.229102638 | N59: -6.883303314e-06 | O59: 7.003863707e-07 | P59: -4.939903456e-08
E60: 0.624 | F60: 4.655964432 | G60: -1.05159202 | H60: 0.2161434843 | J60: 4.655958103 | K60: -1.051591385 | L60: 0.216143442 | N60: -6.329336926e-06 | O60: 6.340999785e-07 | P60: -4.22865965e-08
E61: 0.636 | F61: 4.456013839 | G61: -0.9969242615 | H61: 0.2038547861 | J61: 4.456008026 | K61: -0.9969236888 | L61: 0.2038547503 | N61: -5.813303022e-06 | O61: 5.727695924e-07 | P61: -3.579307306e-08
E62: 0.648 | F62: 4.26042025 | G62: -0.9446302464 | H62: 0.1922078063 | J62: 4.260414916 | K62: -0.9446297303 | L62: 0.1922077764 | N62: -5.333074541e-06 | O62: 5.1609736e-07 | P62: -2.987745168e-08
E63: 0.66 | F63: 4.069614844 | G63: -0.8946550113 | H63: 0.1811743845 | J63: 4.069609957 | K63: -0.8946545475 | L63: 0.18117436 | N63: -4.88659922e-06 | O63: 4.637971981e-07 | P63: -2.450057135e-08
E64: 0.672 | F64: 3.883942502 | G64: -0.8469389478 | H64: 0.1707270488 | J64: 3.883938031 | K64: -0.8469385322 | L64: 0.1707270292 | N64: -4.471902443e-06 | O64: 4.155950443e-07 | P64: -1.962513138e-08
E65: 0.684 | F65: 3.703672117 | G65: -0.8014187745 | H65: 0.1608390658 | J65: 3.70366803 | K65: -0.8014184033 | L65: 0.1608390506 | N65: -4.087089141e-06 | O65: 3.712289905e-07 | P65: -1.521568588e-08
E66: 0.696 | F66: 3.529005855 | G66: -0.7580283927 | H66: 0.1514844788 | J66: 3.529002125 | K66: -0.7580280623 | L66: 0.1514844676 | N66: -3.730344818e-06 | O66: 3.304493029e-07 | P66: -1.123862439e-08
E67: 0.708 | F67: 3.36008748 | G67: -0.7166996357 | H67: 0.1426381377 | J67: 3.36008408 | K67: -0.7166993427 | L67: 0.14263813 | N67: -3.399935838e-06 | O67: 2.930183483e-07 | P67: -7.662141699e-09
E68: 0.72 | F68: 3.197009805 | G68: -0.6773629245 | H68: 0.1342757193 | J68: 3.197006711 | K68: -0.6773626658 | L68: 0.1342757148 | N68: -3.094209119e-06 | O68: 2.58710448e-07 | P68: -4.456199049e-09
E69: 0.732 | F69: 3.039821373 | G69: -0.6399478383 | H69: 0.126373741 | J69: 3.039818561 | K69: -0.639947611 | L69: 0.1263737394 | N69: -2.811591274e-06 | O69: 2.273116615e-07 | P69: -1.592477011e-09
E70: 0.744 | F70: 2.888532433 | G70: -0.6043836092 | H70: 0.1189095677 | J70: 2.888529882 | K70: -0.6043834106 | L70: 0.1189095687 | N70: -2.550587364e-06 | O70: 1.986195234e-07 | P70: 9.556759828e-10
E71: 0.756 | F71: 2.743120278 | G71: -0.570599549 | H71: 0.1118614137 | J71: 2.743117969 | K71: -0.5705993766 | L71: 0.1118614169 | N71: -2.309779262e-06 | O71: 1.724427359e-07 | P71: 3.213300404e-09
E72: 0.768 | F72: =-$C$25*(2*$C$30-$C$25*($C$29+$C$30*E72))*EXP(-$C$25*E72) -> 2.603534009 | G72: =($C$30-$C$25*($C$29+$C$30*E72))*EXP(-$C$25*E72) -> -0.5385254158 | H72: =($C$29+$C$30*E72)*EXP(-$C$25*E72) -> 0.105208339 | J72: 2.603531921 | K72: -0.5385252672 | L72: 0.1052083442 | N72: -2.087823764e-06 | O72: 1.486008314e-07 | P72: 5.203885114e-09
E73: =E72+$C$8 -> 0.78 | F73: 2.469698773 | G73: -0.508091726 | H73: 0.0989302421 | J73: 2.46969689 | K73: -0.5080915991 | L73: 0.09893024905 | N73: -1.883450424e-06 | O73: 1.269238029e-07 | P73: 6.949429934e-09
E74: 0.792 | F74: 2.341519542 | G74: -0.479230019 | H74: 0.09300784976 | J74: 2.341517846 | K74: -0.4792299117 | L74: 0.09300785823 | N74: -1.69545926e-06 | O74: 1.072517227e-07 | P74: 8.470508822e-09
E75: 0.804 | F75: 2.218884455 | G75: -0.4518730786 | H75: 0.08742270277 | J75: 2.218882933 | K75: -0.4518729891 | L75: 0.08742271256 | N75: -1.522718298e-06 | O75: 8.943434487e-08 | P75: 9.786334354e-09
E76: 0.816 | F76: 2.101667794 | G76: -0.4259551168 | H76: 0.08215714017 | J76: 2.10166643 | K76: -0.4259550435 | L76: 0.08215715109 | N76: -1.364161022e-06 | O76: 7.333069985e-08 | P76: 1.091482218e-08
E77: 0.828 | F77: 1.9897326 | G77: -0.4014119245 | H77: 0.07719428112 | J77: 1.989731381 | K77: -0.4014118656 | L77: 0.07719429299 | N77: -1.218783774e-06 | O77: 5.880868614e-08 | P77: 1.18726549e-08
E78: 0.84 | F78: 1.882932992 | G78: -0.3781809912 | H78: 0.07251800519 | J78: 1.882931906 | K78: -0.3781809454 | L78: 0.07251801787 | N78: =J78-F78 -> -1.085643097e-06 | O78: 4.574465973e-08 | P78: 1.267534587e-08
E79: 0.852 | F79: 1.781116201 | G79: -0.3562016007 | H79: 0.06811293141 | J79: 1.781115237 | K79: -0.3562015667 | L79: 0.06811294475 | N79: -9.638530925e-07 | O79: 3.402302823e-08 | P79: 1.333730108e-08
E80: 0.864 | F80: 1.684124357 | G80: -0.3354149021 | H80: 0.06396439626 | J80: 1.684123504 | K80: -0.3354148786 | L80: 0.06396441013 | N80: -8.525827655e-07 | O80: 2.353584916e-08 | P80: 1.387188013e-08
E81: 0.876 | F81: 1.591796048 | G81: -0.3157639617 | H81: 0.06005843099 | J81: 1.591795297 | K81: -0.3157639475 | L81: 0.06005844528 | N81: -7.510534175e-07 | O81: 1.418243667e-08 | P81: 1.429145516e-08
E82: 0.888 | F82: 1.503967687 | G82: -0.297193797 | H82: 0.05638173834 | J82: 1.503967028 | K82: -0.2971937912 | L82: 0.05638175295 | N82: -6.585360481e-07 | O82: 5.86897464e-09 | P82: 1.460746847e-08
E83: 0.9 | F83: 1.420474683 | G83: -0.2796513958 | H83: 0.05292166907 | J83: 1.420474109 | K83: -0.2796513973 | L83: 0.0529216839 | N83: -5.743488452e-07 | O83: -1.491857027e-09 | P83: 1.483048774e-08
E84: 0.912 | F84: 1.341152472 | G84: -0.2630857216 | H84: 0.0496661982 | J84: 1.341151974 | K84: -0.2630857296 | L84: 0.04966621317 | N84: -4.978547083e-07 | O84: -7.981246108e-09 | P84: 1.497025932e-08
E85: 0.924 | F85: 1.265837384 | G85: -0.2474477082 | H85: 0.04660390137 | J85: 1.265836955 | K85: -0.2474477219 | L85: 0.0466039164 | N85: -4.284588562e-07 | O85: -1.367459967e-08 | P85: 1.503575951e-08
E86: 0.936 | F86: 1.194367394 | G86: -0.2326902443 | H86: 0.04372393126 | J86: 1.194367029 | K86: -0.2326902629 | L86: 0.0437239463 | N86: -3.656065088e-07 | O86: -1.864188157e-08 | P86: 1.503524329e-08
E87: 0.948 | F87: 1.126582759 | G87: -0.2187681497 | H87: 0.04101599428 | J87: 1.12658245 | K87: -0.2187681726 | L87: 0.04101600926 | N87: -3.087806379e-07 | O87: -2.294793888e-08 | P87: 1.49762914e-08
E88: 0.96 | F88: 1.062326543 | G88: -0.2056381448 | H88: 0.03847032756 | J88: 1.062326286 | K88: -0.2056381715 | L88: 0.03847034242 | N88: -2.574998132e-07 | O88: -2.665281262e-08 | P88: 1.486585471e-08
E89: 0.972 | F89: 1.001445069 | G89: -0.1932588142 | H89: 0.03607767635 | J89: 1.001444857 | K89: -0.193258844 | L89: 0.03607769106 | N89: -2.11316123e-07 | O89: -2.981203645e-08 | P89: 1.471029675e-08
E90: 0.984 | F90: 0.9437882706 | G90: -0.181590565 | H90: 0.03382927193 | J90: 0.9437881008 | K90: -0.1815905975 | L90: 0.03382928644 | N90: -1.698131956e-07 | O90: -3.247691985e-08 | P90: 1.45154337e-08
E91: 0.996 | F91: 0.8892099949 | G91: -0.1705955821 | H91: 0.03171680996 | J91: 0.8892098623 | K91: -0.1705956168 | L91: 0.03171682424 | N91: -1.326042905e-07 | O91: -3.469482027e-08 | P91: 1.428657277e-08
E92: 1.008 | F92: 0.8375682253 | G92: -0.1602377797 | H92: 0.02973242946 | J92: 0.837568126 | K92: -0.1602378162 | L92: 0.02973244349 | N92: -9.933048284e-08 | O92: -3.650940006e-08 | P92: 1.402854809e-08
E93: 1.02 | F93: 0.7887252606 | G93: -0.1504827501 | H93: 0.02786869237 | J93: 0.788725191 | K93: -0.1504827881 | L93: 0.02786870612 | N93: -6.965893951e-08 | O93: -3.796087039e-08 | P93: 1.374575472e-08
E94: 1.032 | F94: 0.742547842 | G94: -0.1412977118 | H94: 0.0261185637 | J94: 0.7425477988 | K94: -0.1412977509 | L94: 0.02611857714 | N94: -4.328126857e-08 | O94: -3.908622329e-08 | P94: 1.344218079e-08
E95: 1.044 | F95: 0.6989072394 | G95: -0.1326514552 | H95: 0.02447539236 | J95: 0.6989072195 | K95: -0.1326514952 | L95: 0.02447540548 | N95: -1.99119633e-08 | O95: -3.991945e-08 | P95: 1.312143758e-08
E96: 1.056 | F96: 0.6576793011 | G96: -0.124514288 | H96: 0.02293289261 | J96: 0.6576793018 | K96: -0.1245143285 | L96: 0.0229329054 | N96: 7.130851465e-10 | O96: -4.04917485e-08 | P96: 1.278678804e-08
E97: 1.068 | F97: 0.6187444725 | G97: -0.1168579802 | H97: 0.0214851262 | J97: 0.6187444914 | K97: -0.116858021 | L97: 0.02148513864 | N97: 1.883798773e-08 | O97: -4.08317181e-08 | P97: 1.24411733e-08
E98: 1.08 | F98: 0.5819877871 | G98: -0.1096557087 | H98: 0.02012648512 | J98: 0.5819878218 | K98: -0.1096557497 | L98: 0.02012649721 | N98: 3.468818532e-08 | O98: -4.096554361e-08 | P98: 1.208723771e-08
E99: 1.092 | F99: 0.5472988343 | G99: -0.102882003 | H99: 0.0188516751 | J99: 0.5472988828 | K99: -0.1028820439 | L99: 0.01885168683 | N99: 4.847169965e-08 | O99: -4.091716801e-08 | P99: 1.172735214e-08
E100: 1.104 | F100: 0.514571708 | G100: -0.09651268999 | H100: 0.01765569965 | J100: 0.5145717684 | K100: -0.0965127307 | L100: 0.01765571101 | N100: 6.038031919e-08 | O100: -4.070845544e-08 | P100: 1.136363594e-08
E101: 1.116 | F101: 0.4837049374 | G101: -0.09052484112 | H101: 0.01653384484 | J101: 0.483705008 | K101: -0.09052488148 | L101: 0.01653385584 | N101: 7.059071094e-08 | O101: -4.035934356e-08 | P101: 1.099797728e-08
E102: 1.128 | F102: 0.4546014048 | G102: -0.08489671911 | H102: 0.01548166471 | J102: 0.4546014841 | K102: -0.084896759 | L102: 0.01548167534 | N102: 7.92654698e-08 | O102: -3.988798679e-08 | P102: 1.06320522e-08
E103: 1.14 | F103: 0.4271682512 | G103: -0.07960772645 | H103: 0.01449496721 | J103: 0.4271683377 | K103: -0.07960776576 | L103: 0.01449497748 | N103: 8.655410555e-08 | O103: -3.931089042e-08 | P103: 1.026734242e-08
E104: 1.152 | F104: 0.4013167724 | G104: -0.07463835492 | H104: 0.01356980092 | J104: 0.401316865 | K104: -0.07463839356 | L104: 0.01356981083 | N104: 9.259396683e-08 | O104: -3.864303587e-08 | P104: 9.905151734e-09
E105: 1.164 | F105: 0.376962308 | G105: -0.06997013638 | H105: 0.01270244221 | J105: 0.3769624055 | K105: -0.06997017427 | L105: 0.01270245176 | N105: 9.751111535e-08 | O105: -3.789799845e-08 | P105: 9.546621497e-09
E106: 1.176 | F106: 0.3540241237 | G106: -0.06558559491 | H106: 0.01188938307 | J106: 0.3540242251 | K106: -0.065585632 | L106: 0.01188939226 | N106: 1.014211375e-07 | O106: -3.708805651e-08 | P106: 9.192744819e-09
E107: 1.188 | F107: 0.3324252902 | G107: -0.06146820049 | H107: 0.01112731947 | J107: 0.3324253946 | K107: -0.06146823672 | L107: 0.01112732831 | N107: 1.044299103e-07 | O107: -3.622429398e-08 | P107: 8.8443798e-09
E108: 1.2 | F108: 0.3120925577 | G108: -0.05760232402 | H108: 0.0104131403 | J108: 0.3120926643 | K108: -0.05760235934 | L108: 0.0104131488 | N108: 1.066343147e-07 | O108: -3.531669526e-08 | P108: 8.502261773e-09
E109: 1.212 | F109: 0.2929562293 | G109: -0.05397319395 | H109: 0.009743916815 | J109: 0.2929563374 | K109: -0.05397322832 | L109: 0.009743924982 | N109: 1.081229061e-07 | O109: -3.437423439e-08 | P109: 8.167014695e-09
E110: 1.224 | F110: 0.2749500329 | G110: -0.05056685443 | H110: 0.009116892587 | J110: 0.2749501419 | K110: -0.05056688783 | L110: 0.009116900426 | N110: 1.089765384e-07 | O110: -3.340495744e-08 | P110: 7.839161603e-09
E111: 1.236 | F111: 0.258010993 | G111: -0.04737012496 | H111: 0.008529473967 | J111: 0.2580111022 | K111: -0.04737015737 | L111: 0.008529481486 | N111: 1.092689479e-07 | O111: -3.241605925e-08 | P111: 7.519134301e-09
E112: 1.248 | F112: 0.2420793023 | G112: -0.04437056161 | H112: 0.007979221016 | J112: 0.2420794113 | K112: -0.04437059302 | L112: 0.007979228224 | N112: 1.09067298e-07 | O112: -3.14139549e-08 | P112: 7.207282328e-09
E113: 1.26 | F113: 0.2270981957 | G113: -0.04155641975 | H113: 0.007463838891 | J113: 0.2270983041 | K113: -0.04155645016 | L113: 0.007463845795 | N113: 1.084326847e-07 | O113: -3.040434552e-08 | P113: 6.903881144e-09
E114: 1.272 | F114: 0.2130138246 | G114: -0.03891661834 | H114: 0.006981169665 | J114: 0.213013932 | K114: -0.03891664773 | L114: 0.006981176274 | N114: 1.074206125e-07 | O114: -2.939228008e-08 | P114: 6.609139755e-09
E115: 1.284 | F115: 0.1997751339 | G115: -0.0364407056 | H115: 0.006529184575 | J115: 0.19977524 | K115: -0.03644073398 | L115: 0.006529190899 | N115: 1.060814327e-07 | O115: -2.838221197e-08 | P115: 6.323207668e-09
E116: 1.296 | F116: 0.1873337416 | G116: -0.03411882627 | H116: 0.006105976672 | J116: 0.187333846 | K116: -0.03411885365 | L116: 0.006105982718 | N116: 1.044607527e-07 | O116: -2.737805162e-08 | P116: 6.046181283e-09
E117: 1.308 | F117: 0.1756438202 | G117: -0.03194169024 | H117: 0.005709753843 | J117: 0.1756439228 | K117: -0.03194171663 | L117: 0.005709759621 | N117: 1.025998175e-07 | O117: -2.638321518e-08 | P117: 5.778109755e-09
E118: 1.32 | F118: 0.1646619823 | G118: -0.02990054256 | H118: 0.00533883222 | J118: 0.1646620828 | K118: -0.02990056797 | L118: 0.005338837739 | N118: 1.005358625e-07 | O118: -2.540066946e-08 | P118: 5.519000396e-09
E119: 1.332 | F119: 0.1543471684 | G119: -0.02798713487 | H119: 0.004991629926 | J119: 0.1543472667 | K119: -0.0279871593 | L119: 0.004991635194 | N119: 9.830244091e-08 | O119: -2.443297328e-08 | P119: 5.268823534e-09
E120: 1.344 | F120: 0.1446605385 | G120: -0.02619369807 | H120: 0.00466666116 | J120: 0.1446606345 | K120: -0.02619372155 | L120: 0.004666666188 | N120: 9.592972983e-08 | O120: -2.348231593e-08 | P120: 5.027517061e-09
E121: 1.356 | F121: 0.135565367 | G121: -0.02451291638 | H121: 0.004362530609 | J121: 0.1355654605 | K121: -0.02451293893 | L121: 0.004362535404 | N121: 9.344481089e-08 | O121: -2.255055229e-08 | P121: 4.794990501e-09
E122: 1.368 | F122: 0.127026941 | G122: -0.02293790253 | H122: 0.00407792815 | J122: 0.1270270319 | K122: -0.02293792417 | L122: 0.004077932721 | N122: 9.087193198e-08 | O122: -2.163923528e-08 | P122: 4.571128731e-09
E123: 1.38 | F123: 0.1190124624 | G123: -0.02146217425 | H123: 0.003811623857 | J123: 0.1190125506 | K123: -0.021462195 | L123: 0.003811628212 | N123: 8.823274861e-08 | O123: -2.074964568e-08 | P123: 4.355795384e-09
E124: 1.392 | F124: 0.1114909532 | G124: -0.02007963179 | H124: 0.003562463273 | J124: 0.1114910388 | K124: -0.02007965167 | L124: 0.003562467421 | N124: 8.55465478e-08 | O124: -1.988281956e-08 | P124: 4.148835916e-09
E125: 1.404 | F125: 0.1044331651 | G125: -0.0187845367 | H125: 0.00332936295 | J125: 0.1044332479 | K125: -0.01878455574 | L125: 0.0033293669 | N125: 8.28304549e-08 | O125: -1.903957344e-08 | P125: 3.950080399e-09
E126: 1.416 | F126: 0.09781149166 | G126: -0.01757149157 | H126: 0.003111306235 | J126: 0.09781157176 | K126: -0.0175715098 | L126: 0.003111309994 | N126: 8.009962392e-08 | O126: -1.822052727e-08 | P126: 3.759346037e-09
E127: 1.428 | F127: 0.09159988477 | G127: -0.01643542083 | H127: 0.002907339295 | J127: 0.09159996214 | K127: -0.01643543826 | L127: 0.002907342871 | N127: 7.736741417e-08 | O127: -1.742612571e-08 | P127: 3.576439448e-09
E128: 1.44 | F128: 0.08577377429 | G128: -0.01537155254 | H128: 0.002716567363 | J128: 0.08577384894 | K128: -0.0153715692 | L128: 0.002716570764 | N128: 7.464555196e-08 | O128: -1.66566572e-08 | P128: 3.401158695e-09
E129: 1.452 | F129: 0.08030999116 | G129: -0.01437540112 | H129: 0.002538151202 | J129: 0.08031006311 | K129: -0.01437541703 | L129: 0.002538154436 | N129: 7.194428103e-08 | O129: -1.591227185e-08 | P129: 3.233295152e-09
E130: 1.464 | F130: 0.07518669383 | G130: -0.01344275098 | H130: 0.002371303765 | J130: 0.07518676311 | K130: -0.01344276617 | L130: 0.002371306838 | N130: 6.927249981e-08 | O130: -1.519299742e-08 | P130: 3.072635139e-09
E131: 1.476 | F131: 0.07038329797 | G131: -0.01256964102 | H131: 0.00221528705 | J131: 0.07038336461 | K131: -0.01256965552 | L131: 0.002215289969 | N131: 6.663788835e-08 | O131: -1.449875405e-08 | P131: 2.918961393e-09
E132: 1.488 | F132: 0.06588040937 | G132: -0.01175234995 | H132: 0.002069409135 | J132: 0.06588047342 | K132: -0.01175236378 | L132: 0.002069411907 | N132: 6.404702478e-08 | O132: -1.382936756e-08 | P132: 2.77205439e-09
E133: 1.5 | F133: 0.06165975995 | G133: -0.01098738238 | H133: 0.001933021386 | J133: 0.06165982146 | K133: -0.01098739556 | L133: 0.001933024017 | N133: 6.150549224e-08 | O133: -1.318458168e-08 | P133: 2.631693503e-09
E134: 1.512 | F134: 0.05770414672 | G134: -0.0102714557 | H134: 0.001805515821 | J134: 0.05770420574 | K134: -0.01027146826 | L134: 0.001805518319 | N134: 5.901797735e-08 | O134: -1.256406901e-08 | P134: 2.497658041e-09
E135: 1.524 | F135: 0.0539973737 | G135: -0.009601487624 | H135: 0.00168632264 | J135: 0.05399743028 | K135: -0.009601499592 | L135: 0.001686325009 | N135: 5.658835995e-08 | O135: -1.196744105e-08 | P135: 2.369728149e-09
E136: 1.536 | F136: =-$C$25*(2*$C$30-$C$25*($C$29+$C$30*E136))*EXP(-$C$25*E136) -> 0.05052419658 | G136: =($C$30-$C$25*($C$29+$C$30*E136))*EXP(-$C$25*E136) -> -0.008974584466 | H136: =($C$29+$C$30*E136)*EXP(-$C$25*E136) -> 0.001574907882 | J136: 0.05052425079 | K136: -0.00897459586 | L136: 0.00157491013 | N136: 5.421979601e-08 | O136: -1.139425726e-08 | P136: 2.247685617e-09
E137: =E136+$C$8 -> 1.548 | F137: 0.04727027015 | G137: -0.008388030017 | H137: 0.00147077124 | J137: 0.04727032207 | K137: -0.008388040861 | L137: 0.001470773371 | N137: 5.191479247e-08 | O137: -1.084403312e-08 | P137: 2.131314556e-09
E138: 1.56 | F138: 0.04422209832 | G138: -0.007839275071 | H138: 0.001373443985 | J138: 0.044222148 | K138: -0.007839285387 | L138: 0.001373446005 | N138: 4.967527711e-08 | O138: -1.031624765e-08 | P138: 2.02040202e-09
E139: 1.572 | F139: 0.04136698659 | G139: -0.007325927518 | H139: 0.001282487028 | J139: 0.04136703409 | K139: -0.007325937328 | L139: 0.001282488943 | N139: 4.750266099e-08 | O139: -9.810349909e-09 | P139: 1.914738511e-09
E140: 1.584 | F140: 0.03869299699 | G140: -0.006845742999 | H140: 0.001197489091 | J140: 0.03869304238 | K140: -0.006845752325 | L140: 0.001197490905 | N140: 4.539789623e-08 | O140: -9.325764997e-09 | P140: 1.814118425e-09
E141: 1.596 | F141: 0.0361889053 | G141: -0.006396616088 | H141: 0.001118064983 | J141: 0.03618894866 | K141: -0.00639662495 | L141: 0.001118066702 | N141: 4.336152851e-08 | O141: -8.861899365e-09 | P141: 1.718340426e-09
E142: 1.608 | F142: 0.0338441605 | G142: -0.005976571969 | H142: 0.00104385399 | J142: 0.03384420189 | K142: -0.005976580387 | L142: 0.001043855617 | N142: =J142-F142 -> 4.139374466e-08 | O142: -8.41814557e-09 | P142: 1.62720775e-09
E143: 1.62 | F143: 0.03164884631 | G143: -0.005583758593 | H143: 0.0009745183483 | J143: 0.0316488858 | K143: -0.005583766587 | L143: 0.0009745198888 | N143: 3.949441625e-08 | O143: -7.993886512e-09 | P143: 1.540528467e-09
E144: 1.632 | F144: 0.02959364476 | G144: -0.005216439282 | H144: 0.0009097418217 | J144: 0.02959368243 | K144: -0.005216446871 | L144: 0.0009097432798 | N144: 3.766313895e-08 | O144: -7.588499207e-09 | P144: 1.458115678e-09
E145: 1.644 | F145: 0.02766980174 | G145: -0.004872985756 | H145: 0.000849228356 | J145: 0.02766983764 | K145: -0.004872992957 | L145: 0.0008492297358 | N145: 3.589926833e-08 | O145: -7.201358107e-09 | P145: 1.379787678e-09
E146: 1.656 | F146: 0.02586909429 | G146: -0.004551871565 | H146: 0.000792700819 | J146: 0.02586912849 | K146: -0.004551878397 | L146: 0.0007927021244 | N146: 3.420195215e-08 | O146: -6.831838015e-09 | P146: 1.305368069e-09
E147: 1.668 | F147: 0.02418379978 | G147: -0.004251665904 | H147: 0.0007398998163 | J147: 0.02418383235 | K147: -0.004251672383 | L147: 0.0007399010509 | N147: 3.257015986e-08 | O147: -6.479316706e-09 | P147: 1.23468585e-09
E148: 1.68 | F148: 0.02260666666 | G148: -0.003971027784 | H148: 0.0006905825784 | J148: 0.02260669766 | K148: -0.003971033927 | L148: 0.0006905837459 | N148: 3.100270896e-08 | O148: -6.14317714e-09 | P148: 1.167575459e-09
E149: 1.692 | F149: 0.02113088689 | G149: -0.003708700546 | H149: 0.0006445219165 | J149: 0.02113091638 | K149: -0.003708706369 | L149: 0.0006445230203 | N149: 2.949828884e-08 | O149: -5.82280943e-09 | P149: 1.103876797e-09
E150: 1.704 | F150: 0.01975006979 | G150: -0.0034635067 | H150: 0.0006015052416 | J150: 0.01975009785 | K150: -0.003463512218 | L150: 0.000601506285 | N150: 2.805548222e-08 | O150: -5.517612519e-09 | P150: 1.043435225e-09
E151: 1.716 | F151: 0.01845821747 | G151: -0.003234343062 | H151: 0.0005613336441 | J151: 0.01845824414 | K151: -0.003234348289 | L151: 0.0005613346302 | N151: 2.667278446e-08 | O151: -5.226995624e-09 | P151: 9.861015373e-10
E152: 1.728 | F152: 0.01724970149 | G152: -0.003020176182 | H152: 0.0005238210298 | J152: 0.01724972684 | K152: -0.003020181132 | L152: 0.0005238219615 | N152: 2.534862079e-08 | O152: -4.950379457e-09 | P152: 9.317319168e-10
E153: 1.74 | F153: 0.01611924092 | G153: -0.002820038048 | H153: 0.000488793309 | J153: 0.016119265 | K153: -0.002820042735 | L153: 0.0004887941891 | N153: 2.408136176e-08 | O153: -4.687197252e-09 | P153: 8.801878718e-10
E154: 1.752 | F154: 0.01506188162 | G154: -0.002633022036 | H154: 0.0004560876358 | J154: 0.01506190449 | K154: -0.002633026473 | L154: 0.0004560884672 | N154: 2.286933704e-08 | O154: -4.436895614e-09 | P154: 8.313361622e-10
E155: 1.764 | F155: 0.01407297665 | G155: -0.00245827911 | H155: 0.000425551695 | J155: 0.01407299836 | K155: -0.002458283309 | L155: 0.00042555248 | N155: 2.17108475e-08 | O155: -4.198935184e-09 | P155: 7.850487054e-10
E156: 1.776 | F156: 0.01314816787 | G156: -0.002295014248 | H156: 0.0003970430317 | J156: 0.01314818848 | K156: -0.00229501822 | L156: 0.0003970437729 | N156: 2.060417625e-08 | O156: -3.97279121e-09 | P156: 7.412024828e-10
E157: 1.788 | F157: 0.01228336851 | G157: -0.002142483078 | H157: 0.0003704284246 | J157: 0.01228338806 | K157: -0.002142486835 | L157: 0.0003704291243 | N157: 1.954759813e-08 | O157: -3.757953948e-09 | P157: 6.996794284e-10
E158: 1.8 | F158: 0.0114747468 | G158: -0.001999988725 | H158: 0.0003455832965 | J158: 0.01147476534 | K158: -0.001999992279 | L158: 0.0003455839569 | N158: 1.853938809e-08 | O158: -3.55392896e-09 | P158: 6.603663132e-10
E159: 1.812 | F159: 0.01071871052 | G159: -0.001866878843 | H159: 0.0003223911629 | J159: 0.0107187281 | K159: -0.001866882203 | L159: 0.000322391786 | N159: 1.757782866e-08 | O159: -3.360237317e-09 | P159: 6.231546234e-10
E160: 1.824 | F160: 0.01001189246 | G160: -0.001742542827 | H160: 0.000300743114 | J160: 0.01001190912 | K160: -0.001742546004 | L160: 0.000300743702 | N160: 1.66612163e-08 | O160: -3.176415706e-09 | P160: 5.879404352e-10
E161: 1.836 | F161: 0.009351136714 | G161: -0.001626409201 | H161: 0.0002805373303 | J161: 0.009351152502 | K161: -0.001626412203 | L161: 0.000280537885 | N161: 1.578786704e-08 | O161: -3.002016462e-09 | P161: 5.546242832e-10
E162: 1.848 | F162: 0.008733485776 | G162: -0.001517943152 | H162: 0.0002616786275 | J162: 0.008733500732 | K162: -0.001517945989 | L162: 0.0002616791506 | N162: 1.495612127e-08 | O162: -2.836607524e-09 | P162: 5.231110287e-10
E163: 1.86 | F163: 0.0081561684 | G163: -0.001416644231 | H163: 0.0002440780305 | J163: 0.008156182564 | K163: -0.001416646911 | L163: 0.0002440785238 | N163: 1.416434782e-08 | O163: -2.679772341e-09 | P163: 4.933097255e-10
E164: 1.872 | F164: 0.007616588172 | G164: -0.001322044184 | H164: 0.0002276523745 | J164: 0.007616601583 | K164: -0.001322046715 | L164: 0.0002276528396 | N164: 1.341094739e-08 | O164: -2.531109702e-09 | P164: 4.651334819e-10
E165: 1.884 | F165: 0.007112312756 | G165: -0.001233704916 | H165: 0.0002123239307 | J165: 0.007112325451 | K165: -0.001233707307 | L165: 0.0002123243692 | N165: 1.269435555e-08 | O165: -2.390233555e-09 | P165: 4.384993286e-10
E166: 1.896 | F166: 0.006641063781 | G166: -0.001151216591 | H166: 0.0001980200562 | J166: 0.006641075794 | K166: -0.001151218848 | L166: 0.0001980204696 | N166: 1.201304508e-08 | O166: -2.256772758e-09 | P166: 4.133280805e-10
E167: 1.908 | F167: 0.006200707326 | G167: -0.001074195834 | H167: 0.0001846728656 | J167: 0.006200718692 | K167: -0.001074197964 | L167: 0.0001846732551 | N167: 1.136552786e-08 | O167: -2.130370802e-09 | P167: 3.895442029e-10
E168: 1.92 | F168: 0.005789244977 | G168: -0.001002284056 | H168: 0.0001722189234 | J168: 0.005789255728 | K168: -0.001002286066 | L168: 0.0001722192905 | N168: 1.075035644e-08 | O168: -2.010685516e-09 | P168: 3.670756779e-10
E169: 1.932 | F169: 0.005404805418 | G169: -0.0009351458788 | H169: 0.0001605989567 | J169: 0.005404815584 | K169: -0.0009351477762 | L169: 0.0001605993026 | N169: 1.016612519e-08 | O169: -1.89738874e-09 | P169: 3.458538725e-10
E170: 1.944 | F170: 0.005045636527 | G170: -0.0008724676578 | H170: 0.0001497575852 | J170: 0.005045646138 | K170: -0.000872469448 | L170: 0.000149757911 | N170: 9.611471142e-09 | O170: -1.790165977e-09 | P170: 3.258134092e-10
E171: 1.956 | F171: 0.004710097948 | G171: -0.0008139560949 | H171: 0.0001396430688 | J171: 0.004710107033 | K171: -0.0008139577836 | L171: 0.0001396433757 | N171: 9.085074509e-09 | O171: -1.68871604e-09 | P171: 3.068920381e-10
E172: 1.968 | F172: 0.004396654116 | G172: -0.0007593369412 | H172: 0.0001302070717 | J172: 0.004396662702 | K172: -0.0007593385339 | L172: 0.0001302073607 | N172: 8.585659001e-09 | O172: -1.592750674e-09 | P172: 2.890305125e-10
E173: 1.98 | F173: 0.0041038677 | G173: -0.0007083537787 | H173: 0.0001214044405 | J173: 0.004103875812 | K173: -0.0007083552807 | L173: 0.0001214047127 | N173: 8.111991869e-09 | O173: -1.501994176e-09 | P173: 2.721724662e-10
E174: 1.992 | F174: 0.003830393443 | G174: -0.0006607668792 | H174: 0.000113192998 | J174: 0.003830401106 | K174: -0.0006607682954 | L174: 0.0001131932543 | N174: 7.662883799e-09 | O174: -1.416183012e-09 | P174: 2.562642952e-10
E175: 2.004 | F175: 0.003574972388 | G175: -0.0006163521341 | H175: 0.0001055333487 | J175: 0.003574979625 | K175: -0.0006163534691 | L175: 0.00010553359 | N175: 7.237188604e-09 | O175: -1.335065422e-09 | P175: 2.412550408e-10
E176: 2.016 | F176: 0.003336426442 | G176: -0.0005749000516 | H176: 9.838869795e-05 | J176: 0.003336433276 | K176: -0.00057490131 | L176: 9.838892504e-05 | N176: 6.833802777e-09 | O176: -1.258401033e-09 | P176: 2.270962779e-10
E177: 2.028 | F177: 0.003113653285 | G177: -0.0005362148177 | H177: 9.17246818e-05 | J177: 0.003113659736 | K177: -0.0005362160037 | L177: 9.172489554e-05 | N177: 6.451664902e-09 | O177: -1.185960459e-09 | P177: 2.13742004e-10
E178: 2.04 | F178: 0.002905621586 | G178: -0.0005001134158 | H178: 8.550920859e-05 | J178: 0.002905627675 | K178: -0.0005001145333 | L178: 8.550940974e-05 | N178: 6.089754977e-09 | O178: -1.117524918e-09 | P178: 2.011485339e-10
E179: 2.052 | F179: 0.002711366513 | G179: -0.0004664248015 | H179: 7.971231016e-05 | J179: 0.00271137226 | K179: -0.0004664258544 | L179: 7.971249944e-05 | N179: 5.747093633e-09 | O179: -1.052885841e-09 | P179: 1.892743964e-10
E180: 2.064 | F180: 0.002529985525 | G180: -0.0004349891309 | H180: 7.430600297e-05 | J180: 0.002529990948 | K180: -0.0004349901227 | L180: 7.430618105e-05 | N180: 5.422741263e-09 | O180: -9.918444877e-10 | P180: 1.78080235e-10
E181: 2.076 | F181: 0.002360634418 | G181: -0.0004056570366 | H181: 6.926415802e-05 | J181: 0.002360639534 | K181: -0.0004056579709 | L181: 6.926432555e-05 | N181: 5.115797124e-09 | O181: -9.342115766e-10 | P181: 1.675287117e-10
E182: 2.088 | F182: 0.002202523617 | G182: -0.0003782889505 | H182: 6.456237928e-05 | J182: 0.002202528443 | K182: -0.0003782898303 | L182: 6.456253687e-05 | N182: 4.825398339e-09 | O182: -8.798069082e-10 | P182: 1.575844146e-10
E183: 2.1 | F183: 0.002054914706 | G183: -0.0003527544687 | H183: 6.017788994e-05 | J183: 0.002054919256 | K183: -0.0003527552971 | L183: 6.017803815e-05 | N183: 4.550718888e-09 | O183: -8.284590042e-10 | P183: 1.482137679e-10
E184: 2.112 | F184: 0.00191711716 | G184: -0.000328931758 | H184: 5.608942602e-05 | J184: 0.001917121451 | K184: -0.000328932538 | L184: 5.60895654e-05 | N184: 4.290968557e-09 | O184: -7.800047524e-10 | P184: 1.393849464e-10
E185: 2.124 | F185: 0.001788485296 | G185: -0.0003067069997 | H185: 5.227713693e-05 | J185: 0.001788489341 | K185: -0.000306707734 | L185: 5.2277268e-05 | N185: 4.045391867e-09 | O185: -7.342890597e-10 | P185: 1.310677923e-10
E186: 2.136 | F186: 0.001668415402 | G186: -0.0002859738683 | H186: 4.872249245e-05 | J186: 0.001668419216 | K186: -0.0002859745595 | L186: 4.872261569e-05 | N186: 3.813266981e-09 | O186: -6.911645146e-10 | P186: 1.232337359e-10
E187: 2.148 | F187: 0.001556343054 | G187: -0.0002666330448 | H187: 4.540819574e-05 | J187: 0.001556346648 | K187: -0.0002666336952 | L187: 4.540831159e-05 | N187: 3.593904606e-09 | O187: -6.50491058e-10 | P187: 1.158557189e-10
E188: 2.16 | F188: 0.001451740595 | G188: -0.00024859176 | H188: 4.231810204e-05 | J188: 0.001451743982 | K188: -0.0002485923722 | L188: 4.231821095e-05 | N188: 3.386646897e-09 | O188: -6.121356654e-10 | P188: 1.089081215e-10
E189: 2.172 | F189: 0.001354114779 | G189: -0.0002317633682 | H189: 3.943714269e-05 | J189: 0.00135411797 | K189: -0.0002317639442 | L189: 3.943724505e-05 | N189: 3.190866345e-09 | O189: -5.759720354e-10 | P189: 1.023666914e-10
E190: 2.184 | F190: 0.001263004557 | G190: -0.000216066947 | H190: 3.675125403e-05 | J190: 0.001263007563 | K190: -0.0002160674888 | L190: 3.675135024e-05 | N190: 3.005964696e-09 | O190: -5.418802926e-10 | P190: 9.620847698e-11
E191: 2.196 | F191: 0.001177979005 | G191: -0.0002014269239 | H191: 3.424731103e-05 | J191: 0.001177981836 | K191: -0.0002014274336 | L191: 3.424740145e-05 | N191: 2.831371861e-09 | O191: -5.097466963e-10 | P191: 9.041176248e-11
E192: 2.208 | F192: 0.001098635387 | G192: -0.0001877727266 | H192: 3.191306518e-05 | J192: 0.001098638054 | K192: -0.0001877732061 | L192: 3.191315013e-05 | N192: 2.666544848e-09 | O192: -4.794633611e-10 | P192: 8.495600636e-11
E193: 2.22 | F193: 0.001024597333 | G193: -0.0001750384556 | H193: 2.973708647e-05 | J193: 0.001024599844 | K193: -0.0001750389066 | L193: 2.973716629e-05 | N193: 2.51096671e-09 | O193: -4.509279868e-10 | P193: 7.982178215e-11
E194: 2.232 | F194: 0.0009555131365 | G194: -0.0001631625783 | H194: 2.770870921e-05 | J194: 0.0009555155006 | K194: -0.0001631630023 | L194: 2.77087842e-05 | N194: 2.364145508e-09 | O194: -4.240435982e-10 | P194: 7.499072204e-11
E195: 2.244 | F195: 0.0008910541618 | G195: -0.0001520876424 | H195: 2.581798134e-05 | J195: 0.0008910563874 | K195: -0.0001520880411 | L195: 2.581805178e-05 | N195: 2.225613306e-09 | O195: -3.987182947e-10 | P195: 7.044546295e-11
E196: 2.256 | F196: 0.0008309133486 | G196: -0.0001417600084 | H196: 2.405561706e-05 | J196: 0.0008309154435 | K196: -0.0001417603833 | L196: 2.405568323e-05 | N196: 2.094925171e-09 | O196: -3.748650089e-10 | P196: 6.616959505e-11
E197: 2.268 | F197: 0.0007748038144 | G197: -0.0001321295994 | H197: 2.241295268e-05 | J197: 0.0007748057861 | K197: -0.0001321299518 | L197: 2.241301482e-05 | N197: 1.971658219e-09 | O197: -3.524012757e-10 | P197: 6.214761269e-11
E198: 2.28 | F198: 0.0007224575453 | G198: -0.0001231496662 | H198: 2.088190519e-05 | J198: 0.0007224594007 | K198: -0.0001231499974 | L198: 2.088196355e-05 | N198: 1.855410666e-09 | O198: -3.312490087e-10 | P198: 5.836486736e-11
E199: 2.292 | F199: 0.0006736241699 | G199: -0.0001147765689 | H199: 1.945493373e-05 | J199: 0.0006736259157 | K199: -0.0001147768803 | L199: 1.945498854e-05 | N199: 1.745800924e-09 | O199: -3.113342881e-10 | P199: 5.480752331e-11
E200: 2.304 | F200: =-$C$25*(2*$C$30-$C$25*($C$29+$C$30*E200))*EXP(-$C$25*E200) -> 0.0006280698127 | G200: =($C$30-$C$25*($C$29+$C$30*E200))*EXP(-$C$25*E200) -> -0.0001069695721 | H200: =($C$29+$C$30*E200)*EXP(-$C$25*E200) -> 1.812500349e-05 | J200: 0.0006280714551 | K200: -0.0001069698647 | L200: 1.812505496e-05 | N200: 1.642466706e-09 | O200: -2.925871552e-10 | P200: 5.146251479e-11
... 308 more rows

Sheet 過減衰
A1: 振動の運動方程式
A2: mx''+cx'+kx=-sign(x')μ'mg+fsinΩt | D2: 運動方程式 | F2: 過減衰 | J2: マクロで計算➡ | L2: =exe("振動シミュレーション","ForcedOscillation",C8:C19,J8:L8) -> 振動シミュレーション
A3: x''=-(c/m)x'-(k/m)x-sign(x')(μ'g)+(f/m)sinΩt | D3: 微分方程式 | J3: マクロは標準モジュール-Module6 の中。 実行させるには =exe(･･･ と先頭に＝を付加する。
A4: ダンパ ＋バネ ＋ 動摩擦 ＋ 外力 | F4: 解析解 | K4: 数値積分 | O4: 理論値との差
E5: 時間 | F5: 加速度 | G5: 速度 | H5: 変位 | J5: 加速度 | K5: 速度 | L5: 変位 | N5: 加速度 | O5: 速度 | P5: 変位
E6: t | F6: 理論値x'' | G6: 理論値x' | H6: 理論値x | J6: x'' | K6: x' | L6: x | N6: x'' | O6: x' | P6: x
B7: 赤太字は単振動からの変更データ | E7: [s] | F7: [m/s^2] | G7: [m/s] | H7: [m] | J7: [m/s^2] | K7: [m/s] | L7: [m] | N7: [m/s^2] | O7: [m/s] | P7: [m]
A8: 時間間隔 | B8: Δt | C8: =C9/500 -> 0.012 | D8: [s] | E8: 0 | F8: =EXP(-$C$28*E8)*(($C$28-$C$31)^2*$C$29*EXP($C$31*E8)+($C$28+$C$31)^2*$C$30*EXP(-$C$31*E8)) -> -419.4733192 | G8: =-EXP(-$C$28*E8)*(($C$28-$C$31)*$C$29*EXP($C$31*E8)+($C$28+$C$31)*$C$30*EXP(-$C$31*E8)) -> 10 | H8: =EXP(-$C$28*E8)*($C$29*EXP($C$31*E8)+$C$30*EXP(-$C$31*E8)) -> 1 | J8: -419.4733192 | K8: 10 | L8: 1 | N8: =J8-F8 -> 0 | O8: =K8-G8 -> 0 | P8: 0
A9: 終了時間 | B9: TL | C9: 6 | D9: [s] | E9: =E8+$C$8 -> 0.012 | F9: -268.991527 | G9: 5.935568483 | H9: 1.093813492 | J9: -269.0468282 | K9: 5.937068697 | L9: 1.093772794 | N9: =J9-F9 -> -0.05530120451 | O9: 0.001500214032 | P9: -4.06978826e-05
A10: 重力加速度 | B10: g | C10: 9.8 | D10: [m/s^2] | E10: 0.024 | F10: -172.3097946 | G10: 3.330396984 | H10: 1.148252871 | J10: -172.3808669 | K10: 3.332325037 | L10: 1.148200566 | N10: -0.07107229246 | O10: 0.001928052946 | P10: -5.23043157e-05
A11: 質量 | B11: m | C11: 10 | D11: [kg] | E11: 0.036 | F11: -110.1959616 | G11: 1.662757415 | H11: 1.177468851 | J11: -110.2644674 | K11: 1.664615844 | L11: 1.177418436 | N11: -0.06850579682 | O11: 0.00185842891 | P11: -5.041554738e-05
A12: 粘性減衰係数 | B12: c>2√(mk) | C12: =3*(2*SQRT(C11*C13)) -> 379.4733192 | D12: [Ns/m] | E12: 0.048 | F12: -70.29284772 | G12: 0.5974264771 | H12: 1.190552672 | J12: -70.35154281 | K12: 0.5990187608 | L12: 1.190509477 | N12: -0.05869509357 | O12: 0.001592283624 | P12: -4.319554015e-05
A13: バネ定数 | B13: k | C13: 400 | D13: [N/m] | E13: 0.06 | F13: -44.66063286 | G13: -0.08098478577 | H13: 1.193344735 | J13: -44.70777915 | K13: -0.07970579862 | L13: 1.193310039 | N13: =J13-F13 -> -0.04714629338 | O13: =K13-G13 -> 0.00127898715 | P13: =L13-H13 -> -3.469641308e-05
A14: 静止摩擦係数 | B14: μ | C14: 0 | D14: [ND] | E14: 0.072 | F14: -28.19776968 | G14: -0.5108685499 | H14: 1.189596703 | J14: -28.23412471 | K14: -0.5098823087 | L14: 1.189569948 | N14: =J14-F14 -> -0.03635503306 | O14: 0.0009862412588 | P14: -2.675478341e-05
A15: 動摩擦係数 | B15: μ' | C15: 0 | D15: [ND] | E15: 0.084 | F15: -17.62637764 | G15: -0.7811444986 | H15: 1.18171818 | J15: -17.6536327 | K15: -0.780405122 | L15: 1.181698122 | N15: -0.02725505599 | O15: 0.00073937659 | P15: -2.005782209e-05
A16: 強制力 | B16: f | C16: 0 | D16: [N] | E16: 0.096 | F16: -10.84033127 | G16: -0.9489449181 | H16: 1.171256476 | J16: -10.86034715 | K16: -0.9484019262 | L16: 1.171241746 | N16: -0.02001588384 | O16: 0.0005429919368 | P16: -1.473028542e-05
A17: 強制力角振動数 | B17: Ω | C17: 0 | D17: [rad/s] | E17: 0.108 | F17: -6.486389238 | G17: -1.050977849 | H17: 1.159204863 | J17: -6.500859055 | K17: -1.050585311 | L17: 1.159194214 | N17: -0.01446981712 | O17: 0.0003925379385 | P17: -1.064875811e-05
A18: 初期位置 | B18: x0 | C18: 1 | D18: [m] | E18: 0.12 | F18: -3.69505861 | G18: -1.110828215 | H18: 1.14620064 | J18: -3.705389941 | K18: -1.110547946 | L18: 1.146193037 | N18: -0.01033133114 | O18: 0.000280268866 | P18: -7.6031136e-06
A19: 初期速度 | B19: x'0 | C19: 10 | D19: [m/s] | E19: 0.132 | F19: -1.907667782 | G19: -1.143648998 | H19: 1.132652398 | J19: -1.914970503 | K19: -1.14345089 | L19: 1.132647024 | N19: -0.007302721142 | O19: 0.0001981085686 | P19: -5.374261634e-06
E20: 0.144 | F20: -0.7652562296 | G20: -1.159175443 | H20: 1.118821788 | J20: -0.7703755113 | K20: -1.159036566 | L20: 1.11881802 | N20: -0.005119281713 | O20: 0.0001388761037 | P20: -3.767397222e-06
B21: c/m | C21: =C12/C11 -> 37.94733192 | D21: [1/s] | E21: 0.156 | F21: -0.03718316642 | G21: -1.163661761 | H21: 1.104876057 | J21: -0.0407469136 | K21: -1.163565084 | L21: 1.104873434 | N21: -0.003563747188 | O21: 9.66774767e-05 | P21: -2.622627758e-06
B22: k/m | C22: =C13/C11 -> 40 | D22: [1/s^2] | E22: 0.168 | F22: 0.424743319 | G22: -1.161125524 | H22: 1.090921808 | J22: 0.4222771245 | K22: -1.161058621 | L22: 1.090919993 | N22: -0.00246619449 | O22: 6.690300538e-05 | P22: -1.814901534e-06
B23: μ'g | C23: =C15*C10 -> 0 | D23: [s^2/m] | E23: 0.18 | F23: 0.7157395263 | G23: -1.154147208 | H23: 1.077026692 | J23: 0.7140415709 | K23: -1.154101146 | L23: 1.077025442 | N23: -0.001697955478 | O23: 4.606217341e-05 | P23: -1.249527636e-06
B24: f/m | C24: =C16/C11 -> 0 | D24: [N/m] | E24: 0.192 | F24: 0.8969835103 | G24: -1.144383935 | H24: 1.063233338 | J24: 0.895819677 | K24: -1.144352362 | L24: 1.063232481 | N24: -0.001163833282 | O24: 3.157247506e-05 | P24: -8.564477088e-07
A25: 固有角振動数 | B25: ω＝√(k/m) | C25: =SQRT(C13/C11) -> 6.32455532 | D25: ［rad/s］ | E25: 0.204 | F25: 1.007782848 | G25: -1.132899552 | H25: 1.049568312 | J25: 1.006988236 | K25: -1.132877996 | L25: 1.049567728 | N25: -0.0007946126214 | O25: 2.155623445e-05 | P25: -5.847240585e-07
A26: 減衰固有角振動数 | B26: ωd＝ω√(1-ζ^2) | C26: =C25*SQRT(1-C27^2) ->  | D26: ［rad/s］ | E26: 0.216 | F26: 1.073392759 | G26: -1.120376728 | H26: 1.036047871 | J26: 1.072852111 | K26: -1.120362061 | L26: 1.036047473 | N26: -0.0005406482295 | O26: 1.466667216e-05 | P26: -3.978211782e-07
A27: 減衰比 | B27: ζ＝c/{2√(mk)} | C27: =C12/(2*SQRT(C11*C13)) -> 3 | D27: [ND] | E27: 0.228 | F27: 1.110039455 | G27: -1.107253223 | H27: 1.022681653 | J27: 1.109672738 | K27: -1.107243275 | L27: 1.022681383 | N27: -0.0003667174824 | O27: 9.948266946e-06 | P27: -2.698176371e-07
A28: 減衰率 | B28: γ＝ζω | C28: =C27*C25 -> 18.97366596 | D28: [1/s] | E28: 0.24 | F28: 1.128147781 | G28: -1.093809449 | H28: 1.009475061 | J28: 1.127899729 | K28: -1.09380272 | L28: 1.009474879 | N28: -0.0002480525684 | O28: 6.729116288e-06 | P28: -1.824860247e-07
A29: 振幅 | B29: A1 | C29: =(1/(2*$C$31))*(($C$28+$C$31)*$C$18+$C$19) -> 1.309838583 | D29: [m] | E29: 0.252 | F29: 1.134415059 | G29: -1.080224729 | H29: 0.9964307816 | J29: 1.134247692 | K29: -1.080220188 | L29: 0.9964306585 | N29: -0.0001673665728 | O29: 4.540259841e-06 | P29: -1.231043602e-07
A30: 〝 | B30: A2 | C30: =(1/(2*$C$31))*((-$C$28+$C$31)*$C$18-$C$19) -> -0.3098385831 | D30: [rad] | E30: 0.264 | F30: 1.133143587 | G30: -1.066613442 | H30: 0.9835497684 | J30: 1.133030918 | K30: -1.066610386 | L30: 0.9835496856 | N30: -0.0001126698637 | O30: 3.056442221e-06 | P30: -8.284909403e-08
A31: 過減衰固有角振動数 | B31: ωd'＝ω√(ζ^2-1) | C31: =C25*SQRT(C27^2-1) -> 17.88854382 | D31: ［rad/s］ | E31: 0.276 | F31: 1.127096812 | G31: -1.053048255 | H31: 0.9708318711 | J31: 1.12702112 | K31: -1.053046202 | L31: 0.9708318155 | N31: -7.569174673e-05 | O31: 2.053295588e-06 | P31: -5.563356253e-08
E32: 0.288 | F32: 1.118049433 | G32: -1.039575038 | H32: 0.9582762402 | J32: 1.117998679 | K32: -1.039573662 | L32: 0.9582762029 | N32: -5.07536697e-05 | O32: 1.376771877e-06 | P32: -3.727874298e-08
E33: 0.3 | F33: 1.107140868 | G33: -1.02622246 | H33: 0.9458815862 | J33: 1.107106895 | K33: -1.026221539 | L33: 0.9458815613 | N33: -3.397281988e-05 | O33: 9.215379311e-07 | P33: -2.492714735e-08
E34: 0.312 | F34: 1.095102361 | G34: -1.013008143 | H34: 0.9336463472 | J34: 1.095079658 | K34: -1.013007527 | L34: 0.9336463305 | N34: -2.270388131e-05 | O34: 6.158314776e-07 | P34: -1.663200477e-08
A35: 過減衰解析解 | E35: 0.324 | F35: 1.082402903 | G35: -0.9999426252 | H35: 0.921568795 | J35: 1.082387752 | K35: -0.9999422143 | L35: 0.9215687839 | N35: -1.51504445e-05 | O35: 4.109194222e-07 | P35: -1.107128067e-08
A36: x''+2γx'+ω^2x=0 | D36: 運動方程式 | E36: 0.336 | F36: 1.069342989 | G36: -0.9870319012 | H36: 0.9096471046 | J36: 1.069332893 | K36: -0.9870316274 | L36: 0.9096470972 | N36: -1.009610825e-05 | O36: 2.738031658e-07 | P36: -7.349784226e-09
A37: x=e^-(γt){A1e^(ωd't)+A2e^(-ωd't)} | D37: 変位 | E37: 0.348 | F37: 1.056114867 | G37: -0.9742790573 | H37: 0.8978793976 | J37: 1.056108147 | K37: -0.9742788751 | L37: 0.8978793927 | N37: -6.719354633e-06 | O37: 1.821965246e-07 | P37: -4.8629345e-09
A38: x'=-e^(-γt){(γ-ωd')A1e^(ωd't)+(γ+ωd')A2e^(-ωd't)} | D38: 速度 | E38: 0.36 | F38: 1.04284124 | G38: -0.9616853206 | H38: 0.8862637706 | J38: 1.042836773 | K38: -0.9616851995 | L38: 0.8862637674 | N38: -4.466663639e-06 | O38: 1.210835785e-07 | P38: -3.203378007e-09
A39: x''=e^(-γt){(γ-ωd')^2A1e^(ωd't)+(γ+ωd')^2A2e^(-ωd't)} | D39: 加速度 | E39: 0.372 | F39: 1.029600139 | G39: -0.9492507337 | H39: 0.8747983132 | J39: 1.029597173 | K39: -0.9492506533 | L39: 0.8747983111 | N39: -2.965885108e-06 | O39: 8.036861421e-08 | P39: -2.09723483e-09
A40: A1={1/(2ωd')}{(γ+ωd')x0+x'0} | D40: 振幅１ | E40: 0.384 | F40: 1.016440903 | G40: -0.9369745874 | H40: 0.8634811192 | J40: 1.016438935 | K40: -0.9369745341 | L40: 0.8634811178 | N40: -1.967299514e-06 | O40: 5.327722774e-08 | P40: -1.360728752e-09
A41: A2={1/(2ωd')}{(-γ+ωd')x0-x'0} | D41: 振幅２ | E41: 0.396 | F41: 1.003394442 | G41: -0.9248556994 | H41: 0.852310294 | J41: 1.003393138 | K41: -0.9248556641 | L41: 0.8523102932 | N41: -1.303641235e-06 | O41: 3.527182746e-08 | P41: -8.707631283e-10
E42: 0.408 | F42: 0.9904798409 | G42: -0.9128925924 | H42: 0.8412839593 | J42: 0.9904789779 | K42: -0.9128925691 | L42: 0.8412839587 | N42: -8.630584315e-07 | O42: 2.331808768e-08 | P42: -5.450201401e-10
E43: 0.42 | F43: 0.9777085926 | G43: -0.9010836091 | H43: 0.8304002553 | J43: 0.9777080218 | K43: -0.9010835937 | L43: 0.830400255 | N43: -5.708689954e-07 | O43: 1.539002814e-08 | P43: -3.285379746e-10
E44: 0.432 | F44: 0.9650873233 | G44: -0.8894269858 | H44: 0.8196573432 | J44: 0.965086946 | K44: -0.8894269757 | L44: 0.819657343 | N44: -3.772790492e-07 | O44: 1.013683659e-08 | P44: -1.846717224e-10
E45: 0.444 | F45: 0.9526195416 | G45: -0.8779208992 | H45: 0.8090534055 | J45: 0.9526192925 | K45: -0.8779208925 | L45: 0.8090534054 | N45: -2.491323209e-07 | O45: 6.659046647e-09 | P45: -8.901868132e-11
E46: 0.456 | F46: 0.9403067633 | G46: -0.8665634966 | H46: 0.7985866469 | J46: 0.9403065989 | K46: -0.8665634923 | L46: 0.7985866469 | N46: -1.643780639e-07 | O46: 4.35846137e-09 | P46: -2.534839005e-11
E47: 0.468 | F47: 0.9281492325 | G47: -0.8553529158 | H47: 0.7882552943 | J47: 0.9281491241 | K47: -0.8553529129 | L47: 0.7882552943 | N47: -1.0836799e-07 | O47: 2.837703517e-09 | P47: 1.711741859e-11
E48: 0.48 | F48: 0.9161463862 | G48: -0.8442872963 | H48: 0.7780575971 | J48: 0.9161463149 | K48: -0.8442872944 | L48: 0.7780575971 | N48: -7.138170144e-08 | O48: 1.833074692e-09 | P48: 4.553479815e-11
E49: 0.492 | F49: 0.9042971522 | G49: -0.833364788 | H49: 0.7679918267 | J49: 0.9042971052 | K49: -0.8333647868 | L49: 0.7679918268 | N49: -4.697528133e-08 | O49: 1.169761732e-09 | P49: 6.464828672e-11
E50: 0.504 | F50: 0.8926001397 | G50: -0.8225835557 | H50: 0.7580562771 | J50: 0.8926001088 | K50: -0.822583555 | L50: 0.7580562771 | N50: -3.088095724e-08 | O50: 7.319898021e-10 | P50: 7.75970399e-11
E51: 0.516 | F51: 0.8810537629 | G51: -0.8119417821 | H51: 0.7482492636 | J51: 0.8810537426 | K51: -0.8119417816 | L51: 0.7482492637 | N51: -2.027465495e-08 | O51: 4.431432998e-10 | P51: 8.6463392e-11
E52: 0.528 | F52: 0.8696563194 | G52: -0.8014376696 | H52: 0.7385691236 | J52: 0.8696563061 | K52: -0.8014376694 | L52: 0.7385691237 | N52: -1.32892195e-08 | O52: 2.525718523e-10 | P52: 9.261935663e-11
E53: 0.54 | F53: 0.8584060407 | G53: -0.7910694418 | H53: 0.729014216 | J53: 0.858406032 | K53: -0.7910694416 | L53: 0.7290142161 | N53: -8.691114273e-09 | O53: 1.26810118e-10 | P53: 9.697509462e-11
E54: 0.552 | F54: 0.8473011247 | G54: -0.7808353432 | H54: 0.7195829205 | J54: 0.847301119 | K54: -0.7808353432 | L54: 0.7195829206 | N54: -5.666055847e-09 | O54: 4.376476959e-11 | P54: 1.001320138e-10
E55: 0.564 | F55: 0.8363397561 | G55: -0.7707336406 | H55: 0.7102736382 | J55: 0.8363397524 | K55: -0.7707336406 | L55: 0.7102736383 | N55: -3.676853377e-09 | O55: -1.113464876e-11 | P55: 1.024843543e-10
E56: 0.576 | F56: 0.8255201198 | G56: -0.7607626221 | H56: 0.7010847904 | J56: 0.8255201174 | K56: -0.7607626222 | L56: 0.7010847905 | N56: -2.369376695e-09 | O56: -4.749889371e-11 | P56: 1.042954612e-10
E57: 0.588 | F57: 0.8148404093 | G57: -0.750920598 | H57: 0.6920148193 | J57: 0.8148404078 | K57: -0.7509205981 | L57: 0.6920148194 | N57: -1.510321535e-09 | O57: -7.165679161e-11 | P57: 1.057371968e-10
E58: 0.6 | F58: 0.8042988315 | G58: -0.7412058998 | H58: 0.6830621868 | J58: 0.8042988306 | K58: -0.7412058999 | L58: 0.6830621869 | N58: -9.460703332e-10 | O58: -8.777500948e-11 | P58: 1.069221378e-10
E59: 0.612 | F59: 0.7938936108 | G59: -0.7316168806 | H59: 0.6742253749 | J59: 0.7938936102 | K59: -0.7316168807 | L59: 0.6742253751 | N59: -5.755281807e-10 | O59: -9.859835171e-11 | P59: 1.079266676e-10
E60: 0.624 | F60: 0.78362299 | G60: -0.7221519147 | H60: 0.6655028854 | J60: 0.7836229897 | K60: -0.7221519148 | L60: 0.6655028855 | N60: -3.322290221e-10 | O60: -1.059321519e-10 | P60: 1.088015233e-10
E61: 0.636 | F61: 0.7734852326 | G61: -0.7128093974 | H61: 0.6568932392 | J61: 0.7734852324 | K61: -0.7128093975 | L61: 0.6568932393 | N61: -1.724677068e-10 | O61: -1.10960352e-10 | P61: 1.095777913e-10
E62: 0.648 | F62: 0.7634786225 | G62: -0.7035877446 | H62: 0.6483949764 | J62: 0.7634786224 | K62: -0.7035877447 | L62: 0.6483949765 | N62: -6.753819726e-11 | O62: -1.144639938e-10 | P62: 1.10278342e-10
E63: 0.66 | F63: 0.7536014651 | G63: -0.6944853927 | H63: 0.6400066561 | J63: 0.7536014651 | K63: -0.6944853928 | L63: 0.6400066562 | N63: 1.41187062e-12 | O63: -1.169566666e-10 | P63: 1.109192738e-10
E64: 0.672 | F64: 0.7438520868 | G64: -0.6855007983 | H64: 0.631726856 | J64: 0.7438520868 | K64: -0.6855007984 | L64: 0.6317268561 | N64: 4.67725858e-11 | O64: -1.187722143e-10 | P64: 1.115075809e-10
E65: 0.684 | F65: 0.7342288353 | G65: -0.6766324381 | H65: 0.623554172 | J65: 0.7342288354 | K65: -0.6766324382 | L65: 0.6235541721 | N65: 7.665457158e-11 | O65: -1.201334587e-10 | P65: 1.120519233e-10
E66: 0.696 | F66: 0.7247300794 | G66: -0.6678788083 | H66: 0.6154872185 | J66: 0.7247300795 | K66: -0.6678788084 | L66: 0.6154872187 | N66: 9.638767562e-11 | O66: -1.211863943e-10 | P66: 1.125575189e-10
E67: 0.708 | F67: 0.7153542089 | G67: -0.6592384246 | H67: 0.6075246277 | J67: 0.715354209 | K67: -0.6592384247 | L67: 0.6075246278 | N67: 1.094584423e-10 | O67: -1.220246126e-10 | P67: 1.130258109e-10
E68: 0.72 | F68: 0.7060996341 | G68: -0.6507098221 | H68: 0.5996650492 | J68: 0.7060996342 | K68: -0.6507098222 | L68: 0.5996650493 | N68: 1.18158372e-10 | O68: -1.227116186e-10 | P68: 1.134602412e-10
E69: 0.732 | F69: 0.696964786 | G69: -0.6422915545 | H69: 0.5919071506 | J69: 0.6969647861 | K69: -0.6422915546 | L69: 0.5919071507 | N69: 1.239907066e-10 | O69: -1.232904889e-10 | P69: 1.138635852e-10
E70: 0.744 | F70: 0.6879481158 | G70: -0.6339821945 | H70: 0.5842496163 | J70: 0.6879481159 | K70: -0.6339821946 | L70: 0.5842496164 | N70: 1.279263362e-10 | O70: -1.237857594e-10 | P70: 1.142350659e-10
E71: 0.756 | F71: 0.6790480946 | G71: -0.6257803331 | H71: 0.5766911479 | J71: 0.6790480947 | K71: -0.6257803333 | L71: 0.576691148 | N71: 1.306194042e-10 | O71: -1.242186354e-10 | P71: 1.145782358e-10
E72: 0.768 | F72: =EXP(-$C$28*E72)*(($C$28-$C$31)^2*$C$29*EXP($C$31*E72)+($C$28+$C$31)^2*$C$30*EXP(-$C$31*E72)) -> 0.6702632134 | G72: =-EXP(-$C$28*E72)*(($C$28-$C$31)*$C$29*EXP($C$31*E72)+($C$28+$C$31)*$C$30*EXP(-$C$31*E72)) -> -0.6176845797 | H72: =EXP(-$C$28*E72)*($C$29*EXP($C$31*E72)+$C$30*EXP(-$C$31*E72)) -> 0.5692304639 | J72: 0.6702632135 | K72: -0.6176845798 | L72: 0.569230464 | N72: 1.324769183e-10 | O72: -1.245991088e-10 | P72: 1.14892984e-10
E73: =E72+$C$8 -> 0.78 | F73: 0.6615919826 | G73: -0.6096935614 | H73: 0.5618662991 | J73: 0.6615919827 | K73: -0.6096935615 | L73: 0.5618662992 | N73: 1.337864264e-10 | O73: -1.249350623e-10 | P73: 1.151788664e-10
E74: 0.792 | F74: 0.653032932 | G74: -0.6018059234 | H74: 0.5545974049 | J74: 0.6530329321 | K74: -0.6018059235 | L74: 0.554597405 | N74: 1.347324474e-10 | O74: -1.252330462e-10 | P74: 1.154379925e-10
E75: 0.804 | F75: 0.6445846102 | G75: -0.5940203281 | H75: 0.5474225487 | J75: 0.6445846103 | K75: -0.5940203283 | L75: 0.5474225489 | N75: 1.354246715e-10 | O75: -1.254979454e-10 | P75: 1.156718055e-10
E76: 0.816 | F76: 0.6362455848 | G76: -0.5863354555 | H76: 0.5403405141 | J76: 0.636245585 | K76: -0.5863354557 | L76: 0.5403405142 | N76: 1.359392598e-10 | O76: -1.25730204e-10 | P76: 1.158794172e-10
E77: 0.828 | F77: 0.6280144419 | G77: -0.5787500026 | H77: 0.5333501001 | J77: 0.628014442 | K77: -0.5787500027 | L77: 0.5333501003 | N77: 1.363322788e-10 | O77: -1.259329308e-10 | P77: 1.160619378e-10
E78: 0.84 | F78: 0.6198897856 | G78: -0.571262683 | H78: 0.5264501215 | J78: 0.6198897858 | K78: -0.5712626831 | L78: 0.5264501216 | N78: =J78-F78 -> 1.366380342e-10 | O78: -1.261091231e-10 | P78: 1.162213659e-10
E79: 0.852 | F79: 0.6118702385 | G79: -0.5638722273 | H79: 0.5196394083 | J79: 0.6118702386 | K79: -0.5638722274 | L79: 0.5196394084 | N79: 1.368728464e-10 | O79: -1.2625756e-10 | P79: 1.16356369e-10
E80: 0.864 | F80: 0.6039544407 | G80: -0.5565773823 | H80: 0.5129168056 | J80: 0.6039544408 | K80: -0.5565773824 | L80: 0.5129168057 | N80: 1.370471514e-10 | O80: -1.263811278e-10 | P80: 1.164692787e-10
E81: 0.876 | F81: 0.59614105 | G81: -0.5493769111 | H81: 0.5062811736 | J81: 0.5961410501 | K81: -0.5493769112 | L81: 0.5062811737 | N81: 1.371861513e-10 | O81: -1.264781613e-10 | P81: 1.165578745e-10
E82: 0.888 | F82: 0.5884287415 | G82: -0.5422695928 | H82: 0.4997313871 | J82: 0.5884287416 | K82: -0.5422695929 | L82: 0.4997313873 | N82: 1.372880698e-10 | O82: -1.265533234e-10 | P82: 1.166265973e-10
E83: 0.9 | F83: 0.5808162076 | G83: -0.5352542222 | H83: 0.4932663356 | J83: 0.5808162077 | K83: -0.5352542223 | L83: 0.4932663357 | N83: 1.373584579e-10 | O83: -1.26606059e-10 | P83: 1.166748365e-10
E84: 0.912 | F84: 0.5733021574 | G84: -0.5283296098 | H84: 0.4868849228 | J84: 0.5733021575 | K84: -0.52832961 | L84: 0.4868849229 | N84: 1.373933189e-10 | O84: -1.266331484e-10 | P84: 1.166997055e-10
E85: 0.924 | F85: 0.5658853169 | G85: -0.5214945816 | H85: 0.4805860666 | J85: 0.565885317 | K85: -0.5214945817 | L85: 0.4805860668 | N85: 1.374131919e-10 | O85: -1.266403649e-10 | P85: 1.167062003e-10
E86: 0.936 | F86: 0.5585644284 | G86: -0.5147479784 | H86: 0.4743686991 | J86: 0.5585644286 | K86: -0.5147479786 | L86: 0.4743686992 | N86: 1.37398537e-10 | O86: -1.26626043e-10 | P86: 1.166928776e-10
E87: 0.948 | F87: 0.5513382507 | G87: -0.5080886564 | H87: 0.468231766 | J87: 0.5513382508 | K87: -0.5080886566 | L87: 0.4682317661 | N87: 1.373628988e-10 | O87: -1.265892946e-10 | P87: 1.166588492e-10
E88: 0.96 | F88: 0.5442055584 | G88: -0.5015154865 | H88: 0.4621742268 | J88: 0.5442055586 | K88: -0.5015154866 | L88: 0.4621742269 | N88: 1.373055003e-10 | O88: -1.265337835e-10 | P88: 1.166075569e-10
E89: 0.972 | F89: 0.5371651422 | G89: -0.4950273539 | H89: 0.4561950542 | J89: 0.5371651423 | K89: -0.4950273541 | L89: 0.4561950543 | N89: 1.372246761e-10 | O89: -1.264585658e-10 | P89: 1.16538279e-10
E90: 0.984 | F90: 0.5302158082 | G90: -0.4886231587 | H90: 0.4502932345 | J90: 0.5302158083 | K90: -0.4886231589 | L90: 0.4502932346 | N90: 1.37114986e-10 | O90: -1.263623095e-10 | P90: 1.164496832e-10
E91: 0.996 | F91: 0.523356378 | G91: -0.4823018149 | H91: 0.444467767 | J91: 0.5233563782 | K91: -0.4823018151 | L91: 0.4444677671 | N91: 1.369943048e-10 | O91: -1.262492333e-10 | P91: 1.163453778e-10
E92: 1.008 | F92: 0.5165856887 | G92: -0.4760622507 | H92: 0.4387176639 | J92: 0.5165856889 | K92: -0.4760622508 | L92: 0.438717664 | N92: 1.368531954e-10 | O92: -1.261178384e-10 | P92: 1.16224308e-10
E93: 1.02 | F93: 0.5099025922 | G93: -0.469903408 | H93: 0.4330419501 | J93: 0.5099025923 | K93: -0.4699034082 | L93: 0.4330419502 | N93: 1.366922131e-10 | O93: -1.259670146e-10 | P93: 1.16085308e-10
E94: 1.032 | F94: 0.5033059552 | G94: -0.4638242426 | H94: 0.4274396634 | J94: 0.5033059554 | K94: -0.4638242428 | L94: 0.4274396635 | N94: 1.365094704e-10 | O94: -1.258007032e-10 | P94: 1.159319307e-10
E95: 1.044 | F95: 0.4967946593 | G95: -0.4578237237 | H95: 0.4219098537 | J95: 0.4967946595 | K95: -0.4578237239 | L95: 0.4219098538 | N95: 1.363128499e-10 | O95: -1.256175719e-10 | P95: 1.157632323e-10
E96: 1.056 | F96: 0.4903676004 | G96: -0.4519008339 | H96: 0.4164515835 | J96: 0.4903676005 | K96: -0.451900834 | L96: 0.4164515836 | N96: 1.36092082e-10 | O96: -1.25416344e-10 | P96: 1.155779361e-10
E97: 1.068 | F97: 0.4840236887 | G97: -0.4460545688 | H97: 0.4110639272 | J97: 0.4840236888 | K97: -0.4460545689 | L97: 0.4110639273 | N97: 1.358616553e-10 | O97: -1.252012938e-10 | P97: 1.153795948e-10
E98: 1.08 | F98: 0.4777618484 | G98: -0.4402839371 | H98: 0.4057459713 | J98: 0.4777618486 | K98: -0.4402839372 | L98: 0.4057459714 | N98: 1.356141865e-10 | O98: -1.249705339e-10 | P98: 1.151669315e-10
E99: 1.092 | F99: 0.471581018 | G99: -0.4345879604 | H99: 0.4004968141 | J99: 0.4715810181 | K99: -0.4345879605 | L99: 0.4004968142 | N99: 1.353416268e-10 | O99: -1.247233983e-10 | P99: 1.149391138e-10
E100: 1.104 | F100: 0.4654801493 | G100: -0.4289656728 | H100: 0.3953155655 | J100: 0.4654801494 | K100: -0.4289656729 | L100: 0.3953155656 | N100: 1.350601297e-10 | O100: -1.24463051e-10 | P100: 1.146992501e-10
E101: 1.116 | F101: 0.4594582078 | G101: -0.4234161211 | H101: 0.390201347 | J101: 0.459458208 | K101: -0.4234161212 | L101: 0.3902013471 | N101: 1.347632561e-10 | O101: -1.241886594e-10 | P101: 1.144464523e-10
E102: 1.128 | F102: 0.4535141725 | G102: -0.4179383642 | H102: 0.3851532914 | J102: 0.4535141727 | K102: -0.4179383643 | L102: 0.3851532915 | N102: 1.344452882e-10 | O102: -1.238990022e-10 | P102: 1.141796657e-10
E103: 1.14 | F103: 0.4476470356 | G103: -0.4125314733 | H103: 0.3801705428 | J103: 0.4476470357 | K103: -0.4125314735 | L103: 0.3801705429 | N103: 1.341184386e-10 | O103: -1.235976321e-10 | P103: 1.139018879e-10
E104: 1.152 | F104: 0.4418558021 | G104: -0.4071945317 | H104: 0.3752522562 | J104: 0.4418558022 | K104: -0.4071945318 | L104: 0.3752522564 | N104: 1.337777111e-10 | O104: -1.232832725e-10 | P104: 1.136121752e-10
E105: 1.164 | F105: 0.43613949 | G105: -0.4019266344 | H105: 0.3703975978 | J105: 0.4361394902 | K105: -0.4019266345 | L105: 0.370397598 | N105: 1.334233279e-10 | O105: -1.22955035e-10 | P105: 1.133096394e-10
E106: 1.176 | F106: 0.4304971303 | G106: -0.3967268881 | H106: 0.3656057444 | J106: 0.4304971304 | K106: -0.3967268883 | L106: 0.3656057445 | N106: 1.330538457e-10 | O106: -1.226159174e-10 | P106: 1.129971672e-10
E107: 1.188 | F107: 0.424927766 | G107: -0.3915944113 | H107: 0.3608758834 | J107: 0.4249277661 | K107: -0.3915944114 | L107: 0.3608758836 | N107: 1.32674649e-10 | O107: -1.222663637e-10 | P107: 1.126750915e-10
E108: 1.2 | F108: 0.4194304529 | G108: -0.3865283336 | H108: 0.3562072129 | J108: 0.419430453 | K108: -0.3865283337 | L108: 0.3562072131 | N108: 1.322796872e-10 | O108: -1.219027657e-10 | P108: 1.123399707e-10
E109: 1.212 | F109: 0.4140042588 | G109: -0.3815277959 | H109: 0.3515989413 | J109: 0.4140042589 | K109: -0.3815277961 | L109: 0.3515989414 | N109: 1.318740117e-10 | O109: -1.215293421e-10 | P109: 1.119958015e-10
E110: 1.224 | F110: 0.4086482637 | G110: -0.3765919506 | H110: 0.3470502871 | J110: 0.4086482638 | K110: -0.3765919507 | L110: 0.3470502872 | N110: 1.314582887e-10 | O110: -1.211452605e-10 | P110: 1.116418069e-10
E111: 1.236 | F111: 0.4033615593 | G111: -0.3717199605 | H111: 0.3425604791 | J111: 0.4033615595 | K111: -0.3717199606 | L111: 0.3425604792 | N111: 1.310288544e-10 | O111: -1.207492994e-10 | P111: 1.112769876e-10
E112: 1.248 | F112: 0.3981432494 | G112: -0.3669109996 | H112: 0.3381287559 | J112: 0.3981432495 | K112: -0.3669109997 | L112: 0.338128756 | N112: 1.305905939e-10 | O112: -1.203447342e-10 | P112: 1.109041192e-10
E113: 1.26 | F113: 0.392992449 | G113: -0.3621642524 | H113: 0.3337543662 | J113: 0.3929924491 | K113: -0.3621642526 | L113: 0.3337543663 | N113: 1.301445063e-10 | O113: -1.199304545e-10 | P113: 1.10522258e-10
E114: 1.272 | F114: 0.3879082848 | G114: -0.3574789142 | H114: 0.3294365682 | J114: 0.3879082849 | K114: -0.3574789144 | L114: 0.3294365683 | N114: 1.296831531e-10 | O114: -1.195053501e-10 | P114: 1.101305158e-10
E115: 1.284 | F115: 0.3828898947 | G115: -0.3528541905 | H115: 0.3251746298 | J115: 0.3828898948 | K115: -0.3528541906 | L115: 0.3251746299 | N115: 1.292135843e-10 | O115: -1.190724741e-10 | P115: 1.097315572e-10
E116: 1.296 | F116: 0.3779364277 | G116: -0.3482892971 | H116: 0.3209678283 | J116: 0.3779364279 | K116: -0.3482892972 | L116: 0.3209678284 | N116: 1.287326357e-10 | O116: -1.186307719e-10 | P116: 1.093245494e-10
E117: 1.308 | F117: 0.3730470441 | G117: -0.3437834599 | H117: 0.3168154505 | J117: 0.3730470442 | K117: -0.34378346 | L117: 0.3168154506 | N117: 1.282403628e-10 | O117: -1.181793552e-10 | P117: 1.089085488e-10
E118: 1.32 | F118: 0.3682209146 | G118: -0.339335915 | H118: 0.3127167921 | J118: 0.3682209147 | K118: -0.3393359151 | L118: 0.3127167922 | N118: 1.277420392e-10 | O118: -1.177209996e-10 | P118: 1.0848622e-10
E119: 1.332 | F119: 0.363457221 | G119: -0.3349459082 | H119: 0.3086711583 | J119: 0.3634572212 | K119: -0.3349459083 | L119: 0.3086711585 | N119: 1.27235944e-10 | O119: -1.172547059e-10 | P119: 1.080565637e-10
E120: 1.344 | F120: 0.3587551556 | G120: -0.3306126952 | H120: 0.3046778632 | J120: 0.3587551558 | K120: -0.3306126953 | L120: 0.3046778633 | N120: 1.267176919e-10 | O120: -1.16779586e-10 | P120: 1.076188028e-10
E121: 1.356 | F121: 0.3541139211 | G121: -0.3263355412 | H121: 0.3007362294 | J121: 0.3541139212 | K121: -0.3263355413 | L121: 0.3007362295 | N121: 1.261989957e-10 | O121: -1.162984153e-10 | P121: 1.071752687e-10
E122: 1.368 | F122: 0.3495327305 | G122: -0.3221137209 | H122: 0.2968455888 | J122: 0.3495327306 | K122: -0.322113721 | L122: 0.2968455889 | N122: 1.25667754e-10 | O122: -1.158100282e-10 | P122: 1.067251842e-10
E123: 1.38 | F123: 0.3450108069 | G123: -0.3179465186 | H123: 0.2930052817 | J123: 0.3450108071 | K123: -0.3179465187 | L123: 0.2930052818 | N123: 1.251287962e-10 | O123: -1.153137585e-10 | P123: 1.062678834e-10
E124: 1.392 | F124: 0.3405473838 | G124: -0.3138332275 | H124: 0.2892146567 | J124: 0.3405473839 | K124: -0.3138332276 | L124: 0.2892146568 | N124: 1.245878956e-10 | O124: -1.148120488e-10 | P124: 1.0580542e-10
E125: 1.404 | F125: 0.3361417042 | G125: -0.3097731504 | H125: 0.2854730713 | J125: 0.3361417043 | K125: -0.3097731505 | L125: 0.2854730714 | N125: 1.240375025e-10 | O125: -1.143040107e-10 | P125: 1.053372389e-10
E126: 1.416 | F126: 0.3317930211 | G126: -0.3057655986 | H126: 0.281779891 | J126: 0.3317930212 | K126: -0.3057655988 | L126: 0.2817798911 | N126: 1.234777836e-10 | O126: -1.137888117e-10 | P126: 1.048625076e-10
E127: 1.428 | F127: 0.3275005971 | G127: -0.3018098928 | H127: 0.2781344896 | J127: 0.3275005972 | K127: -0.3018098929 | L127: 0.2781344897 | N127: 1.229137903e-10 | O127: -1.132687832e-10 | P127: 1.043832798e-10
E128: 1.44 | F128: 0.3232637044 | G128: -0.2979053622 | H128: 0.2745362489 | J128: 0.3232637046 | K128: -0.2979053623 | L128: 0.274536249 | N128: 1.223464663e-10 | O128: -1.127433702e-10 | P128: 1.038990005e-10
E129: 1.452 | F129: 0.3190816247 | G129: -0.2940513447 | H129: 0.2709845588 | J129: 0.3190816248 | K129: -0.2940513448 | L129: 0.2709845589 | N129: 1.21767707e-10 | O129: -1.122113513e-10 | P129: 1.03408726e-10
E130: 1.464 | F130: 0.3149536487 | G130: -0.2902471868 | H130: 0.2674788172 | J130: 0.3149536489 | K130: -0.2902471869 | L130: 0.2674788173 | N130: 1.211841738e-10 | O130: -1.116753356e-10 | P130: 1.029147878e-10
E131: 1.476 | F131: 0.3108790766 | G131: -0.2864922435 | H131: 0.2640184295 | J131: 0.3108790768 | K131: -0.2864922436 | L131: 0.2640184296 | N131: 1.205971989e-10 | O131: -1.111344905e-10 | P131: 1.024162977e-10
E132: 1.488 | F132: 0.3068572175 | G132: -0.2827858781 | H132: 0.260602809 | J132: 0.3068572176 | K132: -0.2827858782 | L132: 0.2606028091 | N132: 1.200032851e-10 | O132: -1.105878167e-10 | P132: 1.019125895e-10
E133: 1.5 | F133: 0.3028873893 | G133: -0.2791274621 | H133: 0.2572313766 | J133: 0.3028873895 | K133: -0.2791274623 | L133: 0.2572313767 | N133: 1.194073729e-10 | O133: -1.100377567e-10 | P133: 1.014056616e-10
E134: 1.512 | F134: 0.2989689191 | G134: -0.2755163753 | H134: 0.2539035606 | J134: 0.2989689192 | K134: -0.2755163754 | L134: 0.2539035607 | N134: 1.188051324e-10 | O134: -1.094833668e-10 | P134: 1.008947925e-10
E135: 1.524 | F135: 0.2951011423 | G135: -0.2719520053 | H135: 0.2506187968 | J135: 0.2951011424 | K135: -0.2719520054 | L135: 0.2506187969 | N135: 1.181973963e-10 | O135: -1.089239254e-10 | P135: 1.003792605e-10
E136: 1.536 | F136: =EXP(-$C$28*E136)*(($C$28-$C$31)^2*$C$29*EXP($C$31*E136)+($C$28+$C$31)^2*$C$30*EXP(-$C$31*E136)) -> 0.2912834031 | G136: =-EXP(-$C$28*E136)*(($C$28-$C$31)*$C$29*EXP($C$31*E136)+($C$28+$C$31)*$C$30*EXP(-$C$31*E136)) -> -0.2684337478 | H136: =EXP(-$C$28*E136)*($C$29*EXP($C$31*E136)+$C$30*EXP(-$C$31*E136)) -> 0.2473765281 | J136: 0.2912834032 | K136: -0.2684337479 | L136: 0.2473765282 | N136: 1.175902153e-10 | O136: -1.083625967e-10 | P136: 9.986192429e-11
E137: =E136+$C$8 -> 1.548 | F137: 0.2875150542 | G137: -0.2649610061 | H137: 0.2441762048 | J137: 0.2875150543 | K137: -0.2649610062 | L137: 0.2441762049 | N137: 1.169723762e-10 | O137: -1.077965495e-10 | P137: 9.934034151e-11
E138: 1.56 | F138: 0.2837954567 | G138: -0.2615331915 | H138: 0.2410172842 | J138: 0.2837954568 | K138: -0.2615331916 | L138: 0.2410172843 | N138: 1.163554253e-10 | O138: -1.072261724e-10 | P138: 9.881467866e-11
E139: 1.572 | F139: 0.2801239797 | G139: -0.2581497226 | H139: 0.2378992308 | J139: 0.2801239799 | K139: -0.2581497228 | L139: 0.2378992309 | N139: 1.157336449e-10 | O139: -1.066534083e-10 | P139: 9.828682312e-11
E140: 1.584 | F140: 0.2765000009 | G140: -0.2548100259 | H140: 0.2348215158 | J140: 0.276500001 | K140: -0.2548100261 | L140: 0.2348215159 | N140: 1.151074236e-10 | O140: -1.060774246e-10 | P140: 9.775610876e-11
E141: 1.596 | F141: 0.2729229057 | G141: -0.2515135351 | H141: 0.2317836173 | J141: 0.2729229058 | K141: -0.2515135352 | L141: 0.2317836174 | N141: 1.144787598e-10 | O141: -1.054976662e-10 | P141: 9.722178618e-11
E142: 1.608 | F142: 0.2693920875 | G142: -0.2482596911 | H142: 0.2287850203 | J142: 0.2693920877 | K142: -0.2482596912 | L142: 0.2287850204 | N142: =J142-F142 -> 1.138464878e-10 | O142: -1.049160758e-10 | P142: 9.668585377e-11
E143: 1.62 | F143: 0.2659069478 | G143: -0.2450479423 | H143: 0.2258252164 | J143: 0.2659069479 | K143: -0.2450479424 | L143: 0.2258252165 | N143: 1.132131611e-10 | O143: -1.043318487e-10 | P143: 9.614742336e-11
E144: 1.632 | F144: 0.2624668954 | G144: -0.241877744 | H144: 0.2229037035 | J144: 0.2624668956 | K144: -0.2418777441 | L144: 0.2229037036 | N144: 1.125766147e-10 | O144: -1.037443187e-10 | P144: 9.56060231e-11
E145: 1.644 | F145: 0.2590713473 | G145: -0.2387485588 | H145: 0.2200199865 | J145: 0.2590713474 | K145: -0.2387485589 | L145: 0.2200199866 | N145: 1.119364601e-10 | O145: -1.031554009e-10 | P145: 9.506329057e-11
E146: 1.656 | F146: 0.2557197275 | G146: -0.235659856 | H146: 0.2171735762 | J146: 0.2557197276 | K146: -0.2356598561 | L146: 0.2171735763 | N146: 1.112946402e-10 | O146: -1.025643737e-10 | P146: 9.451861516e-11
E147: 1.668 | F147: 0.2524114677 | G147: -0.2326111119 | H147: 0.2143639901 | J147: 0.2524114678 | K147: -0.232611112 | L147: 0.2143639902 | N147: 1.106509884e-10 | O147: -1.019705154e-10 | P147: 9.397138623e-11
E148: 1.68 | F148: 0.2491460072 | G148: -0.2296018095 | H148: 0.2115907517 | J148: 0.2491460073 | K148: -0.2296018096 | L148: 0.2115907518 | N148: 1.100028679e-10 | O148: -1.013756579e-10 | P148: 9.342321361e-11
E149: 1.692 | F149: 0.245922792 | G149: -0.2266314387 | H149: 0.2088533909 | J149: 0.2459227921 | K149: -0.2266314388 | L149: 0.208853391 | N149: 1.093591884e-10 | O149: -1.007791628e-10 | P149: 9.287345892e-11
E150: 1.704 | F150: 0.2427412758 | G150: -0.2236994957 | H150: 0.2061514435 | J150: 0.2427412759 | K150: -0.2236994958 | L150: 0.2061514436 | N150: 1.08710152e-10 | O150: -1.001811412e-10 | P150: 9.23222887e-11
E151: 1.716 | F151: 0.239600919 | G151: -0.2208054835 | H151: 0.2034844513 | J151: 0.2396009191 | K151: -0.2208054836 | L151: 0.2034844514 | N151: 1.080594503e-10 | O151: -9.958006641e-11 | P151: 9.176839844e-11
E152: 1.728 | F152: 0.2365011891 | G152: -0.2179489112 | H152: 0.2008519621 | J152: 0.2365011892 | K152: -0.2179489113 | L152: 0.2008519622 | N152: 1.074059175e-10 | O152: -9.897935249e-11 | P152: 9.121481348e-11
E153: 1.74 | F153: 0.2334415607 | G153: -0.2151292945 | H153: 0.1982535296 | J153: 0.2334415608 | K153: -0.2151292946 | L153: 0.1982535297 | N153: 1.067518574e-10 | O153: -9.83775561e-11 | P153: 9.066028483e-11
E154: 1.752 | F154: 0.2304215148 | G154: -0.2123461554 | H154: 0.1956887132 | J154: 0.2304215149 | K154: -0.2123461555 | L154: 0.1956887132 | N154: 1.060961874e-10 | O154: -9.777476051e-11 | P154: 9.010475699e-11
E155: 1.764 | F155: 0.2274405394 | G155: -0.2095990219 | H155: 0.1931570779 | J155: 0.2274405395 | K155: -0.209599022 | L155: 0.193157078 | N155: 1.054424881e-10 | O155: -9.717113225e-11 | P155: 8.954847974e-11
E156: 1.776 | F156: 0.224498129 | G156: -0.2068874282 | H156: 0.1906581945 | J156: 0.2244981291 | K156: -0.2068874283 | L156: 0.1906581946 | N156: 1.047849862e-10 | O156: -9.656669908e-11 | P156: 8.899150861e-11
E157: 1.788 | F157: 0.2215937848 | G157: -0.2042109145 | H157: 0.1881916393 | J157: 0.2215937849 | K157: -0.2042109146 | L157: 0.1881916394 | N157: 1.041268738e-10 | O157: -9.5960212e-11 | P157: 8.843259458e-11
E158: 1.8 | F158: 0.2187270142 | G158: -0.2015690271 | H158: 0.185756994 | J158: 0.2187270143 | K158: -0.2015690272 | L158: 0.1857569941 | N158: 1.034705099e-10 | O158: -9.535469636e-11 | P158: 8.787456873e-11
E159: 1.812 | F159: 0.2158973312 | G159: -0.1989613178 | H159: 0.1833538459 | J159: 0.2158973313 | K159: -0.1989613179 | L159: 0.183353846 | N159: 1.028144792e-10 | O159: -9.474951379e-11 | P159: 8.73168482e-11
E160: 1.824 | F160: 0.2131042559 | G160: -0.1963873447 | H160: 0.1809817874 | J160: 0.213104256 | K160: -0.1963873448 | L160: 0.1809817875 | N160: 1.021560891e-10 | O160: -9.414266589e-11 | P160: 8.675757335e-11
E161: 1.836 | F161: 0.2103473148 | G161: -0.1938466712 | H161: 0.1786404164 | J161: 0.2103473149 | K161: -0.1938466712 | L161: 0.1786404165 | N161: 1.015008355e-10 | O161: -9.353698371e-11 | P161: 8.619935321e-11
E162: 1.848 | F162: 0.2076260404 | G162: -0.1913388665 | H162: 0.1763293359 | J162: 0.2076260405 | K162: -0.1913388666 | L162: 0.176329336 | N162: 1.008426675e-10 | O162: -9.29298305e-11 | P162: 8.563982856e-11
E163: 1.86 | F163: 0.2049399713 | G163: -0.1888635054 | H163: 0.1740481539 | J163: 0.2049399714 | K163: -0.1888635055 | L163: 0.174048154 | N163: 1.001843331e-10 | O163: -9.232273279e-11 | P163: 8.508035942e-11
E164: 1.872 | F164: 0.202288652 | G164: -0.1864201681 | H164: 0.1717964836 | J164: 0.2022886521 | K164: -0.1864201682 | L164: 0.1717964837 | N164: 9.952466629e-11 | O164: -9.171582938e-11 | P164: 8.452105682e-11
E165: 1.884 | F165: 0.1996716329 | G165: -0.1840084405 | H165: 0.1695739434 | J165: 0.199671633 | K165: -0.1840084406 | L165: 0.1695739435 | N165: 9.886830243e-11 | O165: -9.111042476e-11 | P165: 8.396316975e-11
E166: 1.896 | F166: 0.1970884704 | G166: -0.1816279135 | H166: 0.1673801563 | J166: 0.1970884705 | K166: -0.1816279136 | L166: 0.1673801564 | N166: 9.821043978e-11 | O166: -9.050410421e-11 | P166: 8.34043945e-11
E167: 1.908 | F167: 0.1945387264 | G167: -0.1792781836 | H167: 0.1652147503 | J167: 0.1945387265 | K167: -0.1792781836 | L167: 0.1652147504 | N167: 9.755335428e-11 | O167: -8.9899449e-11 | P167: 8.284717357e-11
E168: 1.92 | F168: 0.1920219685 | G168: -0.1769588522 | H168: 0.1630773583 | J168: 0.1920219686 | K168: -0.1769588522 | L168: 0.1630773584 | N168: 9.689671288e-11 | O168: -8.929407214e-11 | P168: 8.228931425e-11
E169: 1.932 | F169: 0.1895377701 | G169: -0.1746695261 | H169: 0.1609676178 | J169: 0.1895377702 | K169: -0.1746695262 | L169: 0.1609676179 | N169: 9.623829511e-11 | O169: -8.868927814e-11 | P169: 8.173195454e-11
E170: 1.944 | F170: 0.1870857099 | G170: -0.1724098171 | H170: 0.1588851712 | J170: 0.18708571 | K170: -0.1724098172 | L170: 0.1588851713 | N170: 9.558293046e-11 | O170: -8.808523355e-11 | P170: 8.117531647e-11
E171: 1.956 | F171: 0.1846653721 | G171: -0.1701793421 | H171: 0.1568296653 | J171: 0.1846653722 | K171: -0.1701793422 | L171: 0.1568296653 | N171: 9.492986952e-11 | O171: -8.748313185e-11 | P171: 8.062048251e-11
E172: 1.968 | F172: 0.1822763464 | G172: -0.1679777229 | H172: 0.1548007515 | J172: 0.1822763465 | K172: -0.167977723 | L172: 0.1548007516 | N172: 9.427661429e-11 | O172: -8.688072484e-11 | P172: 8.006534324e-11
E173: 1.98 | F173: 0.1799182276 | G173: -0.1658045862 | H173: 0.152798086 | J173: 0.1799182277 | K173: -0.1658045863 | L173: 0.1527980861 | N173: 9.362433051e-11 | O173: -8.628042725e-11 | P173: 7.951214687e-11
E174: 1.992 | F174: 0.1775906159 | G174: -0.1636595635 | H174: 0.150821329 | J174: 0.177590616 | K174: -0.1636595635 | L174: 0.1508213291 | N174: 9.297285164e-11 | O174: -8.567996312e-11 | P174: 7.89587562e-11
E175: 2.004 | F175: 0.1752931166 | G175: -0.161542291 | H175: 0.1488701455 | J175: 0.1752931167 | K175: -0.1615422911 | L175: 0.1488701455 | N175: 9.232295484e-11 | O175: -8.508058147e-11 | P175: 7.840639249e-11
E176: 2.016 | F176: 0.1730253403 | G176: -0.1594524098 | H176: 0.1469442045 | J176: 0.1730253404 | K176: -0.1594524098 | L176: 0.1469442045 | N176: 9.167669401e-11 | O176: -8.448353128e-11 | P176: 7.785611045e-11
E177: 2.028 | F177: 0.1707869022 | G177: -0.1573895655 | H177: 0.1450431795 | J177: 0.1707869023 | K177: -0.1573895655 | L177: 0.1450431796 | N177: 9.103051646e-11 | O177: -8.388764683e-11 | P177: 7.730699414e-11
E178: 2.04 | F178: 0.168577423 | G178: -0.1553534083 | H178: 0.1431667482 | J178: 0.1685774231 | K178: -0.1553534084 | L178: 0.1431667482 | N178: 9.03810915e-11 | O178: -8.329084644e-11 | P178: 7.675704516e-11
E179: 2.052 | F179: 0.1663965279 | G179: -0.153343593 | H179: 0.1413145923 | J179: 0.166396528 | K179: -0.1533435931 | L179: 0.1413145924 | N179: 8.973902177e-11 | O179: -8.269765428e-11 | P179: 7.621034359e-11
E180: 2.064 | F180: 0.1642438472 | G180: -0.1513597787 | H180: 0.1394863979 | J180: 0.1642438473 | K180: -0.1513597788 | L180: 0.139486398 | N180: 8.909462057e-11 | O180: -8.210476743e-11 | P180: 7.566397509e-11
E181: 2.076 | F181: 0.1621190158 | G181: -0.1494016292 | H181: 0.137681855 | J181: 0.1621190159 | K181: -0.1494016293 | L181: 0.137681855 | N181: 8.845468802e-11 | O181: -8.151440634e-11 | P181: 7.511993805e-11
E182: 2.088 | F182: 0.1600216735 | G182: -0.1474688124 | H182: 0.1359006575 | J182: 0.1600216735 | K182: -0.1474688125 | L182: 0.1359006576 | N182: 8.781456118e-11 | O182: -8.09245726e-11 | P182: 7.457637285e-11
E183: 2.1 | F183: 0.1579514646 | G183: -0.1455610005 | H183: 0.1341425034 | J183: 0.1579514646 | K183: -0.1455610006 | L183: 0.1341425035 | N183: 8.717540578e-11 | O183: -8.033637644e-11 | P183: 7.403433422e-11
E184: 2.112 | F184: 0.1559080381 | G184: -0.1436778701 | H184: 0.1324070947 | J184: 0.1559080381 | K184: -0.1436778702 | L184: 0.1324070948 | N184: 8.653808226e-11 | O184: -7.974979011e-11 | P184: 7.349379438e-11
E185: 2.124 | F185: 0.1538910475 | G185: -0.1418191019 | H185: 0.1306941371 | J185: 0.1538910476 | K185: -0.141819102 | L185: 0.1306941372 | N185: 8.590542167e-11 | O185: -7.916597933e-11 | P185: 7.295575255e-11
E186: 2.136 | F186: 0.1519001508 | G186: -0.1399843806 | H186: 0.1290033401 | J186: 0.1519001509 | K186: -0.1399843807 | L186: 0.1290033402 | N186: 8.527273332e-11 | O186: -7.858297346e-11 | P186: 7.241848787e-11
E187: 2.148 | F187: 0.1499350105 | G187: -0.1381733952 | H187: 0.127334417 | J187: 0.1499350106 | K187: -0.1381733953 | L187: 0.1273344171 | N187: 8.464243195e-11 | O187: -7.80027154e-11 | P187: 7.188374895e-11
E188: 2.16 | F188: 0.1479952933 | G188: -0.1363858387 | H188: 0.1256870849 | J188: 0.1479952934 | K188: -0.1363858388 | L188: 0.125687085 | N188: 8.401204732e-11 | O188: -7.742340102e-11 | P188: 7.134989821e-11
E189: 2.172 | F189: 0.1460806703 | G189: -0.1346214078 | H189: 0.1240610644 | J189: 0.1460806704 | K189: -0.1346214079 | L189: 0.1240610645 | N189: 8.338643664e-11 | O189: -7.684597403e-11 | P189: 7.081775444e-11
E190: 2.184 | F190: 0.1441908169 | G190: -0.1328798035 | H190: 0.1224560798 | J190: 0.144190817 | K190: -0.1328798036 | L190: 0.1224560799 | N190: 8.276315744e-11 | O190: -7.627057319e-11 | P190: 7.028747029e-11
E191: 2.196 | F191: 0.1423254126 | G191: -0.1311607304 | H191: 0.120871859 | J191: 0.1423254127 | K191: -0.1311607305 | L191: 0.1208718591 | N191: 8.214204317e-11 | O191: -7.569811444e-11 | P191: 6.975992006e-11
E192: 2.208 | F192: 0.1404841412 | G192: -0.1294638971 | H192: 0.1193081333 | J192: 0.1404841413 | K192: -0.1294638972 | L192: 0.1193081334 | N192: 8.152273301e-11 | O192: -7.512679367e-11 | P192: 6.923342455e-11
E193: 2.22 | F193: 0.1386666904 | G193: -0.1277890158 | H193: 0.1177646377 | J193: 0.1386666905 | K193: -0.1277890158 | L193: 0.1177646377 | N193: 8.090497716e-11 | O193: -7.455847051e-11 | P193: 6.870969071e-11
E194: 2.232 | F194: 0.136872752 | G194: -0.1261358025 | H194: 0.1162411103 | J194: 0.1368727521 | K194: -0.1261358025 | L194: 0.1162411103 | N194: 8.02906075e-11 | O194: -7.399139634e-11 | P194: 6.818708098e-11
E195: 2.244 | F195: 0.135102022 | G195: -0.1245039769 | H195: 0.1147372929 | J195: 0.135102022 | K195: -0.1245039769 | L195: 0.1147372929 | N195: 7.967718152e-11 | O195: -7.342651487e-11 | P195: 6.766652516e-11
E196: 2.256 | F196: 0.1333541999 | G196: -0.1228932623 | H196: 0.1132529304 | J196: 0.1333542 | K196: -0.1228932624 | L196: 0.1132529305 | N196: 7.906730826e-11 | O196: -7.286383996e-11 | P196: 6.714798162e-11
E197: 2.268 | F197: 0.1316289895 | G197: -0.1213033856 | H197: 0.1117877712 | J197: 0.1316289896 | K197: -0.1213033857 | L197: 0.1117877713 | N197: 7.845882277e-11 | O197: -7.230431531e-11 | P197: 6.663236629e-11
E198: 2.28 | F198: 0.1299260983 | G198: -0.1197340773 | H198: 0.1103415669 | J198: 0.1299260984 | K198: -0.1197340773 | L198: 0.1103415669 | N198: 7.785261324e-11 | O198: -7.174623395e-11 | P198: 6.611808323e-11
E199: 2.292 | F199: 0.1282452374 | G199: -0.1181850712 | H199: 0.1089140721 | J199: 0.1282452375 | K199: -0.1181850712 | L199: 0.1089140722 | N199: 7.72505393e-11 | O199: -7.119130285e-11 | P199: 6.560667287e-11
E200: 2.304 | F200: =EXP(-$C$28*E200)*(($C$28-$C$31)^2*$C$29*EXP($C$31*E200)+($C$28+$C$31)^2*$C$30*EXP(-$C$31*E200)) -> 0.126586122 | G200: =-EXP(-$C$28*E200)*(($C$28-$C$31)*$C$29*EXP($C$31*E200)+($C$28+$C$31)*$C$30*EXP(-$C$31*E200)) -> -0.1166561046 | H200: =EXP(-$C$28*E200)*($C$29*EXP($C$31*E200)+$C$30*EXP(-$C$31*E200)) -> 0.107505045 | J200: 0.1265861221 | K200: -0.1166561047 | L200: 0.1075050451 | N200: 7.664954782e-11 | O200: -7.063791219e-11 | P200: 6.509671968e-11
... 308 more rows

Sheet 過減衰 (双曲線)
A1: 振動の運動方程式
A2: mx''+cx'+kx=-sign(x')μ'mg+fsinΩt | D2: 運動方程式 | F2: 過減衰（双曲線関数） | J2: マクロで計算➡ | L2: =exe("振動シミュレーション","ForcedOscillation",C8:C19,J8:L8) -> 振動シミュレーション
A3: x''=-(c/m)x'-(k/m)x-sign(x')(μ'g)+(f/m)sinΩt | D3: 微分方程式 | J3: マクロは標準モジュール-Module6 の中。 実行させるには =exe(･･･ と先頭に＝を付加する。
A4: ダンパ ＋バネ ＋ 動摩擦 ＋ 外力 | F4: 解析解 | K4: 数値積分 | O4: 理論値との差
E5: 時間 | F5: 加速度 | G5: 速度 | H5: 変位 | J5: 加速度 | K5: 速度 | L5: 変位 | N5: 加速度 | O5: 速度 | P5: 変位
E6: t | F6: 理論値x'' | G6: 理論値x' | H6: 理論値x | J6: x'' | K6: x' | L6: x | N6: x'' | O6: x' | P6: x
B7: 赤太字は単振動からの変更データ | E7: [s] | F7: [m/s^2] | G7: [m/s] | H7: [m] | J7: [m/s^2] | K7: [m/s] | L7: [m] | N7: [m/s^2] | O7: [m/s] | P7: [m]
A8: 時間間隔 | B8: Δt | C8: =C9/500 -> 0.012 | D8: [s] | E8: 0 | F8: =($C$31^2-$C$28^2)*H8-2*$C$28*G8 -> -419.4733192 | G8: =-$C$28*H8+$C$31*EXP(-$C$28*E8)*(($C$29+$C$30)*SINH($C$31*E8)+($C$29-$C$30)*COSH($C$31*E8)) -> 10 | H8: =EXP(-$C$28*E8)*(($C$29+$C$30)*COSH($C$31*E8)+($C$29-$C$30)*SINH($C$31*E8)) -> 1 | J8: -419.4733192 | K8: 10 | L8: 1 | N8: =J8-F8 -> 0 | O8: =K8-G8 -> 0 | P8: 0
A9: 終了時間 | B9: TL | C9: 6 | D9: [s] | E9: =E8+$C$8 -> 0.012 | F9: =EXP(-$C$28*E9)*(($C$28-$C$31)^2*$C$29*EXP($C$31*E9)+($C$28+$C$31)^2*$C$30*EXP(-$C$31*E9)) -> -268.991527 | G9: =-EXP(-$C$28*E9)*(($C$28-$C$31)*$C$29*EXP($C$31*E9)+($C$28+$C$31)*$C$30*EXP(-$C$31*E9)) -> 5.935568483 | H9: =EXP(-$C$28*E9)*($C$29*EXP($C$31*E9)+$C$30*EXP(-$C$31*E9)) -> 1.093813492 | J9: -269.0468282 | K9: 5.937068697 | L9: 1.093772794 | N9: =J9-F9 -> -0.05530120451 | O9: 0.001500214032 | P9: -4.06978826e-05
A10: 重力加速度 | B10: g | C10: 9.8 | D10: [m/s^2] | E10: 0.024 | F10: -172.3097946 | G10: 3.330396984 | H10: 1.148252871 | J10: -172.3808669 | K10: 3.332325037 | L10: 1.148200566 | N10: -0.07107229246 | O10: 0.001928052946 | P10: -5.23043157e-05
A11: 質量 | B11: m | C11: 10 | D11: [kg] | E11: 0.036 | F11: -110.1959616 | G11: 1.662757415 | H11: 1.177468851 | J11: -110.2644674 | K11: 1.664615844 | L11: 1.177418436 | N11: -0.06850579682 | O11: 0.00185842891 | P11: -5.041554738e-05
A12: 粘性減衰係数 | B12: c>2√(mk) | C12: =3*(2*SQRT(C11*C13)) -> 379.4733192 | D12: [Ns/m] | E12: 0.048 | F12: -70.29284772 | G12: 0.5974264771 | H12: 1.190552672 | J12: -70.35154281 | K12: 0.5990187608 | L12: 1.190509477 | N12: -0.05869509357 | O12: 0.001592283624 | P12: -4.319554015e-05
A13: バネ定数 | B13: k | C13: 400 | D13: [N/m] | E13: 0.06 | F13: -44.66063286 | G13: -0.08098478577 | H13: 1.193344735 | J13: -44.70777915 | K13: -0.07970579862 | L13: 1.193310039 | N13: =J13-F13 -> -0.04714629338 | O13: =K13-G13 -> 0.00127898715 | P13: =L13-H13 -> -3.469641308e-05
A14: 静止摩擦係数 | B14: μ | C14: 0 | D14: [ND] | E14: 0.072 | F14: -28.19776968 | G14: -0.5108685499 | H14: 1.189596703 | J14: -28.23412471 | K14: -0.5098823087 | L14: 1.189569948 | N14: =J14-F14 -> -0.03635503306 | O14: 0.0009862412588 | P14: -2.675478341e-05
A15: 動摩擦係数 | B15: μ' | C15: 0 | D15: [ND] | E15: 0.084 | F15: -17.62637764 | G15: -0.7811444986 | H15: 1.18171818 | J15: -17.6536327 | K15: -0.780405122 | L15: 1.181698122 | N15: -0.02725505599 | O15: 0.00073937659 | P15: -2.005782209e-05
A16: 強制力 | B16: f | C16: 0 | D16: [N] | E16: 0.096 | F16: -10.84033127 | G16: -0.9489449181 | H16: 1.171256476 | J16: -10.86034715 | K16: -0.9484019262 | L16: 1.171241746 | N16: -0.02001588384 | O16: 0.0005429919368 | P16: -1.473028542e-05
A17: 強制力角振動数 | B17: Ω | C17: 0 | D17: [rad/s] | E17: 0.108 | F17: -6.486389238 | G17: -1.050977849 | H17: 1.159204863 | J17: -6.500859055 | K17: -1.050585311 | L17: 1.159194214 | N17: -0.01446981712 | O17: 0.0003925379385 | P17: -1.064875811e-05
A18: 初期位置 | B18: x0 | C18: 1 | D18: [m] | E18: 0.12 | F18: -3.69505861 | G18: -1.110828215 | H18: 1.14620064 | J18: -3.705389941 | K18: -1.110547946 | L18: 1.146193037 | N18: -0.01033133114 | O18: 0.000280268866 | P18: -7.6031136e-06
A19: 初期速度 | B19: x'0 | C19: 10 | D19: [m/s] | E19: 0.132 | F19: -1.907667782 | G19: -1.143648998 | H19: 1.132652398 | J19: -1.914970503 | K19: -1.14345089 | L19: 1.132647024 | N19: -0.007302721142 | O19: 0.0001981085686 | P19: -5.374261634e-06
E20: 0.144 | F20: -0.7652562296 | G20: -1.159175443 | H20: 1.118821788 | J20: -0.7703755113 | K20: -1.159036566 | L20: 1.11881802 | N20: -0.005119281713 | O20: 0.0001388761037 | P20: -3.767397222e-06
B21: c/m | C21: =C12/C11 -> 37.94733192 | D21: [1/s] | E21: 0.156 | F21: -0.03718316642 | G21: -1.163661761 | H21: 1.104876057 | J21: -0.0407469136 | K21: -1.163565084 | L21: 1.104873434 | N21: -0.003563747188 | O21: 9.66774767e-05 | P21: -2.622627758e-06
B22: k/m | C22: =C13/C11 -> 40 | D22: [1/s^2] | E22: 0.168 | F22: 0.424743319 | G22: -1.161125524 | H22: 1.090921808 | J22: 0.4222771245 | K22: -1.161058621 | L22: 1.090919993 | N22: -0.00246619449 | O22: 6.690300538e-05 | P22: -1.814901534e-06
B23: μ'g | C23: =C15*C10 -> 0 | D23: [s^2/m] | E23: 0.18 | F23: 0.7157395263 | G23: -1.154147208 | H23: 1.077026692 | J23: 0.7140415709 | K23: -1.154101146 | L23: 1.077025442 | N23: -0.001697955478 | O23: 4.606217341e-05 | P23: -1.249527636e-06
B24: f/m | C24: =C16/C11 -> 0 | D24: [N/m] | E24: 0.192 | F24: 0.8969835103 | G24: -1.144383935 | H24: 1.063233338 | J24: 0.895819677 | K24: -1.144352362 | L24: 1.063232481 | N24: -0.001163833282 | O24: 3.157247506e-05 | P24: -8.564477088e-07
A25: 固有角振動数 | B25: ω＝√(k/m) | C25: =SQRT(C13/C11) -> 6.32455532 | D25: ［rad/s］ | E25: 0.204 | F25: 1.007782848 | G25: -1.132899552 | H25: 1.049568312 | J25: 1.006988236 | K25: -1.132877996 | L25: 1.049567728 | N25: -0.0007946126214 | O25: 2.155623445e-05 | P25: -5.847240585e-07
A26: 減衰固有角振動数 | B26: ωd＝ω√(1-ζ^2) | C26: =C25*SQRT(1-C27^2) ->  | D26: ［rad/s］ | E26: 0.216 | F26: 1.073392759 | G26: -1.120376728 | H26: 1.036047871 | J26: 1.072852111 | K26: -1.120362061 | L26: 1.036047473 | N26: -0.0005406482295 | O26: 1.466667216e-05 | P26: -3.978211782e-07
A27: 減衰比 | B27: ζ＝c/{2√(mk)} | C27: =C12/(2*SQRT(C11*C13)) -> 3 | D27: [ND] | E27: 0.228 | F27: 1.110039455 | G27: -1.107253223 | H27: 1.022681653 | J27: 1.109672738 | K27: -1.107243275 | L27: 1.022681383 | N27: -0.0003667174824 | O27: 9.948266946e-06 | P27: -2.698176371e-07
A28: 減衰率 | B28: γ＝ζω | C28: =C27*C25 -> 18.97366596 | D28: [1/s] | E28: 0.24 | F28: 1.128147781 | G28: -1.093809449 | H28: 1.009475061 | J28: 1.127899729 | K28: -1.09380272 | L28: 1.009474879 | N28: -0.0002480525684 | O28: 6.729116288e-06 | P28: -1.824860247e-07
A29: 振幅 | B29: A1 | C29: =(1/(2*$C$31))*(($C$28+$C$31)*$C$18+$C$19) -> 1.309838583 | D29: [m] | E29: 0.252 | F29: 1.134415059 | G29: -1.080224729 | H29: 0.9964307816 | J29: 1.134247692 | K29: -1.080220188 | L29: 0.9964306585 | N29: -0.0001673665728 | O29: 4.540259841e-06 | P29: -1.231043602e-07
A30: 〝 | B30: A2 | C30: =(1/(2*$C$31))*((-$C$28+$C$31)*$C$18-$C$19) -> -0.3098385831 | D30: [rad] | E30: 0.264 | F30: 1.133143587 | G30: -1.066613442 | H30: 0.9835497684 | J30: 1.133030918 | K30: -1.066610386 | L30: 0.9835496856 | N30: -0.0001126698637 | O30: 3.056442221e-06 | P30: -8.284909403e-08
A31: 過減衰固有角振動数 | B31: ωd'＝ω√(ζ^2-1) | C31: =C25*SQRT(C27^2-1) -> 17.88854382 | D31: ［rad/s］ | E31: 0.276 | F31: 1.127096812 | G31: -1.053048255 | H31: 0.9708318711 | J31: 1.12702112 | K31: -1.053046202 | L31: 0.9708318155 | N31: -7.569174673e-05 | O31: 2.053295588e-06 | P31: -5.563356253e-08
E32: 0.288 | F32: 1.118049433 | G32: -1.039575038 | H32: 0.9582762402 | J32: 1.117998679 | K32: -1.039573662 | L32: 0.9582762029 | N32: -5.07536697e-05 | O32: 1.376771877e-06 | P32: -3.727874298e-08
E33: 0.3 | F33: 1.107140868 | G33: -1.02622246 | H33: 0.9458815862 | J33: 1.107106895 | K33: -1.026221539 | L33: 0.9458815613 | N33: -3.397281988e-05 | O33: 9.215379311e-07 | P33: -2.492714735e-08
E34: 0.312 | F34: 1.095102361 | G34: -1.013008143 | H34: 0.9336463472 | J34: 1.095079658 | K34: -1.013007527 | L34: 0.9336463305 | N34: -2.270388131e-05 | O34: 6.158314776e-07 | P34: -1.663200477e-08
A35: 過減衰解析解（双曲線関数） | E35: 0.324 | F35: 1.082402903 | G35: -0.9999426252 | H35: 0.921568795 | J35: 1.082387752 | K35: -0.9999422143 | L35: 0.9215687839 | N35: -1.51504445e-05 | O35: 4.109194222e-07 | P35: -1.107128067e-08
A36: x''+2γx'+ω^2x=0 | D36: 運動方程式 | E36: 0.336 | F36: 1.069342989 | G36: -0.9870319012 | H36: 0.9096471046 | J36: 1.069332893 | K36: -0.9870316274 | L36: 0.9096470972 | N36: -1.009610825e-05 | O36: 2.738031658e-07 | P36: -7.349784226e-09
A37: x=e^(-γt){(A1+A2)cosh(ωd't)+(A1-A2)sinh(ωd't)} | D37: 変位 | E37: 0.348 | F37: 1.056114867 | G37: -0.9742790573 | H37: 0.8978793976 | J37: 1.056108147 | K37: -0.9742788751 | L37: 0.8978793927 | N37: -6.719354633e-06 | O37: 1.821965246e-07 | P37: -4.8629345e-09
A38: x'=-γx+ωd'e^(-γt){(A1+A2)sinh(ωd't)+(A1-A2)cosh(ωd't)} | D38: 速度 | E38: 0.36 | F38: 1.04284124 | G38: -0.9616853206 | H38: 0.8862637706 | J38: 1.042836773 | K38: -0.9616851995 | L38: 0.8862637674 | N38: -4.466663639e-06 | O38: 1.210835785e-07 | P38: -3.203378007e-09
A39: x''=-γx'-γ(γx+x')+ωd'^2x=(ωd'^2-γ^2)x-2γx' | D39: 加速度 | E39: 0.372 | F39: 1.029600139 | G39: -0.9492507337 | H39: 0.8747983132 | J39: 1.029597173 | K39: -0.9492506533 | L39: 0.8747983111 | N39: -2.965885108e-06 | O39: 8.036861421e-08 | P39: -2.09723483e-09
A40: A1={1/(2ωd')}{(γ+ωd')x0+x'0} | D40: 振幅１ | E40: 0.384 | F40: 1.016440903 | G40: -0.9369745874 | H40: 0.8634811192 | J40: 1.016438935 | K40: -0.9369745341 | L40: 0.8634811178 | N40: -1.967299514e-06 | O40: 5.327722774e-08 | P40: -1.360728752e-09
A41: A2={1/(2ωd')}{(-γ+ωd')x0-x'0} | D41: 振幅２ | E41: 0.396 | F41: 1.003394442 | G41: -0.9248556994 | H41: 0.852310294 | J41: 1.003393138 | K41: -0.9248556641 | L41: 0.8523102932 | N41: -1.303641235e-06 | O41: 3.527182746e-08 | P41: -8.707631283e-10
E42: 0.408 | F42: 0.9904798409 | G42: -0.9128925924 | H42: 0.8412839593 | J42: 0.9904789779 | K42: -0.9128925691 | L42: 0.8412839587 | N42: -8.630584315e-07 | O42: 2.331808768e-08 | P42: -5.450201401e-10
E43: 0.42 | F43: 0.9777085926 | G43: -0.9010836091 | H43: 0.8304002553 | J43: 0.9777080218 | K43: -0.9010835937 | L43: 0.830400255 | N43: -5.708689954e-07 | O43: 1.539002814e-08 | P43: -3.285379746e-10
E44: 0.432 | F44: 0.9650873233 | G44: -0.8894269858 | H44: 0.8196573432 | J44: 0.965086946 | K44: -0.8894269757 | L44: 0.819657343 | N44: -3.772790492e-07 | O44: 1.013683659e-08 | P44: -1.846717224e-10
E45: 0.444 | F45: 0.9526195416 | G45: -0.8779208992 | H45: 0.8090534055 | J45: 0.9526192925 | K45: -0.8779208925 | L45: 0.8090534054 | N45: -2.491323209e-07 | O45: 6.659046647e-09 | P45: -8.901868132e-11
E46: 0.456 | F46: 0.9403067633 | G46: -0.8665634966 | H46: 0.7985866469 | J46: 0.9403065989 | K46: -0.8665634923 | L46: 0.7985866469 | N46: -1.643780639e-07 | O46: 4.35846137e-09 | P46: -2.534839005e-11
E47: 0.468 | F47: 0.9281492325 | G47: -0.8553529158 | H47: 0.7882552943 | J47: 0.9281491241 | K47: -0.8553529129 | L47: 0.7882552943 | N47: -1.0836799e-07 | O47: 2.837703517e-09 | P47: 1.711741859e-11
E48: 0.48 | F48: 0.9161463862 | G48: -0.8442872963 | H48: 0.7780575971 | J48: 0.9161463149 | K48: -0.8442872944 | L48: 0.7780575971 | N48: -7.138170144e-08 | O48: 1.833074692e-09 | P48: 4.553479815e-11
E49: 0.492 | F49: 0.9042971522 | G49: -0.833364788 | H49: 0.7679918267 | J49: 0.9042971052 | K49: -0.8333647868 | L49: 0.7679918268 | N49: -4.697528133e-08 | O49: 1.169761732e-09 | P49: 6.464828672e-11
E50: 0.504 | F50: 0.8926001397 | G50: -0.8225835557 | H50: 0.7580562771 | J50: 0.8926001088 | K50: -0.822583555 | L50: 0.7580562771 | N50: -3.088095724e-08 | O50: 7.319898021e-10 | P50: 7.75970399e-11
E51: 0.516 | F51: 0.8810537629 | G51: -0.8119417821 | H51: 0.7482492636 | J51: 0.8810537426 | K51: -0.8119417816 | L51: 0.7482492637 | N51: -2.027465495e-08 | O51: 4.431432998e-10 | P51: 8.6463392e-11
E52: 0.528 | F52: 0.8696563194 | G52: -0.8014376696 | H52: 0.7385691236 | J52: 0.8696563061 | K52: -0.8014376694 | L52: 0.7385691237 | N52: -1.32892195e-08 | O52: 2.525718523e-10 | P52: 9.261935663e-11
E53: 0.54 | F53: 0.8584060407 | G53: -0.7910694418 | H53: 0.729014216 | J53: 0.858406032 | K53: -0.7910694416 | L53: 0.7290142161 | N53: -8.691114273e-09 | O53: 1.26810118e-10 | P53: 9.697509462e-11
E54: 0.552 | F54: 0.8473011247 | G54: -0.7808353432 | H54: 0.7195829205 | J54: 0.847301119 | K54: -0.7808353432 | L54: 0.7195829206 | N54: -5.666055847e-09 | O54: 4.376476959e-11 | P54: 1.001320138e-10
E55: 0.564 | F55: 0.8363397561 | G55: -0.7707336406 | H55: 0.7102736382 | J55: 0.8363397524 | K55: -0.7707336406 | L55: 0.7102736383 | N55: -3.676853377e-09 | O55: -1.113464876e-11 | P55: 1.024843543e-10
E56: 0.576 | F56: 0.8255201198 | G56: -0.7607626221 | H56: 0.7010847904 | J56: 0.8255201174 | K56: -0.7607626222 | L56: 0.7010847905 | N56: -2.369376695e-09 | O56: -4.749889371e-11 | P56: 1.042954612e-10
E57: 0.588 | F57: 0.8148404093 | G57: -0.750920598 | H57: 0.6920148193 | J57: 0.8148404078 | K57: -0.7509205981 | L57: 0.6920148194 | N57: -1.510321535e-09 | O57: -7.165679161e-11 | P57: 1.057371968e-10
E58: 0.6 | F58: 0.8042988315 | G58: -0.7412058998 | H58: 0.6830621868 | J58: 0.8042988306 | K58: -0.7412058999 | L58: 0.6830621869 | N58: -9.460703332e-10 | O58: -8.777500948e-11 | P58: 1.069221378e-10
E59: 0.612 | F59: 0.7938936108 | G59: -0.7316168806 | H59: 0.6742253749 | J59: 0.7938936102 | K59: -0.7316168807 | L59: 0.6742253751 | N59: -5.755281807e-10 | O59: -9.859835171e-11 | P59: 1.079266676e-10
E60: 0.624 | F60: 0.78362299 | G60: -0.7221519147 | H60: 0.6655028854 | J60: 0.7836229897 | K60: -0.7221519148 | L60: 0.6655028855 | N60: -3.322290221e-10 | O60: -1.059321519e-10 | P60: 1.088015233e-10
E61: 0.636 | F61: 0.7734852326 | G61: -0.7128093974 | H61: 0.6568932392 | J61: 0.7734852324 | K61: -0.7128093975 | L61: 0.6568932393 | N61: -1.724677068e-10 | O61: -1.10960352e-10 | P61: 1.095777913e-10
E62: 0.648 | F62: 0.7634786225 | G62: -0.7035877446 | H62: 0.6483949764 | J62: 0.7634786224 | K62: -0.7035877447 | L62: 0.6483949765 | N62: -6.753819726e-11 | O62: -1.144639938e-10 | P62: 1.10278342e-10
E63: 0.66 | F63: 0.7536014651 | G63: -0.6944853927 | H63: 0.6400066561 | J63: 0.7536014651 | K63: -0.6944853928 | L63: 0.6400066562 | N63: 1.41187062e-12 | O63: -1.169566666e-10 | P63: 1.109192738e-10
E64: 0.672 | F64: 0.7438520868 | G64: -0.6855007983 | H64: 0.631726856 | J64: 0.7438520868 | K64: -0.6855007984 | L64: 0.6317268561 | N64: 4.67725858e-11 | O64: -1.187722143e-10 | P64: 1.115075809e-10
E65: 0.684 | F65: 0.7342288353 | G65: -0.6766324381 | H65: 0.623554172 | J65: 0.7342288354 | K65: -0.6766324382 | L65: 0.6235541721 | N65: 7.665457158e-11 | O65: -1.201334587e-10 | P65: 1.120519233e-10
E66: 0.696 | F66: 0.7247300794 | G66: -0.6678788083 | H66: 0.6154872185 | J66: 0.7247300795 | K66: -0.6678788084 | L66: 0.6154872187 | N66: 9.638767562e-11 | O66: -1.211863943e-10 | P66: 1.125575189e-10
E67: 0.708 | F67: 0.7153542089 | G67: -0.6592384246 | H67: 0.6075246277 | J67: 0.715354209 | K67: -0.6592384247 | L67: 0.6075246278 | N67: 1.094584423e-10 | O67: -1.220246126e-10 | P67: 1.130258109e-10
E68: 0.72 | F68: 0.7060996341 | G68: -0.6507098221 | H68: 0.5996650492 | J68: 0.7060996342 | K68: -0.6507098222 | L68: 0.5996650493 | N68: 1.18158372e-10 | O68: -1.227116186e-10 | P68: 1.134602412e-10
E69: 0.732 | F69: 0.696964786 | G69: -0.6422915545 | H69: 0.5919071506 | J69: 0.6969647861 | K69: -0.6422915546 | L69: 0.5919071507 | N69: 1.239907066e-10 | O69: -1.232904889e-10 | P69: 1.138635852e-10
E70: 0.744 | F70: 0.6879481158 | G70: -0.6339821945 | H70: 0.5842496163 | J70: 0.6879481159 | K70: -0.6339821946 | L70: 0.5842496164 | N70: 1.279263362e-10 | O70: -1.237857594e-10 | P70: 1.142350659e-10
E71: 0.756 | F71: 0.6790480946 | G71: -0.6257803331 | H71: 0.5766911479 | J71: 0.6790480947 | K71: -0.6257803333 | L71: 0.576691148 | N71: 1.306194042e-10 | O71: -1.242186354e-10 | P71: 1.145782358e-10
E72: 0.768 | F72: =EXP(-$C$28*E72)*(($C$28-$C$31)^2*$C$29*EXP($C$31*E72)+($C$28+$C$31)^2*$C$30*EXP(-$C$31*E72)) -> 0.6702632134 | G72: =-EXP(-$C$28*E72)*(($C$28-$C$31)*$C$29*EXP($C$31*E72)+($C$28+$C$31)*$C$30*EXP(-$C$31*E72)) -> -0.6176845797 | H72: =EXP(-$C$28*E72)*($C$29*EXP($C$31*E72)+$C$30*EXP(-$C$31*E72)) -> 0.5692304639 | J72: 0.6702632135 | K72: -0.6176845798 | L72: 0.569230464 | N72: 1.324769183e-10 | O72: -1.245991088e-10 | P72: 1.14892984e-10
E73: =E72+$C$8 -> 0.78 | F73: 0.6615919826 | G73: -0.6096935614 | H73: 0.5618662991 | J73: 0.6615919827 | K73: -0.6096935615 | L73: 0.5618662992 | N73: 1.337864264e-10 | O73: -1.249350623e-10 | P73: 1.151788664e-10
E74: 0.792 | F74: 0.653032932 | G74: -0.6018059234 | H74: 0.5545974049 | J74: 0.6530329321 | K74: -0.6018059235 | L74: 0.554597405 | N74: 1.347324474e-10 | O74: -1.252330462e-10 | P74: 1.154379925e-10
E75: 0.804 | F75: 0.6445846102 | G75: -0.5940203281 | H75: 0.5474225487 | J75: 0.6445846103 | K75: -0.5940203283 | L75: 0.5474225489 | N75: 1.354246715e-10 | O75: -1.254979454e-10 | P75: 1.156718055e-10
E76: 0.816 | F76: 0.6362455848 | G76: -0.5863354555 | H76: 0.5403405141 | J76: 0.636245585 | K76: -0.5863354557 | L76: 0.5403405142 | N76: 1.359392598e-10 | O76: -1.25730204e-10 | P76: 1.158794172e-10
E77: 0.828 | F77: 0.6280144419 | G77: -0.5787500026 | H77: 0.5333501001 | J77: 0.628014442 | K77: -0.5787500027 | L77: 0.5333501003 | N77: 1.363322788e-10 | O77: -1.259329308e-10 | P77: 1.160619378e-10
E78: 0.84 | F78: 0.6198897856 | G78: -0.571262683 | H78: 0.5264501215 | J78: 0.6198897858 | K78: -0.5712626831 | L78: 0.5264501216 | N78: =J78-F78 -> 1.366380342e-10 | O78: -1.261091231e-10 | P78: 1.162213659e-10
E79: 0.852 | F79: 0.6118702385 | G79: -0.5638722273 | H79: 0.5196394083 | J79: 0.6118702386 | K79: -0.5638722274 | L79: 0.5196394084 | N79: 1.368728464e-10 | O79: -1.2625756e-10 | P79: 1.16356369e-10
E80: 0.864 | F80: 0.6039544407 | G80: -0.5565773823 | H80: 0.5129168056 | J80: 0.6039544408 | K80: -0.5565773824 | L80: 0.5129168057 | N80: 1.370471514e-10 | O80: -1.263811278e-10 | P80: 1.164692787e-10
E81: 0.876 | F81: 0.59614105 | G81: -0.5493769111 | H81: 0.5062811736 | J81: 0.5961410501 | K81: -0.5493769112 | L81: 0.5062811737 | N81: 1.371861513e-10 | O81: -1.264781613e-10 | P81: 1.165578745e-10
E82: 0.888 | F82: 0.5884287415 | G82: -0.5422695928 | H82: 0.4997313871 | J82: 0.5884287416 | K82: -0.5422695929 | L82: 0.4997313873 | N82: 1.372880698e-10 | O82: -1.265533234e-10 | P82: 1.166265973e-10
E83: 0.9 | F83: 0.5808162076 | G83: -0.5352542222 | H83: 0.4932663356 | J83: 0.5808162077 | K83: -0.5352542223 | L83: 0.4932663357 | N83: 1.373584579e-10 | O83: -1.26606059e-10 | P83: 1.166748365e-10
E84: 0.912 | F84: 0.5733021574 | G84: -0.5283296098 | H84: 0.4868849228 | J84: 0.5733021575 | K84: -0.52832961 | L84: 0.4868849229 | N84: 1.373933189e-10 | O84: -1.266331484e-10 | P84: 1.166997055e-10
E85: 0.924 | F85: 0.5658853169 | G85: -0.5214945816 | H85: 0.4805860666 | J85: 0.565885317 | K85: -0.5214945817 | L85: 0.4805860668 | N85: 1.374131919e-10 | O85: -1.266403649e-10 | P85: 1.167062003e-10
E86: 0.936 | F86: 0.5585644284 | G86: -0.5147479784 | H86: 0.4743686991 | J86: 0.5585644286 | K86: -0.5147479786 | L86: 0.4743686992 | N86: 1.37398537e-10 | O86: -1.26626043e-10 | P86: 1.166928776e-10
E87: 0.948 | F87: 0.5513382507 | G87: -0.5080886564 | H87: 0.468231766 | J87: 0.5513382508 | K87: -0.5080886566 | L87: 0.4682317661 | N87: 1.373628988e-10 | O87: -1.265892946e-10 | P87: 1.166588492e-10
E88: 0.96 | F88: 0.5442055584 | G88: -0.5015154865 | H88: 0.4621742268 | J88: 0.5442055586 | K88: -0.5015154866 | L88: 0.4621742269 | N88: 1.373055003e-10 | O88: -1.265337835e-10 | P88: 1.166075569e-10
E89: 0.972 | F89: 0.5371651422 | G89: -0.4950273539 | H89: 0.4561950542 | J89: 0.5371651423 | K89: -0.4950273541 | L89: 0.4561950543 | N89: 1.372246761e-10 | O89: -1.264585658e-10 | P89: 1.16538279e-10
E90: 0.984 | F90: 0.5302158082 | G90: -0.4886231587 | H90: 0.4502932345 | J90: 0.5302158083 | K90: -0.4886231589 | L90: 0.4502932346 | N90: 1.37114986e-10 | O90: -1.263623095e-10 | P90: 1.164496832e-10
E91: 0.996 | F91: 0.523356378 | G91: -0.4823018149 | H91: 0.444467767 | J91: 0.5233563782 | K91: -0.4823018151 | L91: 0.4444677671 | N91: 1.369943048e-10 | O91: -1.262492333e-10 | P91: 1.163453778e-10
E92: 1.008 | F92: 0.5165856887 | G92: -0.4760622507 | H92: 0.4387176639 | J92: 0.5165856889 | K92: -0.4760622508 | L92: 0.438717664 | N92: 1.368531954e-10 | O92: -1.261178384e-10 | P92: 1.16224308e-10
E93: 1.02 | F93: 0.5099025922 | G93: -0.469903408 | H93: 0.4330419501 | J93: 0.5099025923 | K93: -0.4699034082 | L93: 0.4330419502 | N93: 1.366922131e-10 | O93: -1.259670146e-10 | P93: 1.16085308e-10
E94: 1.032 | F94: 0.5033059552 | G94: -0.4638242426 | H94: 0.4274396634 | J94: 0.5033059554 | K94: -0.4638242428 | L94: 0.4274396635 | N94: 1.365094704e-10 | O94: -1.258007032e-10 | P94: 1.159319307e-10
E95: 1.044 | F95: 0.4967946593 | G95: -0.4578237237 | H95: 0.4219098537 | J95: 0.4967946595 | K95: -0.4578237239 | L95: 0.4219098538 | N95: 1.363128499e-10 | O95: -1.256175719e-10 | P95: 1.157632323e-10
E96: 1.056 | F96: 0.4903676004 | G96: -0.4519008339 | H96: 0.4164515835 | J96: 0.4903676005 | K96: -0.451900834 | L96: 0.4164515836 | N96: 1.36092082e-10 | O96: -1.25416344e-10 | P96: 1.155779361e-10
E97: 1.068 | F97: 0.4840236887 | G97: -0.4460545688 | H97: 0.4110639272 | J97: 0.4840236888 | K97: -0.4460545689 | L97: 0.4110639273 | N97: 1.358616553e-10 | O97: -1.252012938e-10 | P97: 1.153795948e-10
E98: 1.08 | F98: 0.4777618484 | G98: -0.4402839371 | H98: 0.4057459713 | J98: 0.4777618486 | K98: -0.4402839372 | L98: 0.4057459714 | N98: 1.356141865e-10 | O98: -1.249705339e-10 | P98: 1.151669315e-10
E99: 1.092 | F99: 0.471581018 | G99: -0.4345879604 | H99: 0.4004968141 | J99: 0.4715810181 | K99: -0.4345879605 | L99: 0.4004968142 | N99: 1.353416268e-10 | O99: -1.247233983e-10 | P99: 1.149391138e-10
E100: 1.104 | F100: 0.4654801493 | G100: -0.4289656728 | H100: 0.3953155655 | J100: 0.4654801494 | K100: -0.4289656729 | L100: 0.3953155656 | N100: 1.350601297e-10 | O100: -1.24463051e-10 | P100: 1.146992501e-10
E101: 1.116 | F101: 0.4594582078 | G101: -0.4234161211 | H101: 0.390201347 | J101: 0.459458208 | K101: -0.4234161212 | L101: 0.3902013471 | N101: 1.347632561e-10 | O101: -1.241886594e-10 | P101: 1.144464523e-10
E102: 1.128 | F102: 0.4535141725 | G102: -0.4179383642 | H102: 0.3851532914 | J102: 0.4535141727 | K102: -0.4179383643 | L102: 0.3851532915 | N102: 1.344452882e-10 | O102: -1.238990022e-10 | P102: 1.141796657e-10
E103: 1.14 | F103: 0.4476470356 | G103: -0.4125314733 | H103: 0.3801705428 | J103: 0.4476470357 | K103: -0.4125314735 | L103: 0.3801705429 | N103: 1.341184386e-10 | O103: -1.235976321e-10 | P103: 1.139018879e-10
E104: 1.152 | F104: 0.4418558021 | G104: -0.4071945317 | H104: 0.3752522562 | J104: 0.4418558022 | K104: -0.4071945318 | L104: 0.3752522564 | N104: 1.337777111e-10 | O104: -1.232832725e-10 | P104: 1.136121752e-10
E105: 1.164 | F105: 0.43613949 | G105: -0.4019266344 | H105: 0.3703975978 | J105: 0.4361394902 | K105: -0.4019266345 | L105: 0.370397598 | N105: 1.334233279e-10 | O105: -1.22955035e-10 | P105: 1.133096394e-10
E106: 1.176 | F106: 0.4304971303 | G106: -0.3967268881 | H106: 0.3656057444 | J106: 0.4304971304 | K106: -0.3967268883 | L106: 0.3656057445 | N106: 1.330538457e-10 | O106: -1.226159174e-10 | P106: 1.129971672e-10
E107: 1.188 | F107: 0.424927766 | G107: -0.3915944113 | H107: 0.3608758834 | J107: 0.4249277661 | K107: -0.3915944114 | L107: 0.3608758836 | N107: 1.32674649e-10 | O107: -1.222663637e-10 | P107: 1.126750915e-10
E108: 1.2 | F108: 0.4194304529 | G108: -0.3865283336 | H108: 0.3562072129 | J108: 0.419430453 | K108: -0.3865283337 | L108: 0.3562072131 | N108: 1.322796872e-10 | O108: -1.219027657e-10 | P108: 1.123399707e-10
E109: 1.212 | F109: 0.4140042588 | G109: -0.3815277959 | H109: 0.3515989413 | J109: 0.4140042589 | K109: -0.3815277961 | L109: 0.3515989414 | N109: 1.318740117e-10 | O109: -1.215293421e-10 | P109: 1.119958015e-10
E110: 1.224 | F110: 0.4086482637 | G110: -0.3765919506 | H110: 0.3470502871 | J110: 0.4086482638 | K110: -0.3765919507 | L110: 0.3470502872 | N110: 1.314582887e-10 | O110: -1.211452605e-10 | P110: 1.116418069e-10
E111: 1.236 | F111: 0.4033615593 | G111: -0.3717199605 | H111: 0.3425604791 | J111: 0.4033615595 | K111: -0.3717199606 | L111: 0.3425604792 | N111: 1.310288544e-10 | O111: -1.207492994e-10 | P111: 1.112769876e-10
E112: 1.248 | F112: 0.3981432494 | G112: -0.3669109996 | H112: 0.3381287559 | J112: 0.3981432495 | K112: -0.3669109997 | L112: 0.338128756 | N112: 1.305905939e-10 | O112: -1.203447342e-10 | P112: 1.109041192e-10
E113: 1.26 | F113: 0.392992449 | G113: -0.3621642524 | H113: 0.3337543662 | J113: 0.3929924491 | K113: -0.3621642526 | L113: 0.3337543663 | N113: 1.301445063e-10 | O113: -1.199304545e-10 | P113: 1.10522258e-10
E114: 1.272 | F114: 0.3879082848 | G114: -0.3574789142 | H114: 0.3294365682 | J114: 0.3879082849 | K114: -0.3574789144 | L114: 0.3294365683 | N114: 1.296831531e-10 | O114: -1.195053501e-10 | P114: 1.101305158e-10
E115: 1.284 | F115: 0.3828898947 | G115: -0.3528541905 | H115: 0.3251746298 | J115: 0.3828898948 | K115: -0.3528541906 | L115: 0.3251746299 | N115: 1.292135843e-10 | O115: -1.190724741e-10 | P115: 1.097315572e-10
E116: 1.296 | F116: 0.3779364277 | G116: -0.3482892971 | H116: 0.3209678283 | J116: 0.3779364279 | K116: -0.3482892972 | L116: 0.3209678284 | N116: 1.287326357e-10 | O116: -1.186307719e-10 | P116: 1.093245494e-10
E117: 1.308 | F117: 0.3730470441 | G117: -0.3437834599 | H117: 0.3168154505 | J117: 0.3730470442 | K117: -0.34378346 | L117: 0.3168154506 | N117: 1.282403628e-10 | O117: -1.181793552e-10 | P117: 1.089085488e-10
E118: 1.32 | F118: 0.3682209146 | G118: -0.339335915 | H118: 0.3127167921 | J118: 0.3682209147 | K118: -0.3393359151 | L118: 0.3127167922 | N118: 1.277420392e-10 | O118: -1.177209996e-10 | P118: 1.0848622e-10
E119: 1.332 | F119: 0.363457221 | G119: -0.3349459082 | H119: 0.3086711583 | J119: 0.3634572212 | K119: -0.3349459083 | L119: 0.3086711585 | N119: 1.27235944e-10 | O119: -1.172547059e-10 | P119: 1.080565637e-10
E120: 1.344 | F120: 0.3587551556 | G120: -0.3306126952 | H120: 0.3046778632 | J120: 0.3587551558 | K120: -0.3306126953 | L120: 0.3046778633 | N120: 1.267176919e-10 | O120: -1.16779586e-10 | P120: 1.076188028e-10
E121: 1.356 | F121: 0.3541139211 | G121: -0.3263355412 | H121: 0.3007362294 | J121: 0.3541139212 | K121: -0.3263355413 | L121: 0.3007362295 | N121: 1.261989957e-10 | O121: -1.162984153e-10 | P121: 1.071752687e-10
E122: 1.368 | F122: 0.3495327305 | G122: -0.3221137209 | H122: 0.2968455888 | J122: 0.3495327306 | K122: -0.322113721 | L122: 0.2968455889 | N122: 1.25667754e-10 | O122: -1.158100282e-10 | P122: 1.067251842e-10
E123: 1.38 | F123: 0.3450108069 | G123: -0.3179465186 | H123: 0.2930052817 | J123: 0.3450108071 | K123: -0.3179465187 | L123: 0.2930052818 | N123: 1.251287962e-10 | O123: -1.153137585e-10 | P123: 1.062678834e-10
E124: 1.392 | F124: 0.3405473838 | G124: -0.3138332275 | H124: 0.2892146567 | J124: 0.3405473839 | K124: -0.3138332276 | L124: 0.2892146568 | N124: 1.245878956e-10 | O124: -1.148120488e-10 | P124: 1.0580542e-10
E125: 1.404 | F125: 0.3361417042 | G125: -0.3097731504 | H125: 0.2854730713 | J125: 0.3361417043 | K125: -0.3097731505 | L125: 0.2854730714 | N125: 1.240375025e-10 | O125: -1.143040107e-10 | P125: 1.053372389e-10
E126: 1.416 | F126: 0.3317930211 | G126: -0.3057655986 | H126: 0.281779891 | J126: 0.3317930212 | K126: -0.3057655988 | L126: 0.2817798911 | N126: 1.234777836e-10 | O126: -1.137888117e-10 | P126: 1.048625076e-10
E127: 1.428 | F127: 0.3275005971 | G127: -0.3018098928 | H127: 0.2781344896 | J127: 0.3275005972 | K127: -0.3018098929 | L127: 0.2781344897 | N127: 1.229137903e-10 | O127: -1.132687832e-10 | P127: 1.043832798e-10
E128: 1.44 | F128: 0.3232637044 | G128: -0.2979053622 | H128: 0.2745362489 | J128: 0.3232637046 | K128: -0.2979053623 | L128: 0.274536249 | N128: 1.223464663e-10 | O128: -1.127433702e-10 | P128: 1.038990005e-10
E129: 1.452 | F129: 0.3190816247 | G129: -0.2940513447 | H129: 0.2709845588 | J129: 0.3190816248 | K129: -0.2940513448 | L129: 0.2709845589 | N129: 1.21767707e-10 | O129: -1.122113513e-10 | P129: 1.03408726e-10
E130: 1.464 | F130: 0.3149536487 | G130: -0.2902471868 | H130: 0.2674788172 | J130: 0.3149536489 | K130: -0.2902471869 | L130: 0.2674788173 | N130: 1.211841738e-10 | O130: -1.116753356e-10 | P130: 1.029147878e-10
E131: 1.476 | F131: 0.3108790766 | G131: -0.2864922435 | H131: 0.2640184295 | J131: 0.3108790768 | K131: -0.2864922436 | L131: 0.2640184296 | N131: 1.205971989e-10 | O131: -1.111344905e-10 | P131: 1.024162977e-10
E132: 1.488 | F132: 0.3068572175 | G132: -0.2827858781 | H132: 0.260602809 | J132: 0.3068572176 | K132: -0.2827858782 | L132: 0.2606028091 | N132: 1.200032851e-10 | O132: -1.105878167e-10 | P132: 1.019125895e-10
E133: 1.5 | F133: 0.3028873893 | G133: -0.2791274621 | H133: 0.2572313766 | J133: 0.3028873895 | K133: -0.2791274623 | L133: 0.2572313767 | N133: 1.194073729e-10 | O133: -1.100377567e-10 | P133: 1.014056616e-10
E134: 1.512 | F134: 0.2989689191 | G134: -0.2755163753 | H134: 0.2539035606 | J134: 0.2989689192 | K134: -0.2755163754 | L134: 0.2539035607 | N134: 1.188051324e-10 | O134: -1.094833668e-10 | P134: 1.008947925e-10
E135: 1.524 | F135: 0.2951011423 | G135: -0.2719520053 | H135: 0.2506187968 | J135: 0.2951011424 | K135: -0.2719520054 | L135: 0.2506187969 | N135: 1.181973963e-10 | O135: -1.089239254e-10 | P135: 1.003792605e-10
E136: 1.536 | F136: =EXP(-$C$28*E136)*(($C$28-$C$31)^2*$C$29*EXP($C$31*E136)+($C$28+$C$31)^2*$C$30*EXP(-$C$31*E136)) -> 0.2912834031 | G136: =-EXP(-$C$28*E136)*(($C$28-$C$31)*$C$29*EXP($C$31*E136)+($C$28+$C$31)*$C$30*EXP(-$C$31*E136)) -> -0.2684337478 | H136: =EXP(-$C$28*E136)*($C$29*EXP($C$31*E136)+$C$30*EXP(-$C$31*E136)) -> 0.2473765281 | J136: 0.2912834032 | K136: -0.2684337479 | L136: 0.2473765282 | N136: 1.175902153e-10 | O136: -1.083625967e-10 | P136: 9.986192429e-11
E137: =E136+$C$8 -> 1.548 | F137: 0.2875150542 | G137: -0.2649610061 | H137: 0.2441762048 | J137: 0.2875150543 | K137: -0.2649610062 | L137: 0.2441762049 | N137: 1.169723762e-10 | O137: -1.077965495e-10 | P137: 9.934034151e-11
E138: 1.56 | F138: 0.2837954567 | G138: -0.2615331915 | H138: 0.2410172842 | J138: 0.2837954568 | K138: -0.2615331916 | L138: 0.2410172843 | N138: 1.163554253e-10 | O138: -1.072261724e-10 | P138: 9.881467866e-11
E139: 1.572 | F139: 0.2801239797 | G139: -0.2581497226 | H139: 0.2378992308 | J139: 0.2801239799 | K139: -0.2581497228 | L139: 0.2378992309 | N139: 1.157336449e-10 | O139: -1.066534083e-10 | P139: 9.828682312e-11
E140: 1.584 | F140: 0.2765000009 | G140: -0.2548100259 | H140: 0.2348215158 | J140: 0.276500001 | K140: -0.2548100261 | L140: 0.2348215159 | N140: 1.151074236e-10 | O140: -1.060774246e-10 | P140: 9.775610876e-11
E141: 1.596 | F141: 0.2729229057 | G141: -0.2515135351 | H141: 0.2317836173 | J141: 0.2729229058 | K141: -0.2515135352 | L141: 0.2317836174 | N141: 1.144787598e-10 | O141: -1.054976662e-10 | P141: 9.722178618e-11
E142: 1.608 | F142: 0.2693920875 | G142: -0.2482596911 | H142: 0.2287850203 | J142: 0.2693920877 | K142: -0.2482596912 | L142: 0.2287850204 | N142: =J142-F142 -> 1.138464878e-10 | O142: -1.049160758e-10 | P142: 9.668585377e-11
E143: 1.62 | F143: 0.2659069478 | G143: -0.2450479423 | H143: 0.2258252164 | J143: 0.2659069479 | K143: -0.2450479424 | L143: 0.2258252165 | N143: 1.132131611e-10 | O143: -1.043318487e-10 | P143: 9.614742336e-11
E144: 1.632 | F144: 0.2624668954 | G144: -0.241877744 | H144: 0.2229037035 | J144: 0.2624668956 | K144: -0.2418777441 | L144: 0.2229037036 | N144: 1.125766147e-10 | O144: -1.037443187e-10 | P144: 9.56060231e-11
E145: 1.644 | F145: 0.2590713473 | G145: -0.2387485588 | H145: 0.2200199865 | J145: 0.2590713474 | K145: -0.2387485589 | L145: 0.2200199866 | N145: 1.119364601e-10 | O145: -1.031554009e-10 | P145: 9.506329057e-11
E146: 1.656 | F146: 0.2557197275 | G146: -0.235659856 | H146: 0.2171735762 | J146: 0.2557197276 | K146: -0.2356598561 | L146: 0.2171735763 | N146: 1.112946402e-10 | O146: -1.025643737e-10 | P146: 9.451861516e-11
E147: 1.668 | F147: 0.2524114677 | G147: -0.2326111119 | H147: 0.2143639901 | J147: 0.2524114678 | K147: -0.232611112 | L147: 0.2143639902 | N147: 1.106509884e-10 | O147: -1.019705154e-10 | P147: 9.397138623e-11
E148: 1.68 | F148: 0.2491460072 | G148: -0.2296018095 | H148: 0.2115907517 | J148: 0.2491460073 | K148: -0.2296018096 | L148: 0.2115907518 | N148: 1.100028679e-10 | O148: -1.013756579e-10 | P148: 9.342321361e-11
E149: 1.692 | F149: 0.245922792 | G149: -0.2266314387 | H149: 0.2088533909 | J149: 0.2459227921 | K149: -0.2266314388 | L149: 0.208853391 | N149: 1.093591884e-10 | O149: -1.007791628e-10 | P149: 9.287345892e-11
E150: 1.704 | F150: 0.2427412758 | G150: -0.2236994957 | H150: 0.2061514435 | J150: 0.2427412759 | K150: -0.2236994958 | L150: 0.2061514436 | N150: 1.08710152e-10 | O150: -1.001811412e-10 | P150: 9.23222887e-11
E151: 1.716 | F151: 0.239600919 | G151: -0.2208054835 | H151: 0.2034844513 | J151: 0.2396009191 | K151: -0.2208054836 | L151: 0.2034844514 | N151: 1.080594503e-10 | O151: -9.958006641e-11 | P151: 9.176839844e-11
E152: 1.728 | F152: 0.2365011891 | G152: -0.2179489112 | H152: 0.2008519621 | J152: 0.2365011892 | K152: -0.2179489113 | L152: 0.2008519622 | N152: 1.074059175e-10 | O152: -9.897935249e-11 | P152: 9.121481348e-11
E153: 1.74 | F153: 0.2334415607 | G153: -0.2151292945 | H153: 0.1982535296 | J153: 0.2334415608 | K153: -0.2151292946 | L153: 0.1982535297 | N153: 1.067518574e-10 | O153: -9.83775561e-11 | P153: 9.066028483e-11
E154: 1.752 | F154: 0.2304215148 | G154: -0.2123461554 | H154: 0.1956887132 | J154: 0.2304215149 | K154: -0.2123461555 | L154: 0.1956887132 | N154: 1.060961874e-10 | O154: -9.777476051e-11 | P154: 9.010475699e-11
E155: 1.764 | F155: 0.2274405394 | G155: -0.2095990219 | H155: 0.1931570779 | J155: 0.2274405395 | K155: -0.209599022 | L155: 0.193157078 | N155: 1.054424881e-10 | O155: -9.717113225e-11 | P155: 8.954847974e-11
E156: 1.776 | F156: 0.224498129 | G156: -0.2068874282 | H156: 0.1906581945 | J156: 0.2244981291 | K156: -0.2068874283 | L156: 0.1906581946 | N156: 1.047849862e-10 | O156: -9.656669908e-11 | P156: 8.899150861e-11
E157: 1.788 | F157: 0.2215937848 | G157: -0.2042109145 | H157: 0.1881916393 | J157: 0.2215937849 | K157: -0.2042109146 | L157: 0.1881916394 | N157: 1.041268738e-10 | O157: -9.5960212e-11 | P157: 8.843259458e-11
E158: 1.8 | F158: 0.2187270142 | G158: -0.2015690271 | H158: 0.185756994 | J158: 0.2187270143 | K158: -0.2015690272 | L158: 0.1857569941 | N158: 1.034705099e-10 | O158: -9.535469636e-11 | P158: 8.787456873e-11
E159: 1.812 | F159: 0.2158973312 | G159: -0.1989613178 | H159: 0.1833538459 | J159: 0.2158973313 | K159: -0.1989613179 | L159: 0.183353846 | N159: 1.028144792e-10 | O159: -9.474951379e-11 | P159: 8.73168482e-11
E160: 1.824 | F160: 0.2131042559 | G160: -0.1963873447 | H160: 0.1809817874 | J160: 0.213104256 | K160: -0.1963873448 | L160: 0.1809817875 | N160: 1.021560891e-10 | O160: -9.414266589e-11 | P160: 8.675757335e-11
E161: 1.836 | F161: 0.2103473148 | G161: -0.1938466712 | H161: 0.1786404164 | J161: 0.2103473149 | K161: -0.1938466712 | L161: 0.1786404165 | N161: 1.015008355e-10 | O161: -9.353698371e-11 | P161: 8.619935321e-11
E162: 1.848 | F162: 0.2076260404 | G162: -0.1913388665 | H162: 0.1763293359 | J162: 0.2076260405 | K162: -0.1913388666 | L162: 0.176329336 | N162: 1.008426675e-10 | O162: -9.29298305e-11 | P162: 8.563982856e-11
E163: 1.86 | F163: 0.2049399713 | G163: -0.1888635054 | H163: 0.1740481539 | J163: 0.2049399714 | K163: -0.1888635055 | L163: 0.174048154 | N163: 1.001843331e-10 | O163: -9.232273279e-11 | P163: 8.508035942e-11
E164: 1.872 | F164: 0.202288652 | G164: -0.1864201681 | H164: 0.1717964836 | J164: 0.2022886521 | K164: -0.1864201682 | L164: 0.1717964837 | N164: 9.952466629e-11 | O164: -9.171582938e-11 | P164: 8.452105682e-11
E165: 1.884 | F165: 0.1996716329 | G165: -0.1840084405 | H165: 0.1695739434 | J165: 0.199671633 | K165: -0.1840084406 | L165: 0.1695739435 | N165: 9.886830243e-11 | O165: -9.111042476e-11 | P165: 8.396316975e-11
E166: 1.896 | F166: 0.1970884704 | G166: -0.1816279135 | H166: 0.1673801563 | J166: 0.1970884705 | K166: -0.1816279136 | L166: 0.1673801564 | N166: 9.821043978e-11 | O166: -9.050410421e-11 | P166: 8.34043945e-11
E167: 1.908 | F167: 0.1945387264 | G167: -0.1792781836 | H167: 0.1652147503 | J167: 0.1945387265 | K167: -0.1792781836 | L167: 0.1652147504 | N167: 9.755335428e-11 | O167: -8.9899449e-11 | P167: 8.284717357e-11
E168: 1.92 | F168: 0.1920219685 | G168: -0.1769588522 | H168: 0.1630773583 | J168: 0.1920219686 | K168: -0.1769588522 | L168: 0.1630773584 | N168: 9.689671288e-11 | O168: -8.929407214e-11 | P168: 8.228931425e-11
E169: 1.932 | F169: 0.1895377701 | G169: -0.1746695261 | H169: 0.1609676178 | J169: 0.1895377702 | K169: -0.1746695262 | L169: 0.1609676179 | N169: 9.623829511e-11 | O169: -8.868927814e-11 | P169: 8.173195454e-11
E170: 1.944 | F170: 0.1870857099 | G170: -0.1724098171 | H170: 0.1588851712 | J170: 0.18708571 | K170: -0.1724098172 | L170: 0.1588851713 | N170: 9.558293046e-11 | O170: -8.808523355e-11 | P170: 8.117531647e-11
E171: 1.956 | F171: 0.1846653721 | G171: -0.1701793421 | H171: 0.1568296653 | J171: 0.1846653722 | K171: -0.1701793422 | L171: 0.1568296653 | N171: 9.492986952e-11 | O171: -8.748313185e-11 | P171: 8.062048251e-11
E172: 1.968 | F172: 0.1822763464 | G172: -0.1679777229 | H172: 0.1548007515 | J172: 0.1822763465 | K172: -0.167977723 | L172: 0.1548007516 | N172: 9.427661429e-11 | O172: -8.688072484e-11 | P172: 8.006534324e-11
E173: 1.98 | F173: 0.1799182276 | G173: -0.1658045862 | H173: 0.152798086 | J173: 0.1799182277 | K173: -0.1658045863 | L173: 0.1527980861 | N173: 9.362433051e-11 | O173: -8.628042725e-11 | P173: 7.951214687e-11
E174: 1.992 | F174: 0.1775906159 | G174: -0.1636595635 | H174: 0.150821329 | J174: 0.177590616 | K174: -0.1636595635 | L174: 0.1508213291 | N174: 9.297285164e-11 | O174: -8.567996312e-11 | P174: 7.89587562e-11
E175: 2.004 | F175: 0.1752931166 | G175: -0.161542291 | H175: 0.1488701455 | J175: 0.1752931167 | K175: -0.1615422911 | L175: 0.1488701455 | N175: 9.232295484e-11 | O175: -8.508058147e-11 | P175: 7.840639249e-11
E176: 2.016 | F176: 0.1730253403 | G176: -0.1594524098 | H176: 0.1469442045 | J176: 0.1730253404 | K176: -0.1594524098 | L176: 0.1469442045 | N176: 9.167669401e-11 | O176: -8.448353128e-11 | P176: 7.785611045e-11
E177: 2.028 | F177: 0.1707869022 | G177: -0.1573895655 | H177: 0.1450431795 | J177: 0.1707869023 | K177: -0.1573895655 | L177: 0.1450431796 | N177: 9.103051646e-11 | O177: -8.388764683e-11 | P177: 7.730699414e-11
E178: 2.04 | F178: 0.168577423 | G178: -0.1553534083 | H178: 0.1431667482 | J178: 0.1685774231 | K178: -0.1553534084 | L178: 0.1431667482 | N178: 9.03810915e-11 | O178: -8.329084644e-11 | P178: 7.675704516e-11
E179: 2.052 | F179: 0.1663965279 | G179: -0.153343593 | H179: 0.1413145923 | J179: 0.166396528 | K179: -0.1533435931 | L179: 0.1413145924 | N179: 8.973902177e-11 | O179: -8.269765428e-11 | P179: 7.621034359e-11
E180: 2.064 | F180: 0.1642438472 | G180: -0.1513597787 | H180: 0.1394863979 | J180: 0.1642438473 | K180: -0.1513597788 | L180: 0.139486398 | N180: 8.909462057e-11 | O180: -8.210476743e-11 | P180: 7.566397509e-11
E181: 2.076 | F181: 0.1621190158 | G181: -0.1494016292 | H181: 0.137681855 | J181: 0.1621190159 | K181: -0.1494016293 | L181: 0.137681855 | N181: 8.845468802e-11 | O181: -8.151440634e-11 | P181: 7.511993805e-11
E182: 2.088 | F182: 0.1600216735 | G182: -0.1474688124 | H182: 0.1359006575 | J182: 0.1600216735 | K182: -0.1474688125 | L182: 0.1359006576 | N182: 8.781456118e-11 | O182: -8.09245726e-11 | P182: 7.457637285e-11
E183: 2.1 | F183: 0.1579514646 | G183: -0.1455610005 | H183: 0.1341425034 | J183: 0.1579514646 | K183: -0.1455610006 | L183: 0.1341425035 | N183: 8.717540578e-11 | O183: -8.033637644e-11 | P183: 7.403433422e-11
E184: 2.112 | F184: 0.1559080381 | G184: -0.1436778701 | H184: 0.1324070947 | J184: 0.1559080381 | K184: -0.1436778702 | L184: 0.1324070948 | N184: 8.653808226e-11 | O184: -7.974979011e-11 | P184: 7.349379438e-11
E185: 2.124 | F185: 0.1538910475 | G185: -0.1418191019 | H185: 0.1306941371 | J185: 0.1538910476 | K185: -0.141819102 | L185: 0.1306941372 | N185: 8.590542167e-11 | O185: -7.916597933e-11 | P185: 7.295575255e-11
E186: 2.136 | F186: 0.1519001508 | G186: -0.1399843806 | H186: 0.1290033401 | J186: 0.1519001509 | K186: -0.1399843807 | L186: 0.1290033402 | N186: 8.527273332e-11 | O186: -7.858297346e-11 | P186: 7.241848787e-11
E187: 2.148 | F187: 0.1499350105 | G187: -0.1381733952 | H187: 0.127334417 | J187: 0.1499350106 | K187: -0.1381733953 | L187: 0.1273344171 | N187: 8.464243195e-11 | O187: -7.80027154e-11 | P187: 7.188374895e-11
E188: 2.16 | F188: 0.1479952933 | G188: -0.1363858387 | H188: 0.1256870849 | J188: 0.1479952934 | K188: -0.1363858388 | L188: 0.125687085 | N188: 8.401204732e-11 | O188: -7.742340102e-11 | P188: 7.134989821e-11
E189: 2.172 | F189: 0.1460806703 | G189: -0.1346214078 | H189: 0.1240610644 | J189: 0.1460806704 | K189: -0.1346214079 | L189: 0.1240610645 | N189: 8.338643664e-11 | O189: -7.684597403e-11 | P189: 7.081775444e-11
E190: 2.184 | F190: 0.1441908169 | G190: -0.1328798035 | H190: 0.1224560798 | J190: 0.144190817 | K190: -0.1328798036 | L190: 0.1224560799 | N190: 8.276315744e-11 | O190: -7.627057319e-11 | P190: 7.028747029e-11
E191: 2.196 | F191: 0.1423254126 | G191: -0.1311607304 | H191: 0.120871859 | J191: 0.1423254127 | K191: -0.1311607305 | L191: 0.1208718591 | N191: 8.214204317e-11 | O191: -7.569811444e-11 | P191: 6.975992006e-11
E192: 2.208 | F192: 0.1404841412 | G192: -0.1294638971 | H192: 0.1193081333 | J192: 0.1404841413 | K192: -0.1294638972 | L192: 0.1193081334 | N192: 8.152273301e-11 | O192: -7.512679367e-11 | P192: 6.923342455e-11
E193: 2.22 | F193: 0.1386666904 | G193: -0.1277890158 | H193: 0.1177646377 | J193: 0.1386666905 | K193: -0.1277890158 | L193: 0.1177646377 | N193: 8.090497716e-11 | O193: -7.455847051e-11 | P193: 6.870969071e-11
E194: 2.232 | F194: 0.136872752 | G194: -0.1261358025 | H194: 0.1162411103 | J194: 0.1368727521 | K194: -0.1261358025 | L194: 0.1162411103 | N194: 8.02906075e-11 | O194: -7.399139634e-11 | P194: 6.818708098e-11
E195: 2.244 | F195: 0.135102022 | G195: -0.1245039769 | H195: 0.1147372929 | J195: 0.135102022 | K195: -0.1245039769 | L195: 0.1147372929 | N195: 7.967718152e-11 | O195: -7.342651487e-11 | P195: 6.766652516e-11
E196: 2.256 | F196: 0.1333541999 | G196: -0.1228932623 | H196: 0.1132529304 | J196: 0.1333542 | K196: -0.1228932624 | L196: 0.1132529305 | N196: 7.906730826e-11 | O196: -7.286383996e-11 | P196: 6.714798162e-11
E197: 2.268 | F197: 0.1316289895 | G197: -0.1213033856 | H197: 0.1117877712 | J197: 0.1316289896 | K197: -0.1213033857 | L197: 0.1117877713 | N197: 7.845882277e-11 | O197: -7.230431531e-11 | P197: 6.663236629e-11
E198: 2.28 | F198: 0.1299260983 | G198: -0.1197340773 | H198: 0.1103415669 | J198: 0.1299260984 | K198: -0.1197340773 | L198: 0.1103415669 | N198: 7.785261324e-11 | O198: -7.174623395e-11 | P198: 6.611808323e-11
E199: 2.292 | F199: 0.1282452374 | G199: -0.1181850712 | H199: 0.1089140721 | J199: 0.1282452375 | K199: -0.1181850712 | L199: 0.1089140722 | N199: 7.72505393e-11 | O199: -7.119130285e-11 | P199: 6.560667287e-11
E200: 2.304 | F200: =EXP(-$C$28*E200)*(($C$28-$C$31)^2*$C$29*EXP($C$31*E200)+($C$28+$C$31)^2*$C$30*EXP(-$C$31*E200)) -> 0.126586122 | G200: =-EXP(-$C$28*E200)*(($C$28-$C$31)*$C$29*EXP($C$31*E200)+($C$28+$C$31)*$C$30*EXP(-$C$31*E200)) -> -0.1166561046 | H200: =EXP(-$C$28*E200)*($C$29*EXP($C$31*E200)+$C$30*EXP(-$C$31*E200)) -> 0.107505045 | J200: 0.1265861221 | K200: -0.1166561047 | L200: 0.1075050451 | N200: 7.664954782e-11 | O200: -7.063791219e-11 | P200: 6.509671968e-11
... 308 more rows

Sheet 動摩擦
A1: 振動の運動方程式
A2: mx''+cx'+kx=-sign(x')μ'mg+fsinΩt | D2: 運動方程式 | F2: 摩擦力が作用する振動 | K2: マクロで計算➡ | M2: =exe("振動シミュレーション","ForcedOscillation",C8:C19,K8:M8) -> 振動シミュレーション
A3: x''=-(c/m)x'-(k/m)x-sign(x')(μ'g)+(f/m)sinΩt | D3: 微分方程式 | K3: マクロは標準モジュール-Module6 の中。
A4: ダンパ ＋バネ ＋ 動摩擦 ＋ 外力 | G4: 解析解 | L4: 数値積分 | Q4: 理論値との差
E5: 時間 | F5: 振幅 | G5: 加速度 | H5: 速度 | I5: 変位 | K5: 加速度 | L5: 速度 | M5: 変位 | N5: 変位x | P5: 加速度 | Q5: 速度 | R5: 変位
E6: t | F6: An | G6: 理論値y'' | H6: 理論値y' | I6: 理論値y | K6: y'' | L6: y' | M6: y | N6: 理論値x | P6: y'' | Q6: y' | R6: y
B7: 赤太字は単振動からの変更データ | E7: [s] | F7: [m] | G7: [m/s^2] | H7: [m/s] | I7: [m] | K7: [m/s^2] | L7: [m/s] | M7: [m] | N7: [m] | P7: [m/s^2] | Q7: [m/s] | R7: [m]
A8: 時間間隔 | B8: Δt | C8: =C9/500 -> 0.012 | D8: [s] | E8: 0 | F8: =IF($C$18-(2*INT(($C$25*E8)/PI())+1)*$C$31<=$C$32,0,$C$18-(2*INT(($C$25*E8)/PI())+1)*$C$31) -> 0.9265 | G8: =-F8*$C$25^2*COS($C$25*E8) -> -37.06 | H8: =-F8*$C$25*SIN($C$25*E8) -> 0 | I8: =IF(F8>0,F8*COS($C$25*E8)-IF(H8<=0,-$C$31,$C$31),I7) -> 1 | K8: -37.06 | L8: 0 | M8: 1 | N8: =IF(F8>0,M8+IF(L8<=0,-$C$31,$C$31),N7) -> 0.9265 | P8: =K8-G8 -> 0 | Q8: =L8-H8 -> 0 | R8: =M8-I8 -> 0
A9: 終了時間 | B9: TL | C9: 6 | D9: [s] | E9: =E8+$C$8 -> 0.012 | F9: =IF($C$18-(2*INT(($C$25*E9)/PI())+1)*$C$31<=$C$32,0,$C$18-(2*INT(($C$25*E9)/PI())+1)*$C$31) -> 0.9265 | G9: =-F9*$C$25^2*COS($C$25*E9) -> -36.95331842 | H9: =-F9*$C$25*SIN($C$25*E9) -> -0.4442931917 | I9: =IF(F9>0,F9*COS($C$25*E9)-IF(H9<=0,-$C$31,$C$31),I8) -> 0.9973329605 | K9: -36.95331843 | L9: -0.4442930688 | M9: 0.9973329608 | N9: 0.9238329608 | P9: -9.835467552e-09 | Q9: 1.229393242e-07 | R9: 2.458869774e-10
A10: 重力加速度 | B10: g | C10: 9.8 | D10: [m/s^2] | E10: 0.024 | F10: 0.9265 | G10: -36.63388788 | H10: -0.8860284828 | I10: 0.989347197 | K10: -36.63388802 | L10: -0.8860282379 | M10: 0.9893472004 | N10: 0.9158472004 | P10: -1.375227967e-07 | Q10: 2.449350326e-07 | R10: 3.438070162e-09
A11: 質量 | B11: m | C11: 10 | D11: [kg] | E11: 0.036 | F11: 0.9265 | G11: -36.10354741 | H11: -1.322662699 | I11: 0.9760886852 | K11: -36.10354779 | L11: -1.322662335 | M11: 0.9760886947 | N11: 0.9025886947 | P11: -3.818743366e-07 | Q11: 3.638719033e-07 | R11: 9.546858526e-09
A12: 粘性減衰係数 | B12: c | C12: 0 | D12: [Ns/m] | E12: 0.048 | F12: 0.9265 | G12: -35.3653503 | H12: -1.751682034 | I12: 0.9576337576 | K12: -35.36535104 | L12: -1.751681557 | M12: 0.9576337761 | N12: 0.8841337761 | P12: -7.403545723e-07 | Q12: 4.776618154e-07 | R12: 1.850886455e-08
A13: バネ定数 | B13: k | C13: 400 | D13: [N/m] | E13: 0.06 | F13: 0.9265 | G13: -34.42354654 | H13: -2.170616523 | I13: 0.9340886635 | K13: -34.42354775 | L13: -2.170615939 | M13: 0.9340886937 | N13: 0.8605886937 | P13: -1.209101214e-06 | Q13: 5.842638529e-07 | R13: 3.022753059e-08
A14: 静止摩擦係数 | B14: μ | C14: 0.8 | D14: [ND] | E14: 0.072 | F14: 0.9265 | G14: -33.2835583 | H14: -2.577054261 | I14: 0.9055889576 | K14: -33.28356009 | L14: -2.57705358 | M14: 0.9055890022 | N14: 0.8320890022 | P14: -1.782957774e-06 | Q14: 6.81704031e-07 | R14: 4.457394431e-08
A15: 動摩擦係数 | B15: μ' | C15: 0.3 | D15: [ND] | E15: 0.084 | F15: 0.9265 | G15: -31.95194878 | H15: -2.96865529 | I15: 0.8722987194 | K15: -31.95195123 | L15: -2.968654522 | M15: 0.8722987808 | N15: 0.7987987808 | P15: -2.455517357e-06 | Q15: 7.680944933e-07 | R15: 6.138793418e-08
A16: 強制力 | B16: f | C16: 0 | D16: [N] | E16: 0.096 | F16: 0.9265 | G16: -30.43638435 | H16: -3.343165071 | I16: 0.8344096088 | K16: -30.43638757 | L16: -3.343164229 | M16: 0.8344096892 | N16: 0.7609096892 | P16: -3.219177529e-06 | Q16: 8.416520205e-07 | R16: 8.047943845e-08
A17: 強制力角振動数 | B17: Ω | C17: 0 | D17: [rad/s] | E17: 0.108 | F17: 0.9265 | G17: -28.74559048 | H17: -3.698427462 | I17: 0.7921397621 | K17: -28.74559455 | L17: -3.698426562 | M17: 0.7921398637 | N17: 0.7186398637 | P17: -4.065205431e-06 | Q17: 9.007156967e-07 | R17: 1.01630136e-07
A18: 初期位置 | B18: x0 | C18: 1 | D18: [m] | E18: 0.12 | F18: 0.9265 | G18: -26.88930148 | H18: -4.032397135 | I18: 0.7457325369 | K18: -26.88930646 | L18: -4.032396191 | M18: 0.7457326615 | N18: 0.6722326615 | P18: -4.983813117e-06 | Q18: 9.437636006e-07 | R18: 1.245953282e-07
A19: 初期速度 | B19: x'0 | C19: 0 | D19: [m/s] | E19: 0.132 | F19: 0.9265 | G19: -24.87820442 | H19: -4.343151347 | I19: 0.6954551105 | K19: -24.87821039 | L19: -4.343150377 | M19: 0.6954552596 | N19: 0.6219552596 | P19: -5.964242163e-06 | Q19: 9.694283651e-07 | R19: 1.491060543e-07
E20: 0.144 | F20: 0.9265 | G20: -22.72387768 | H20: -4.628901012 | I20: 0.641596942 | K20: -22.72388467 | L20: -4.628900036 | M20: 0.6415971168 | N20: 0.5680971168 | P20: -6.994857117e-06 | Q20: 9.765115019e-07 | R20: 1.748714281e-07
B21: c/m | C21: =C12/C11 -> 0 | D21: [1/s] | E21: 0.156 | F21: 0.9265 | G21: -20.43872422 | H21: -4.888001004 | I21: 0.5844681054 | K21: -20.43873228 | L21: -4.88800004 | M21: 0.584468307 | N21: 0.510968307 | P21: -8.06324698e-06 | Q21: 9.639963476e-07 | R21: 2.015811748e-07
B22: k/m | C22: =C13/C11 -> 40 | D22: [1/s^2] | E22: 0.168 | F22: 0.9265 | G22: -18.0359002 | H22: -5.118959621 | I22: 0.524397505 | K22: -18.03590936 | L22: -5.11895869 | M22: 0.5243977339 | N22: 0.4508977339 | P22: -9.156333938e-06 | Q22: 9.310595344e-07 | R22: 2.289083486e-07
B23: μ'g | C23: =C15*C10 -> 2.94 | D23: [s^2/m] | E23: 0.18 | F23: 0.9265 | G23: -15.52923925 | H23: -5.320447181 | I23: 0.4617309814 | K23: -15.52924952 | L23: -5.320446304 | M23: 0.4617312379 | N23: 0.3882312379 | P23: -1.026048852e-05 | Q23: 8.77080887e-07 | R23: 2.565122132e-07
B24: f/m | C24: =C16/C11 -> 0 | D24: [N/m] | E24: 0.192 | F24: 0.9265 | G24: -12.93317282 | H24: -5.491303672 | I24: 0.3968293205 | K24: -12.93318418 | L24: -5.491302871 | M24: 0.3968296045 | N24: 0.3233296045 | P24: -1.136165038e-05 | Q24: 8.016516562e-07 | R24: 2.840412596e-07
A25: 固有角振動数 | B25: ω＝√(k/m) | C25: =SQRT(C13/C11) -> 6.32455532 | D25: ［rad/s］ | E25: 0.204 | F25: 0.9265 | G25: -10.26264706 | H25: -5.630545434 | I25: 0.3300661764 | K25: -10.2626595 | L25: -5.630544729 | M25: 0.3300664876 | N25: 0.2565664876 | P25: -1.244545348e-05 | Q25: 7.045810113e-07 | R25: 3.111363371e-07
A26: 減衰固有角振動数 | B26: ωd＝ω√(1-ζ^2) | C26: =C25*SQRT(1-C27^2) -> 6.32455532 | D26: ［rad/s］ | E26: 0.216 | F26: 0.9265 | G26: -7.533036818 | H26: -5.737370818 | I26: 0.2618259205 | K26: -7.533050316 | L26: -5.737370232 | M26: 0.2618262579 | N26: 0.1883262579 | P26: -1.34973551e-05 | Q26: 5.85900743e-07 | R26: 3.374338777e-07
A27: 減衰比 | B27: ζ＝c/{2√(mk)} | C27: =C12/(2*SQRT(C11*C13)) -> 0 | D27: [ND] | E27: 0.228 | F27: 0.9265 | G27: -4.76005711 | H27: -5.811164806 | I27: 0.1925014278 | K27: -4.760071613 | L27: -5.811164361 | M27: 0.1925017903 | N27: 0.1190017903 | P27: -1.450276734e-05 | Q27: 4.45868106e-07 | R27: 3.625691835e-07
A28: 減衰率 | B28: γ＝ζω | C28: =C27*C25 -> 0 | D28: [1/s] | E28: 0.24 | F28: 0.9265 | G28: -1.959672631 | H28: -5.851502549 | I28: 0.1224918158 | K28: -1.959688078 | L28: -5.851502264 | M28: 0.122492202 | N28: 0.04899220196 | P28: -1.544719019e-05 | Q28: 2.849668022e-07 | R28: 3.861797548e-07
A29: 振幅 | B29: A | C29: =SQRT(C18^2+(C19/C25)^2) -> 1 | D29: [m] | E29: 0.252 | F29: 0.9265 | G29: 0.8519941449 | H29: -5.858151812 | I29: 0.05220014638 | K29: 0.8519778286 | L29: -5.858151708 | M29: 0.05220055429 | N29: -0.02129944571 | P29: -1.631634522e-05 | Q29: 1.03906042e-07 | R29: 4.079086305e-07
A30: 初期位相 | B30: β | C30: =ATAN2(C25*C18,-C19) -> 0 | D30: [rad] | E30: 0.264 | F30: 0.9265 | G30: 3.65875579 | H30: -5.831074314 | I30: -0.01796889475 | K30: 3.658738694 | L30: -5.83107441 | M30: -0.01796846734 | N30: -0.09146846734 | P30: -1.709630867e-05 | Q30: -9.638228171e-08 | R30: 4.274077168e-07
A31: 振動中心 | B31: d＝μ' mg/k | C31: =C15*C11*C10/C13 -> 0.0735 | D31: [m] | E31: 0.276 | F31: 0.9265 | G31: 6.444453115 | H31: -5.770425946 | I31: -0.08761132789 | K31: 6.444435342 | L31: -5.770426261 | M31: -0.08761088354 | N31: -0.1611108835 | P31: -1.777364293e-05 | Q31: -3.14748327e-07 | R31: 4.443410733e-07
A32: 振動限界 | B32: h=(μ+μ') mg/k | C32: =(C14+C15)*C11*C10/C13 -> 0.2695 | D32: [m] | E32: 0.288 | F32: =IF($C$18-(2*INT(($C$25*E32)/PI())+1)*$C$31<=$C$32,0,$C$18-(2*INT(($C$25*E32)/PI())+1)*$C$31) -> 0.9265 | G32: 9.193048205 | H32: -5.676555876 | I32: -0.1563262051 | K32: 9.19302987 | L32: -5.676556426 | M32: -0.1563257467 | N32: -0.2298257467 | P32: -1.833552546e-05 | Q32: -5.49830899e-07 | R32: 4.583881364e-07
E33: 0.3 | F33: 0.9265 | G33: 11.88871675 | H33: -5.550004536 | I33: -0.2237179187 | K33: 11.88869798 | L33: -5.550005336 | M33: -0.2237174495 | N33: -0.2972174495 | P33: -1.876987394e-05 | Q33: -8.000658926e-07 | R33: 4.692468485e-07
E34: 0.312 | F34: 0.9265 | G34: 14.51593915 | H34: -5.391500512 | I34: -0.2893984787 | K34: 14.51592008 | L34: -5.391501575 | M34: -0.2893980021 | N34: -0.3628980021 | P34: -1.906546682e-05 | Q34: -1.063696502e-06 | R34: 4.766366705e-07
A35: 摩擦力が作用する振動の解析解 | E35: 0.324 | F35: 0.9265 | G35: 17.05958986 | H35: -5.201956348 | I35: -0.3529897466 | K35: 17.05957065 | L35: -5.201957686 | M35: -0.3529892663 | N35: -0.4264892663 | P35: -1.921205811e-05 | Q35: -1.338785163e-06 | R35: 4.803014526e-07
A36: x''+ω^2x=0 | D36: 運動方程式 | E36: 0.336 | F36: 0.9265 | G36: 19.5050245 | H36: -4.982463295 | I36: -0.4141256125 | K36: 19.5050053 | L36: -4.982464918 | M36: -0.4141251325 | N36: -0.4876251325 | P36: -1.92004855e-05 | Q36: -1.623227115e-06 | R36: 4.800121373e-07
A37: y=An cosωt-sign(y')d | B37: 変位 | D37: 変位 | E37: 0.348 | F37: 0.9265 | G37: 21.83816411 | H37: -4.734285026 | I37: -0.4724541028 | K37: 21.83814509 | L37: -4.734286941 | M37: -0.4724536272 | N37: -0.5459536272 | P37: -1.902277113e-05 | Q37: -1.914765531e-06 | R37: 4.755692782e-07
A38: y'=-An ωsinωt | B38: 速度 | D38: 速度 | E38: 0.36 | F38: 0.9265 | G38: 24.04557626 | H38: -4.458850362 | I38: -0.5276394066 | K38: 24.04555759 | L38: -4.458852573 | M38: -0.5276389398 | N38: -0.6011389398 | P38: -1.867221371e-05 | Q38: -2.211008065e-06 | R38: 4.668053426e-07
A39: y''=-An ω^2 cosωt | B39: 加速度 | D39: 加速度 | E39: 0.372 | F39: 0.9265 | G39: 26.11455237 | H39: -4.157745046 | I39: -0.5793638091 | K39: 26.11453422 | L39: -4.157747556 | M39: -0.5793633556 | N39: -0.6528633556 | P39: -1.814347165e-05 | Q39: -2.50944474e-06 | R39: 4.53586791e-07
A40: An=y0-(2n+1)d | B40: 振幅 | D40: 振幅 | E40: 0.384 | F40: 0.9265 | G40: 28.03318083 | H40: -3.832702612 | I40: -0.6273295208 | K40: 28.0331634 | L40: -3.832705419 | M40: -0.627329085 | N40: -0.700829085 | P40: -1.743263611e-05 | Q40: -2.80746703e-06 | R40: 4.358159026e-07
A41: n=int{((ωt+β))/π} | B41: 半周期の番号 | D41: 半周期番号 | E41: 0.396 | F41: 0.9265 | G41: 29.79041567 | H41: -3.485594405 | I41: -0.6712603918 | K41: 29.79039913 | L41: -3.485597507 | M41: -0.6712599784 | N41: -0.7447599784 | P41: -1.653729364e-05 | Q41: -3.102388001e-06 | R41: 4.134323409e-07
E42: 0.408 | F42: 0.9265 | G42: 31.37614006 | H42: -3.118418809 | I42: -0.7109035016 | K42: 31.37612461 | L42: -3.1184222 | M42: -0.7109031152 | N42: -0.7844031152 | P42: -1.545657745e-05 | Q42: -3.391463377e-06 | R42: 3.864144362e-07
E43: 0.42 | F43: 0.9265 | G43: 32.78122462 | H43: -2.733289741 | I43: -0.7460306155 | K43: 32.78121043 | L43: -2.733293413 | M43: -0.7460302607 | N43: -0.8195302607 | P43: -1.419120707e-05 | Q43: -3.671913355e-06 | R43: 3.547801766e-07
E44: 0.432 | F44: 0.9265 | G44: 33.99757994 | H44: -2.33242448 | I44: -0.7764394985 | K44: 33.9975672 | L44: -2.332428421 | M44: -0.7764391799 | N44: -0.8499391799 | P44: -1.274351593e-05 | Q44: -3.940945043e-06 | R44: 3.185878981e-07
E45: 0.444 | F45: 0.9265 | G45: 35.01820318 | H45: -1.918130901 | I45: -0.8019550795 | K45: 35.01819206 | L45: -1.918135097 | M45: -0.8019548015 | N45: -0.8754548015 | P45: -1.111746639e-05 | Q45: -4.195775307e-06 | R45: 2.779366594e-07
E46: 0.456 | F46: 0.9265 | G46: 35.83721837 | H46: -1.492794191 | I46: -0.8224304591 | K46: 35.83720905 | L46: -1.492798624 | M46: -0.8224302262 | N46: -0.8959302262 | P46: -9.318652126e-06 | Q46: -4.43365392e-06 | R46: 2.329663029e-07
E47: 0.468 | F47: 0.9265 | G47: 36.44991024 | H47: -1.058863112 | I47: -0.837747756 | K47: 36.44990288 | L47: -1.058867764 | M47: -0.8377475721 | N47: -0.9112475721 | P47: -7.354287618e-06 | Q47: -4.651886762e-06 | R47: 1.838571901e-07
E48: 0.48 | F48: 0.9265 | G48: 36.85275139 | H48: -0.6188359092 | I48: -0.8478187846 | K48: 36.85274615 | L48: -0.618840757 | M48: -0.8478186538 | N48: -0.9213186538 | P48: -5.233184694e-06 | Q48: -4.847858977e-06 | R48: 1.308296169e-07
E49: 0.492 | F49: 0.9265 | G49: 37.04342256 | H49: -0.1752459219 | I49: -0.8525855639 | K49: 37.04341959 | L49: -0.1752509409 | M49: -0.8525854898 | N49: -0.9260854898 | P49: -2.965716149e-06 | Q49: -5.019057826e-06 | R49: 7.414290359e-08
E50: 0.504 | F50: 0.7795 | G50: 31.14704142 | H50: 0.2266170119 | I50: -0.8521760355 | K50: 31.15211505 | L50: 0.2105817032 | M50: -0.8523028762 | N50: -0.7788028762 | P50: 0.005073627235 | Q50: -0.01603530872 | R50: -0.0001268406809
E51: 0.516 | F51: 0.7795 | G51: 30.94870922 | H51: 0.5993704546 | I51: -0.8472177305 | K51: 30.96145784 | L51: 0.5834420272 | M51: -0.847536446 | N51: -0.774036446 | P51: 0.01274861966 | Q51: -0.01592842739 | R51: -0.0003187154914
E52: 0.528 | F52: 0.7795 | G52: 30.572198 | H52: 0.9686731803 | I52: -0.8378049501 | K52: 30.59254832 | L52: 0.9529433388 | M52: -0.838313708 | N52: -0.764813708 | P52: 0.02035031433 | Q52: -0.01572984147 | R52: -0.0005087578582
E53: 0.54 | F53: 0.7795 | G53: 30.01967544 | H53: 1.332399026 | I53: -0.823991886 | K53: 30.04751038 | L53: 1.316958333 | M53: -0.8246877596 | N53: -0.7511877596 | P53: 0.0278349458 | Q53: -0.0154406931 | R53: -0.000695873645
E54: 0.552 | F54: 0.7795 | G54: 29.29432252 | H54: 1.688453937 | I54: -0.8058580631 | K54: 29.32948195 | L54: 1.673391291 | M54: -0.8067370487 | N54: -0.7332370487 | P54: 0.03515942202 | Q54: -0.01506264579 | R54: -0.0008789855504
E55: 0.564 | F55: 0.7795 | G55: 28.40031529 | H55: 2.03478802 | I55: -0.7835078823 | K55: 28.44259686 | L55: 2.020190145 | M55: -0.7845649216 | N55: -0.7110649216 | P55: 0.04228157241 | Q55: -0.01459787489 | R55: -0.00105703931
E56: 0.576 | F56: 0.7795 | G56: 27.34280075 | H56: 2.369407349 | I56: -0.7570700186 | K56: 27.39196114 | L56: 2.355358294 | M56: -0.7582990284 | N56: -0.6847990284 | P56: 0.04916039072 | Q56: -0.01404905508 | R56: -0.001229009768
E57: 0.588 | F57: 0.7795 | G57: 26.12786725 | H57: 2.690385441 | I57: -0.7266966813 | K57: 26.18362352 | L57: 2.676966096 | M57: -0.7280905881 | N57: -0.6545905881 | P57: 0.05575627105 | Q57: -0.01341934494 | R57: -0.001393906776
E58: 0.6 | F58: 0.7795 | G58: 24.76250947 | H58: 2.99587435 | I58: -0.6925627367 | K58: 24.8245407 | L58: 2.983161981 | M58: -0.6941135176 | N58: -0.6206135176 | P58: 0.06203123593 | Q58: -0.01271236879 | R58: -0.001550780898
E59: 0.612 | F59: 0.7795 | G59: 23.25458808 | H59: 3.284115304 | I59: -0.654864702 | K59: 23.32253723 | L59: 3.272183108 | M59: -0.6565634308 | N59: -0.5830634308 | P59: 0.06794915498 | Q59: -0.01193219586 | R59: -0.001698728875
E60: 0.624 | F60: 0.7795 | G60: 21.61278454 | H60: 3.553448833 | I60: -0.6138196136 | K60: 21.6862605 | L60: 3.542365516 | M60: -0.6156565124 | N60: -0.5421565124 | P60: 0.07347595295 | Q60: -0.01108331682 | R60: -0.001836898824
E61: 0.636 | F61: 0.7795 | G61: 19.84655112 | H61: 3.802324318 | I61: -0.5696637779 | K61: 19.92513092 | L61: 3.7921537 | M61: -0.571628273 | N61: -0.498128273 | P61: 0.07857980592 | Q61: -0.01017061795 | R61: -0.001964495148
E62: 0.648 | F62: 0.7795 | G62: 17.96605641 | H62: 4.029308926 | I62: -0.5226514103 | K62: 18.04928774 | L62: 4.020109573 | M62: -0.5247321934 | N62: -0.4512321934 | P62: 0.0832313245 | Q62: -0.009199353026 | R62: -0.002080783113
E63: 0.66 | F63: 0.7795 | G63: 15.98212689 | H63: 4.233095853 | I63: -0.4730531722 | K63: 16.06953061 | L63: 4.22492074 | M63: -0.4752382653 | N63: -0.4017382653 | P63: 0.08740372316 | Q63: -0.008175113067 | R63: -0.002185093079
E64: 0.672 | F64: 0.7795 | G64: 13.90618449 | H64: 4.41251185 | I64: -0.4211546123 | K64: 13.99725747 | L64: 4.405408055 | M64: -0.4234314366 | N64: -0.3499314366 | P64: 0.09107297439 | Q64: -0.00710379415 | R64: -0.00227682436
E65: 0.684 | F65: 0.7795 | G65: 11.75018091 | H65: 4.566523975 | I65: -0.3672545228 | K65: 11.84439886 | L65: 4.560532411 | M65: -0.3696099715 | N65: -0.2961099715 | P65: 0.09421794708 | Q65: -0.005991563471 | R65: -0.002355448677
E66: 0.696 | F66: 0.7795 | G66: 9.526528771 | H66: 4.694245545 | I66: -0.3116632193 | K66: 9.6233493 | L66: 4.689400721 | M66: -0.3140837325 | N66: -0.2405837325 | P66: 0.09682052826 | Q66: -0.004844823844 | R66: -0.002420513206
E67: 0.708 | F67: 0.7795 | G67: 7.248030159 | H67: 4.794941237 | I67: -0.254700754 | K67: 7.346895887 | L67: 4.791271061 | M67: -0.2571723972 | N67: -0.1836723972 | P67: 0.09886572735 | Q67: -0.003670176839 | R67: -0.002471643184
E68: 0.72 | F68: 0.7795 | G68: 4.927802929 | H68: 4.868031323 | I68: -0.1966950732 | K68: 5.028144691 | L68: 4.865556938 | M68: -0.1992036173 | N68: -0.1257036173 | P68: 0.1003417626 | Q68: -0.002474384779 | R68: -0.002508544064
E69: 0.732 | F69: 0.7795 | G69: 2.579205175 | H69: 4.913095004 | I69: -0.1379801294 | K69: 2.680445304 | L69: 4.911830672 | M69: -0.1405111326 | N69: -0.0670111326 | P69: 0.1012401288 | Q69: -0.001264331813 | R69: -0.002531003219
E70: 0.744 | F70: 0.7795 | G70: 0.2157583297 | H70: 4.929872839 | I70: -0.07889395824 | K70: 0.3173139762 | L70: 4.929825855 | M70: -0.0814328494 | N70: -0.007932849404 | P70: 0.1015556464 | Q70: -4.69842786e-05 | R70: -0.00253889116
E71: 0.756 | F71: 0.7795 | G71: -2.148930688 | H71: 4.918268234 | I71: -0.01977673281 | K71: -2.047644196 | L71: 4.919438883 | M71: -0.0223088951 | N71: 0.0511911049 | P71: 0.1012864916 | Q71: 0.0011706494 | R71: -0.002532162289
E72: 0.768 | F72: 0.7795 | G72: -4.501247804 | H72: 4.878348 | I72: 0.03903119511 | K72: -4.400813598 | L72: 4.880729559 | M72: 0.03652033995 | N72: =IF(F72>0,M72+IF(L72<=0,-$C$31,$C$31),N71) -> 0.1100203399 | P72: =K72-G72 -> 0.1004342063 | Q72: =L72-H72 -> 0.00238155906 | R72: =M72-I72 -> -0.002510855156
E73: =E72+$C$8 -> 0.78 | F73: =IF($C$18-(2*INT(($C$25*E73)/PI())+1)*$C$31<=$C$32,0,$C$18-(2*INT(($C$25*E73)/PI())+1)*$C$31) -> 0.7795 | G73: =-F73*$C$25^2*COS($C$25*E73) -> -6.827650176 | H73: =-F73*$C$25*SIN($C$25*E73) -> 4.810341966 | I73: =IF(F73>0,F73*COS($C$25*E73)-IF(H73<=0,-$C$31,$C$31),I72) -> 0.09719125441 | K73: -6.728646486 | L73: 4.813920739 | M73: 0.09471616216 | N73: 0.1682161622 | P73: 0.09900368978 | Q73: 0.003578773162 | R73: -0.002475092245
E74: 0.792 | F74: 0.7795 | G74: -9.114744157 | H74: 4.714641659 | I74: 0.1543686039 | K74: -9.017740986 | L74: 4.719397058 | M74: 0.1519435247 | N74: 0.2254435247 | P74: 0.09700317048 | Q74: 0.004755398924 | R74: -0.002425079262
E75: 0.804 | F75: 0.7795 | G75: -11.34936241 | H75: 4.591798049 | I75: 0.2102340602 | K75: -11.25491825 | L75: 4.597702711 | M75: 0.2078729562 | N75: 0.2813729562 | P75: 0.09444415843 | Q75: 0.005904662005 | R75: -0.002361103961
E76: 0.816 | F76: 0.7795 | G76: -13.5186397 | H76: 4.442518375 | I76: 0.2644659925 | K76: -13.42729832 | L76: 4.449538321 | M76: 0.2621824581 | N76: 0.3356824581 | P76: 0.0913413792 | Q76: 0.007019945514 | R76: -0.00228353448
E77: 0.828 | F77: 0.7795 | G77: -15.610087 | H77: 4.267662076 | I77: 0.316752175 | K77: -15.52237431 | L77: 4.275756904 | M77: 0.3145593578 | N77: 0.3880593578 | P77: 0.08771268914 | Q77: 0.008094828097 | R77: -0.002192817229
E78: 0.84 | F78: 0.7795 | G78: -17.61166335 | H78: 4.06823584 | I78: 0.3667915837 | K78: -17.52808438 | L78: 4.077358961 | M78: 0.3647021094 | N78: 0.4382021094 | P78: 0.08357897261 | Q78: 0.009123120918 | R78: -0.002089474315
E79: 0.852 | F79: 0.7795 | G79: -19.5118452 | H79: 3.845387812 | I79: 0.41429613 | K79: -19.43288118 | L79: 3.855486715 | M79: 0.4123220295 | N79: 0.4858220295 | P79: 0.07896402175 | Q79: 0.01009890329 | R79: -0.001974100544
E80: 0.864 | F80: 0.7795 | G80: -21.29969276 | H80: 3.600400979 | I80: 0.458992319 | K80: -21.22579836 | L80: 3.611417536 | M80: 0.457144959 | N80: 0.530644959 | P80: 0.0738943996 | Q80: 0.01101655675 | R80: -0.00184735999
E81: 0.876 | F81: 0.7795 | G81: -22.96491297 | H81: 3.334685789 | I81: 0.5006228242 | K81: -22.89651368 | L81: 3.346556586 | M81: 0.498912842 | N81: 0.572412842 | P81: 0.06839928716 | Q81: 0.01187079744 | R81: -0.001709982179
E82: 0.888 | F82: 0.7795 | G82: -24.49791876 | H82: 3.049772027 | I82: 0.5389479689 | K82: -24.43540844 | L82: 3.062428733 | M82: 0.537385211 | N82: 0.610885211 | P82: 0.06251031545 | Q82: 0.01265670651 | R82: -0.001562757886
E83: 0.9 | F83: 0.7795 | G83: -25.88988425 | H83: 2.747300008 | I83: 0.5737471063 | K83: -25.83362287 | L83: 2.760669767 | M83: 0.5723405717 | N83: 0.6458405717 | P83: 0.05626138343 | Q83: 0.01336975843 | R83: -0.001406534586
E84: 0.912 | F84: 0.7795 | G84: -27.13279558 | H84: 2.429011136 | I84: 0.6048198895 | K84: -27.08310712 | L84: 2.443016983 | M84: 0.603577678 | N84: 0.677077678 | P84: 0.04968846283 | Q84: 0.01400584709 | R84: -0.001242211571
E85: 0.924 | F85: 0.7795 | G85: -28.21949701 | H85: 2.096737874 | I85: 0.6319874253 | K85: -28.17666762 | L85: 2.111299183 | M85: 0.6309166905 | N85: 0.7044166905 | P85: 0.04282939115 | Q85: 0.01456130941 | R85: -0.001070734779
E86: 0.936 | F86: 0.7795 | G86: -29.14373214 | H86: 1.752393198 | I86: 0.6550933036 | K86: -29.10800849 | L86: 1.767426144 | M86: 0.6542002122 | N86: 0.7277002122 | P86: 0.03572365377 | Q86: 0.01503294644 | R86: -0.0008930913443
E87: 0.948 | F87: 0.7795 | G87: -29.90017994 | H87: 1.397959581 | I87: 0.6740044985 | K87: -29.87176778 | L87: 1.413377623 | M87: 0.6732941946 | N87: 0.7467941946 | P87: 0.02841215672 | Q87: 0.01541804178 | R87: -0.000710303918
E88: 0.96 | F88: 0.7795 | G88: -30.48448535 | H88: 1.035477581 | I88: 0.6886121338 | K88: -30.46354836 | L88: 1.051191958 | M88: 0.688088709 | N88: 0.761588709 | P88: 0.02093699113 | Q88: 0.01571437727 | R88: -0.0005234247782
E89: 0.972 | F89: 0.7795 | G89: -30.8932844 | H89: 0.6670340926 | I89: 0.6988321099 | K89: -30.87994321 | L89: 0.6829543383 | M89: 0.6984985801 | N89: 0.7719985801 | P89: 0.01334119094 | Q89: 0.01592024569 | R89: -0.0003335297735
E90: 0.984 | F90: 0.7795 | G90: -31.12422352 | H90: 0.2947503318 | I90: 0.704605588 | K90: -31.11855503 | L90: 0.3107847924 | M90: 0.7044638759 | N90: 0.7779638759 | P90: 0.005668485185 | Q90: 0.01603446065 | R90: -0.0001417121296
E91: 0.996 | F91: 0.6325 | G91: -25.29673254 | H91: -0.06428891979 | I91: 0.7059183136 | K91: -25.2980101 | L91: -0.05141401283 | M91: 0.7059502526 | N91: 0.6324502526 | P91: -0.00127756081 | Q91: 0.01287490696 | R91: 3.193902026e-05
E92: 1.008 | F92: 0.6325 | G92: -25.19308385 | H92: -0.3673733126 | I92: 0.7033270963 | K92: -25.20053177 | L92: -0.3545506997 | M92: 0.7035132943 | N92: 0.6300132943 | P92: -0.007447921029 | Q92: 0.01282261291 | R92: 0.0001861980257
E93: 1.02 | F93: 0.6325 | G93: -24.94439264 | H93: -0.6683426507 | I93: 0.6971098159 | K93: -24.95796812 | L93: -0.655646155 | M93: 0.697449203 | N93: 0.623949203 | P93: -0.01357548228 | Q93: 0.01269649574 | R93: 0.0003393870571
E94: 1.032 | F94: 0.6325 | G94: -24.55209067 | H94: -0.9654641826 | I94: 0.6873022669 | K94: -24.57171564 | L94: -0.9529669021 | M94: 0.687792891 | N94: 0.614292891 | P94: -0.01962496637 | Q94: 0.01249728055 | R94: 0.0004906241593
E95: 1.044 | F95: 0.6325 | G95: -24.01843654 | H95: -1.25702731 | I95: 0.6739609134 | K95: -24.04399808 | L95: -1.244801196 | M95: 0.674599952 | N95: 0.601099952 | P95: -0.02556154414 | Q95: 0.01222611334 | R95: 0.0006390386036
E96: 1.056 | F96: 0.6325 | G96: -23.3465026 | H96: -1.541353434 | I96: 0.657162565 | K96: -23.37785364 | L96: -1.52946888 | M96: 0.6579463409 | N96: 0.5844463409 | P96: -0.03135103601 | Q96: 0.01188455431 | R96: 0.0007837759003
E97: 1.068 | F97: 0.6325 | G97: -22.54015734 | H97: -1.816805624 | I97: 0.6370039336 | K97: -22.57711745 | L97: -1.805331055 | M97: 0.6379279363 | N97: 0.5644279363 | P97: -0.03696010876 | Q97: 0.011474569 | R97: 0.000924002719
E98: 1.08 | F98: 0.6325 | G98: -21.60404309 | H98: -2.081798035 | I98: 0.6136010772 | K98: -21.64639955 | L98: -2.070799518 | M98: 0.6146599889 | N98: 0.5411599889 | P98: -0.04235646743 | Q98: 0.01099851687 | R98: 0.001058911686
E99: 1.092 | F99: 0.6325 | G99: -20.54354926 | H99: -2.334805044 | I99: 0.5870887316 | K99: -20.5910583 | L99: -2.324345906 | M99: 0.5882764576 | N99: 0.5147764576 | P99: -0.04750904131 | Q99: 0.01045913779 | R99: 0.001187726033
E100: 1.104 | F100: 0.6325 | G100: -19.36478138 | H100: -2.57437003 | I100: 0.5576195345 | K100: -19.41716954 | L100: -2.564510494 | M100: 0.5589292386 | N100: 0.4854292386 | P100: -0.05238816278 | Q100: 0.009859536273 | R100: 0.00130970407
E101: 1.116 | F101: 0.6325 | G101: -18.07452589 | H101: -2.799113761 | I101: 0.5253631473 | K101: -18.13149163 | L101: -2.789910597 | M101: 0.5267872907 | N101: 0.4532872907 | P101: -0.05696573817 | Q101: 0.009203163552 | R101: 0.001424143454
E102: 1.128 | F102: 0.6325 | G102: -16.68021109 | H102: -3.007742334 | I102: 0.4905052773 | K102: -16.7414265 | L102: -2.999248536 | M102: 0.4920356625 | N102: 0.4185356625 | P102: -0.0612154095 | Q102: 0.008493797767 | R102: 0.001530385237
E103: 1.14 | F103: 0.6325 | G103: -15.18986439 | H103: -3.199054626 | I103: 0.4532466097 | K103: -15.25497709 | L103: -3.191319103 | M103: 0.4548744273 | N103: 0.3813744273 | P103: -0.06511270626 | Q103: 0.007735522193 | R103: 0.001627817656
E104: 1.152 | F104: 0.6325 | G104: -13.61206605 | H104: -3.371949206 | I104: 0.4138016513 | K104: -13.68070124 | L104: -3.365016504 | M104: 0.4155175309 | N104: 0.3420175309 | P104: -0.06863518632 | Q104: 0.006932701747 | R104: 0.001715879658
E105: 1.164 | F105: 0.6325 | G105: -11.95589984 | H105: -3.525430679 | I105: 0.3723974961 | K105: -12.02766241 | L105: -3.519340721 | M105: 0.3741915602 | N105: 0.3006915602 | P105: -0.07176256516 | Q105: 0.006089957851 | R105: 0.001794064129
E106: 1.176 | F106: 0.6325 | G106: -10.2309007 | H106: -3.658615417 | I106: 0.3292725175 | K106: -10.30537753 | L106: -3.653403275 | M106: 0.3311344383 | N106: 0.2576344383 | P106: -0.07447683266 | Q106: 0.00521214184 | R106: 0.001861920817
E107: 1.188 | F107: 0.6325 | G107: -8.446999851 | H107: -3.770736644 | I107: 0.2846749963 | K107: -8.523762208 | L107: -3.766432337 | M107: 0.2865940552 | N107: 0.2130940552 | P107: -0.07676235685 | Q107: 0.004304307026 | R107: 0.001919058921
E108: 1.2 | F108: 0.6325 | G108: -6.614467632 | H108: -3.861148851 | I108: 0.2388616908 | K108: -6.693073606 | L108: -3.857777171 | M108: 0.2408268402 | N108: 0.1673268402 | P108: -0.07860597392 | Q108: 0.003371679613 | R108: 0.001965149348
E109: 1.212 | F109: 0.6325 | G109: -4.743854364 | H109: -3.929331514 | I109: 0.1920963591 | K109: -4.823851428 | L109: -3.926911885 | M109: 0.1940962857 | N109: 0.1205962857 | P109: -0.07999706402 | Q109: 0.002419628608 | R109: 0.001999926601
E110: 1.224 | F110: 0.6325 | G110: -2.845929608 | H110: -3.974892089 | I110: 0.1446482402 | K110: -2.926857221 | L110: -3.973438454 | M110: 0.1466714305 | N110: 0.07317143052 | P110: -0.08092761249 | Q110: 0.001453634914 | R110: 0.002023190312
E111: 1.236 | F111: 0.6325 | G111: -0.9316201648 | H111: -3.997568273 | I111: 0.09679050412 | K111: -1.013012421 | L111: -3.997089013 | M111: 0.09882531052 | N111: 0.02532531052 | P111: -0.08139225595 | Q111: 0.0004792597774 | R111: 0.002034806399
E112: 1.248 | F112: 0.6325 | G112: 0.9880528357 | H112: -3.997229514 | I112: 0.04879867911 | K112: 0.9066645223 | L112: -3.997727402 | M112: 0.05083338694 | N112: -0.02266661306 | P112: -0.08138831331 | Q112: -0.0004978872313 | R112: 0.002034707833
E113: 1.26 | F113: 0.6325 | G113: 2.902037383 | H113: -3.973877763 | I113: 0.0009490654247 | K113: 2.821121582 | L113: -3.975349944 | M113: 0.002971960454 | N113: -0.07052803955 | P113: -0.08091580118 | Q113: -0.001472180509 | R113: 0.002022895029
E114: 1.272 | F114: 0.6325 | G114: 4.799314217 | H114: -3.927647461 | I114: -0.04648285543 | K114: 4.719336783 | L114: -3.930085472 | M114: -0.04448341958 | N114: -0.1179834196 | P114: -0.0799774338 | Q114: -0.00243801081 | R114: 0.001999435845
E115: 1.284 | F115: 0.6325 | G115: 6.668960268 | H115: -3.858804766 | I115: -0.09322400669 | K115: 6.59038166 | L115: -3.862194584 | M115: -0.09125954151 | N115: -0.1647595415 | P115: -0.07857860749 | Q115: -0.003389817538 | R115: 0.001964465187
E116: 1.296 | F116: 0.6325 | G116: 8.500211542 | H116: -3.767746023 | I116: -0.1390052886 | K116: 8.423484173 | L116: -3.772068144 | M116: -0.1370871043 | N116: -0.2105871043 | P116: -0.0767273696 | Q116: -0.004322120761 | R116: 0.00191818424
E117: 1.308 | F117: 0.6325 | G117: 10.28252509 | H117: -3.654995478 | I117: -0.1835631274 | K117: 10.20809072 | L117: -3.66022503 | M117: -0.1817022681 | N117: -0.2552022681 | P117: -0.07443437221 | Q117: -0.005229552762 | R117: 0.001860859305
E118: 1.32 | F118: 0.6325 | G118: 12.00563973 | H118: -3.521202262 | I118: -0.2266409932 | K118: 11.93392692 | L118: -3.527309151 | M118: -0.2248481729 | N118: -0.2983481729 | P118: -0.07171281083 | Q118: -0.006106888942 | R118: 0.001792820271
E119: 1.332 | F119: 0.6325 | G119: 13.65963506 | H119: -3.367136655 | I119: -0.2679908765 | K119: 13.59105671 | L119: -3.374085732 | M119: -0.2662764178 | N119: -0.3397764178 | P119: -0.06857834848 | Q119: -0.006949077903 | R119: 0.001714458712
E120: 1.344 | F120: 0.6325 | G120: 15.23498866 | H120: -3.193685648 | I120: -0.3073747164 | K120: 15.16993963 | L120: -3.201436918 | M120: -0.3057484908 | N120: -0.3792484908 | P120: -0.06504902555 | Q120: -0.007751270531 | R120: 0.001626225639
E121: 1.356 | F121: 0.6325 | G121: 16.72263083 | H121: -3.00184784 | I121: -0.3445657707 | K121: 16.66148567 | L121: -3.010356688 | M121: -0.3430371418 | N121: -0.4165371418 | P121: -0.06114515594 | Q121: -0.008508847916 | R121: 0.001528628899
E122: 1.368 | F122: 0.6325 | G122: 18.11399688 | H122: -2.792727686 | I122: -0.3793499219 | K122: 18.05710767 | L122: -2.801945134 | M122: -0.3779276916 | N122: -0.4514276916 | P122: -0.05688921018 | Q122: -0.009217447946 | R122: 0.001422230254
E123: 1.38 | F123: 0.6325 | G123: 19.40107637 | H123: -2.567529141 | I123: -0.4115269093 | K123: 19.34877069 | L123: -2.577402132 | M123: -0.4102192671 | N123: -0.4837192671 | P123: -0.05230568605 | Q123: -0.009872990428 | R123: 0.001307642151
E124: 1.392 | F124: 0.6325 | G124: 20.5764593 | H124: -2.327548725 | I124: -0.4409114824 | K124: 20.52903833 | L124: -2.338020426 | M124: -0.4397259583 | N124: -0.5132259583 | P124: -0.04742096759 | Q124: -0.01047170058 | R124: 0.00118552419
E125: 1.404 | F125: 0.6325 | G125: 21.6333787 | H125: -2.074168063 | I125: -0.4673344674 | K125: 21.59111552 | L125: -2.085178194 | M125: -0.4662778881 | N125: -0.5397778881 | P125: -0.04226317323 | Q125: -0.01101013075 | R125: 0.001056579331
E126: 1.416 | F126: 0.6325 | G126: 22.56574964 | H126: -1.808845926 | I126: -0.4906437409 | K126: 22.52888764 | L126: -1.820331107 | M126: -0.489722191 | N126: -0.563222191 | P126: -0.03686199391 | Q126: -0.01148518032 | R126: 0.0009215498477
E127: 1.428 | F127: 0.6325 | G127: 23.36820423 | H127: -1.533109837 | I127: -0.5107051058 | K127: 23.33695571 | L127: -1.54500395 | M127: -0.5099238928 | N127: -0.5834238928 | P127: -0.03124852217 | Q127: -0.01189411349 | R127: 0.0007812130543
E128: 1.44 | F128: 0.6325 | G128: 24.03612257 | H128: -1.248547273 | I128: -0.5274030643 | K128: 24.0106675 | L128: -1.260781848 | M128: -0.5267666875 | N128: -0.6002666875 | P128: -0.02545507319 | Q128: -0.01223457509 | R128: 0.0006363768297
E129: 1.452 | F129: 0.6325 | G129: 24.56565929 | H129: -0.9567965281 | I129: -0.5406414821 | K129: 24.54614429 | L129: -0.9693011322 | M129: -0.5401536072 | N129: -0.6136536072 | P129: -0.01951499871 | Q129: -0.01250460413 | R129: 0.0004878749677
E130: 1.464 | F130: 0.6325 | G130: 24.95376571 | H130: -0.65953728 | I130: -0.5503441427 | K130: 24.94030321 | L130: -0.672239925 | M130: -0.5500075803 | N130: -0.6235075803 | P130: -0.01346249507 | Q130: -0.01270264508 | R130: 0.0003365623767
E131: 1.476 | F131: 0.6325 | G131: 25.19820742 | H131: -0.3584809203 | I131: -0.5564551855 | K131: 25.19087501 | L131: -0.3713084771 | M131: -0.5562718753 | N131: -0.6297718753 | P131: -0.007332406326 | Q131: -0.01282755683 | R131: 0.0001833101582
E132: 1.488 | F132: 0.6325 | G132: 25.29757711 | H132: -0.0553607014 | I132: -0.5589394278 | K132: 25.29641709 | L132: -0.06823932069 | M132: -0.5589104272 | N132: -0.6324104272 | P132: -0.001160023674 | Q132: -0.01287861929 | R132: 2.900059184e-05
E133: 1.5 | F133: 0.4855 | G133: 19.38262048 | H133: 0.1904221131 | I133: -0.5580655121 | K133: 19.38761141 | L133: 0.1764565734 | M133: -0.5581902851 | N133: -0.4846902851 | P133: 0.004990923458 | Q133: -0.01396553973 | R133: -0.0001247730865
E134: 1.512 | F134: 0.4855 | G134: 19.23551043 | H134: 0.4222421829 | I134: -0.5543877608 | K134: 19.24718404 | L134: 0.4083766139 | M134: -0.5546796011 | N134: -0.4811796011 | P134: 0.01167361066 | Q134: -0.01386556895 | R134: -0.0002918402665
E135: 1.524 | F135: 0.4855 | G135: 18.97765701 | H135: 0.6516313049 | I135: -0.5479414253 | K135: 18.99594616 | L135: 0.6379455348 | M135: -0.5483986541 | N135: -0.4748986541 | P135: 0.01828915177 | Q135: -0.01368577013 | R135: -0.0004572287944
E136: 1.536 | F136: 0.4855 | G136: 18.61054475 | H136: 0.8772688319 | I136: -0.5387636187 | K136: 18.63534421 | L136: 0.8638416542 | M136: -0.5393836052 | N136: =IF(F136>0,M136+IF(L136<=0,-$C$31,$C$31),N135) -> -0.4658836052 | P136: =K136-G136 -> 0.02479945906 | Q136: =L136-H136 -> -0.01342717768 | R136: =M136-I136 -> -0.0006199864765
E137: =E136+$C$8 -> 1.548 | F137: =IF($C$18-(2*INT(($C$25*E137)/PI())+1)*$C$31<=$C$32,0,$C$18-(2*INT(($C$25*E137)/PI())+1)*$C$31) -> 0.4855 | G137: =-F137*$C$25^2*COS($C$25*E137) -> 18.13628719 | H137: =-F137*$C$25*SIN($C$25*E137) -> 1.097855715 | I137: =IF(F137>0,F137*COS($C$25*E137)-IF(H137<=0,-$C$31,$C$31),I136) -> -0.5269071798 | K137: 18.16745424 | L137: 1.084764436 | M137: -0.5276863561 | N137: -0.4541863561 | P137: 0.03116705029 | Q137: -0.01309127965 | R137: -0.0007791762573
E138: 1.56 | F138: 0.4855 | G138: 17.55761475 | H138: 1.312121985 | I138: -0.5124403689 | K138: 17.59497002 | L138: 1.299441976 | M138: -0.5133742505 | N138: -0.4398742505 | P138: 0.03735526453 | Q138: -0.01268000918 | R138: -0.0009338816134
E139: 1.572 | F139: 0.4855 | G139: 16.87785899 | H139: 1.518834059 | I139: -0.4954464748 | K139: 16.92118746 | L139: 1.506638325 | M139: -0.4965296866 | N139: -0.4230296866 | P139: 0.04332847324 | Q139: -0.01219573334 | R139: -0.001083211831
E140: 1.584 | F140: 0.4855 | G140: 16.10093341 | H140: 1.716801847 | I140: -0.4760233353 | K140: 16.1499857 | L140: 1.705160607 | M140: -0.4772496425 | N140: -0.4037496425 | P140: 0.04905228536 | Q140: -0.01164123953 | R140: -0.001226307134
E141: 1.596 | F141: 0.4855 | G141: 15.23131097 | H141: 1.904885602 | I141: -0.4542827742 | K141: 15.28580471 | L141: 1.893865882 | M141: -0.4556451178 | N141: -0.3821451178 | P141: 0.05449374536 | Q141: -0.01101971947 | R141: -0.001362343634
E142: 1.608 | F142: 0.4855 | G142: 14.27399827 | H142: 2.082002482 | I142: -0.4303499568 | K142: 14.3336198 | L142: 2.071667731 | M142: -0.4318404949 | N142: -0.3583404949 | P142: 0.05962152297 | Q142: -0.01033475076 | R142: -0.001490538074
E143: 1.62 | F143: 0.4855 | G143: 13.23450681 | H143: 2.247132782 | I143: -0.4043626701 | K143: 13.2989129 | L143: 2.237542506 | M143: -0.4059728225 | N143: -0.3324728225 | P143: 0.06440609357 | Q143: -0.009590276326 | R143: -0.001610152339
E144: 1.632 | F144: 0.4855 | G144: 12.11882116 | H144: 2.39932581 | I144: -0.3764705291 | K144: 12.18764107 | L144: 2.390535228 | M144: -0.3781910268 | N144: -0.3046910268 | P144: 0.06881990818 | Q144: -0.00879058173 | R144: -0.001720497705
E145: 1.644 | F145: 0.4855 | G145: 10.93336461 | H145: 2.537705353 | I145: -0.3468341153 | K145: 11.00620216 | L145: 2.529765082 | M145: -0.3486550541 | N145: -0.2751550541 | P145: 0.0728375521 | Q145: -0.007940270479 | R145: -0.001820938802
E146: 1.656 | F146: 0.4855 | G146: 9.6849621 | H146: 2.661474728 | I146: -0.3156240525 | K146: 9.761397991 | L146: 2.654430491 | M146: -0.3175349498 | N146: -0.2440349498 | P146: 0.07643589123 | Q146: -0.007044237536 | R146: -0.001910897281
E147: 1.668 | F147: 0.4855 | G147: 8.38080098 | H147: 2.769921366 | I147: -0.2830200245 | K147: 8.460395185 | L147: 2.763813725 | M147: -0.2850098796 | N147: -0.2115098796 | P147: 0.07959420529 | Q147: -0.006107641138 | R147: -0.001989855132
E148: 1.68 | F148: 0.4855 | G148: 7.028389613 | H148: 2.862420914 | I148: -0.2492097403 | K148: 7.11068392 | L148: 2.85728504 | M148: -0.251267098 | N148: -0.177767098 | P148: 0.08229430712 | Q148: -0.005135873103 | R148: -0.002057357678
E149: 1.692 | F149: 0.4855 | G149: 5.63551415 | H149: 2.938440829 | I149: -0.2143878538 | K149: 5.720034798 | L149: 2.934306301 | M149: -0.2165008699 | N149: -0.1430008699 | P149: 0.08452064745 | Q149: -0.004134527789 | R149: -0.002113016186
E150: 1.704 | F150: 0.4855 | G150: 4.210193704 | H150: 2.997543448 | I150: -0.1787548426 | K150: 4.296454109 | L150: 2.994434078 | M150: -0.1809113527 | N150: -0.1074113527 | P150: 0.08626040438 | Q150: -0.003109369888 | R150: -0.002156510109
E151: 1.716 | F151: 0.4855 | G151: 2.760634181 | H151: 3.039388503 | I151: -0.1425158545 | K151: 2.848137738 | L151: 3.037322202 | M151: -0.1447034434 | N151: -0.07120344345 | P151: 0.08750355727 | Q151: -0.002066301239 | R151: -0.002187588932
E152: 1.728 | F152: 0.4855 | G152: 1.295181035 | H152: 3.063735082 | I152: -0.1058795259 | K152: 1.38342398 | L152: 3.062723755 | M152: -0.1080855995 | N152: -0.03458559949 | P152: 0.08824294447 | Q152: -0.001011326853 | R152: -0.002206073612
E153: 1.74 | F153: 0.4855 | G153: -0.1777287729 | H153: 3.070443016 | I153: -0.06905678068 | K153: -0.08925446833 | L153: 3.070492495 | M153: -0.07126863829 | N153: 0.002231361708 | P153: 0.08847430453 | Q153: 4.94796619e-05 | R153: -0.002211857613
E154: 1.752 | F154: 0.4855 | G154: -1.649615354 | H154: 3.059473685 | I154: -0.03225961614 | K154: -1.561419054 | L154: 3.060583696 | M154: -0.03446452366 | N154: 0.03903547634 | P154: 0.08819630078 | Q154: 0.001110011064 | R154: -0.002204907519
E155: 1.764 | F155: 0.4855 | G155: -3.112004712 | H155: 3.030890243 | I155: 0.004300117788 | K155: -3.024594182 | L155: 3.033054405 | M155: 0.002114854561 | N155: 0.07561485456 | P155: 0.08741052907 | Q155: 0.002164161638 | R155: -0.002185263227
E156: 1.776 | F156: 0.4855 | G156: -4.556477524 | H156: 2.984857252 | I156: 0.0404119381 | K156: -4.470356015 | L156: 2.988063114 | M156: 0.03825890038 | N156: 0.1117589004 | P156: 0.08612150859 | Q156: 0.003205862352 | R156: -0.002153037715
E157: 1.788 | F157: 0.4855 | G157: -5.974717621 | H157: 2.921639734 | I157: 0.07586794053 | K157: -5.890380965 | L157: 2.92586885 | M157: 0.07375952413 | N157: 0.1472595241 | P157: 0.08433665589 | Q157: 0.004229115791 | R157: -0.002108416397
E158: 1.8 | F158: 0.4855 | G158: -7.35855986 | H158: 2.841601647 | I158: 0.1104639965 | K158: -7.276493618 | L158: 2.846829678 | M158: 0.1084123405 | N158: 0.1819123405 | P158: 0.0820662422 | Q158: 0.005228030691 | R158: -0.002051656055
E159: 1.812 | F159: 0.4855 | G159: -8.700037136 | H159: 2.745203789 | I159: 0.1440009284 | K159: -8.620713802 | L159: 2.751400645 | M159: 0.142017845 | N159: 0.215517845 | P159: 0.07932333432 | Q159: 0.006196855858 | R159: -0.001983083358
E160: 1.824 | F160: 0.4855 | G160: -9.991426247 | H160: 2.633001147 | I160: 0.1762856562 | K160: -9.915302528 | L160: 2.64013116 | M160: 0.1743825632 | N160: 0.2478825632 | P160: 0.07612371943 | Q160: 0.007130013276 | R160: -0.001903092986
E161: 1.836 | F161: 0.4855 | G161: -11.22529236 | H161: 2.505639696 | I161: 0.207132309 | K161: -11.15280655 | L161: 2.513661826 | M161: 0.2053201637 | N161: 0.2788201637 | P161: 0.07248581421 | Q161: 0.008022130226 | R161: -0.001812145355
E162: 1.848 | F162: 0.4855 | G162: -12.39453182 | H162: 2.363852686 | I162: 0.2363632956 | K162: -12.32610126 | L162: 2.372720757 | M162: 0.2346525316 | N162: 0.3081525316 | P162: 0.06843055886 | Q162: 0.008868070217 | R162: -0.001710763972
E163: 1.86 | F163: 0.4855 | G163: -13.49241304 | H163: 2.20845642 | I163: 0.263810326 | K163: -13.42843174 | L163: 2.218119382 | M163: 0.2622107936 | N163: 0.3357107936 | P163: 0.06398129653 | Q163: 0.009662962564 | R163: -0.001599532413
E164: 1.872 | F164: 0.4855 | G164: -14.51261526 | H164: 2.040345549 | I164: 0.2893153814 | K164: -14.45345162 | L164: 2.050747779 | M164: 0.2878362905 | N164: 0.3613362905 | P164: 0.05916363897 | Q164: 0.01040223043 | R164: -0.001479090974
E165: 1.884 | F165: 0.4855 | G165: -15.44926493 | H165: 1.860487928 | I165: 0.3127316232 | K165: -15.39525961 | L165: 1.871569545 | M165: 0.3113814902 | N165: 0.3848814902 | P165: 0.05400531911 | Q165: 0.01108161717 | R165: -0.001350132978
E166: 1.896 | F166: 0.4855 | G166: -16.29696954 | H166: 1.669919039 | I166: 0.3339242384 | K166: -16.24843351 | L166: 1.68161625 | M166: 0.3327108376 | N166: 0.4062108376 | P166: 0.04853603138 | Q166: 0.01169721087 | R166: -0.001213400785
E167: 1.908 | F167: 0.4855 | G167: -17.05084865 | H167: 1.469736033 | I167: 0.3527712163 | K167: -17.00806139 | L167: 1.4819815 | M167: 0.3517015348 | N167: 0.4252015348 | P167: 0.04278726083 | Q167: 0.01224546681 | R167: -0.001069681521
E168: 1.92 | F168: 0.4855 | G168: -17.70656201 | H168: 1.26109141 | I168: 0.3691640502 | K168: -17.66976991 | L168: 1.273814638 | M168: 0.3682442477 | N168: 0.4417442477 | P168: 0.0367921018 | Q168: 0.01272322797 | R168: -0.0009198025451
E169: 1.932 | F169: 0.4855 | G169: -18.26033452 | H169: 1.045186387 | I169: 0.3830083629 | K169: -18.22974945 | L169: 1.05831413 | M169: 0.3822437363 | N169: 0.4557437363 | P169: 0.03058506749 | Q169: 0.01312774311 | R169: -0.0007646266871
E170: 1.944 | F170: 0.4855 | G170: -18.70897797 | H170: 0.8232639786 | I170: 0.3942244494 | K170: -18.68477608 | L170: 0.8367206613 | M170: 0.3936194021 | N170: 0.4671194021 | P170: 0.02420189118 | Q170: 0.01345668268 | R170: -0.0006050472796
E171: 1.956 | F171: 0.4855 | G171: -19.04990944 | H171: 0.5966018459 | I171: 0.4027477359 | K171: -19.03223011 | L171: 0.6103099981 | M171: 0.4023057529 | N171: 0.4758057529 | P171: 0.01767932062 | Q171: 0.01370815221 | R171: -0.0004419830155
E172: 1.968 | F172: 0.4855 | G172: -19.28116608 | H172: 0.3665049357 | I172: 0.4085291519 | K172: -19.27011117 | L172: 0.3803856389 | M172: 0.4082527793 | N172: 0.4817527793 | P172: 0.01105490638 | Q172: 0.01388070322 | R172: -0.0002763726595
E173: 1.98 | F173: 0.4855 | G173: -19.4014165 | H173: 0.1342979702 | I173: 0.4115354125 | K173: -19.39704971 | L173: 0.1482713118 | M173: 0.4114262429 | N173: 0.4849262429 | P173: 0.004366785733 | Q173: 0.01397334156 | R173: -0.0001091696433
E174: 1.992 | F174: 0.3385 | G174: -13.53300577 | H174: -0.06880312678 | I174: 0.4118251443 | K174: -13.53231493 | L174: -0.07293664719 | M174: 0.4118078733 | N174: 0.3383078733 | P174: 0.0006908388599 | Q174: -0.004133520406 | R174: -1.72709715e-05
E175: 2.004 | F175: 0.3385 | G175: -13.46105561 | H175: -0.2308452828 | I175: 0.4100263903 | K175: -13.45838459 | L175: -0.2349585774 | M175: 0.4099596148 | N175: 0.3364596148 | P175: 0.002671022546 | Q175: -0.004113294598 | R175: -6.677556366e-05
E176: 2.016 | F176: 0.3385 | G176: -13.31160698 | H176: -0.3915584081 | I176: 0.4062901746 | K176: -13.3069712 | L176: -0.395627796 | M176: 0.40617428 | N176: 0.33267428 | P176: 0.004635785491 | Q176: -0.004069387903 | R176: -0.0001158946373
E177: 2.028 | F177: 0.3385 | G177: -13.0855203 | H177: -0.5500172393 | I177: 0.4006380074 | K177: -13.07894648 | L177: -0.5540192929 | M177: 0.400473662 | N177: 0.326973662 | P177: 0.006573816367 | Q177: -0.004002053615 | R177: -0.0001643454092
E178: 2.04 | F178: 0.3385 | G178: -12.78409719 | H178: -0.7053094917 | I178: 0.3931024296 | K178: -12.77562323 | L178: -0.7092211716 | M178: 0.3928905807 | N178: 0.3193905807 | P178: 0.008473957997 | Q178: -0.003911679904 | R178: -0.0002118489499
E179: 2.052 | F179: 0.3385 | G179: -12.40907301 | H179: -0.856541111 | I179: 0.3837268253 | K179: -12.39874774 | L179: -0.8603398986 | M179: 0.3834686935 | N179: 0.3099686935 | P179: 0.01032527158 | Q179: -0.003798787576 | R179: -0.0002581317895
E180: 2.064 | F180: 0.3385 | G180: -11.96260688 | H180: -1.002841421 | I180: 0.372565172 | K180: -11.95048978 | L180: -1.006505448 | M180: 0.3722622445 | N180: 0.2987622445 | P180: 0.01211709968 | Q180: -0.00366402707 | R180: -0.000302927492
E181: 2.076 | F181: 0.3385 | G181: -11.4472692 | H181: -1.143368137 | I181: 0.35968173 | K181: -11.43343007 | L181: -1.146876312 | M181: 0.3593357518 | N181: 0.2858357518 | P181: 0.01383912755 | Q181: -0.003508174712 | R181: -0.0003459781887
E182: 2.088 | F182: 0.3385 | G182: -10.86602689 | H182: -1.277312213 | I182: 0.3451506723 | K182: -10.85054545 | L182: -1.280644341 | M182: 0.3447636363 | N182: 0.2712636363 | P182: 0.01548144253 | Q182: -0.003332128244 | R182: -0.0003870360633
E183: 2.1 | F183: 0.3385 | G183: -10.22222631 | H183: -1.403902501 | I183: 0.3290556577 | K183: -10.20519172 | L183: -1.407039403 | M183: 0.3286297929 | N183: 0.2551297929 | P183: 0.01703459112 | Q183: -0.00313690165 | R183: -0.000425864778
E184: 2.112 | F184: 0.3385 | G184: -9.519573955 | H184: -1.522410192 | I184: 0.3114893489 | K184: -9.501084322 | L184: -1.525333811 | M184: 0.3110271081 | N184: 0.2375271081 | P184: 0.01848963335 | Q184: -0.002923619317 | R184: -0.0004622408339
E185: 2.124 | F185: 0.3385 | G185: -8.762115172 | H185: -1.632153008 | I185: 0.2925528793 | K185: -8.742276978 | L185: -1.634846518 | M185: 0.2920569244 | N185: 0.2185569244 | P185: 0.0198381943 | Q185: -0.00269350956 | R185: -0.0004959548575
E186: 2.136 | F186: 0.3385 | G186: -7.954210827 | H186: -1.732499135 | I186: 0.2723552707 | K186: -7.933138314 | L186: -1.734947033 | M186: 0.2718284579 | N186: 0.1983284579 | P186: 0.02107251225 | Q186: -0.002447897547 | R186: -0.0005268128061
E187: 2.148 | F187: 0.3385 | G187: -7.100512214 | H187: -1.822870856 | I187: 0.2510128053 | K187: -7.078326731 | L187: -1.825059054 | M187: 0.2504581683 | N187: 0.1769581683 | P187: 0.02218548337 | Q187: -0.002188197668 | R187: -0.0005546370843
E188: 2.16 | F188: 0.3385 | G188: -6.205934279 | H188: -1.90274788 | I188: 0.228648357 | K188: -6.182763576 | L188: -1.904663785 | M188: 0.2280690894 | N188: 0.1545690894 | P188: 0.02317070264 | Q188: -0.001915905389 | R188: -0.0005792675661
E189: 2.172 | F189: 0.3385 | G189: -5.275627317 | H189: -1.971670335 | I189: 0.2053906829 | K189: -5.251604816 | L189: -1.973302924 | M189: 0.2047901204 | N189: 0.1312901204 | P189: 0.02402250066 | Q189: -0.001632588643 | R189: -0.0006005625165
E190: 2.184 | F190: 0.3385 | G190: -4.314947325 | H190: -2.02924142 | I190: 0.1813736831 | K190: -4.290211349 | L190: -2.030581299 | M190: 0.1807552837 | N190: 0.1072552837 | P190: 0.02473597629 | Q190: -0.001339878798 | R190: -0.0006183994074
E191: 2.196 | F191: 0.3385 | G191: -3.329425165 | H191: -2.075129683 | I191: 0.1567356291 | K191: -3.30411814 | L191: -2.076169144 | M191: 0.1561029535 | N191: 0.08260295349 | P191: 0.02530702488 | Q191: -0.001039461267 | R191: -0.0006326756219
E192: 2.208 | F192: 0.3385 | G192: -2.324734718 | H192: -2.109070936 | I192: 0.131618368 | K192: -2.299002356 | L192: -2.109804002 | M192: 0.1309750589 | N192: 0.05747505891 | P192: 0.02573236182 | Q192: -0.0007330658 | R192: -0.0006433090454
E193: 2.22 | F193: 0.3385 | G193: -1.306660226 | H193: -2.13086977 | I193: 0.1061665057 | K193: -1.280650685 | L193: -2.131292226 | M193: 0.1055162671 | N193: 0.03201626712 | P193: 0.0260095415 | Q193: -0.0004224565268 | R193: -0.0006502385375
E194: 2.232 | F194: 0.3385 | G194: -0.2810629832 | H194: -2.140400684 | I194: 0.08052657458 | K194: -0.2549260119 | L194: -2.140510106 | M194: 0.0798731503 | N194: 0.006373150297 | P194: 0.02613697134 | Q194: -0.0001094217989 | R194: -0.0006534242836
E195: 2.244 | F195: 0.3385 | G195: 0.7461524056 | H195: -2.137608808 | I195: 0.05484618986 | K195: 0.7722663266 | L195: -2.137404572 | M195: 0.05419334184 | N195: -0.01930665816 | P195: 0.02611392095 | Q195: 0.0002042361072 | R195: -0.0006528480238
E196: 2.256 | F196: 0.3385 | G196: 1.769072019 | H196: -2.122510213 | I196: 0.02927319952 | K196: 1.795012545 | L196: -2.121993502 | M196: 0.02862468636 | N196: -0.04487531364 | P196: 0.02594052629 | Q196: 0.000516711366 | R196: -0.0006485131573
E197: 2.268 | F197: 0.3385 | G197: 2.781806668 | H197: -2.095191827 | I197: 0.003954833298 | K197: 2.807424457 | L197: -2.094365622 | M197: 0.003314388575 | N197: -0.07018561142 | P197: 0.02561778891 | Q197: 0.0008262050004 | R197: -0.0006404447228
E198: 2.28 | F198: 0.3385 | G198: 3.7785258 | H198: -2.055810927 | I198: -0.02096314501 | K198: 3.80367337 | L198: -2.054679992 | M198: -0.02159183426 | N198: -0.09509183426 | P198: 0.02514757013 | Q198: 0.001130935238 | R198: -0.0006286892533
E199: 2.292 | F199: 0.3385 | G199: 4.753491069 | H199: -2.00459424 | I199: -0.04533727672 | K199: 4.778023649 | L199: -2.003165092 | M199: -0.04595059122 | N199: -0.1194505912 | P199: 0.02453258033 | Q199: 0.001429147769 | R199: -0.0006133145082
E200: 2.304 | F200: 0.3385 | G200: 5.701089368 | H200: -1.941836631 | I200: -0.06902723421 | K200: 5.724865732 | L200: -1.940117505 | M200: -0.06962164329 | N200: =IF(F200>0,M200+IF(L200<=0,-$C$31,$C$31),N199) -> -0.1431216433 | P200: =K200-G200 -> 0.0237763633 | Q200: =L200-H200 -> 0.001719125847 | R200: =M200-I200 -> -0.0005944090825
... 308 more rows

Sheet 減衰振動＋外力
A1: 振動の運動方程式
A2: mx''+cx'+kx=-sign(x')μ'mg+fsinΩt | D2: 運動方程式 | F2: 減衰振動＋強制振動 | P2: マクロで計算➡ | R2: =exe("振動シミュレーション","ForcedOscillation",C8:C19,P8:R8) -> 振動シミュレーション
A3: x''=-(c/m)x'-(k/m)x-sign(x')(μ'g)+(f/m)sinΩt | D3: 微分方程式 | P3: マクロは標準モジュール-Module6 の中。 実行させるには =exe(･･･ と先頭に＝を付加する。
A4: ダンパ ＋バネ ＋ 動摩擦 ＋ 外力 | F4: 減衰振動解析解 | I4: 強制振動解析解 | L4: （減衰+強制）解析解 | Q4: 数値積分 | U4: 理論値との差
E5: 時間 | F5: 加速度 | G5: 速度 | H5: 変位 | I5: 加速度 | J5: 速度 | K5: 変位 | L5: 加速度 | M5: 速度 | N5: 変位 | P5: 加速度 | Q5: 速度 | R5: 変位 | T5: 加速度 | U5: 速度 | V5: 変位
E6: t | F6: 理論値x'' | G6: 理論値x' | H6: 理論値x | I6: 理論値x'' | J6: 理論値x' | K6: 理論値x | L6: 理論値x'' | M6: 理論値x' | N6: 理論値x | P6: x'' | Q6: x' | R6: x | T6: x'' | U6: x' | V6: x
B7: 赤太字は単振動からの変更データ | E7: [s] | F7: [m/s^2] | G7: [m/s] | H7: [m] | I7: [m/s^2] | J7: [m/s] | K7: [m] | L7: [m/s^2] | M7: [m/s] | N7: [m] | P7: [m/s^2] | Q7: [m/s] | R7: [m] | T7: [m/s^2] | U7: [m/s] | V7: [m]
A8: 時間間隔 | B8: Δt | C8: =C9/500 -> 0.012 | D8: [s] | E8: 0 | F8: =-2*$C$28*G8-$C$25^2*H8 -> -65 | G8: =-$C$28*H8-$C$29*$C$26*EXP(-$C$28*E8)*SIN($C$26*E8+$C$30) -> 11.5 | H8: =$C$29*EXP(-$C$28*E8)*COS($C$26*E8+$C$30) -> 1.05 | I8: =-$C$31*$C$17^2*SIN($C$17*E8+$C$32) -> 5 | J8: =$C$31*$C$17*COS($C$17*E8+$C$32) -> -1.5 | K8: =$C$31*SIN($C$17*E8+$C$32) -> -0.05 | L8: =F8+I8 -> -60 | M8: =G8+J8 -> 10 | N8: =H8+K8 -> 1 | P8: -60 | Q8: 10 | R8: 1 | T8: =P8-L8 -> 0 | U8: =Q8-M8 -> 0 | V8: =R8-N8 -> 0
A9: 終了時間 | B9: TL | C9: 6 | D9: [s] | E9: =E8+$C$8 -> 0.012 | F9: -68.7234803 | G9: 10.69718435 | H9: 1.18322779 | I9: 6.759726289 | J9: -1.42935685 | K9: -0.06759726289 | L9: =F9+I9 -> -61.96375401 | M9: =G9+J9 -> 9.267827503 | N9: =H9+K9 -> 1.115630527 | P9: -61.96375449 | Q9: 9.267827733 | R9: 1.115630527 | T9: =P9-L9 -> -4.766783732e-07 | U9: =Q9-M9 -> 2.291961607e-07 | V9: =R9-N9 -> 4.571514278e-10
A10: 重力加速度 | B10: g | C10: 9.8 | D10: [m/s^2] | E10: 0.024 | F10: -71.96771377 | G10: 9.852553856 | H10: 1.306565151 | I10: 8.422229271 | J10: -1.338155649 | K10: -0.08422229271 | L10: -63.5454845 | M10: 8.514398207 | N10: 1.222342859 | P10: -63.54548565 | Q10: 8.514398658 | R10: 1.222342865 | T10: -1.159197645e-06 | U10: 4.509344151e-07 | V10: 6.433220401e-09
A11: 質量 | B11: m | C11: 10 | D11: [kg] | E11: 0.036 | F11: -74.72560992 | G11: 8.971904964 | H11: 1.419545 | I11: 9.963597618 | J11: -1.227708119 | K11: -0.09963597618 | L11: -64.76201231 | M11: 7.744196845 | N11: 1.319909024 | P11: -64.76201433 | Q11: 7.744197507 | R11: 1.319909041 | T11: -2.028599908e-06 | U11: 6.621329778e-07 | V11: 1.7608349e-08
A12: 粘性減衰係数 | B12: c | C12: 20 | D12: [Ns/m] | E12: 0.048 | F12: -76.99301308 | G12: 8.061101575 | H12: 1.521770248 | I12: 11.36166225 | J12: -1.099602796 | K12: -0.1136166225 | L12: -65.63135083 | M12: 6.961498779 | N12: 1.408153626 | P12: -65.6313539 | Q12: 6.961499639 | R12: 1.408153659 | T12: -3.064812532e-06 | U12: 8.599802035e-07 | V12: 3.362130352e-08
A13: バネ定数 | B13: k | C13: 400 | D13: [N/m] | E13: 0.06 | F13: -78.76865635 | G13: 7.126040067 | H13: 1.612914405 | I13: 12.59631518 | J13: -0.9556821857 | K13: -0.1259631518 | L13: =F13+I13 -> -66.17234118 | M13: =G13+J13 -> 6.170357881 | N13: =H13+K13 -> 1.486951254 | P13: -66.17234542 | Q13: 6.170358923 | R13: 1.486951308 | T13: -4.246922202e-06 | U13: 1.041940877e-06 | V13: 5.407601189e-08
A14: 静止摩擦係数 | B14: μ | C14: 0 | D14: [ND] | E14: 0.072 | F14: -80.05410038 | G14: 6.172614987 | H14: 1.69272176 | I14: 13.64979873 | J14: -0.7980162577 | K14: -0.1364979873 | L14: -66.40430166 | M14: 5.374598729 | N14: 1.556223773 | P14: -66.40430721 | Q14: 5.374599935 | R14: 1.556223852 | T14: -5.553439038e-06 | U14: 1.205759157e-06 | V14: 7.854801876e-08
A15: 動摩擦係数 | B15: μ' | C15: 0 | D15: [ND] | E15: 0.084 | F15: -80.85365739 | G15: 5.206685561 | H15: 1.761007157 | I15: 14.50696093 | J15: -0.6288726788 | K15: -0.1450696093 | L15: -66.34669647 | M15: 4.577812882 | N15: 1.615937548 | P15: -66.34670343 | Q15: 4.577814232 | R15: 1.615937654 | T15: -6.9625479e-06 | U15: 1.349458524e-06 | V15: 1.065907718e-07
A16: 強制力 | B16: f | C16: 100 | D16: [N] | E16: 0.096 | F16: -81.17430141 | G16: 4.234043202 | H16: 1.817655375 | I16: 15.15547345 | J16: -0.450684195 | K16: -0.1515547345 | L16: -66.01882796 | M16: 3.783359008 | N16: 1.666100641 | P16: -66.01883641 | Q16: 3.783360479 | R16: 1.666100778 | T16: -8.452344844e-06 | U16: 1.471338989e-06 | V16: 1.377416716e-07
A17: 強制力角振動数 | B17: Ω | C17: 10 | D17: [rad/s] | E17: 0.108 | F17: -81.02556547 | G17: 3.260380173 | H17: 1.862620128 | I17: 15.58600892 | J17: -0.2660136428 | K17: -0.1558600892 | L17: -65.43955655 | M17: 2.99436653 | N17: 1.706760039 | P17: -65.43956655 | Q17: 2.9943681 | R17: 1.706760211 | T17: -1.000105676e-05 | U17: 1.569971959e-06 | V17: 1.715278215e-07
A18: 初期位置 | B18: x0 | C18: 1 | D18: [m] | E18: 0.12 | F18: -80.41942671 | G18: 2.291259552 | H18: 1.89592269 | I18: 15.79237506 | J18: -0.07751708873 | K18: -0.1579237506 | L18: -64.62705164 | M18: 2.213742463 | N18: 1.737998939 | P18: -64.62706323 | Q18: 2.213744107 | R18: 1.737999147 | T18: -1.158724297e-05 | U18: 1.644193052e-06 | V18: 2.074714223e-07
A19: 初期速度 | B19: x'0 | C19: 10 | D19: [m/s] | E19: 0.132 | F19: -79.37018023 | G19: 1.332086654 | H19: 1.917650173 | I19: 15.77160376 | J19: 0.1120943726 | K19: -0.1577160376 | L19: -63.59857647 | M19: 1.444181026 | N19: 1.759934135 | P19: -63.59858966 | Q19: 1.444182719 | R19: 1.759934381 | T19: -1.318997721e-05 | U19: 1.693093231e-06 | V19: 2.450947691e-07
E20: 0.144 | F20: -77.89430288 | G20: 0.3880820213 | H20: 1.927953471 | I20: 15.52399377 | J20: 0.300093611 | K20: -0.1552399377 | L20: -62.37030911 | M20: 0.6881756323 | N20: 1.772713533 | P20: -62.3703239 | Q20: 0.6881773483 | R20: 1.772713817 | T20: -1.478900956e-05 | U20: 1.716008606e-06 | V20: 2.83924809e-07
B21: c/m | C21: =C12/C11 -> 2 | D21: [1/s] | E21: 0.156 | F21: -76.01030772 | G21: -0.5357438929 | H21: 1.927044888 | I21: 15.05310639 | J21: 0.4837766845 | K21: -0.1505310639 | L21: -60.95720133 | M21: -0.05196720838 | N21: 1.776513824 | P21: -60.95721769 | Q21: -0.05196549587 | R21: 1.776514147 | T21: -1.63649078e-05 | U21: 1.712509227e-06 | V21: 3.234972343e-07
B22: k/m | C22: =C13/C11 -> 40 | D22: [1/s^2] | E22: 0.168 | F22: -73.73859046 | G22: -1.434614246 | H22: 1.915195474 | I22: 14.36571427 | J22: 0.6605017295 | K22: -0.1436571427 | L22: -59.37287619 | M22: -0.7741125164 | N22: 1.771538331 | P22: -59.37289408 | Q22: -0.774110834 | R22: 1.771538694 | T22: -1.789917827e-05 | U22: 1.682387205e-06 | V22: 3.633600967e-07
B23: μ'g | C23: =C15*C10 -> 0 | D23: [s^2/m] | E23: 0.18 | F23: -71.10126876 | G23: -2.304007439 | H23: 1.892732091 | I23: 13.47170399 | J23: 0.8277269575 | K23: -0.1347170399 | L23: -57.62956477 | M23: -1.476280481 | N23: 1.758015051 | P23: -57.62958415 | Q23: -1.476278856 | R23: 1.758015454 | T23: -1.9374366e-05 | U23: 1.625644441e-06 | V23: 4.030769281e-07
B24: f/m | C24: =C16/C11 -> 10 | D24: [N/m] | E24: 0.192 | F24: -68.12201561 | G24: -3.139676786 | H24: 1.86003423 | I24: 12.38393385 | J24: 0.9830472136 | K24: -0.1238393385 | L24: -55.73808176 | M24: -2.156629572 | N24: 1.736194891 | P24: -55.73810254 | Q24: -2.15662803 | R24: 1.736195333 | T24: -2.077413538e-05 | U24: 1.542480271e-06 | V24: 4.422293711e-07
A25: 固有角振動数 | B25: ω＝√(k/m) | C25: =SQRT(C13/C11) -> 6.32455532 | D25: ［rad/s］ | E25: 0.204 | F25: -64.82588774 | G25: -3.937668153 | H25: 1.817530601 | I25: 11.11804895 | J25: 1.124228569 | K25: -0.1111804895 | L25: -53.70783879 | M25: -2.813439585 | N25: 1.706350112 | P25: -53.70786087 | Q25: -2.813438151 | R25: 1.706350592 | T25: -2.208333159e-05 | U25: 1.433279236e-06 | V25: 4.804193283e-07
A26: 減衰固有角振動数 | B26: ωd＝ω√(1-ζ^2) | C26: =C25*SQRT(1-C27^2) -> 6.244997998 | D26: ［rad/s］ | E26: 0.216 | F26: -61.23915028 | G26: -4.694335516 | H26: 1.765695533 | I26: 9.69225618 | J26: 1.24924045 | K26: -0.0969225618 | L26: -51.5468941 | M26: -3.445095066 | N26: 1.668772971 | P26: -51.54691739 | Q26: -3.445093767 | R26: 1.668773488 | T26: -2.328802432e-05 | U26: 1.298599245e-06 | V26: 5.172706459e-07
A27: 減衰比 | B27: ζ＝c/{2√(mk)} | C27: =C12/(2*SQRT(C11*C13)) -> 0.158113883 | D27: [ND] | E27: 0.228 | F27: -57.38909871 | G27: -5.40635439 | H27: 1.705045187 | I27: 8.12706232 | J27: 1.356284845 | K27: -0.0812706232 | L27: -49.26203639 | M27: -4.050069545 | N27: 1.623774564 | P27: -49.26206076 | Q27: -4.050068406 | R27: 1.623775116 | T27: -2.43755347e-05 | U27: 1.139160251e-06 | V27: 5.524303555e-07
A28: 減衰率 | B28: γ＝ζω | C28: =C27*C25 -> 1 | D28: [1/s] | E28: 0.24 | F28: -53.3038791 | G28: -6.070733123 | H28: 1.636133634 | I28: 6.444979131 | J28: 1.443822164 | K28: -0.06444979131 | L28: -46.85889997 | M28: -4.62691096 | N28: 1.571683842 | P28: -46.8589253 | Q28: -4.626910004 | R28: 1.571684428 | T28: -2.533444737e-05 | U28: 9.558336638e-07 | V28: 5.855695016e-07
A29: 振幅 | B29: A1 | C29: =SQRT(((C31*(C28*SIN(C32)+C17*COS(C32))-C28*C18-C19)/C26)^2+(C18-C31*SIN(C32))^2) -> 2.267382994 | D29: [m] | E29: 0.252 | F29: -49.01230789 | G29: -6.684822017 | H29: 1.559548798 | I29: 4.670199557 | J29: 1.51059338 | K29: -0.04670199557 | L29: -44.34210833 | M29: -5.174228636 | N29: 1.512846803 | P29: -44.34213449 | Q29: -5.174227887 | R29: 1.512847419 | T29: -2.615460883e-05 | U29: 7.496325196e-07 | V29: 6.163835948e-07
A30: 初期位相 | B30: β | C30: =ATAN2(C26*(C18-C31*SIN(C32)),C31*(C28*SIN(C32)+C17*COS(C32))-C28*C18-C19) -> -1.089319121 | D30: [rad] | E30: 0.264 | F30: -44.54369201 | G30: -7.246320292 | H30: 1.475908315 | I30: 2.828249773 | J30: 1.555638143 | K30: -0.02828249773 | L30: -41.71544224 | M30: -5.690682149 | N30: 1.447625817 | P30: -41.71546907 | Q30: -5.690681628 | R30: 1.447626462 | T30: -2.682711435e-05 | U30: 5.217025629e-07 | V30: 6.445927307e-07
A31: 振幅 | B31: A2 | C31: =C24/SQRT((C25^2-C17^2)^2+4*(C28*C17)^2) -> 0.158113883 | D31: [m] | E31: 0.276 | F31: -39.92765056 | G31: -7.753280905 | H31: 1.385855309 | I31: 0.9456220403 | J31: 1.578308585 | K31: -0.009456220403 | L31: -38.98202852 | M31: -6.17497232 | N31: 1.376399089 | P31: -38.98205587 | Q31: -6.174972046 | R31: 1.376399759 | T31: -2.734428496e-05 | U31: 2.733142086e-07 | V31: 6.699414135e-07
A32: 初期位相 | B32: α | C32: =ATAN2(C25^2-C17^2,-2*C28*C17) -> -2.819842099 | D32: [rad] | E32: 0.288 | F32: -35.1939389 | G32: -8.20411323 | H32: 1.290054134 | I32: -0.9506063171 | J32: 1.578278643 | K32: 0.009506063171 | L32: -36.14454522 | M32: -6.625834587 | N32: 1.299560197 | P32: -36.14457292 | Q32: -6.625834581 | R32: 1.299560889 | T32: -2.76996362e-05 | U32: 5.85540505e-09 | V32: 6.921981346e-07
E33: 0.3 | F33: -30.37227615 | G33: -8.597583661 | H33: 1.189186087 | I33: -2.833162362 | J33: 1.555548749 | K33: 0.02833162362 | L33: -33.20543851 | M33: -7.042034912 | N33: 1.21751771 | P33: -33.2054664 | Q33: -7.042035192 | R33: 1.217518422 | T33: -2.788784115e-05 | U33: -2.791746274e-07 | V33: 7.111547602e-07
E34: 0.312 | F34: -25.49217699 | G34: -8.932814161 | H34: 1.083945133 | I34: -4.674969803 | J34: 1.510445819 | K34: 0.04674969803 | L34: -30.16714679 | M34: -7.422368342 | N34: 1.130694831 | P34: -30.1671747 | Q34: -7.422368922 | R34: 1.130695558 | T34: -2.790468875e-05 | U34: -5.801708944e-07 | V34: 7.266257633e-07
A35: 減衰振動項解析解 | E35: 0.324 | F35: -20.58278862 | G35: -9.209278822 | H35: 0.9750336566 | I35: -6.449538423 | J35: 1.443618558 | K35: 0.06449538423 | L35: -27.03232704 | M35: -7.765660264 | N35: 1.039529041 | P35: -27.03235479 | Q35: -7.76566116 | R35: 1.039529779 | T35: -2.774703988e-05 | U35: -8.954274335e-07 | V35: 7.384473686e-07
A36: x1''+2γx1'+ω^2x1=0 | D36: 運動方程式 | E36: 0.336 | F36: -15.67273363 | G36: -9.426798512 | H36: 0.8631582663 | I36: -8.131345084 | J36: 1.356028123 | K36: 0.08131345084 | L36: -23.80407871 | M36: -8.070770388 | N36: 0.9444717172 | P36: -23.80410613 | Q36: -8.070771611 | R36: 0.9444724636 | T36: -2.741278222e-05 | U36: -1.223141588e-06 | V36: 7.464766349e-07
A37: x1＝A1e^(－γt)cos(ωdt＋β) | D37: 変位 | E37: 0.348 | F37: -10.78995966 | G37: -9.585533663 | H37: 0.7490256745 | I37: -9.696200819 | J37: 1.248934304 | K37: 0.09696200819 | L37: -20.48616048 | M37: -8.336599358 | N37: 0.8459876827 | P37: -20.48618738 | Q37: -8.33660092 | R37: 0.8459884333 | T37: -2.690078605e-05 | U37: -1.561417854e-06 | V37: 7.505905439e-07
A38: x1'＝－γx1－A1ωde^(－γt)sin(ωdt＋β) | D38: 速度 | E38: 0.36 | F38: -5.961596377 | G38: -9.685975313 | H38: 0.6333386751 | I38: -11.12159873 | J38: 1.123877403 | K38: 0.1112159873 | L38: -17.08319511 | M38: -8.56209791 | N38: 0.7445546624 | P38: -17.08322132 | Q38: -8.562099819 | R38: 0.7445554131 | T38: -2.621086171e-05 | U38: -1.908271559e-06 | V38: 7.506851206e-07
A39: x1''＝－2γx1'－ω^2x1 | D39: 加速度 | E39: 0.372 | F39: -1.213820583 | G39: -9.72893447 | H39: 0.5167922381 | I39: -12.38703771 | J39: 0.9826560779 | K39: 0.1238703771 | L39: -13.60085829 | M39: -8.746278392 | N39: 0.6406626152 | P39: -13.60088364 | Q39: -8.746280653 | R39: 0.6406633619 | T39: -2.534372024e-05 | U39: -2.261632469e-06 | V39: 7.466746295e-07
A40: A1^2=[{(A2(γsinα+Ωcosα)-γx0-x0'}/ωd}^2+(x0-A2sinα)^2] | D40: 振幅 | E40: 0.384 | F40: 3.428270137 | G40: -9.715529907 | H40: 0.4000697419 | I40: -13.47431729 | J40: 0.8273014776 | K40: 0.1347431729 | L40: -10.04604716 | M40: -8.88822843 | N40: 0.5348129149 | P40: -10.04607146 | Q40: -8.888231049 | R40: 0.5348136534 | T40: -2.430093834e-05 | U40: -2.619348573e-06 | V40: 7.384908872e-07
A41: β=tan^(-1){(A2(γsinα+Ωcosα)-γx0-x0')/(ωd(x0-A2sinα))} | D41: 初期位相 | E41: 0.396 | F41: 7.940774576 | G41: -9.647174506 | H41: 0.2838393609 | I41: -14.36779943 | J41: 0.660048025 | K41: 0.1436779943 | L41: -6.427024854 | M41: -8.987126481 | N41: 0.4275173552 | P41: -6.427047939 | Q41: -8.98712946 | R41: 0.4275180813 | T41: -2.30849279e-05 | U41: -2.979190235e-06 | V41: 7.260827093e-07
E42: 0.408 | F42: 12.3010955 | G42: -9.525560238 | H42: 0.1687506243 | I42: -15.05463341 | J42: 0.4833012809 | K42: 0.1505463341 | L42: -2.753537909 | M42: -9.042258958 | N42: 0.3192969585 | P42: -2.753559608 | Q42: -9.042262296 | R42: 0.3192976679 | T42: -2.16989109e-05 | U42: -3.338854926e-06 | V42: 7.094155186e-07
A43: 強制振動項解析解 | E43: 0.42 | F43: 16.48803729 | G43: -9.352641929 | H43: 0.05543116408 | I43: -15.52494069 | J43: 0.2996033458 | K43: 0.1552494069 | L43: 0.9630966016 | M43: -9.053038583 | N43: 0.210680571 | P43: 0.9630764547 | Q43: -9.053042279 | R43: 0.2106812595 | T43: -2.014690021e-05 | U43: -3.695972691e-06 | V43: 6.884711397e-07
A44: x2''+2γx2'+ω^2x2=f/m | D44: 運動方程式 | E44: 0.432 | F44: 20.48189326 | G44: -9.130619896 | H44: -0.05551633677 | I44: -15.77195697 | J44: 0.1115962972 | K44: 0.1577195697 | L44: 4.709936293 | M44: -9.019023598 | N44: 0.1022032329 | P44: 4.709917859 | Q44: -9.019027647 | R44: 0.1022038962 | T44: -1.843368592e-05 | U44: -4.048112581e-06 | V44: 6.632477771e-07
A45: x2=A2sin(Ωt＋α) | D45: 変位 | E45: 0.444 | F45: 24.26452246 | G45: -8.861921615 | H45: -0.1635169807 | I45: -15.79212947 | J45: -0.07801581061 | K45: 0.1579212947 | L45: 8.472392984 | M45: -8.939937426 | N45: -0.005595685948 | P45: 8.472376419 | Q45: -8.939941819 | R45: -0.005595052188 | T45: -1.656482725e-05 | U45: -4.39279019e-06 | V45: 6.337601908e-07
A46: x2'=A2Ωcos(Ωt＋α) | D46: 速度 | E46: 0.456 | F46: 27.81941574 | G46: -8.549182525 | H46: -0.2680262672 | I46: -15.58516807 | J46: -0.2665058382 | K46: 0.1558516807 | L46: 12.23424767 | M46: -8.815688364 | N46: -0.1121745865 | P46: 12.23423312 | Q46: -8.815693091 | R46: -0.1121739865 | T46: -1.454664952e-05 | U46: -4.727476451e-06 | V46: 6.000400606e-07
A47: x2''=－A2Ω^2sin(Ωt＋α) | D47: 加速度 | E47: 0.468 | F47: 31.13175099 | G47: -8.195226101 | H47: -0.3685324696 | I47: -15.15404943 | J47: -0.4511627848 | K47: 0.1515404943 | L47: 15.97770155 | M47: -8.646388886 | N47: -0.2169919753 | P47: 15.97768917 | Q47: -8.646393935 | R47: -0.2169914132 | T47: -1.238624599e-05 | U47: -5.049607806e-06 | V47: 5.621365401e-07
A48: A2=F/(m√((ω^2-Ω^2)^2+4(γΩ)^2)) | D48: 振幅 | E48: 0.48 | F48: 34.18843741 | G48: -7.803043332 | H48: -0.4645587687 | I48: -14.50497422 | J48: -0.6293307796 | K48: 0.1450497422 | L48: 19.6834632 | M48: -8.432374112 | N48: -0.3195090266 | P48: 19.68345311 | Q48: -8.432379469 | R48: -0.3195085064 | T48: -1.009148309e-05 | U48: -5.356597857e-06 | V48: 5.201169701e-07
A49: α=tan^(-1)((-2γΩ)/(ω^2-Ω^2)) | D49: 初期位相 | E49: 0.492 | F49: 36.97814899 | G49: -7.375771741 | H49: -0.5556651376 | I49: -13.6472779 | J49: -0.7984472808 | K49: 0.136472779 | L49: 23.33087109 | M49: -8.174219021 | N49: -0.4191923586 | P49: 23.33086342 | Q49: -8.174224667 | R49: -0.4191918846 | T49: -7.671008664e-06 | U49: -5.645850571e-06 | V49: 4.740677452e-07
E50: 0.504 | F50: 39.49134699 | G50: -6.916674051 | H50: -0.6414499723 | I50: -12.59329649 | J50: -0.9560799317 | K50: 0.1259329649 | L50: 26.89805051 | M50: -7.872753983 | N50: -0.5155170074 | P50: 26.89804537 | Q50: -7.872759898 | R50: -0.5155165833 | T50: -5.134261748e-06 | U50: -5.914775004e-06 | V50: 4.240952939e-07
A51: 減衰振動＋強制振動 解析解 | E51: 0.516 | F51: 41.72029194 | G51: -6.429116665 | H51: -0.7215514651 | I51: -11.35818912 | J51: -1.099961545 | K51: 0.1135818912 | L51: 30.36210282 | M51: -7.52907821 | N51: -0.6079695739 | P51: 30.36210033 | Q51: -7.529084371 | R51: -0.6079692036 | T51: -2.491482935e-06 | U51: -6.160801655e-06 | V51: 3.703271564e-07
A52: x=x1+x2 | D52: 変位 | E52: 0.528 | F52: 43.65904487 | G52: -5.916548052 | H52: -0.7956487193 | I52: -9.959719999 | J52: -1.22802271 | K52: 0.09959719999 | L52: 33.69932488 | M52: -7.144570761 | N52: -0.6960515193 | P52: 33.69932512 | Q52: -7.144577143 | R52: -0.6960512064 | T52: 2.462763717e-07 | U52: -6.381400263e-06 | V52: 3.12913104e-07
A53: x'=x1'+x2' | D53: 速度 | E53: 0.54 | F53: 45.30345853 | G53: -5.382477182 | H53: -0.8634626041 | I53: -8.418002934 | J53: -1.338421558 | K53: 0.08418002934 | L53: 36.8854556 | M53: -6.72089874 | N53: -0.7792825748 | P53: 36.88545866 | Q53: -6.720905314 | R53: -0.7792823228 | T53: 3.067147084e-06 | U53: -6.574099086e-06 | V53: 2.520262772e-07
A54: x''=x1''+x2'' | D54: 加速度 | E54: 0.552 | F54: 46.65115837 | G54: -4.830452135 | H54: -0.9247563525 | I54: -6.75521202 | J54: -1.429570252 | K54: 0.0675521202 | L54: 39.89594635 | M54: -6.260022387 | N54: -0.8572042323 | P54: 39.89595231 | Q54: -6.260029124 | R54: -0.8572040445 | T54: 5.958439083e-06 | U54: -6.736505472e-06 | V54: 1.878642966e-07
E55: 0.564 | F55: 47.7015141 | G55: -4.264038985 | H55: -0.9793359033 | I55: -4.995262727 | J55: -1.500157826 | K55: 0.04995262727 | L55: 42.70625138 | M55: -5.764196811 | N55: -0.929383276 | P55: 42.70626028 | Q55: -5.764203678 | R55: -0.9293831554 | T55: 8.906643423e-06 | U55: -6.866327606e-06 | V55: 1.206502948e-07
E56: 0.576 | F56: 48.45560187 | G56: -3.68680109 | H56: -1.027049992 | I56: -3.163467927 | J56: -1.549169038 | K56: 0.03163467927 | L56: 45.29213394 | M56: -5.235970127 | N56: -0.995415313 | P56: 45.29214584 | Q56: -5.235977089 | R56: -0.9954152624 | T56: 1.189744112e-05 | U56: -6.961397172e-06 | V56: 5.063383046e-08
E57: 0.588 | F57: 48.91615768 | G57: -3.102278882 | H57: -1.067789998 | I57: -1.286173828 | J57: -1.575898972 | K57: 0.01286173828 | L57: 47.62998385 | M57: -4.678177854 | N57: -1.05492826 | P57: 47.62999877 | Q57: -4.678184874 | R57: -1.054928282 | T57: 1.491572e-05 | U57: -7.019692805e-06 | V57: -2.190835935e-08
E58: 0.6 | F58: 49.08752247 | G58: -2.513970275 | H58: -1.101489548 | I58: 0.6096189603 | J58: -1.579963179 | K58: -0.006096189603 | L58: 49.69714143 | M58: -4.093933454 | N58: -1.107585738 | P58: 49.69715938 | Q58: -4.093940494 | R58: -1.107585834 | T58: 1.794560067e-05 | U58: -7.03936397e-06 | V58: -9.667181811e-08
E59: 0.612 | F59: 48.97557936 | G59: -1.925311771 | H59: -1.128123896 | I59: 2.496643764 | J59: -1.561303205 | K59: -0.02496643764 | L59: 51.47222313 | M59: -3.486614976 | N59: -1.153090333 | P59: 51.4722441 | Q59: -3.486621995 | R59: -1.153090507 | T59: 2.097047349e-05 | U59: -7.018755064e-06 | V59: -1.733240842e-07
E60: 0.624 | F60: 48.58768361 | G60: -1.339660367 | H60: -1.147709072 | I60: 4.34776002 | J60: -1.520187432 | K60: -0.0434776002 | L60: 52.93544363 | M60: -2.859847799 | N60: -1.191186672 | P60: 52.9354676 | Q60: -2.859854756 | R60: -1.191186924 | T60: 2.397304645e-05 | U60: -6.956429355e-06 | V60: -2.515046937e-07
E61: 0.636 | F61: 47.93258585 | G61: -0.7602763474 | H61: -1.160300829 | I61: 6.136343624 | J61: -1.457207216 | K61: -0.06136343624 | L61: 54.06892948 | M61: -2.217483563 | N61: -1.221664265 | P61: 54.06895641 | Q61: -2.217490414 | R61: -1.221664596 | T61: 2.693540563e-05 | U61: -6.851192511e-06 | V61: -3.30825515e-07
E62: 0.648 | F62: 47.02034926 | G62: -0.1903070255 | H62: -1.16599338 | I62: 7.836669865 | J62: -1.373268384 | K62: -0.07836669865 | L62: 54.85701912 | M62: -1.563575409 | N62: -1.244360079 | P62: 54.85704896 | Q62: -1.563582112 | R62: -1.24436049 | T62: 2.98390885e-05 | U62: -6.702115303e-06 | V62: -4.108714475e-07
E63: 0.66 | F63: 45.86226112 | G63: 0.3672284777 | H63: -1.164917952 | I63: 9.424283412 | J63: -1.269578206 | K63: -0.09424283412 | L63: 55.28654453 | M63: -0.9023497285 | N63: -1.259160786 | P63: 55.2865772 | Q63: -0.902356237 | R63: -1.259161277 | T63: 3.266517069e-05 | U63: -6.50855514e-06 | V63: -4.912015101e-07
E64: 0.672 | F64: 44.47073965 | G64: 0.9094533702 | H64: -1.15724116 | I64: 10.87635005 | J64: -1.14762803 | K64: -0.1087635005 | L64: 55.3470897 | M64: -0.2381746599 | N64: -1.26600466 | P64: 55.3471251 | Q64: -0.2381809301 | R64: -1.266005232 | T64: 3.539436587e-05 | U64: -6.270176158e-06 | V64: -5.713503386e-07
E65: 0.684 | F65: 42.85923651 | G65: 1.433646178 | H65: -1.143163222 | I65: 12.1719851 | J65: -1.009171832 | K65: -0.121719851 | L65: 55.03122161 | M65: 0.4244743465 | N65: -1.264883073 | P65: 55.03125962 | Q65: 0.4244683595 | R65: -1.264883723 | T65: 3.800713942e-05 | U65: -5.986967341e-06 | V65: -6.508301182e-07
E66: 0.696 | F66: 41.04213575 | G66: 1.937252545 | H66: -1.122916021 | I66: 13.2925538 | J66: -0.8562009892 | K66: -0.132925538 | L66: 54.33468955 | M66: 1.081051556 | N66: -1.255841559 | P66: 54.33473004 | Q66: 1.081045897 | R66: -1.255842288 | T66: =P66-L66 -> 4.048383477e-05 | U66: =Q66-M66 -> -5.659258508e-06 | V66: =R66-N66 -> -7.291329438e-07
E67: 0.708 | F67: 39.03464992 | G67: 2.4178958 | H67: -1.096761038 | I67: 14.22193931 | J67: -0.6909156405 | K67: -0.1422193931 | L67: 53.25658923 | M67: 1.726980159 | N67: -1.238980431 | P67: 53.25663203 | Q67: 1.726974871 | R67: -1.238981237 | T67: 4.28048125e-05 | U67: -5.28773373e-06 | V67: -8.057336256e-07
E68: 0.72 | F68: 36.85271384 | G68: 2.87338626 | H68: -1.064987159 | I68: 14.94677453 | J68: -0.5156930399 | K68: -0.1494677453 | L68: 51.79948837 | M68: 2.357693221 | N68: -1.214454904 | P68: 51.79953332 | Q68: 2.357688347 | R68: -1.214455784 | T68: 4.495060058e-05 | U68: -4.873441831e-06 | V68: -8.80092923e-07
E69: 0.732 | F69: 34.51287686 | G69: 3.301729261 | H69: -1.027908384 | I69: 15.45663435 | J69: -0.3330533663 | K69: -0.1545663435 | L69: 49.96951121 | M69: 2.968675894 | N69: -1.182474728 | P69: 49.96955811 | Q69: 2.968671477 | R69: -1.18247568 | T69: 4.69020554e-05 | U69: -4.417803772e-06 | V69: -9.516611965e-07
E70: 0.744 | F70: 32.0321941 | G70: 3.701131869 | H70: -0.985861446 | I70: 15.7441856 | J70: -0.1456234767 | K70: -0.157441856 | L70: 47.7763797 | M70: 3.555508392 | N70: -1.143303302 | P70: 47.77642834 | Q70: 3.55550447 | R70: -1.143304322 | T70: 4.864053162e-05 | U70: -3.922616636e-06 | V70: -1.019882459e-06
E71: 0.756 | F71: 29.42811749 | G71: 4.070008305 | H71: -0.9392033524 | I71: 15.80529251 | J71: 0.04390087575 | K71: -0.1580529251 | L71: 45.23341 | M71: 4.113909181 | N71: -1.097256278 | P71: 45.23346014 | Q71: 4.113905791 | R71: -1.097257362 | T71: 5.014805927e-05 | U71: -3.390053871e-06 | V71: -1.084198789e-06
E72: 0.768 | F72: =-2*$C$28*G72-$C$25^2*H72 -> 26.71838702 | G72: =-$C$28*H72-$C$29*$C$26*EXP(-$C$28*E72)*SIN($C$26*E72+$C$30) -> 4.406984049 | H72: =$C$29*EXP(-$C$28*E72)*COS($C$26*E72+$C$30) -> -0.888308878 | I72: =-$C$31*$C$17^2*SIN($C$17*E72+$C$32) -> 15.63907619 | J72: =$C$31*$C$17*COS($C$17*E72+$C$32) -> 0.2327938139 | K72: =$C$31*SIN($C$17*E72+$C$32) -> -0.1563907619 | L72: 42.35746321 | M72: 4.639777863 | N72: -1.04469964 | P72: 42.35751462 | Q72: 4.639775041 | R72: -1.044700784 | T72: 5.140752694e-05 | U72: -2.822661822e-06 | V72: -1.144055082e-06
E73: =E72+$C$8 -> 0.78 | F73: 23.92092304 | G73: 4.71089865 | H73: -0.8335680086 | I73: 15.24792728 | J73: 0.4183385418 | K73: -0.1524792728 | L73: 39.16885033 | M73: 5.129237192 | N73: -0.9860472814 | P73: 39.16890273 | Q73: 5.129234968 | R73: -0.9860484803 | T73: 5.240286776e-05 | U73: -2.223352162e-06 | V73: -1.198904086e-06
E74: 0.792 | F74: 21.05372003 | G74: 4.98080725 | H74: -0.7753833632 | I74: 14.63747158 | J74: 0.5978664202 | K74: -0.1463747158 | L74: 35.69119161 | M74: 5.57867367 | N74: -0.921758079 | P74: 35.69124473 | Q74: 5.578672075 | R74: -0.9217593272 | T74: 5.311924754e-05 | U74: -1.595390349e-06 | V74: -1.248211671e-06
E75: 0.804 | F75: 18.13474243 | G75: 5.21598085 | H75: -0.7141676033 | I75: 13.81648911 | J75: 0.7687953483 | K75: -0.1381648911 | L75: 31.95123154 | M75: 5.984776198 | N75: -0.8523324943 | P75: 31.95128508 | Q75: 5.984775256 | R75: -0.8523337858 | T75: 5.354325131e-05 | U75: -9.423799279e-07 | V75: -1.291462287e-06
E76: 0.816 | F76: 15.18182324 | G76: 5.415905333 | H76: -0.6503408476 | I76: 12.79678782 | J76: 0.9286669018 | K76: -0.1279678782 | L76: 27.97861106 | M76: 6.344572235 | N76: -0.7783087258 | P76: 27.97866472 | Q76: 6.344571966 | R76: -0.778310054 | T76: 5.36630667e-05 | U76: -2.682427098e-07 | V76: -1.328164532e-06
E77: 0.828 | F77: 12.21256562 | G77: 5.580279297 | H77: -0.5843281053 | I77: 11.59303381 | J77: 1.075181692 | K77: -0.1159303381 | L77: =F77+I77 -> 23.80559943 | M77: =G77+J77 -> 6.655460989 | N77: =H77+K77 -> -0.7002584434 | P77: 23.8056529 | Q77: 6.655461412 | R77: -0.7002598013 | T77: 5.346866132e-05 | U77: 4.228050665e-07 | V77: -1.357856787e-06
E78: 0.84 | F78: 9.244248231 | G78: 5.709010724 | H78: -0.516556742 | I78: 10.22254035 | J78: 1.206232435 | K78: -0.1022254035 | L78: 19.46678858 | M78: 6.915243159 | N78: -0.6187821455 | P78: 19.46684153 | Q78: 6.915244286 | R78: -0.6187835256 | T78: 5.295195172e-05 | U78: 1.126280504e-06 | V78: -1.380112818e-06
E79: 0.852 | F79: 6.293734646 | G79: 5.802212537 | H79: -0.447453993 | I79: 8.705018867 | J79: 1.319934265 | K79: -0.08705018867 | L79: 14.99875351 | M79: 7.122146802 | N79: -0.5345041817 | P79: 14.99880562 | Q79: 7.12214864 | R79: -0.5345055762 | T79: 5.210696101e-05 | U79: 1.837465589e-06 | V79: -1.394547305e-06
E80: 0.864 | F80: 3.377387238 | G80: 5.860197098 | H80: -0.3774445358 | I80: 7.062295463 | J80: 1.41465184 | K80: -0.07062295463 | L80: 10.4396827 | M80: 7.274848938 | N80: -0.4480674905 | P80: 10.43973363 | Q80: 7.274851489 | R80: -0.4480688913 | T80: 5.09299633e-05 | U80: 2.551442244e-06 | V80: -1.400821195e-06
E81: 0.876 | F81: 0.5109860018 | G81: 5.883469703 | H81: -0.3069481352 | I81: 5.317996981 | J81: 1.489022861 | K81: -0.05317996981 | L81: 5.828982983 | M81: 7.372492564 | N81: -0.360128105 | P81: 5.829032403 | Q81: 7.372495827 | R81: -0.3601295037 | T81: 4.941961197e-05 | U81: 3.263130625e-06 | V81: -1.398646831e-06
E82: 0.888 | F82: -2.290347409 | G82: 5.872721131 | H82: -0.2363773713 | I82: 3.497211195 | J82: 1.541977671 | K82: -0.03497211195 | L82: 1.206863786 | M82: 7.414698802 | N82: -0.2713494833 | P82: 1.206911363 | Q82: 7.414702769 | R82: -0.2713508711 | T82: 4.75770494e-05 | U82: 3.967330359e-06 | V82: -1.387792753e-06
E83: 0.9 | F83: -5.01222009 | G83: 5.828819314 | H83: -0.1661354635 | I83: 1.626125969 | J83: 1.572754635 | K83: -0.01626125969 | L83: -3.386094121 | M83: 7.40157395 | N83: -0.1823967231 | P83: -3.386048715 | Q83: 7.401578608 | R83: -0.1823980912 | T83: 4.540599635e-05 | U83: 4.658764313e-06 | V83: -1.368088125e-06
E84: 0.912 | F84: -7.641032485 | G84: 5.752800203 | H84: -0.09661419805 | I84: -0.2683473841 | J84: 1.580911097 | K84: 0.002683473841 | L84: -7.909379869 | M84: 7.3337113 | N84: -0.09393072421 | P84: -7.909336956 | Q84: 7.333716632 | R84: -0.09393206364 | T84: 4.291281913e-05 | U84: 5.332124485e-06 | V84: -1.339426703e-06
E85: 0.924 | F85: -10.16403693 | G85: 5.645857887 | H85: -0.02819197109 | I85: -2.15896117 | J85: 1.566329744 | K85: 0.0215896117 | L85: -12.3229981 | M85: 7.212187631 | N85: -0.006602359387 | P85: -12.32295799 | Q85: 7.212193613 | R85: -0.006603661158 | T85: 4.010657192e-05 | U85: 5.982119568e-06 | V85: -1.301770277e-06
E86: 0.936 | F86: -12.56938998 | G86: 5.509334049 | H86: 0.03876804695 | I86: -4.018523204 | J86: 1.529220296 | K86: 0.04018523204 | L86: -16.58791318 | M86: 7.038554345 | N86: 0.07895327899 | P86: -16.58787618 | Q86: 7.038560949 | R86: 0.07895202383 | T86: 3.699901427e-05 | U86: 6.603523701e-06 | V86: -1.255151542e-06
E87: 0.948 | F87: -14.84619831 | G87: 5.344706838 | H87: 0.103919616 | I87: -5.82028791 | J87: 1.470116487 | K87: 0.0582028791 | L87: -20.66648623 | M87: 6.814823326 | N87: 0.1621224951 | P87: -20.66645262 | Q87: 6.814830517 | R87: 0.1621212954 | T87: 3.360460038e-05 | U87: 7.191225865e-06 | V87: -1.199676303e-06
E88: 0.96 | F88: -16.98455822 | G88: 5.15357922 | H88: 0.1669349944 | I88: -7.538340997 | J88: 1.389868393 | K88: 0.07538340997 | L88: -24.52289921 | M88: 6.543447613 | N88: 0.2423184044 | P88: -24.52286927 | Q88: 6.543455353 | R88: 0.2423172688 | T88: 2.994044188e-05 | U88: 7.740279409e-06 | V88: -1.135525018e-06
E89: 0.972 | F89: -18.9755884 | G89: 4.9376669 | H89: 0.227506365 | I89: -9.147972174 | J89: 1.289630199 | K89: 0.09147972174 | L89: -28.12356058 | M89: 6.227297099 | N89: 0.3189860868 | P89: -28.12353455 | Q89: 6.227305345 | R89: 0.3189850238 | T89: 2.602624113e-05 | U89: 8.245951152e-06 | V89: -1.062953586e-06
E90: 0.984 | F90: -20.81145632 | G90: 4.69878589 | H90: 0.2853471136 | I90: -10.62603055 | J90: 1.170843605 | K90: 0.1062603055 | L90: -31.43748687 | M90: 5.869629495 | N90: 0.3916074191 | P90: -31.43746499 | Q90: 5.869638199 | R90: 0.3916064368 | T90: 2.188419655e-05 | U90: 8.703769484e-06 | V90: -9.822933877e-07
E91: 0.996 | F91: -22.48539784 | G91: 4.438839798 | H91: 0.3401929561 | I91: -11.95125762 | J91: 1.035217085 | K91: 0.1195125762 | L91: -34.43665546 | M91: 5.474056883 | N91: 0.4597055323 | P91: -34.43663792 | Q91: 5.474065993 | R91: 0.4597046384 | T91: 1.753887888e-05 | U91: 9.109570912e-06 | V91: -8.939505178e-07
E92: 1.008 | F92: -23.99173038 | G92: 4.159806923 | H92: 0.3918029134 | I92: -13.104593 | J92: 0.8847013189 | K92: 0.13104593 | L92: -37.09632338 | M92: 5.044508242 | N92: 0.5228488433 | P92: -37.09631036 | Q92: 5.044517701 | R92: 0.5228480449 | T92: 1.301708006e-05 | U92: 9.459544536e-06 | V92: -7.984042285e-07
E93: 1.02 | F93: -25.3258596 | G93: 3.863727228 | H93: 0.4399601285 | I93: -14.06944857 | J93: 0.7214611342 | K93: 0.1406944857 | L93: -39.39530817 | M93: 4.585188362 | N93: 0.5806546142 | P93: -39.39529982 | Q93: 4.585198112 | R93: 0.580653918 | T93: 8.347634086e-06 | U93: 9.75027381e-06 | V93: -6.962045426e-07
E94: 1.032 | F94: -26.48427971 | G94: 3.552689273 | H94: 0.484472529 | I94: -14.83194709 | J94: 0.5478443701 | K94: 0.1483194709 | L94: -41.3162268 | M94: 4.100533644 | N94: 0.632792 | P94: -41.31622324 | Q94: 4.100543622 | R94: 0.632791412 | T94: 3.561212594e-06 | U94: 9.978775212e-06 | V94: -5.879690753e-07
E95: 1.044 | F95: -27.46456763 | G95: 3.228817186 | H95: 0.5251733315 | I95: -15.38112175 | J95: 0.3663481092 | K95: 0.1538112175 | L95: -42.84568938 | M95: 3.595165295 | N95: 0.678984549 | P95: -42.84569069 | Q95: 3.595175438 | R95: 0.6789840746 | T95: -1.309904135e-06 | U95: 1.014253321e-05 | V95: -4.743790565e-07
E96: 1.056 | F96: -28.26537109 | G96: 2.894257729 | H96: 0.5619213907 | I96: -15.70907391 | J96: 0.179582763 | K96: 0.1570907391 | L96: -43.974445 | M96: 3.073840492 | N96: 0.7190121298 | P96: -43.97445123 | Q96: 3.073850731 | R96: 0.7190117736 | T96: -6.232078803e-06 | U96: 1.023953113e-05 | V96: -3.561745864e-07
E97: 1.068 | F97: -28.88639088 | G97: 2.551167552 | H97: 0.5946013945 | I97: -15.81108673 | J97: -0.009765473227 | K97: 0.1581108673 | L97: -44.69747761 | M97: 2.541402079 | N97: 0.7527122618 | P97: -44.69748878 | Q97: 2.541412347 | R97: 0.7527120276 | T97: -1.11705885e-05 | U97: 1.026827756e-05 | V97: -2.341491657e-07
E98: 1.08 | F98: -29.32835767 | G98: 2.201700693 | H98: 0.6231239072 | I98: -15.68569298 | J98: -0.1989732554 | K98: 0.1568569298 | L98: -45.01405066 | M98: 2.002727438 | N98: 0.779980837 | P98: -45.01406675 | Q98: 2.002737666 | R98: 0.7799807279 | T98: -1.608991435e-05 | U98: 1.022782776e-05 | V98: -1.091435288e-07
E99: 1.092 | F99: -29.59300336 | G99: 1.847996381 | H99: 0.6474252649 | I99: -15.33469618 | J99: -0.3853192592 | K99: 0.1533469618 | L99: -44.92769953 | M99: 1.462677122 | N99: 0.8007722266 | P99: -44.92772049 | Q99: 1.46268724 | R99: 0.8007722446 | T99: -2.095404552e-05 | U99: 1.011779991e-05 | V99: 1.796114257e-08
E100: 1.104 | F100: -29.68302749 | G100: 1.492167223 | H100: 0.6674673261 | I100: -14.7631446 | J100: -0.5661233208 | K100: 0.147631446 | L100: -44.44617209 | M100: 0.9260439018 | N100: 0.8150987721 | P100: -44.44619782 | Q100: 0.9260538402 | R100: 0.8150989183 | T100: -2.572679515e-05 | U100: 9.938386004e-06 | V100: 1.462505788e-07
E101: 1.116 | F101: -29.60205897 | G101: 1.136287811 | H101: 0.6832370837 | I101: -13.97925873 | J101: -0.7387849846 | K101: 0.1397925873 | L101: -43.5813177 | M101: 0.397502826 | N101: 0.823029671 | P101: -43.58134807 | Q101: 0.3975125164 | R101: 0.8230299458 | T101: -3.037212483e-05 | U101: 9.690356898e-06 | V101: 2.74785276e-07
E102: 1.128 | F102: -29.35461338 | G102: 0.7823838277 | H102: 0.6947461431 | I102: -12.99431298 | J102: -0.9008209046 | K102: 0.1299431298 | L102: -42.34892636 | M102: -0.1184370769 | N102: 0.8246892729 | P102: -42.34896121 | Q102: -0.1184277019 | R102: 0.8246896755 | T102: -3.485447405e-05 | U102: 9.375061776e-06 | V102: 4.026087629e-07
E103: 1.14 | F103: -28.94604625 | G103: 0.432421681 | H103: 0.7020300722 | I103: -11.82247355 | J103: -1.049900562 | K103: 0.1182247355 | L103: -40.7685198 | M103: -0.6174788814 | N103: 0.8202548077 | P103: -40.76855894 | Q103: -0.6174698869 | R103: 0.8202553364 | T103: -3.913909132e-05 | U103: 8.994421595e-06 | V103: 5.287562034e-07
E104: 1.152 | F104: -28.38250267 | G104: 0.08829872169 | H104: 0.7051476307 | I104: -10.4805947 | J104: -1.183879786 | K104: 0.104805947 | L104: -38.86309737 | M104: -1.095581064 | N104: 0.8099535777 | P104: -38.86314057 | Q104: -1.095572513 | R104: 0.80995423 | T104: -4.319236288e-05 | U104: 8.55091682e-06 | V104: 6.522632311e-07
E105: 1.164 | F105: -27.67086363 | G105: -0.2481659107 | H105: 0.7041798864 | I105: -8.987976307 | J105: -1.300831587 | K105: 0.08987976307 | L105: -36.65883994 | M105: -1.548997498 | N105: 0.7940596494 | P105: -36.65888692 | Q105: -1.548989451 | R105: 0.7940604216 | T105: -4.698213586e-05 | U105: 8.047569319e-06 | V105: 7.721749308e-07
E106: 1.176 | F106: -26.81868941 | G106: -0.5752397821 | H106: 0.6992292245 | I106: -7.36608629 | J106: -1.399073882 | K106: 0.0736608629 | L106: -34.18477571 | M106: -1.974313664 | N106: 0.7728900874 | P106: -34.18482618 | Q106: -1.974306176 | R106: 0.7728909749 | T106: -5.04780318e-05 | U106: 7.487918665e-06 | V106: 8.875548621e-07
E107: 1.188 | F107: -25.83416047 | G107: -0.8912849631 | H107: 0.6904182599 | I107: -5.638251856 | J107: -1.477193677 | K107: 0.05638251856 | L107: -31.47241233 | M107: -2.36847864 | N107: 0.7468007785 | P107: -31.47246598 | Q107: -2.368471764 | R107: 0.746801776 | T107: -5.365174702e-05 | U107: 6.875992998e-06 | V107: 9.974940256e-07
E108: 1.2 | F108: -24.72601618 | G108: -1.194765106 | H108: 0.6778886599 | I108: -3.829323976 | J108: -1.534067397 | K108: 0.03829323976 | L108: -28.55534016 | M108: -2.728832503 | N108: 0.7161818997 | P108: -28.55539664 | Q108: -2.728826287 | R108: 0.7161830008 | T108: -5.647733653e-05 | U108: 6.216274805e-06 | V108: 1.101119673e-06
